Workbook

Sheet Sheet3 (hidden)
A1: =IF(LEFT(F12,2)="S.",0,F36) -> 96 | B1: =IF(LEFT(D12,2)="S.",F16,F14) -> 01:00:00 | C1: =RTD("cqg.rtd",,"StudyData",$D$12, "Bar", "", "Time","D","0",,,,,"T") -> 2021-10-13 | D1: =YEAR(C1) -> 2021 | E1: =MONTH(C1) -> 10 | F1: =DAY(C1) -> 13 | H1: =IF(A1="",NA(),RTD("cqg.rtd",,"StudyData","Close("&$D$12&") when LocalYear("&$D$12&")="&$D$1&" and localMonth("&$D$12&") ="&$E$1&" and LocalDay("&$D$12&")="&$F$1&" and Barix("&$D$12&",reference:=StartOfDay)="&A1&"","Bar","","Close","5","0","All",,,"False","T","EveryTick")) -> 4336.75 | I1: =IFERROR((H1-$G$2)/$G$2,NA()) -> -0.0009214997408 | J1: =IF(A1="",NA(),RTD("cqg.rtd",,"StudyData", "Close("&$D$12&") when LocalYear("&$D$12&")="&$D$2&" and localMonth("&$D$12&") ="&$E$2&" and LocalDay("&$D$12&")="&$F$2&" and Barix("&$D$12&",reference:=StartOfDay)="&A1&"", "Bar", "", "Close","5","0","All",,,"False","T","EveryTick")) -> 4326 | K1: =IFERROR((J1-$G$3)/$G$3,NA()) -> -0.005745805562 | L1: =IF(A1="",NA(),RTD("cqg.rtd",,"StudyData", "Close("&$D$12&") when LocalYear("&$D$12&")="&$D$3&" and localMonth("&$D$12&") ="&$E$3&" and LocalDay("&$D$12&")="&$F$3&" and Barix("&$D$12&",reference:=StartOfDay)="&A1&"", "Bar", "", "Close","5","0","All",,,"False","T","EveryTick")) -> 4380.25 | M1: =IFERROR((L1-$G$4)/$G$4,NA()) -> -0.0004563865594 | N1: =IF(A1="",NA(),RTD("cqg.rtd",,"StudyData", "Close("&$D$12&") when LocalYear("&$D$12&")="&$D$4&" and localMonth("&$D$12&") ="&$E$4&" and LocalDay("&$D$12&")="&$F$4&" and Barix("&$D$12&",reference:=StartOfDay)="&A1&"", "Bar", "", "Close","5","0","All",,,"False","T","EveryTick")) -> 4389.25 | O1: =IFERROR((N1-$G$5)/$G$5,NA()) -> -0.0001708428246 | P1: =IF(A1="",NA(),RTD("cqg.rtd",,"StudyData", "Close("&$D$12&") when LocalYear("&$D$12&")="&$D$5&" and localMonth("&$D$12&") ="&$E$5&" and LocalDay("&$D$12&")="&$F$5&" and Barix("&$D$12&",reference:=StartOfDay)="&A1&"", "Bar", "", "Close","5","0","All",,,"False","T","EveryTick")) -> 4377.5 | Q1: =IFERROR((P1-$G$6)/$G$6,NA()) -> 0.005397335783 | R1: =IF(A1="",NA(),RTD("cqg.rtd",,"StudyData", "Close("&$D$12&") when LocalYear("&$D$12&")="&$D$6&" and localMonth("&$D$12&") ="&$E$6&" and LocalDay("&$D$12&")="&$F$6&" and Barix("&$D$12&",reference:=StartOfDay)="&A1&"", "Bar", "", "Close","5","0","All",,,"False","T","EveryTick")) -> 4312 | S1: =IFERROR((R1-$G$7)/$G$7,NA()) -> -0.005076142132 | T1: =IF(A1="",NA(),RTD("cqg.rtd",,"StudyData","Close("&$D$12&") when LocalYear("&$D$12&")="&$D$7&" and localMonth("&$D$12&") ="&$E$7&" and LocalDay("&$D$12&")="&$F$7&" and Barix("&$D$12&",reference:=StartOfDay)="&A1&"","Bar","","Close","5","0","All",,,"False","T","EveryTick")) -> 4293.75 | U1: =IFERROR((T1-$G$8)/$G$8,NA()) -> 0.0005825808331 | V1: =IF(A1="",NA(),RTD("cqg.rtd",,"StudyData","Close("&$D$12&") when LocalYear("&$D$12&")="&$D$8&" and localMonth("&$D$12&") ="&$E$8&" and LocalDay("&$D$12&")="&$F$8&" and Barix("&$D$12&",reference:=StartOfDay)="&A1&"","Bar","","Close","5","0","All",,,"False","T","EveryTick")) -> 4332.75 | W1: =IFERROR((V1-$G$9)/$G$9,NA()) -> -0.002532374101 | X1: =IF(A1="",NA(),RTD("cqg.rtd",,"StudyData","Close("&$D$12&") when LocalYear("&$D$12&")="&$D$9&" and localMonth("&$D$12&") ="&$E$9&" and LocalDay("&$D$12&")="&$F$9&" and Barix("&$D$12&",reference:=StartOfDay)="&A1&"","Bar","","Close","5","0","All",,,"False","T","EveryTick")) -> 4282 | Y1: =IFERROR((X1-$G$10)/$G$10,NA()) -> -0.003664708278 | Z1: =IF(A1="",NA(),RTD("cqg.rtd",,"StudyData","Close("&$D$12&") when LocalYear("&$D$12&")="&$D$10&" and localMonth("&$D$12&") ="&$E$10&" and LocalDay("&$D$12&")="&$F$10&" and Barix("&$D$12&",reference:=StartOfDay)="&A1&"","Bar","","Close","5","0","All",,,"False","T","EveryTick")) -> 4381 | AA1: =IFERROR((Z1-$G$11)/$G$11,NA()) -> 0.007184320938 | AB1: =RANK(AD1,$AD$1:$AD$10)+COUNTIF($AD$1:AD1,AD1)-1 -> 8 | AC1: =DATE(D1,E1,F1) -> 2021-10-13 | AD1: =IFERROR(VLOOKUP(MAX(AE2:AE168),A1:I168,9,FALSE),"") -> -0.001151874676 | AF1: 1 | AG1: =VLOOKUP(AF1,$AB$1:$AD$10,2,FALSE) -> 2021-10-05 | AH1: =VLOOKUP(AF1,$AB$1:$AD$10,3,FALSE) -> 0.01462277891 | AK1: =AG1 -> 2021-10-05 | AL1: =AC1 -> 2021-10-13 | AM1: 0 | AN1: =VLOOKUP(AK1,$AL$1:$AM$10,2,FALSE) -> 6
A2: =IF($D$12="QGA","",A1+1) -> 97 | B2: =B1+5/60/24 -> 01:05:00 | C2: =RTD("cqg.rtd",,"StudyData",$D$12, "Bar", "", "Time","D","-1",,,,,"T") -> 2021-10-12 | D2: 2021 | E2: 10 | F2: 12 | G2: =RTD("cqg.rtd",,"StudyData",$D$12, "Bar", "", "Close","D","-1",,,,,"T") -> 4340.75 | H2: =IF(A2="",NA(),RTD("cqg.rtd",,"StudyData","Close("&$D$12&") when LocalYear("&$D$12&")="&$D$1&" and localMonth("&$D$12&") ="&$E$1&" and LocalDay("&$D$12&")="&$F$1&" and Barix("&$D$12&",reference:=StartOfDay)="&A2&"","Bar","","Close","5","0","All",,,"False","T","EveryTick")) -> 4334.5 | I2: -0.001439843345 | J2: =IF(A2="",NA(),RTD("cqg.rtd",,"StudyData", "Close("&$D$12&") when LocalYear("&$D$12&")="&$D$2&" and localMonth("&$D$12&") ="&$E$2&" and LocalDay("&$D$12&")="&$F$2&" and Barix("&$D$12&",reference:=StartOfDay)="&A2&"", "Bar", "", "Close","5","0","All",,,"False","T","EveryTick")) -> 4329 | K2: -0.005056308895 | L2: =IF(A2="",NA(),RTD("cqg.rtd",,"StudyData", "Close("&$D$12&") when LocalYear("&$D$12&")="&$D$3&" and localMonth("&$D$12&") ="&$E$3&" and LocalDay("&$D$12&")="&$F$3&" and Barix("&$D$12&",reference:=StartOfDay)="&A2&"", "Bar", "", "Close","5","0","All",,,"False","T","EveryTick")) -> 4374 | M2: -0.001882594558 | N2: =IF(A2="",NA(),RTD("cqg.rtd",,"StudyData", "Close("&$D$12&") when LocalYear("&$D$12&")="&$D$4&" and localMonth("&$D$12&") ="&$E$4&" and LocalDay("&$D$12&")="&$F$4&" and Barix("&$D$12&",reference:=StartOfDay)="&A2&"", "Bar", "", "Close","5","0","All",,,"False","T","EveryTick")) -> 4390 | O2: 0 | P2: =IF(A2="",NA(),RTD("cqg.rtd",,"StudyData", "Close("&$D$12&") when LocalYear("&$D$12&")="&$D$5&" and localMonth("&$D$12&") ="&$E$5&" and LocalDay("&$D$12&")="&$F$5&" and Barix("&$D$12&",reference:=StartOfDay)="&A2&"", "Bar", "", "Close","5","0","All",,,"False","T","EveryTick")) -> 4380 | Q2: 0.005971520441 | R2: =IF(A2="",NA(),RTD("cqg.rtd",,"StudyData", "Close("&$D$12&") when LocalYear("&$D$12&")="&$D$6&" and localMonth("&$D$12&") ="&$E$6&" and LocalDay("&$D$12&")="&$F$6&" and Barix("&$D$12&",reference:=StartOfDay)="&A2&"", "Bar", "", "Close","5","0","All",,,"False","T","EveryTick")) -> 4310.25 | S2: -0.005479926165 | T2: =IF(A2="",NA(),RTD("cqg.rtd",,"StudyData","Close("&$D$12&") when LocalYear("&$D$12&")="&$D$7&" and localMonth("&$D$12&") ="&$E$7&" and LocalDay("&$D$12&")="&$F$7&" and Barix("&$D$12&",reference:=StartOfDay)="&A2&"","Bar","","Close","5","0","All",,,"False","T","EveryTick")) -> 4288.5 | U2: -0.0006408389164 | V2: =IF(A2="",NA(),RTD("cqg.rtd",,"StudyData","Close("&$D$12&") when LocalYear("&$D$12&")="&$D$8&" and localMonth("&$D$12&") ="&$E$8&" and LocalDay("&$D$12&")="&$F$8&" and Barix("&$D$12&",reference:=StartOfDay)="&A2&"","Bar","","Close","5","0","All",,,"False","T","EveryTick")) -> 4330.25 | W2: -0.003107913669 | X2: =IF(A2="",NA(),RTD("cqg.rtd",,"StudyData","Close("&$D$12&") when LocalYear("&$D$12&")="&$D$9&" and localMonth("&$D$12&") ="&$E$9&" and LocalDay("&$D$12&")="&$F$9&" and Barix("&$D$12&",reference:=StartOfDay)="&A2&"","Bar","","Close","5","0","All",,,"False","T","EveryTick")) -> 4281.5 | Y2: -0.003781048223 | Z2: =IF(A2="",NA(),RTD("cqg.rtd",,"StudyData","Close("&$D$12&") when LocalYear("&$D$12&")="&$D$10&" and localMonth("&$D$12&") ="&$E$10&" and LocalDay("&$D$12&")="&$F$10&" and Barix("&$D$12&",reference:=StartOfDay)="&A2&"","Bar","","Close","5","0","All",,,"False","T","EveryTick")) -> 4382.5 | AA2: 0.007529168343 | AB2: =RANK(AD2,$AD$1:$AD$10)+COUNTIF($AD$1:AD2,AD2)-1 -> 7 | AC2: 2021-10-12 | AD2: =IFERROR(VLOOKUP(MAX(AE2:AE177),A1:K177,11,FALSE),"") -> -5.745805562e-05 | AE2: =IFERROR(IF(AND(H1<>"",H2<>"",H3=""),A2,""),"") ->  | AF2: 2 | AG2: 2021-10-07 | AH2: 0.01314882866 | AK2: 2021-10-07 | AL2: 2021-10-12 | AM2: 1 | AN2: 4
A3: 98 | B3: =B2+5/60/24 -> 01:10:00 | C3: =RTD("cqg.rtd",,"StudyData",$D$12, "Bar", "", "Time","D","-2",,,,,"T") -> 2021-10-11 | D3: 2021 | E3: 10 | F3: 11 | G3: =RTD("cqg.rtd",,"StudyData",$D$12, "Bar", "", "Close","D","-2",,,,,"T") -> 4351 | H3: =IF(A3="",NA(),RTD("cqg.rtd",,"StudyData","Close("&$D$12&") when LocalYear("&$D$12&")="&$D$1&" and localMonth("&$D$12&") ="&$E$1&" and LocalDay("&$D$12&")="&$F$1&" and Barix("&$D$12&",reference:=StartOfDay)="&A3&"","Bar","","Close","5","0","All",,,"False","T","EveryTick")) -> 4333 | I3: -0.001785405748 | J3: =IF(A3="",NA(),RTD("cqg.rtd",,"StudyData", "Close("&$D$12&") when LocalYear("&$D$12&")="&$D$2&" and localMonth("&$D$12&") ="&$E$2&" and LocalDay("&$D$12&")="&$F$2&" and Barix("&$D$12&",reference:=StartOfDay)="&A3&"", "Bar", "", "Close","5","0","All",,,"False","T","EveryTick")) -> 4328.25 | K3: -0.005228683061 | L3: =IF(A3="",NA(),RTD("cqg.rtd",,"StudyData", "Close("&$D$12&") when LocalYear("&$D$12&")="&$D$3&" and localMonth("&$D$12&") ="&$E$3&" and LocalDay("&$D$12&")="&$F$3&" and Barix("&$D$12&",reference:=StartOfDay)="&A3&"", "Bar", "", "Close","5","0","All",,,"False","T","EveryTick")) -> 4372.25 | M3: -0.002281932797 | N3: =IF(A3="",NA(),RTD("cqg.rtd",,"StudyData", "Close("&$D$12&") when LocalYear("&$D$12&")="&$D$4&" and localMonth("&$D$12&") ="&$E$4&" and LocalDay("&$D$12&")="&$F$4&" and Barix("&$D$12&",reference:=StartOfDay)="&A3&"", "Bar", "", "Close","5","0","All",,,"False","T","EveryTick")) -> 4391.25 | O3: 0.000284738041 | P3: =IF(A3="",NA(),RTD("cqg.rtd",,"StudyData", "Close("&$D$12&") when LocalYear("&$D$12&")="&$D$5&" and localMonth("&$D$12&") ="&$E$5&" and LocalDay("&$D$12&")="&$F$5&" and Barix("&$D$12&",reference:=StartOfDay)="&A3&"", "Bar", "", "Close","5","0","All",,,"False","T","EveryTick")) -> 4379.25 | Q3: 0.005799265044 | R3: =IF(A3="",NA(),RTD("cqg.rtd",,"StudyData", "Close("&$D$12&") when LocalYear("&$D$12&")="&$D$6&" and localMonth("&$D$12&") ="&$E$6&" and LocalDay("&$D$12&")="&$F$6&" and Barix("&$D$12&",reference:=StartOfDay)="&A3&"", "Bar", "", "Close","5","0","All",,,"False","T","EveryTick")) -> 4309.75 | S3: -0.005595293032 | T3: =IF(A3="",NA(),RTD("cqg.rtd",,"StudyData","Close("&$D$12&") when LocalYear("&$D$12&")="&$D$7&" and localMonth("&$D$12&") ="&$E$7&" and LocalDay("&$D$12&")="&$F$7&" and Barix("&$D$12&",reference:=StartOfDay)="&A3&"","Bar","","Close","5","0","All",,,"False","T","EveryTick")) -> 4288.25 | U3: -0.0006990969997 | V3: =IF(A3="",NA(),RTD("cqg.rtd",,"StudyData","Close("&$D$12&") when LocalYear("&$D$12&")="&$D$8&" and localMonth("&$D$12&") ="&$E$8&" and LocalDay("&$D$12&")="&$F$8&" and Barix("&$D$12&",reference:=StartOfDay)="&A3&"","Bar","","Close","5","0","All",,,"False","T","EveryTick")) -> 4326.75 | W3: -0.003913669065 | X3: =IF(A3="",NA(),RTD("cqg.rtd",,"StudyData","Close("&$D$12&") when LocalYear("&$D$12&")="&$D$9&" and localMonth("&$D$12&") ="&$E$9&" and LocalDay("&$D$12&")="&$F$9&" and Barix("&$D$12&",reference:=StartOfDay)="&A3&"","Bar","","Close","5","0","All",,,"False","T","EveryTick")) -> 4275.5 | Y3: -0.005177127567 | Z3: =IF(A3="",NA(),RTD("cqg.rtd",,"StudyData","Close("&$D$12&") when LocalYear("&$D$12&")="&$D$10&" and localMonth("&$D$12&") ="&$E$10&" and LocalDay("&$D$12&")="&$F$10&" and Barix("&$D$12&",reference:=StartOfDay)="&A3&"","Bar","","Close","5","0","All",,,"False","T","EveryTick")) -> 4383.5 | AA3: 0.007759066613 | AB3: =RANK(AD3,$AD$1:$AD$10)+COUNTIF($AD$1:AD3,AD3)-1 -> 3 | AC3: 2021-10-11 | AD3: =IFERROR(VLOOKUP(MAX(AE2:AE177),A1:M177,13,FALSE),"") -> 0.003194705916 | AF3: 3 | AG3: 2021-10-11 | AH3: 0.003194705916 | AK3: 2021-10-11 | AL3: 2021-10-11 | AM3: 2 | AN3: 2
A4: 99 | B4: 01:15:00 | C4: =RTD("cqg.rtd",,"StudyData",$D$12, "Bar", "", "Time","D","-3",,,,,"T") -> 2021-10-08 | D4: 2021 | E4: 10 | F4: 8 | G4: =RTD("cqg.rtd",,"StudyData",$D$12, "Bar", "", "Close","D","-3",,,,,"T") -> 4382.25 | H4: =IF(A4="",NA(),RTD("cqg.rtd",,"StudyData","Close("&$D$12&") when LocalYear("&$D$12&")="&$D$1&" and localMonth("&$D$12&") ="&$E$1&" and LocalDay("&$D$12&")="&$F$1&" and Barix("&$D$12&",reference:=StartOfDay)="&A4&"","Bar","","Close","5","0","All",,,"False","T","EveryTick")) -> 4332.5 | I4: -0.001900593215 | J4: =IF(A4="",NA(),RTD("cqg.rtd",,"StudyData", "Close("&$D$12&") when LocalYear("&$D$12&")="&$D$2&" and localMonth("&$D$12&") ="&$E$2&" and LocalDay("&$D$12&")="&$F$2&" and Barix("&$D$12&",reference:=StartOfDay)="&A4&"", "Bar", "", "Close","5","0","All",,,"False","T","EveryTick")) -> 4326 | K4: -0.005745805562 | L4: =IF(A4="",NA(),RTD("cqg.rtd",,"StudyData", "Close("&$D$12&") when LocalYear("&$D$12&")="&$D$3&" and localMonth("&$D$12&") ="&$E$3&" and LocalDay("&$D$12&")="&$F$3&" and Barix("&$D$12&",reference:=StartOfDay)="&A4&"", "Bar", "", "Close","5","0","All",,,"False","T","EveryTick")) -> 4370 | M4: -0.002795367676 | N4: =IF(A4="",NA(),RTD("cqg.rtd",,"StudyData", "Close("&$D$12&") when LocalYear("&$D$12&")="&$D$4&" and localMonth("&$D$12&") ="&$E$4&" and LocalDay("&$D$12&")="&$F$4&" and Barix("&$D$12&",reference:=StartOfDay)="&A4&"", "Bar", "", "Close","5","0","All",,,"False","T","EveryTick")) -> 4391.5 | O4: 0.0003416856492 | P4: =IF(A4="",NA(),RTD("cqg.rtd",,"StudyData", "Close("&$D$12&") when LocalYear("&$D$12&")="&$D$5&" and localMonth("&$D$12&") ="&$E$5&" and LocalDay("&$D$12&")="&$F$5&" and Barix("&$D$12&",reference:=StartOfDay)="&A4&"", "Bar", "", "Close","5","0","All",,,"False","T","EveryTick")) -> 4381.25 | Q4: 0.00625861277 | R4: =IF(A4="",NA(),RTD("cqg.rtd",,"StudyData", "Close("&$D$12&") when LocalYear("&$D$12&")="&$D$6&" and localMonth("&$D$12&") ="&$E$6&" and LocalDay("&$D$12&")="&$F$6&" and Barix("&$D$12&",reference:=StartOfDay)="&A4&"", "Bar", "", "Close","5","0","All",,,"False","T","EveryTick")) -> 4313.25 | S4: -0.004787724965 | T4: =IF(A4="",NA(),RTD("cqg.rtd",,"StudyData","Close("&$D$12&") when LocalYear("&$D$12&")="&$D$7&" and localMonth("&$D$12&") ="&$E$7&" and LocalDay("&$D$12&")="&$F$7&" and Barix("&$D$12&",reference:=StartOfDay)="&A4&"","Bar","","Close","5","0","All",,,"False","T","EveryTick")) -> 4285.5 | U4: -0.001339935916 | V4: =IF(A4="",NA(),RTD("cqg.rtd",,"StudyData","Close("&$D$12&") when LocalYear("&$D$12&")="&$D$8&" and localMonth("&$D$12&") ="&$E$8&" and LocalDay("&$D$12&")="&$F$8&" and Barix("&$D$12&",reference:=StartOfDay)="&A4&"","Bar","","Close","5","0","All",,,"False","T","EveryTick")) -> 4323 | W4: -0.004776978417 | X4: =IF(A4="",NA(),RTD("cqg.rtd",,"StudyData","Close("&$D$12&") when LocalYear("&$D$12&")="&$D$9&" and localMonth("&$D$12&") ="&$E$9&" and LocalDay("&$D$12&")="&$F$9&" and Barix("&$D$12&",reference:=StartOfDay)="&A4&"","Bar","","Close","5","0","All",,,"False","T","EveryTick")) -> 4272.5 | Y4: -0.005875167239 | Z4: =IF(A4="",NA(),RTD("cqg.rtd",,"StudyData","Close("&$D$12&") when LocalYear("&$D$12&")="&$D$10&" and localMonth("&$D$12&") ="&$E$10&" and LocalDay("&$D$12&")="&$F$10&" and Barix("&$D$12&",reference:=StartOfDay)="&A4&"","Bar","","Close","5","0","All",,,"False","T","EveryTick")) -> 4386.5 | AA4: 0.008448761423 | AB4: =RANK(AD4,$AD$1:$AD$10)+COUNTIF($AD$1:AD4,AD4)-1 -> 5 | AC4: 2021-10-08 | AD4: =IFERROR(VLOOKUP(MAX(AE2:AE177),A1:O177,15,FALSE),"") -> 0.001822323462 | AF4: 4 | AG4: 2021-10-01 | AH4: 0.002966668606 | AK4: 2021-10-01 | AL4: 2021-10-08 | AM4: 3 | AN4: 8
A5: 100 | B5: 01:20:00 | C5: =RTD("cqg.rtd",,"StudyData",$D$12, "Bar", "", "Time","D","-4",,,,,"T") -> 2021-10-07 | D5: 2021 | E5: 10 | F5: 7 | G5: =RTD("cqg.rtd",,"StudyData",$D$12, "Bar", "", "Close","D","-4",,,,,"T") -> 4390 | H5: =IF(A5="",NA(),RTD("cqg.rtd",,"StudyData","Close("&$D$12&") when LocalYear("&$D$12&")="&$D$1&" and localMonth("&$D$12&") ="&$E$1&" and LocalDay("&$D$12&")="&$F$1&" and Barix("&$D$12&",reference:=StartOfDay)="&A5&"","Bar","","Close","5","0","All",,,"False","T","EveryTick")) -> 4332.25 | I5: -0.001958186949 | J5: =IF(A5="",NA(),RTD("cqg.rtd",,"StudyData", "Close("&$D$12&") when LocalYear("&$D$12&")="&$D$2&" and localMonth("&$D$12&") ="&$E$2&" and LocalDay("&$D$12&")="&$F$2&" and Barix("&$D$12&",reference:=StartOfDay)="&A5&"", "Bar", "", "Close","5","0","All",,,"False","T","EveryTick")) -> 4329.25 | K5: -0.004998850839 | L5: =IF(A5="",NA(),RTD("cqg.rtd",,"StudyData", "Close("&$D$12&") when LocalYear("&$D$12&")="&$D$3&" and localMonth("&$D$12&") ="&$E$3&" and LocalDay("&$D$12&")="&$F$3&" and Barix("&$D$12&",reference:=StartOfDay)="&A5&"", "Bar", "", "Close","5","0","All",,,"False","T","EveryTick")) -> 4368.5 | M5: -0.003137657596 | N5: =IF(A5="",NA(),RTD("cqg.rtd",,"StudyData", "Close("&$D$12&") when LocalYear("&$D$12&")="&$D$4&" and localMonth("&$D$12&") ="&$E$4&" and LocalDay("&$D$12&")="&$F$4&" and Barix("&$D$12&",reference:=StartOfDay)="&A5&"", "Bar", "", "Close","5","0","All",,,"False","T","EveryTick")) -> 4391.5 | O5: 0.0003416856492 | P5: =IF(A5="",NA(),RTD("cqg.rtd",,"StudyData", "Close("&$D$12&") when LocalYear("&$D$12&")="&$D$5&" and localMonth("&$D$12&") ="&$E$5&" and LocalDay("&$D$12&")="&$F$5&" and Barix("&$D$12&",reference:=StartOfDay)="&A5&"", "Bar", "", "Close","5","0","All",,,"False","T","EveryTick")) -> 4382 | Q5: 0.006430868167 | R5: =IF(A5="",NA(),RTD("cqg.rtd",,"StudyData", "Close("&$D$12&") when LocalYear("&$D$12&")="&$D$6&" and localMonth("&$D$12&") ="&$E$6&" and LocalDay("&$D$12&")="&$F$6&" and Barix("&$D$12&",reference:=StartOfDay)="&A5&"", "Bar", "", "Close","5","0","All",,,"False","T","EveryTick")) -> 4314.25 | S5: -0.004556991232 | T5: =IF(A5="",NA(),RTD("cqg.rtd",,"StudyData","Close("&$D$12&") when LocalYear("&$D$12&")="&$D$7&" and localMonth("&$D$12&") ="&$E$7&" and LocalDay("&$D$12&")="&$F$7&" and Barix("&$D$12&",reference:=StartOfDay)="&A5&"","Bar","","Close","5","0","All",,,"False","T","EveryTick")) -> 4288.25 | U5: -0.0006990969997 | V5: =IF(A5="",NA(),RTD("cqg.rtd",,"StudyData","Close("&$D$12&") when LocalYear("&$D$12&")="&$D$8&" and localMonth("&$D$12&") ="&$E$8&" and LocalDay("&$D$12&")="&$F$8&" and Barix("&$D$12&",reference:=StartOfDay)="&A5&"","Bar","","Close","5","0","All",,,"False","T","EveryTick")) -> 4325.25 | W5: -0.004258992806 | X5: =IF(A5="",NA(),RTD("cqg.rtd",,"StudyData","Close("&$D$12&") when LocalYear("&$D$12&")="&$D$9&" and localMonth("&$D$12&") ="&$E$9&" and LocalDay("&$D$12&")="&$F$9&" and Barix("&$D$12&",reference:=StartOfDay)="&A5&"","Bar","","Close","5","0","All",,,"False","T","EveryTick")) -> 4266 | Y5: -0.007387586528 | Z5: =IF(A5="",NA(),RTD("cqg.rtd",,"StudyData","Close("&$D$12&") when LocalYear("&$D$12&")="&$D$10&" and localMonth("&$D$12&") ="&$E$10&" and LocalDay("&$D$12&")="&$F$10&" and Barix("&$D$12&",reference:=StartOfDay)="&A5&"","Bar","","Close","5","0","All",,,"False","T","EveryTick")) -> 4385.25 | AA5: 0.008161388586 | AB5: =RANK(AD5,$AD$1:$AD$10)+COUNTIF($AD$1:AD5,AD5)-1 -> 2 | AC5: 2021-10-07 | AD5: =IFERROR(VLOOKUP(MAX(AE2:AE177),A1:Q177,17,FALSE),"") -> 0.01314882866 | AF5: 5 | AG5: 2021-10-08 | AH5: 0.001822323462 | AK5: 2021-10-08 | AL5: 2021-10-07 | AM5: 4 | AN5: 3
A6: 101 | B6: 01:25:00 | C6: =RTD("cqg.rtd",,"StudyData",$D$12, "Bar", "", "Time","D","-5",,,,,"T") -> 2021-10-06 | D6: 2021 | E6: 10 | F6: 6 | G6: =RTD("cqg.rtd",,"StudyData",$D$12, "Bar", "", "Close","D","-5",,,,,"T") -> 4354 | H6: =IF(A6="",NA(),RTD("cqg.rtd",,"StudyData","Close("&$D$12&") when LocalYear("&$D$12&")="&$D$1&" and localMonth("&$D$12&") ="&$E$1&" and LocalDay("&$D$12&")="&$F$1&" and Barix("&$D$12&",reference:=StartOfDay)="&A6&"","Bar","","Close","5","0","All",,,"False","T","EveryTick")) -> 4335 | I6: -0.001324655877 | J6: =IF(A6="",NA(),RTD("cqg.rtd",,"StudyData", "Close("&$D$12&") when LocalYear("&$D$12&")="&$D$2&" and localMonth("&$D$12&") ="&$E$2&" and LocalDay("&$D$12&")="&$F$2&" and Barix("&$D$12&",reference:=StartOfDay)="&A6&"", "Bar", "", "Close","5","0","All",,,"False","T","EveryTick")) -> 4330 | K6: -0.004826476672 | L6: =IF(A6="",NA(),RTD("cqg.rtd",,"StudyData", "Close("&$D$12&") when LocalYear("&$D$12&")="&$D$3&" and localMonth("&$D$12&") ="&$E$3&" and LocalDay("&$D$12&")="&$F$3&" and Barix("&$D$12&",reference:=StartOfDay)="&A6&"", "Bar", "", "Close","5","0","All",,,"False","T","EveryTick")) -> 4367.5 | M6: -0.003365850876 | N6: =IF(A6="",NA(),RTD("cqg.rtd",,"StudyData", "Close("&$D$12&") when LocalYear("&$D$12&")="&$D$4&" and localMonth("&$D$12&") ="&$E$4&" and LocalDay("&$D$12&")="&$F$4&" and Barix("&$D$12&",reference:=StartOfDay)="&A6&"", "Bar", "", "Close","5","0","All",,,"False","T","EveryTick")) -> 4392 | O6: 0.0004555808656 | P6: =IF(A6="",NA(),RTD("cqg.rtd",,"StudyData", "Close("&$D$12&") when LocalYear("&$D$12&")="&$D$5&" and localMonth("&$D$12&") ="&$E$5&" and LocalDay("&$D$12&")="&$F$5&" and Barix("&$D$12&",reference:=StartOfDay)="&A6&"", "Bar", "", "Close","5","0","All",,,"False","T","EveryTick")) -> 4382.75 | Q6: 0.006603123565 | R6: =IF(A6="",NA(),RTD("cqg.rtd",,"StudyData", "Close("&$D$12&") when LocalYear("&$D$12&")="&$D$6&" and localMonth("&$D$12&") ="&$E$6&" and LocalDay("&$D$12&")="&$F$6&" and Barix("&$D$12&",reference:=StartOfDay)="&A6&"", "Bar", "", "Close","5","0","All",,,"False","T","EveryTick")) -> 4312 | S6: -0.005076142132 | T6: =IF(A6="",NA(),RTD("cqg.rtd",,"StudyData","Close("&$D$12&") when LocalYear("&$D$12&")="&$D$7&" and localMonth("&$D$12&") ="&$E$7&" and LocalDay("&$D$12&")="&$F$7&" and Barix("&$D$12&",reference:=StartOfDay)="&A6&"","Bar","","Close","5","0","All",,,"False","T","EveryTick")) -> 4290.75 | U6: -0.0001165161666 | V6: =IF(A6="",NA(),RTD("cqg.rtd",,"StudyData","Close("&$D$12&") when LocalYear("&$D$12&")="&$D$8&" and localMonth("&$D$12&") ="&$E$8&" and LocalDay("&$D$12&")="&$F$8&" and Barix("&$D$12&",reference:=StartOfDay)="&A6&"","Bar","","Close","5","0","All",,,"False","T","EveryTick")) -> 4331 | W6: -0.002935251799 | X6: =IF(A6="",NA(),RTD("cqg.rtd",,"StudyData","Close("&$D$12&") when LocalYear("&$D$12&")="&$D$9&" and localMonth("&$D$12&") ="&$E$9&" and LocalDay("&$D$12&")="&$F$9&" and Barix("&$D$12&",reference:=StartOfDay)="&A6&"","Bar","","Close","5","0","All",,,"False","T","EveryTick")) -> 4267.25 | Y6: -0.007096736665 | Z6: =IF(A6="",NA(),RTD("cqg.rtd",,"StudyData","Close("&$D$12&") when LocalYear("&$D$12&")="&$D$10&" and localMonth("&$D$12&") ="&$E$10&" and LocalDay("&$D$12&")="&$F$10&" and Barix("&$D$12&",reference:=StartOfDay)="&A6&"","Bar","","Close","5","0","All",,,"False","T","EveryTick")) -> 4382.75 | AA6: 0.007586642911 | AB6: =RANK(AD6,$AD$1:$AD$10)+COUNTIF($AD$1:AD6,AD6)-1 -> 9 | AC6: 2021-10-06 | AD6: =IFERROR(VLOOKUP(MAX(AE2:AE177),A1:S177,19,FALSE),"") -> -0.005826026765 | AF6: 6 | AG6: 2021-09-30 | AH6: 0.00114949135 | AK6: 2021-09-30 | AL6: 2021-10-06 | AM6: 5 | AN6: 9
A7: 102 | B7: 01:30:00 | C7: =RTD("cqg.rtd",,"StudyData",$D$12, "Bar", "", "Time","D","-6",,,,,"T") -> 2021-10-05 | D7: 2021 | E7: 10 | F7: 5 | G7: =RTD("cqg.rtd",,"StudyData",$D$12, "Bar", "", "Close","D","-6",,,,,"T") -> 4334 | H7: =IF(A7="",NA(),RTD("cqg.rtd",,"StudyData","Close("&$D$12&") when LocalYear("&$D$12&")="&$D$1&" and localMonth("&$D$12&") ="&$E$1&" and LocalDay("&$D$12&")="&$F$1&" and Barix("&$D$12&",reference:=StartOfDay)="&A7&"","Bar","","Close","5","0","All",,,"False","T","EveryTick")) -> 4334.5 | I7: -0.001439843345 | J7: =IF(A7="",NA(),RTD("cqg.rtd",,"StudyData", "Close("&$D$12&") when LocalYear("&$D$12&")="&$D$2&" and localMonth("&$D$12&") ="&$E$2&" and LocalDay("&$D$12&")="&$F$2&" and Barix("&$D$12&",reference:=StartOfDay)="&A7&"", "Bar", "", "Close","5","0","All",,,"False","T","EveryTick")) -> 4327.5 | K7: -0.005401057228 | L7: =IF(A7="",NA(),RTD("cqg.rtd",,"StudyData", "Close("&$D$12&") when LocalYear("&$D$12&")="&$D$3&" and localMonth("&$D$12&") ="&$E$3&" and LocalDay("&$D$12&")="&$F$3&" and Barix("&$D$12&",reference:=StartOfDay)="&A7&"", "Bar", "", "Close","5","0","All",,,"False","T","EveryTick")) -> 4365.25 | M7: -0.003879285755 | N7: =IF(A7="",NA(),RTD("cqg.rtd",,"StudyData", "Close("&$D$12&") when LocalYear("&$D$12&")="&$D$4&" and localMonth("&$D$12&") ="&$E$4&" and LocalDay("&$D$12&")="&$F$4&" and Barix("&$D$12&",reference:=StartOfDay)="&A7&"", "Bar", "", "Close","5","0","All",,,"False","T","EveryTick")) -> 4393.25 | O7: 0.0007403189066 | P7: =IF(A7="",NA(),RTD("cqg.rtd",,"StudyData", "Close("&$D$12&") when LocalYear("&$D$12&")="&$D$5&" and localMonth("&$D$12&") ="&$E$5&" and LocalDay("&$D$12&")="&$F$5&" and Barix("&$D$12&",reference:=StartOfDay)="&A7&"", "Bar", "", "Close","5","0","All",,,"False","T","EveryTick")) -> 4383.5 | Q7: 0.006775378962 | R7: =IF(A7="",NA(),RTD("cqg.rtd",,"StudyData", "Close("&$D$12&") when LocalYear("&$D$12&")="&$D$6&" and localMonth("&$D$12&") ="&$E$6&" and LocalDay("&$D$12&")="&$F$6&" and Barix("&$D$12&",reference:=StartOfDay)="&A7&"", "Bar", "", "Close","5","0","All",,,"False","T","EveryTick")) -> 4313 | S7: -0.004845408399 | T7: =IF(A7="",NA(),RTD("cqg.rtd",,"StudyData","Close("&$D$12&") when LocalYear("&$D$12&")="&$D$7&" and localMonth("&$D$12&") ="&$E$7&" and LocalDay("&$D$12&")="&$F$7&" and Barix("&$D$12&",reference:=StartOfDay)="&A7&"","Bar","","Close","5","0","All",,,"False","T","EveryTick")) -> 4288.5 | U7: -0.0006408389164 | V7: =IF(A7="",NA(),RTD("cqg.rtd",,"StudyData","Close("&$D$12&") when LocalYear("&$D$12&")="&$D$8&" and localMonth("&$D$12&") ="&$E$8&" and LocalDay("&$D$12&")="&$F$8&" and Barix("&$D$12&",reference:=StartOfDay)="&A7&"","Bar","","Close","5","0","All",,,"False","T","EveryTick")) -> 4334 | W7: -0.002244604317 | X7: =IF(A7="",NA(),RTD("cqg.rtd",,"StudyData","Close("&$D$12&") when LocalYear("&$D$12&")="&$D$9&" and localMonth("&$D$12&") ="&$E$9&" and LocalDay("&$D$12&")="&$F$9&" and Barix("&$D$12&",reference:=StartOfDay)="&A7&"","Bar","","Close","5","0","All",,,"False","T","EveryTick")) -> 4265 | Y7: -0.007620266418 | Z7: =IF(A7="",NA(),RTD("cqg.rtd",,"StudyData","Close("&$D$12&") when LocalYear("&$D$12&")="&$D$10&" and localMonth("&$D$12&") ="&$E$10&" and LocalDay("&$D$12&")="&$F$10&" and Barix("&$D$12&",reference:=StartOfDay)="&A7&"","Bar","","Close","5","0","All",,,"False","T","EveryTick")) -> 4383 | AA7: 0.007644117478 | AB7: =RANK(AD7,$AD$1:$AD$10)+COUNTIF($AD$1:AD7,AD7)-1 -> 1 | AC7: 2021-10-05 | AD7: =IFERROR(VLOOKUP(MAX(AE2:AE177),A1:U177,21,FALSE),"") -> 0.01462277891 | AF7: 7 | AG7: 2021-10-12 | AH7: -5.745805562e-05 | AK7: 2021-10-12 | AL7: 2021-10-05 | AM7: 6 | AN7: 1
A8: 103 | B8: 01:35:00 | C8: =RTD("cqg.rtd",,"StudyData",$D$12, "Bar", "", "Time","D","-7",,,,,"T") -> 2021-10-04 | D8: 2021 | E8: 10 | F8: 4 | G8: =RTD("cqg.rtd",,"StudyData",$D$12, "Bar", "", "Close","D","-7",,,,,"T") -> 4291.25 | H8: =IF(A8="",NA(),RTD("cqg.rtd",,"StudyData","Close("&$D$12&") when LocalYear("&$D$12&")="&$D$1&" and localMonth("&$D$12&") ="&$E$1&" and LocalDay("&$D$12&")="&$F$1&" and Barix("&$D$12&",reference:=StartOfDay)="&A8&"","Bar","","Close","5","0","All",,,"False","T","EveryTick")) -> 4333.25 | I8: -0.001727812014 | J8: =IF(A8="",NA(),RTD("cqg.rtd",,"StudyData", "Close("&$D$12&") when LocalYear("&$D$12&")="&$D$2&" and localMonth("&$D$12&") ="&$E$2&" and LocalDay("&$D$12&")="&$F$2&" and Barix("&$D$12&",reference:=StartOfDay)="&A8&"", "Bar", "", "Close","5","0","All",,,"False","T","EveryTick")) -> 4327 | K8: -0.005515973339 | L8: =IF(A8="",NA(),RTD("cqg.rtd",,"StudyData", "Close("&$D$12&") when LocalYear("&$D$12&")="&$D$3&" and localMonth("&$D$12&") ="&$E$3&" and LocalDay("&$D$12&")="&$F$3&" and Barix("&$D$12&",reference:=StartOfDay)="&A8&"", "Bar", "", "Close","5","0","All",,,"False","T","EveryTick")) -> 4367.75 | M8: -0.003308802556 | N8: =IF(A8="",NA(),RTD("cqg.rtd",,"StudyData", "Close("&$D$12&") when LocalYear("&$D$12&")="&$D$4&" and localMonth("&$D$12&") ="&$E$4&" and LocalDay("&$D$12&")="&$F$4&" and Barix("&$D$12&",reference:=StartOfDay)="&A8&"", "Bar", "", "Close","5","0","All",,,"False","T","EveryTick")) -> 4392 | O8: 0.0004555808656 | P8: =IF(A8="",NA(),RTD("cqg.rtd",,"StudyData", "Close("&$D$12&") when LocalYear("&$D$12&")="&$D$5&" and localMonth("&$D$12&") ="&$E$5&" and LocalDay("&$D$12&")="&$F$5&" and Barix("&$D$12&",reference:=StartOfDay)="&A8&"", "Bar", "", "Close","5","0","All",,,"False","T","EveryTick")) -> 4382.75 | Q8: 0.006603123565 | R8: =IF(A8="",NA(),RTD("cqg.rtd",,"StudyData", "Close("&$D$12&") when LocalYear("&$D$12&")="&$D$6&" and localMonth("&$D$12&") ="&$E$6&" and LocalDay("&$D$12&")="&$F$6&" and Barix("&$D$12&",reference:=StartOfDay)="&A8&"", "Bar", "", "Close","5","0","All",,,"False","T","EveryTick")) -> 4312.5 | S8: -0.004960775265 | T8: =IF(A8="",NA(),RTD("cqg.rtd",,"StudyData","Close("&$D$12&") when LocalYear("&$D$12&")="&$D$7&" and localMonth("&$D$12&") ="&$E$7&" and LocalDay("&$D$12&")="&$F$7&" and Barix("&$D$12&",reference:=StartOfDay)="&A8&"","Bar","","Close","5","0","All",,,"False","T","EveryTick")) -> 4289 | U8: -0.0005243227498 | V8: =IF(A8="",NA(),RTD("cqg.rtd",,"StudyData","Close("&$D$12&") when LocalYear("&$D$12&")="&$D$8&" and localMonth("&$D$12&") ="&$E$8&" and LocalDay("&$D$12&")="&$F$8&" and Barix("&$D$12&",reference:=StartOfDay)="&A8&"","Bar","","Close","5","0","All",,,"False","T","EveryTick")) -> 4332.75 | W8: -0.002532374101 | X8: =IF(A8="",NA(),RTD("cqg.rtd",,"StudyData","Close("&$D$12&") when LocalYear("&$D$12&")="&$D$9&" and localMonth("&$D$12&") ="&$E$9&" and LocalDay("&$D$12&")="&$F$9&" and Barix("&$D$12&",reference:=StartOfDay)="&A8&"","Bar","","Close","5","0","All",,,"False","T","EveryTick")) -> 4266.25 | Y8: -0.007329416555 | Z8: =IF(A8="",NA(),RTD("cqg.rtd",,"StudyData","Close("&$D$12&") when LocalYear("&$D$12&")="&$D$10&" and localMonth("&$D$12&") ="&$E$10&" and LocalDay("&$D$12&")="&$F$10&" and Barix("&$D$12&",reference:=StartOfDay)="&A8&"","Bar","","Close","5","0","All",,,"False","T","EveryTick")) -> 4384.25 | AA8: 0.007931490316 | AB8: =RANK(AD8,$AD$1:$AD$10)+COUNTIF($AD$1:AD8,AD8)-1 -> 10 | AC8: 2021-10-04 | AD8: =IFERROR(VLOOKUP(MAX(AE2:AE177),A1:W177,23,FALSE),"") -> -0.01271942446 | AF8: 8 | AG8: 2021-10-13 | AH8: -0.001151874676 | AK8: 2021-10-13 | AL8: 2021-10-04 | AM8: 7 | AN8: 0
A9: 104 | B9: 01:40:00 | C9: =RTD("cqg.rtd",,"StudyData",$D$12, "Bar", "", "Time","D","-8",,,,,"T") -> 2021-10-01 | D9: 2021 | E9: 10 | F9: 1 | G9: =RTD("cqg.rtd",,"StudyData",$D$12, "Bar", "", "Close","D","-8",,,,,"T") -> 4343.75 | H9: =IF(A9="",NA(),RTD("cqg.rtd",,"StudyData","Close("&$D$12&") when LocalYear("&$D$12&")="&$D$1&" and localMonth("&$D$12&") ="&$E$1&" and LocalDay("&$D$12&")="&$F$1&" and Barix("&$D$12&",reference:=StartOfDay)="&A9&"","Bar","","Close","5","0","All",,,"False","T","EveryTick")) -> 4333.25 | I9: -0.001727812014 | J9: =IF(A9="",NA(),RTD("cqg.rtd",,"StudyData", "Close("&$D$12&") when LocalYear("&$D$12&")="&$D$2&" and localMonth("&$D$12&") ="&$E$2&" and LocalDay("&$D$12&")="&$F$2&" and Barix("&$D$12&",reference:=StartOfDay)="&A9&"", "Bar", "", "Close","5","0","All",,,"False","T","EveryTick")) -> 4328.5 | K9: -0.005171225006 | L9: =IF(A9="",NA(),RTD("cqg.rtd",,"StudyData", "Close("&$D$12&") when LocalYear("&$D$12&")="&$D$3&" and localMonth("&$D$12&") ="&$E$3&" and LocalDay("&$D$12&")="&$F$3&" and Barix("&$D$12&",reference:=StartOfDay)="&A9&"", "Bar", "", "Close","5","0","All",,,"False","T","EveryTick")) -> 4368.75 | M9: -0.003080609276 | N9: =IF(A9="",NA(),RTD("cqg.rtd",,"StudyData", "Close("&$D$12&") when LocalYear("&$D$12&")="&$D$4&" and localMonth("&$D$12&") ="&$E$4&" and LocalDay("&$D$12&")="&$F$4&" and Barix("&$D$12&",reference:=StartOfDay)="&A9&"", "Bar", "", "Close","5","0","All",,,"False","T","EveryTick")) -> 4393 | O9: 0.0006833712984 | P9: =IF(A9="",NA(),RTD("cqg.rtd",,"StudyData", "Close("&$D$12&") when LocalYear("&$D$12&")="&$D$5&" and localMonth("&$D$12&") ="&$E$5&" and LocalDay("&$D$12&")="&$F$5&" and Barix("&$D$12&",reference:=StartOfDay)="&A9&"", "Bar", "", "Close","5","0","All",,,"False","T","EveryTick")) -> 4379 | Q9: 0.005741846578 | R9: =IF(A9="",NA(),RTD("cqg.rtd",,"StudyData", "Close("&$D$12&") when LocalYear("&$D$12&")="&$D$6&" and localMonth("&$D$12&") ="&$E$6&" and LocalDay("&$D$12&")="&$F$6&" and Barix("&$D$12&",reference:=StartOfDay)="&A9&"", "Bar", "", "Close","5","0","All",,,"False","T","EveryTick")) -> 4311.75 | S9: -0.005133825565 | T9: =IF(A9="",NA(),RTD("cqg.rtd",,"StudyData","Close("&$D$12&") when LocalYear("&$D$12&")="&$D$7&" and localMonth("&$D$12&") ="&$E$7&" and LocalDay("&$D$12&")="&$F$7&" and Barix("&$D$12&",reference:=StartOfDay)="&A9&"","Bar","","Close","5","0","All",,,"False","T","EveryTick")) -> 4292 | U9: 0.0001747742499 | V9: =IF(A9="",NA(),RTD("cqg.rtd",,"StudyData","Close("&$D$12&") when LocalYear("&$D$12&")="&$D$8&" and localMonth("&$D$12&") ="&$E$8&" and LocalDay("&$D$12&")="&$F$8&" and Barix("&$D$12&",reference:=StartOfDay)="&A9&"","Bar","","Close","5","0","All",,,"False","T","EveryTick")) -> 4332.25 | W9: -0.002647482014 | X9: =IF(A9="",NA(),RTD("cqg.rtd",,"StudyData","Close("&$D$12&") when LocalYear("&$D$12&")="&$D$9&" and localMonth("&$D$12&") ="&$E$9&" and LocalDay("&$D$12&")="&$F$9&" and Barix("&$D$12&",reference:=StartOfDay)="&A9&"","Bar","","Close","5","0","All",,,"False","T","EveryTick")) -> 4264.75 | Y9: -0.007678436391 | Z9: =IF(A9="",NA(),RTD("cqg.rtd",,"StudyData","Close("&$D$12&") when LocalYear("&$D$12&")="&$D$10&" and localMonth("&$D$12&") ="&$E$10&" and LocalDay("&$D$12&")="&$F$10&" and Barix("&$D$12&",reference:=StartOfDay)="&A9&"","Bar","","Close","5","0","All",,,"False","T","EveryTick")) -> 4385.5 | AA9: 0.008218863153 | AB9: =RANK(AD9,$AD$1:$AD$10)+COUNTIF($AD$1:AD9,AD9)-1 -> 4 | AC9: 2021-10-01 | AD9: =IFERROR(VLOOKUP(MAX(AE2:AE177),A1:Y177,25,FALSE),"") -> 0.002966668606 | AF9: 9 | AG9: 2021-10-06 | AH9: -0.005826026765 | AK9: 2021-10-06 | AL9: 2021-10-01 | AM9: 8 | AN9: 5
A10: 105 | B10: 01:45:00 | C10: =RTD("cqg.rtd",,"StudyData",$D$12, "Bar", "", "Time","D","-9",,,,,"T") -> 2021-09-30 | D10: 2021 | E10: 9 | F10: 30 | G10: =RTD("cqg.rtd",,"StudyData",$D$12, "Bar", "", "Close","D","-9",,,,,"T") -> 4297.75 | H10: =IF(A10="",NA(),RTD("cqg.rtd",,"StudyData","Close("&$D$12&") when LocalYear("&$D$12&")="&$D$1&" and localMonth("&$D$12&") ="&$E$1&" and LocalDay("&$D$12&")="&$F$1&" and Barix("&$D$12&",reference:=StartOfDay)="&A10&"","Bar","","Close","5","0","All",,,"False","T","EveryTick")) -> 4334.75 | I10: -0.001382249611 | J10: =IF(A10="",NA(),RTD("cqg.rtd",,"StudyData", "Close("&$D$12&") when LocalYear("&$D$12&")="&$D$2&" and localMonth("&$D$12&") ="&$E$2&" and LocalDay("&$D$12&")="&$F$2&" and Barix("&$D$12&",reference:=StartOfDay)="&A10&"", "Bar", "", "Close","5","0","All",,,"False","T","EveryTick")) -> 4323.5 | K10: -0.006320386118 | L10: =IF(A10="",NA(),RTD("cqg.rtd",,"StudyData", "Close("&$D$12&") when LocalYear("&$D$12&")="&$D$3&" and localMonth("&$D$12&") ="&$E$3&" and LocalDay("&$D$12&")="&$F$3&" and Barix("&$D$12&",reference:=StartOfDay)="&A10&"", "Bar", "", "Close","5","0","All",,,"False","T","EveryTick")) -> 4369.5 | M10: -0.002909464316 | N10: =IF(A10="",NA(),RTD("cqg.rtd",,"StudyData", "Close("&$D$12&") when LocalYear("&$D$12&")="&$D$4&" and localMonth("&$D$12&") ="&$E$4&" and LocalDay("&$D$12&")="&$F$4&" and Barix("&$D$12&",reference:=StartOfDay)="&A10&"", "Bar", "", "Close","5","0","All",,,"False","T","EveryTick")) -> 4392.5 | O10: 0.000569476082 | P10: =IF(A10="",NA(),RTD("cqg.rtd",,"StudyData", "Close("&$D$12&") when LocalYear("&$D$12&")="&$D$5&" and localMonth("&$D$12&") ="&$E$5&" and LocalDay("&$D$12&")="&$F$5&" and Barix("&$D$12&",reference:=StartOfDay)="&A10&"", "Bar", "", "Close","5","0","All",,,"False","T","EveryTick")) -> 4376.5 | Q10: 0.00516766192 | R10: =IF(A10="",NA(),RTD("cqg.rtd",,"StudyData", "Close("&$D$12&") when LocalYear("&$D$12&")="&$D$6&" and localMonth("&$D$12&") ="&$E$6&" and LocalDay("&$D$12&")="&$F$6&" and Barix("&$D$12&",reference:=StartOfDay)="&A10&"", "Bar", "", "Close","5","0","All",,,"False","T","EveryTick")) -> 4313.5 | S10: -0.004730041532 | T10: =IF(A10="",NA(),RTD("cqg.rtd",,"StudyData","Close("&$D$12&") when LocalYear("&$D$12&")="&$D$7&" and localMonth("&$D$12&") ="&$E$7&" and LocalDay("&$D$12&")="&$F$7&" and Barix("&$D$12&",reference:=StartOfDay)="&A10&"","Bar","","Close","5","0","All",,,"False","T","EveryTick")) -> 4291 | U10: -5.825808331e-05 | V10: =IF(A10="",NA(),RTD("cqg.rtd",,"StudyData","Close("&$D$12&") when LocalYear("&$D$12&")="&$D$8&" and localMonth("&$D$12&") ="&$E$8&" and LocalDay("&$D$12&")="&$F$8&" and Barix("&$D$12&",reference:=StartOfDay)="&A10&"","Bar","","Close","5","0","All",,,"False","T","EveryTick")) -> 4328 | W10: -0.003625899281 | X10: =IF(A10="",NA(),RTD("cqg.rtd",,"StudyData","Close("&$D$12&") when LocalYear("&$D$12&")="&$D$9&" and localMonth("&$D$12&") ="&$E$9&" and LocalDay("&$D$12&")="&$F$9&" and Barix("&$D$12&",reference:=StartOfDay)="&A10&"","Bar","","Close","5","0","All",,,"False","T","EveryTick")) -> 4265.25 | Y10: -0.007562096446 | Z10: =IF(A10="",NA(),RTD("cqg.rtd",,"StudyData","Close("&$D$12&") when LocalYear("&$D$12&")="&$D$10&" and localMonth("&$D$12&") ="&$E$10&" and LocalDay("&$D$12&")="&$F$10&" and Barix("&$D$12&",reference:=StartOfDay)="&A10&"","Bar","","Close","5","0","All",,,"False","T","EveryTick")) -> 4387 | AA10: 0.008563710558 | AB10: =RANK(AD10,$AD$1:$AD$10)+COUNTIF($AD$1:AD10,AD10)-1 -> 6 | AC10: 2021-09-30 | AD10: =IFERROR(VLOOKUP(MAX(AE2:AE177),A1:AA177,27,FALSE),"") -> 0.00114949135 | AF10: 10 | AG10: 2021-10-04 | AH10: -0.01271942446 | AK10: 2021-10-04 | AL10: 2021-09-30 | AM10: 9 | AN10: 7
A11: 106 | B11: 01:50:00 | C11: =RTD("cqg.rtd",,"StudyData",$D$12, "Bar", "", "Time","D","-10",,,,,"T") -> 2021-09-29 | D11: 2021 | E11: 9 | F11: 29 | G11: =RTD("cqg.rtd",,"StudyData",$D$12, "Bar", "", "Close","D","-10",,,,,"T") -> 4349.75 | H11: =IF(A11="",NA(),RTD("cqg.rtd",,"StudyData","Close("&$D$12&") when LocalYear("&$D$12&")="&$D$1&" and localMonth("&$D$12&") ="&$E$1&" and LocalDay("&$D$12&")="&$F$1&" and Barix("&$D$12&",reference:=StartOfDay)="&A11&"","Bar","","Close","5","0","All",,,"False","T","EveryTick")) -> 4335.75 | I11: -0.001151874676 | J11: =IF(A11="",NA(),RTD("cqg.rtd",,"StudyData", "Close("&$D$12&") when LocalYear("&$D$12&")="&$D$2&" and localMonth("&$D$12&") ="&$E$2&" and LocalDay("&$D$12&")="&$F$2&" and Barix("&$D$12&",reference:=StartOfDay)="&A11&"", "Bar", "", "Close","5","0","All",,,"False","T","EveryTick")) -> 4321 | K11: -0.006894966674 | L11: =IF(A11="",NA(),RTD("cqg.rtd",,"StudyData", "Close("&$D$12&") when LocalYear("&$D$12&")="&$D$3&" and localMonth("&$D$12&") ="&$E$3&" and LocalDay("&$D$12&")="&$F$3&" and Barix("&$D$12&",reference:=StartOfDay)="&A11&"", "Bar", "", "Close","5","0","All",,,"False","T","EveryTick")) -> 4370 | M11: -0.002795367676 | N11: =IF(A11="",NA(),RTD("cqg.rtd",,"StudyData", "Close("&$D$12&") when LocalYear("&$D$12&")="&$D$4&" and localMonth("&$D$12&") ="&$E$4&" and LocalDay("&$D$12&")="&$F$4&" and Barix("&$D$12&",reference:=StartOfDay)="&A11&"", "Bar", "", "Close","5","0","All",,,"False","T","EveryTick")) -> 4392.5 | O11: 0.000569476082 | P11: =IF(A11="",NA(),RTD("cqg.rtd",,"StudyData", "Close("&$D$12&") when LocalYear("&$D$12&")="&$D$5&" and localMonth("&$D$12&") ="&$E$5&" and LocalDay("&$D$12&")="&$F$5&" and Barix("&$D$12&",reference:=StartOfDay)="&A11&"", "Bar", "", "Close","5","0","All",,,"False","T","EveryTick")) -> 4377.25 | Q11: 0.005339917317 | R11: =IF(A11="",NA(),RTD("cqg.rtd",,"StudyData", "Close("&$D$12&") when LocalYear("&$D$12&")="&$D$6&" and localMonth("&$D$12&") ="&$E$6&" and LocalDay("&$D$12&")="&$F$6&" and Barix("&$D$12&",reference:=StartOfDay)="&A11&"", "Bar", "", "Close","5","0","All",,,"False","T","EveryTick")) -> 4317.75 | S11: -0.003749423166 | T11: =IF(A11="",NA(),RTD("cqg.rtd",,"StudyData","Close("&$D$12&") when LocalYear("&$D$12&")="&$D$7&" and localMonth("&$D$12&") ="&$E$7&" and LocalDay("&$D$12&")="&$F$7&" and Barix("&$D$12&",reference:=StartOfDay)="&A11&"","Bar","","Close","5","0","All",,,"False","T","EveryTick")) -> 4294.5 | U11: 0.000757355083 | V11: =IF(A11="",NA(),RTD("cqg.rtd",,"StudyData","Close("&$D$12&") when LocalYear("&$D$12&")="&$D$8&" and localMonth("&$D$12&") ="&$E$8&" and LocalDay("&$D$12&")="&$F$8&" and Barix("&$D$12&",reference:=StartOfDay)="&A11&"","Bar","","Close","5","0","All",,,"False","T","EveryTick")) -> 4327.5 | W11: -0.003741007194 | X11: =IF(A11="",NA(),RTD("cqg.rtd",,"StudyData","Close("&$D$12&") when LocalYear("&$D$12&")="&$D$9&" and localMonth("&$D$12&") ="&$E$9&" and LocalDay("&$D$12&")="&$F$9&" and Barix("&$D$12&",reference:=StartOfDay)="&A11&"","Bar","","Close","5","0","All",,,"False","T","EveryTick")) -> 4261.5 | Y11: -0.008434646036 | Z11: =IF(A11="",NA(),RTD("cqg.rtd",,"StudyData","Close("&$D$12&") when LocalYear("&$D$12&")="&$D$10&" and localMonth("&$D$12&") ="&$E$10&" and LocalDay("&$D$12&")="&$F$10&" and Barix("&$D$12&",reference:=StartOfDay)="&A11&"","Bar","","Close","5","0","All",,,"False","T","EveryTick")) -> 4385 | AA11: 0.008103914018
A12: 107 | B12: 01:55:00 | D12: =Display!O20 -> EP | H12: =IF(A12="",NA(),RTD("cqg.rtd",,"StudyData","Close("&$D$12&") when LocalYear("&$D$12&")="&$D$1&" and localMonth("&$D$12&") ="&$E$1&" and LocalDay("&$D$12&")="&$F$1&" and Barix("&$D$12&",reference:=StartOfDay)="&A12&"","Bar","","Close","5","0","All",,,"False","T","EveryTick")) -> 4334.75 | I12: -0.001382249611 | J12: =IF(A12="",NA(),RTD("cqg.rtd",,"StudyData", "Close("&$D$12&") when LocalYear("&$D$12&")="&$D$2&" and localMonth("&$D$12&") ="&$E$2&" and LocalDay("&$D$12&")="&$F$2&" and Barix("&$D$12&",reference:=StartOfDay)="&A12&"", "Bar", "", "Close","5","0","All",,,"False","T","EveryTick")) -> 4321.5 | K12: -0.006780050563 | L12: =IF(A12="",NA(),RTD("cqg.rtd",,"StudyData", "Close("&$D$12&") when LocalYear("&$D$12&")="&$D$3&" and localMonth("&$D$12&") ="&$E$3&" and LocalDay("&$D$12&")="&$F$3&" and Barix("&$D$12&",reference:=StartOfDay)="&A12&"", "Bar", "", "Close","5","0","All",,,"False","T","EveryTick")) -> 4369.5 | M12: -0.002909464316 | N12: =IF(A12="",NA(),RTD("cqg.rtd",,"StudyData", "Close("&$D$12&") when LocalYear("&$D$12&")="&$D$4&" and localMonth("&$D$12&") ="&$E$4&" and LocalDay("&$D$12&")="&$F$4&" and Barix("&$D$12&",reference:=StartOfDay)="&A12&"", "Bar", "", "Close","5","0","All",,,"False","T","EveryTick")) -> 4393.5 | O12: 0.0007972665148 | P12: =IF(A12="",NA(),RTD("cqg.rtd",,"StudyData", "Close("&$D$12&") when LocalYear("&$D$12&")="&$D$5&" and localMonth("&$D$12&") ="&$E$5&" and LocalDay("&$D$12&")="&$F$5&" and Barix("&$D$12&",reference:=StartOfDay)="&A12&"", "Bar", "", "Close","5","0","All",,,"False","T","EveryTick")) -> 4379.25 | Q12: 0.005799265044 | R12: =IF(A12="",NA(),RTD("cqg.rtd",,"StudyData", "Close("&$D$12&") when LocalYear("&$D$12&")="&$D$6&" and localMonth("&$D$12&") ="&$E$6&" and LocalDay("&$D$12&")="&$F$6&" and Barix("&$D$12&",reference:=StartOfDay)="&A12&"", "Bar", "", "Close","5","0","All",,,"False","T","EveryTick")) -> 4317.25 | S12: -0.003864790032 | T12: =IF(A12="",NA(),RTD("cqg.rtd",,"StudyData","Close("&$D$12&") when LocalYear("&$D$12&")="&$D$7&" and localMonth("&$D$12&") ="&$E$7&" and LocalDay("&$D$12&")="&$F$7&" and Barix("&$D$12&",reference:=StartOfDay)="&A12&"","Bar","","Close","5","0","All",,,"False","T","EveryTick")) -> 4293.25 | U12: 0.0004660646665 | V12: =IF(A12="",NA(),RTD("cqg.rtd",,"StudyData","Close("&$D$12&") when LocalYear("&$D$12&")="&$D$8&" and localMonth("&$D$12&") ="&$E$8&" and LocalDay("&$D$12&")="&$F$8&" and Barix("&$D$12&",reference:=StartOfDay)="&A12&"","Bar","","Close","5","0","All",,,"False","T","EveryTick")) -> 4328.5 | W12: -0.003510791367 | X12: =IF(A12="",NA(),RTD("cqg.rtd",,"StudyData","Close("&$D$12&") when LocalYear("&$D$12&")="&$D$9&" and localMonth("&$D$12&") ="&$E$9&" and LocalDay("&$D$12&")="&$F$9&" and Barix("&$D$12&",reference:=StartOfDay)="&A12&"","Bar","","Close","5","0","All",,,"False","T","EveryTick")) -> 4267.5 | Y12: -0.007038566692 | Z12: =IF(A12="",NA(),RTD("cqg.rtd",,"StudyData","Close("&$D$12&") when LocalYear("&$D$12&")="&$D$10&" and localMonth("&$D$12&") ="&$E$10&" and LocalDay("&$D$12&")="&$F$10&" and Barix("&$D$12&",reference:=StartOfDay)="&A12&"","Bar","","Close","5","0","All",,,"False","T","EveryTick")) -> 4384 | AA12: 0.007874015748 | AC12: =VLOOKUP(MAX(AE2:AE168),A1:B168,2,FALSE) -> 10:15:00
A13: =IF($D$12="QGA",0,A12+1) -> 108 | B13: 02:00:00 | D13: =RTD("cqg.rtd", ,"ContractData",D12, "LastQuoteToday",, "T") -> 4335.75 | G13: =C1 -> 2021-10-13 | H13: =IF(A13="",NA(),RTD("cqg.rtd",,"StudyData","Close("&$D$12&") when LocalYear("&$D$12&")="&$D$1&" and localMonth("&$D$12&") ="&$E$1&" and LocalDay("&$D$12&")="&$F$1&" and Barix("&$D$12&",reference:=StartOfDay)="&A13&"","Bar","","Close","5","0","All",,,"False","T","EveryTick")) -> 4329.25 | I13: -0.002649311755 | J13: =IF(A13="",NA(),RTD("cqg.rtd",,"StudyData", "Close("&$D$12&") when LocalYear("&$D$12&")="&$D$2&" and localMonth("&$D$12&") ="&$E$2&" and LocalDay("&$D$12&")="&$F$2&" and Barix("&$D$12&",reference:=StartOfDay)="&A13&"", "Bar", "", "Close","5","0","All",,,"False","T","EveryTick")) -> 4320.75 | K13: -0.00695242473 | L13: =IF(A13="",NA(),RTD("cqg.rtd",,"StudyData", "Close("&$D$12&") when LocalYear("&$D$12&")="&$D$3&" and localMonth("&$D$12&") ="&$E$3&" and LocalDay("&$D$12&")="&$F$3&" and Barix("&$D$12&",reference:=StartOfDay)="&A13&"", "Bar", "", "Close","5","0","All",,,"False","T","EveryTick")) -> 4367.25 | M13: -0.003422899196 | N13: =IF(A13="",NA(),RTD("cqg.rtd",,"StudyData", "Close("&$D$12&") when LocalYear("&$D$12&")="&$D$4&" and localMonth("&$D$12&") ="&$E$4&" and LocalDay("&$D$12&")="&$F$4&" and Barix("&$D$12&",reference:=StartOfDay)="&A13&"", "Bar", "", "Close","5","0","All",,,"False","T","EveryTick")) -> 4396.5 | O13: 0.001480637813 | P13: =IF(A13="",NA(),RTD("cqg.rtd",,"StudyData", "Close("&$D$12&") when LocalYear("&$D$12&")="&$D$5&" and localMonth("&$D$12&") ="&$E$5&" and LocalDay("&$D$12&")="&$F$5&" and Barix("&$D$12&",reference:=StartOfDay)="&A13&"", "Bar", "", "Close","5","0","All",,,"False","T","EveryTick")) -> 4378.5 | Q13: 0.005627009646 | R13: =IF(A13="",NA(),RTD("cqg.rtd",,"StudyData", "Close("&$D$12&") when LocalYear("&$D$12&")="&$D$6&" and localMonth("&$D$12&") ="&$E$6&" and LocalDay("&$D$12&")="&$F$6&" and Barix("&$D$12&",reference:=StartOfDay)="&A13&"", "Bar", "", "Close","5","0","All",,,"False","T","EveryTick")) -> 4306.75 | S13: -0.006287494232 | T13: =IF(A13="",NA(),RTD("cqg.rtd",,"StudyData","Close("&$D$12&") when LocalYear("&$D$12&")="&$D$7&" and localMonth("&$D$12&") ="&$E$7&" and LocalDay("&$D$12&")="&$F$7&" and Barix("&$D$12&",reference:=StartOfDay)="&A13&"","Bar","","Close","5","0","All",,,"False","T","EveryTick")) -> 4293 | U13: 0.0004078065832 | V13: =IF(A13="",NA(),RTD("cqg.rtd",,"StudyData","Close("&$D$12&") when LocalYear("&$D$12&")="&$D$8&" and localMonth("&$D$12&") ="&$E$8&" and LocalDay("&$D$12&")="&$F$8&" and Barix("&$D$12&",reference:=StartOfDay)="&A13&"","Bar","","Close","5","0","All",,,"False","T","EveryTick")) -> 4321 | W13: -0.005237410072 | X13: =IF(A13="",NA(),RTD("cqg.rtd",,"StudyData","Close("&$D$12&") when LocalYear("&$D$12&")="&$D$9&" and localMonth("&$D$12&") ="&$E$9&" and LocalDay("&$D$12&")="&$F$9&" and Barix("&$D$12&",reference:=StartOfDay)="&A13&"","Bar","","Close","5","0","All",,,"False","T","EveryTick")) -> 4264.75 | Y13: -0.007678436391 | Z13: =IF(A13="",NA(),RTD("cqg.rtd",,"StudyData","Close("&$D$12&") when LocalYear("&$D$12&")="&$D$10&" and localMonth("&$D$12&") ="&$E$10&" and LocalDay("&$D$12&")="&$F$10&" and Barix("&$D$12&",reference:=StartOfDay)="&A13&"","Bar","","Close","5","0","All",,,"False","T","EveryTick")) -> 4382.75 | AA13: 0.007586642911
A14: =A13+1 -> 109 | B14: 02:05:00 | D14: =RTD("cqg.rtd", ,"ContractData",D12, "LongDescription",, "T") -> E-Mini S&P 500, Dec 21 | F14: 0.04166666667 | G14: 2021-10-12 | H14: =RTD("cqg.rtd",,"StudyData", "Close("&$D$12&") when LocalYear("&$D$12&")="&$D$1&" and localMonth("&$D$12&") ="&$E$1&" and LocalDay("&$D$12&")="&$F$1&" and Barix("&$D$12&",reference:=StartOfDay)="&A14&"", "Bar", "", "Close","5","0","All",,,"False","T","EveryTick") -> 4324.25 | I14: -0.003801186431 | J14: =RTD("cqg.rtd",,"StudyData", "Close("&$D$12&") when LocalYear("&$D$12&")="&$D$2&" and localMonth("&$D$12&") ="&$E$2&" and LocalDay("&$D$12&")="&$F$2&" and Barix("&$D$12&",reference:=StartOfDay)="&A14&"", "Bar", "", "Close","5","0","All",,,"False","T","EveryTick") -> 4326 | K14: -0.005745805562 | L14: =RTD("cqg.rtd",,"StudyData", "Close("&$D$12&") when LocalYear("&$D$12&")="&$D$3&" and localMonth("&$D$12&") ="&$E$3&" and LocalDay("&$D$12&")="&$F$3&" and Barix("&$D$12&",reference:=StartOfDay)="&A14&"", "Bar", "", "Close","5","0","All",,,"False","T","EveryTick") -> 4375.75 | M14: -0.001483256318 | N14: =RTD("cqg.rtd",,"StudyData", "Close("&$D$12&") when LocalYear("&$D$12&")="&$D$4&" and localMonth("&$D$12&") ="&$E$4&" and LocalDay("&$D$12&")="&$F$4&" and Barix("&$D$12&",reference:=StartOfDay)="&A14&"", "Bar", "", "Close","5","0","All",,,"False","T","EveryTick") -> 4399.75 | O14: 0.00222095672 | P14: =RTD("cqg.rtd",,"StudyData", "Close("&$D$12&") when LocalYear("&$D$12&")="&$D$5&" and localMonth("&$D$12&") ="&$E$5&" and LocalDay("&$D$12&")="&$F$5&" and Barix("&$D$12&",reference:=StartOfDay)="&A14&"", "Bar", "", "Close","5","0","All",,,"False","T","EveryTick") -> 4378 | Q14: 0.005512172715 | R14: =RTD("cqg.rtd",,"StudyData", "Close("&$D$12&") when LocalYear("&$D$12&")="&$D$6&" and localMonth("&$D$12&") ="&$E$6&" and LocalDay("&$D$12&")="&$F$6&" and Barix("&$D$12&",reference:=StartOfDay)="&A14&"", "Bar", "", "Close","5","0","All",,,"False","T","EveryTick") -> 4301 | S14: -0.007614213198 | T14: =RTD("cqg.rtd",,"StudyData", "Close("&$D$12&") when LocalYear("&$D$12&")="&$D$7&" and localMonth("&$D$12&") ="&$E$7&" and LocalDay("&$D$12&")="&$F$7&" and Barix("&$D$12&",reference:=StartOfDay)="&A14&"", "Bar", "", "Close","5","0","All",,,"False","T","EveryTick") -> 4294.25 | U14: 0.0006990969997 | V14: =RTD("cqg.rtd",,"StudyData", "Close("&$D$12&") when LocalYear("&$D$12&")="&$D$8&" and localMonth("&$D$12&") ="&$E$8&" and LocalDay("&$D$12&")="&$F$8&" and Barix("&$D$12&",reference:=StartOfDay)="&A14&"", "Bar", "", "Close","5","0","All",,,"False","T","EveryTick") -> 4326.5 | W14: -0.003971223022 | X14: =RTD("cqg.rtd",,"StudyData", "Close("&$D$12&") when LocalYear("&$D$12&")="&$D$9&" and localMonth("&$D$12&") ="&$E$9&" and LocalDay("&$D$12&")="&$F$9&" and Barix("&$D$12&",reference:=StartOfDay)="&A14&"", "Bar", "", "Close","5","0","All",,,"False","T","EveryTick") -> 4264.75 | Y14: -0.007678436391 | Z14: =RTD("cqg.rtd",,"StudyData", "Close("&$D$12&") when LocalYear("&$D$12&")="&$D$10&" and localMonth("&$D$12&") ="&$E$10&" and LocalDay("&$D$12&")="&$F$10&" and Barix("&$D$12&",reference:=StartOfDay)="&A14&"", "Bar", "", "Close","5","0","All",,,"False","T","EveryTick") -> 4378.25 | AA14: 0.006552100695
A15: 110 | B15: 02:10:00 | F15: =B1+7.5/24 -> 08:30:00 | G15: 2021-10-11 | H15: =RTD("cqg.rtd",,"StudyData", "Close("&$D$12&") when LocalYear("&$D$12&")="&$D$1&" and localMonth("&$D$12&") ="&$E$1&" and LocalDay("&$D$12&")="&$F$1&" and Barix("&$D$12&",reference:=StartOfDay)="&A15&"", "Bar", "", "Close","5","0","All",,,"False","T","EveryTick") -> 4327.25 | I15: -0.003110061625 | J15: =RTD("cqg.rtd",,"StudyData", "Close("&$D$12&") when LocalYear("&$D$12&")="&$D$2&" and localMonth("&$D$12&") ="&$E$2&" and LocalDay("&$D$12&")="&$F$2&" and Barix("&$D$12&",reference:=StartOfDay)="&A15&"", "Bar", "", "Close","5","0","All",,,"False","T","EveryTick") -> 4334.5 | K15: -0.003792231671 | L15: =RTD("cqg.rtd",,"StudyData", "Close("&$D$12&") when LocalYear("&$D$12&")="&$D$3&" and localMonth("&$D$12&") ="&$E$3&" and LocalDay("&$D$12&")="&$F$3&" and Barix("&$D$12&",reference:=StartOfDay)="&A15&"", "Bar", "", "Close","5","0","All",,,"False","T","EveryTick") -> 4374.5 | M15: -0.001768497918 | N15: =RTD("cqg.rtd",,"StudyData", "Close("&$D$12&") when LocalYear("&$D$12&")="&$D$4&" and localMonth("&$D$12&") ="&$E$4&" and LocalDay("&$D$12&")="&$F$4&" and Barix("&$D$12&",reference:=StartOfDay)="&A15&"", "Bar", "", "Close","5","0","All",,,"False","T","EveryTick") -> 4397.25 | O15: 0.001651480638 | P15: =RTD("cqg.rtd",,"StudyData", "Close("&$D$12&") when LocalYear("&$D$12&")="&$D$5&" and localMonth("&$D$12&") ="&$E$5&" and LocalDay("&$D$12&")="&$F$5&" and Barix("&$D$12&",reference:=StartOfDay)="&A15&"", "Bar", "", "Close","5","0","All",,,"False","T","EveryTick") -> 4377 | Q15: 0.005282498852 | R15: =RTD("cqg.rtd",,"StudyData", "Close("&$D$12&") when LocalYear("&$D$12&")="&$D$6&" and localMonth("&$D$12&") ="&$E$6&" and LocalDay("&$D$12&")="&$F$6&" and Barix("&$D$12&",reference:=StartOfDay)="&A15&"", "Bar", "", "Close","5","0","All",,,"False","T","EveryTick") -> 4301 | S15: -0.007614213198 | T15: =RTD("cqg.rtd",,"StudyData", "Close("&$D$12&") when LocalYear("&$D$12&")="&$D$7&" and localMonth("&$D$12&") ="&$E$7&" and LocalDay("&$D$12&")="&$F$7&" and Barix("&$D$12&",reference:=StartOfDay)="&A15&"", "Bar", "", "Close","5","0","All",,,"False","T","EveryTick") -> 4299 | U15: 0.001806000583 | V15: =RTD("cqg.rtd",,"StudyData", "Close("&$D$12&") when LocalYear("&$D$12&")="&$D$8&" and localMonth("&$D$12&") ="&$E$8&" and LocalDay("&$D$12&")="&$F$8&" and Barix("&$D$12&",reference:=StartOfDay)="&A15&"", "Bar", "", "Close","5","0","All",,,"False","T","EveryTick") -> 4330.75 | W15: -0.002992805755 | X15: =RTD("cqg.rtd",,"StudyData", "Close("&$D$12&") when LocalYear("&$D$12&")="&$D$9&" and localMonth("&$D$12&") ="&$E$9&" and LocalDay("&$D$12&")="&$F$9&" and Barix("&$D$12&",reference:=StartOfDay)="&A15&"", "Bar", "", "Close","5","0","All",,,"False","T","EveryTick") -> 4269.75 | Y15: -0.006515036938 | Z15: =RTD("cqg.rtd",,"StudyData", "Close("&$D$12&") when LocalYear("&$D$12&")="&$D$10&" and localMonth("&$D$12&") ="&$E$10&" and LocalDay("&$D$12&")="&$F$10&" and Barix("&$D$12&",reference:=StartOfDay)="&A15&"", "Bar", "", "Close","5","0","All",,,"False","T","EveryTick") -> 4376.5 | AA15: 0.006149778723
A16: 111 | B16: 02:15:00 | D16: =RTD("cqg.rtd", ,"ContractData",D12, "Ticksize",, "T") -> 0.25 | F16: 0.3541666667 | G16: 2021-10-08 | H16: =RTD("cqg.rtd",,"StudyData", "Close("&$D$12&") when LocalYear("&$D$12&")="&$D$1&" and localMonth("&$D$12&") ="&$E$1&" and LocalDay("&$D$12&")="&$F$1&" and Barix("&$D$12&",reference:=StartOfDay)="&A16&"", "Bar", "", "Close","5","0","All",,,"False","T","EveryTick") -> 4327.75 | I16: -0.002994874158 | J16: =RTD("cqg.rtd",,"StudyData", "Close("&$D$12&") when LocalYear("&$D$12&")="&$D$2&" and localMonth("&$D$12&") ="&$E$2&" and LocalDay("&$D$12&")="&$F$2&" and Barix("&$D$12&",reference:=StartOfDay)="&A16&"", "Bar", "", "Close","5","0","All",,,"False","T","EveryTick") -> 4330.25 | K16: -0.004769018616 | L16: =RTD("cqg.rtd",,"StudyData", "Close("&$D$12&") when LocalYear("&$D$12&")="&$D$3&" and localMonth("&$D$12&") ="&$E$3&" and LocalDay("&$D$12&")="&$F$3&" and Barix("&$D$12&",reference:=StartOfDay)="&A16&"", "Bar", "", "Close","5","0","All",,,"False","T","EveryTick") -> 4374.25 | M16: -0.001825546238 | N16: =RTD("cqg.rtd",,"StudyData", "Close("&$D$12&") when LocalYear("&$D$12&")="&$D$4&" and localMonth("&$D$12&") ="&$E$4&" and LocalDay("&$D$12&")="&$F$4&" and Barix("&$D$12&",reference:=StartOfDay)="&A16&"", "Bar", "", "Close","5","0","All",,,"False","T","EveryTick") -> 4393.25 | O16: 0.0007403189066 | P16: =RTD("cqg.rtd",,"StudyData", "Close("&$D$12&") when LocalYear("&$D$12&")="&$D$5&" and localMonth("&$D$12&") ="&$E$5&" and LocalDay("&$D$12&")="&$F$5&" and Barix("&$D$12&",reference:=StartOfDay)="&A16&"", "Bar", "", "Close","5","0","All",,,"False","T","EveryTick") -> 4372.25 | Q16: 0.004191548002 | R16: =RTD("cqg.rtd",,"StudyData", "Close("&$D$12&") when LocalYear("&$D$12&")="&$D$6&" and localMonth("&$D$12&") ="&$E$6&" and LocalDay("&$D$12&")="&$F$6&" and Barix("&$D$12&",reference:=StartOfDay)="&A16&"", "Bar", "", "Close","5","0","All",,,"False","T","EveryTick") -> 4303.25 | S16: -0.007095062298 | T16: =RTD("cqg.rtd",,"StudyData", "Close("&$D$12&") when LocalYear("&$D$12&")="&$D$7&" and localMonth("&$D$12&") ="&$E$7&" and LocalDay("&$D$12&")="&$F$7&" and Barix("&$D$12&",reference:=StartOfDay)="&A16&"", "Bar", "", "Close","5","0","All",,,"False","T","EveryTick") -> 4295.5 | U16: 0.0009903874163 | V16: =RTD("cqg.rtd",,"StudyData", "Close("&$D$12&") when LocalYear("&$D$12&")="&$D$8&" and localMonth("&$D$12&") ="&$E$8&" and LocalDay("&$D$12&")="&$F$8&" and Barix("&$D$12&",reference:=StartOfDay)="&A16&"", "Bar", "", "Close","5","0","All",,,"False","T","EveryTick") -> 4324.75 | W16: -0.004374100719 | X16: =RTD("cqg.rtd",,"StudyData", "Close("&$D$12&") when LocalYear("&$D$12&")="&$D$9&" and localMonth("&$D$12&") ="&$E$9&" and LocalDay("&$D$12&")="&$F$9&" and Barix("&$D$12&",reference:=StartOfDay)="&A16&"", "Bar", "", "Close","5","0","All",,,"False","T","EveryTick") -> 4274.25 | Y16: -0.00546797743 | Z16: =RTD("cqg.rtd",,"StudyData", "Close("&$D$12&") when LocalYear("&$D$12&")="&$D$10&" and localMonth("&$D$12&") ="&$E$10&" and LocalDay("&$D$12&")="&$F$10&" and Barix("&$D$12&",reference:=StartOfDay)="&A16&"", "Bar", "", "Close","5","0","All",,,"False","T","EveryTick") -> 4382.5 | AA16: 0.007529168343
A17: 112 | B17: 02:20:00 | D17: =IF(D16>=1,0,IF(LEN(D16)-2=1,2,LEN(D16)-2)) -> 2 | F17: =IF(OR(D12="ULA",D12="USA",D12="TYA",D12="TNA",D12="FVA",D12="TUA"),"B",VLOOKUP(D17,D18:E25,2,FALSE)) -> #.00 | G17: 2021-10-07 | H17: =RTD("cqg.rtd",,"StudyData", "Close("&$D$12&") when LocalYear("&$D$12&")="&$D$1&" and localMonth("&$D$12&") ="&$E$1&" and LocalDay("&$D$12&")="&$F$1&" and Barix("&$D$12&",reference:=StartOfDay)="&A17&"", "Bar", "", "Close","5","0","All",,,"False","T","EveryTick") -> 4326.75 | I17: -0.003225249093 | J17: =RTD("cqg.rtd",,"StudyData", "Close("&$D$12&") when LocalYear("&$D$12&")="&$D$2&" and localMonth("&$D$12&") ="&$E$2&" and LocalDay("&$D$12&")="&$F$2&" and Barix("&$D$12&",reference:=StartOfDay)="&A17&"", "Bar", "", "Close","5","0","All",,,"False","T","EveryTick") -> 4332.25 | K17: -0.004309354171 | L17: =RTD("cqg.rtd",,"StudyData", "Close("&$D$12&") when LocalYear("&$D$12&")="&$D$3&" and localMonth("&$D$12&") ="&$E$3&" and LocalDay("&$D$12&")="&$F$3&" and Barix("&$D$12&",reference:=StartOfDay)="&A17&"", "Bar", "", "Close","5","0","All",,,"False","T","EveryTick") -> 4373.75 | M17: -0.001939642878 | N17: =RTD("cqg.rtd",,"StudyData", "Close("&$D$12&") when LocalYear("&$D$12&")="&$D$4&" and localMonth("&$D$12&") ="&$E$4&" and LocalDay("&$D$12&")="&$F$4&" and Barix("&$D$12&",reference:=StartOfDay)="&A17&"", "Bar", "", "Close","5","0","All",,,"False","T","EveryTick") -> 4392.75 | O17: 0.0006264236902 | P17: =RTD("cqg.rtd",,"StudyData", "Close("&$D$12&") when LocalYear("&$D$12&")="&$D$5&" and localMonth("&$D$12&") ="&$E$5&" and LocalDay("&$D$12&")="&$F$5&" and Barix("&$D$12&",reference:=StartOfDay)="&A17&"", "Bar", "", "Close","5","0","All",,,"False","T","EveryTick") -> 4375.75 | Q17: 0.004995406523 | R17: =RTD("cqg.rtd",,"StudyData", "Close("&$D$12&") when LocalYear("&$D$12&")="&$D$6&" and localMonth("&$D$12&") ="&$E$6&" and LocalDay("&$D$12&")="&$F$6&" and Barix("&$D$12&",reference:=StartOfDay)="&A17&"", "Bar", "", "Close","5","0","All",,,"False","T","EveryTick") -> 4300 | S17: -0.007844946931 | T17: =RTD("cqg.rtd",,"StudyData", "Close("&$D$12&") when LocalYear("&$D$12&")="&$D$7&" and localMonth("&$D$12&") ="&$E$7&" and LocalDay("&$D$12&")="&$F$7&" and Barix("&$D$12&",reference:=StartOfDay)="&A17&"", "Bar", "", "Close","5","0","All",,,"False","T","EveryTick") -> 4298.5 | U17: 0.001689484416 | V17: =RTD("cqg.rtd",,"StudyData", "Close("&$D$12&") when LocalYear("&$D$12&")="&$D$8&" and localMonth("&$D$12&") ="&$E$8&" and LocalDay("&$D$12&")="&$F$8&" and Barix("&$D$12&",reference:=StartOfDay)="&A17&"", "Bar", "", "Close","5","0","All",,,"False","T","EveryTick") -> 4322.25 | W17: -0.004949640288 | X17: =RTD("cqg.rtd",,"StudyData", "Close("&$D$12&") when LocalYear("&$D$12&")="&$D$9&" and localMonth("&$D$12&") ="&$E$9&" and LocalDay("&$D$12&")="&$F$9&" and Barix("&$D$12&",reference:=StartOfDay)="&A17&"", "Bar", "", "Close","5","0","All",,,"False","T","EveryTick") -> 4275.75 | Y17: -0.005118957594 | Z17: =RTD("cqg.rtd",,"StudyData", "Close("&$D$12&") when LocalYear("&$D$12&")="&$D$10&" and localMonth("&$D$12&") ="&$E$10&" and LocalDay("&$D$12&")="&$F$10&" and Barix("&$D$12&",reference:=StartOfDay)="&A17&"", "Bar", "", "Close","5","0","All",,,"False","T","EveryTick") -> 4385.75 | AA17: 0.008276337721
A18: 113 | B18: 02:25:00 | D18: 0 | E18: # | G18: 2021-10-06 | H18: =RTD("cqg.rtd",,"StudyData", "Close("&$D$12&") when LocalYear("&$D$12&")="&$D$1&" and localMonth("&$D$12&") ="&$E$1&" and LocalDay("&$D$12&")="&$F$1&" and Barix("&$D$12&",reference:=StartOfDay)="&A18&"", "Bar", "", "Close","5","0","All",,,"False","T","EveryTick") -> 4331 | I18: -0.002246155618 | J18: =RTD("cqg.rtd",,"StudyData", "Close("&$D$12&") when LocalYear("&$D$12&")="&$D$2&" and localMonth("&$D$12&") ="&$E$2&" and LocalDay("&$D$12&")="&$F$2&" and Barix("&$D$12&",reference:=StartOfDay)="&A18&"", "Bar", "", "Close","5","0","All",,,"False","T","EveryTick") -> 4331.5 | K18: -0.004481728338 | L18: =RTD("cqg.rtd",,"StudyData", "Close("&$D$12&") when LocalYear("&$D$12&")="&$D$3&" and localMonth("&$D$12&") ="&$E$3&" and LocalDay("&$D$12&")="&$F$3&" and Barix("&$D$12&",reference:=StartOfDay)="&A18&"", "Bar", "", "Close","5","0","All",,,"False","T","EveryTick") -> 4371 | M18: -0.002567174397 | N18: =RTD("cqg.rtd",,"StudyData", "Close("&$D$12&") when LocalYear("&$D$12&")="&$D$4&" and localMonth("&$D$12&") ="&$E$4&" and LocalDay("&$D$12&")="&$F$4&" and Barix("&$D$12&",reference:=StartOfDay)="&A18&"", "Bar", "", "Close","5","0","All",,,"False","T","EveryTick") -> 4391 | O18: 0.0002277904328 | P18: =RTD("cqg.rtd",,"StudyData", "Close("&$D$12&") when LocalYear("&$D$12&")="&$D$5&" and localMonth("&$D$12&") ="&$E$5&" and LocalDay("&$D$12&")="&$F$5&" and Barix("&$D$12&",reference:=StartOfDay)="&A18&"", "Bar", "", "Close","5","0","All",,,"False","T","EveryTick") -> 4377.25 | Q18: 0.005339917317 | R18: =RTD("cqg.rtd",,"StudyData", "Close("&$D$12&") when LocalYear("&$D$12&")="&$D$6&" and localMonth("&$D$12&") ="&$E$6&" and LocalDay("&$D$12&")="&$F$6&" and Barix("&$D$12&",reference:=StartOfDay)="&A18&"", "Bar", "", "Close","5","0","All",,,"False","T","EveryTick") -> 4302.5 | S18: -0.007268112598 | T18: =RTD("cqg.rtd",,"StudyData", "Close("&$D$12&") when LocalYear("&$D$12&")="&$D$7&" and localMonth("&$D$12&") ="&$E$7&" and LocalDay("&$D$12&")="&$F$7&" and Barix("&$D$12&",reference:=StartOfDay)="&A18&"", "Bar", "", "Close","5","0","All",,,"False","T","EveryTick") -> 4298.25 | U18: 0.001631226333 | V18: =RTD("cqg.rtd",,"StudyData", "Close("&$D$12&") when LocalYear("&$D$12&")="&$D$8&" and localMonth("&$D$12&") ="&$E$8&" and LocalDay("&$D$12&")="&$F$8&" and Barix("&$D$12&",reference:=StartOfDay)="&A18&"", "Bar", "", "Close","5","0","All",,,"False","T","EveryTick") -> 4319 | W18: -0.005697841727 | X18: =RTD("cqg.rtd",,"StudyData", "Close("&$D$12&") when LocalYear("&$D$12&")="&$D$9&" and localMonth("&$D$12&") ="&$E$9&" and LocalDay("&$D$12&")="&$F$9&" and Barix("&$D$12&",reference:=StartOfDay)="&A18&"", "Bar", "", "Close","5","0","All",,,"False","T","EveryTick") -> 4279.75 | Y18: -0.004188238032 | Z18: =RTD("cqg.rtd",,"StudyData", "Close("&$D$12&") when LocalYear("&$D$12&")="&$D$10&" and localMonth("&$D$12&") ="&$E$10&" and LocalDay("&$D$12&")="&$F$10&" and Barix("&$D$12&",reference:=StartOfDay)="&A18&"", "Bar", "", "Close","5","0","All",,,"False","T","EveryTick") -> 4385.75 | AA18: 0.008276337721
A19: 114 | B19: 02:30:00 | D19: 1 | E19: #.0 | G19: 2021-10-05 | H19: =RTD("cqg.rtd",,"StudyData", "Close("&$D$12&") when LocalYear("&$D$12&")="&$D$1&" and localMonth("&$D$12&") ="&$E$1&" and LocalDay("&$D$12&")="&$F$1&" and Barix("&$D$12&",reference:=StartOfDay)="&A19&"", "Bar", "", "Close","5","0","All",,,"False","T","EveryTick") -> 4337 | I19: -0.000863906007 | J19: =RTD("cqg.rtd",,"StudyData", "Close("&$D$12&") when LocalYear("&$D$12&")="&$D$2&" and localMonth("&$D$12&") ="&$E$2&" and LocalDay("&$D$12&")="&$F$2&" and Barix("&$D$12&",reference:=StartOfDay)="&A19&"", "Bar", "", "Close","5","0","All",,,"False","T","EveryTick") -> 4334.25 | K19: -0.003849689726 | L19: =RTD("cqg.rtd",,"StudyData", "Close("&$D$12&") when LocalYear("&$D$12&")="&$D$3&" and localMonth("&$D$12&") ="&$E$3&" and LocalDay("&$D$12&")="&$F$3&" and Barix("&$D$12&",reference:=StartOfDay)="&A19&"", "Bar", "", "Close","5","0","All",,,"False","T","EveryTick") -> 4372.25 | M19: -0.002281932797 | N19: =RTD("cqg.rtd",,"StudyData", "Close("&$D$12&") when LocalYear("&$D$12&")="&$D$4&" and localMonth("&$D$12&") ="&$E$4&" and LocalDay("&$D$12&")="&$F$4&" and Barix("&$D$12&",reference:=StartOfDay)="&A19&"", "Bar", "", "Close","5","0","All",,,"False","T","EveryTick") -> 4388.5 | O19: -0.0003416856492 | P19: =RTD("cqg.rtd",,"StudyData", "Close("&$D$12&") when LocalYear("&$D$12&")="&$D$5&" and localMonth("&$D$12&") ="&$E$5&" and LocalDay("&$D$12&")="&$F$5&" and Barix("&$D$12&",reference:=StartOfDay)="&A19&"", "Bar", "", "Close","5","0","All",,,"False","T","EveryTick") -> 4375 | Q19: 0.004823151125 | R19: =RTD("cqg.rtd",,"StudyData", "Close("&$D$12&") when LocalYear("&$D$12&")="&$D$6&" and localMonth("&$D$12&") ="&$E$6&" and LocalDay("&$D$12&")="&$F$6&" and Barix("&$D$12&",reference:=StartOfDay)="&A19&"", "Bar", "", "Close","5","0","All",,,"False","T","EveryTick") -> 4296.25 | S19: -0.008710198431 | T19: =RTD("cqg.rtd",,"StudyData", "Close("&$D$12&") when LocalYear("&$D$12&")="&$D$7&" and localMonth("&$D$12&") ="&$E$7&" and LocalDay("&$D$12&")="&$F$7&" and Barix("&$D$12&",reference:=StartOfDay)="&A19&"", "Bar", "", "Close","5","0","All",,,"False","T","EveryTick") -> 4295.25 | U19: 0.0009321293329 | V19: =RTD("cqg.rtd",,"StudyData", "Close("&$D$12&") when LocalYear("&$D$12&")="&$D$8&" and localMonth("&$D$12&") ="&$E$8&" and LocalDay("&$D$12&")="&$F$8&" and Barix("&$D$12&",reference:=StartOfDay)="&A19&"", "Bar", "", "Close","5","0","All",,,"False","T","EveryTick") -> 4316.25 | W19: -0.006330935252 | X19: =RTD("cqg.rtd",,"StudyData", "Close("&$D$12&") when LocalYear("&$D$12&")="&$D$9&" and localMonth("&$D$12&") ="&$E$9&" and LocalDay("&$D$12&")="&$F$9&" and Barix("&$D$12&",reference:=StartOfDay)="&A19&"", "Bar", "", "Close","5","0","All",,,"False","T","EveryTick") -> 4278.75 | Y19: -0.004420917922 | Z19: =RTD("cqg.rtd",,"StudyData", "Close("&$D$12&") when LocalYear("&$D$12&")="&$D$10&" and localMonth("&$D$12&") ="&$E$10&" and LocalDay("&$D$12&")="&$F$10&" and Barix("&$D$12&",reference:=StartOfDay)="&A19&"", "Bar", "", "Close","5","0","All",,,"False","T","EveryTick") -> 4385 | AA19: 0.008103914018
A20: 115 | B20: 02:35:00 | D20: 2 | E20: #.00 | G20: 2021-10-04 | H20: =RTD("cqg.rtd",,"StudyData", "Close("&$D$12&") when LocalYear("&$D$12&")="&$D$1&" and localMonth("&$D$12&") ="&$E$1&" and LocalDay("&$D$12&")="&$F$1&" and Barix("&$D$12&",reference:=StartOfDay)="&A20&"", "Bar", "", "Close","5","0","All",,,"False","T","EveryTick") -> 4338.25 | I20: -0.000575937338 | J20: =RTD("cqg.rtd",,"StudyData", "Close("&$D$12&") when LocalYear("&$D$12&")="&$D$2&" and localMonth("&$D$12&") ="&$E$2&" and LocalDay("&$D$12&")="&$F$2&" and Barix("&$D$12&",reference:=StartOfDay)="&A20&"", "Bar", "", "Close","5","0","All",,,"False","T","EveryTick") -> 4334.5 | K20: -0.003792231671 | L20: =RTD("cqg.rtd",,"StudyData", "Close("&$D$12&") when LocalYear("&$D$12&")="&$D$3&" and localMonth("&$D$12&") ="&$E$3&" and LocalDay("&$D$12&")="&$F$3&" and Barix("&$D$12&",reference:=StartOfDay)="&A20&"", "Bar", "", "Close","5","0","All",,,"False","T","EveryTick") -> 4367.25 | M20: -0.003422899196 | N20: =RTD("cqg.rtd",,"StudyData", "Close("&$D$12&") when LocalYear("&$D$12&")="&$D$4&" and localMonth("&$D$12&") ="&$E$4&" and LocalDay("&$D$12&")="&$F$4&" and Barix("&$D$12&",reference:=StartOfDay)="&A20&"", "Bar", "", "Close","5","0","All",,,"False","T","EveryTick") -> 4390.75 | O20: 0.0001708428246 | P20: =RTD("cqg.rtd",,"StudyData", "Close("&$D$12&") when LocalYear("&$D$12&")="&$D$5&" and localMonth("&$D$12&") ="&$E$5&" and LocalDay("&$D$12&")="&$F$5&" and Barix("&$D$12&",reference:=StartOfDay)="&A20&"", "Bar", "", "Close","5","0","All",,,"False","T","EveryTick") -> 4377.5 | Q20: 0.005397335783 | R20: =RTD("cqg.rtd",,"StudyData", "Close("&$D$12&") when LocalYear("&$D$12&")="&$D$6&" and localMonth("&$D$12&") ="&$E$6&" and LocalDay("&$D$12&")="&$F$6&" and Barix("&$D$12&",reference:=StartOfDay)="&A20&"", "Bar", "", "Close","5","0","All",,,"False","T","EveryTick") -> 4294.25 | S20: -0.009171665898 | T20: =RTD("cqg.rtd",,"StudyData", "Close("&$D$12&") when LocalYear("&$D$12&")="&$D$7&" and localMonth("&$D$12&") ="&$E$7&" and LocalDay("&$D$12&")="&$F$7&" and Barix("&$D$12&",reference:=StartOfDay)="&A20&"", "Bar", "", "Close","5","0","All",,,"False","T","EveryTick") -> 4292.5 | U20: 0.0002912904165 | V20: =RTD("cqg.rtd",,"StudyData", "Close("&$D$12&") when LocalYear("&$D$12&")="&$D$8&" and localMonth("&$D$12&") ="&$E$8&" and LocalDay("&$D$12&")="&$F$8&" and Barix("&$D$12&",reference:=StartOfDay)="&A20&"", "Bar", "", "Close","5","0","All",,,"False","T","EveryTick") -> 4319.5 | W20: -0.005582733813 | X20: =RTD("cqg.rtd",,"StudyData", "Close("&$D$12&") when LocalYear("&$D$12&")="&$D$9&" and localMonth("&$D$12&") ="&$E$9&" and LocalDay("&$D$12&")="&$F$9&" and Barix("&$D$12&",reference:=StartOfDay)="&A20&"", "Bar", "", "Close","5","0","All",,,"False","T","EveryTick") -> 4274.75 | Y20: -0.005351637485 | Z20: =RTD("cqg.rtd",,"StudyData", "Close("&$D$12&") when LocalYear("&$D$12&")="&$D$10&" and localMonth("&$D$12&") ="&$E$10&" and LocalDay("&$D$12&")="&$F$10&" and Barix("&$D$12&",reference:=StartOfDay)="&A20&"", "Bar", "", "Close","5","0","All",,,"False","T","EveryTick") -> 4386 | AA20: 0.008333812288
A21: 116 | B21: 02:40:00 | D21: 3 | E21: #.000 | G21: 2021-10-01 | H21: =RTD("cqg.rtd",,"StudyData", "Close("&$D$12&") when LocalYear("&$D$12&")="&$D$1&" and localMonth("&$D$12&") ="&$E$1&" and LocalDay("&$D$12&")="&$F$1&" and Barix("&$D$12&",reference:=StartOfDay)="&A21&"", "Bar", "", "Close","5","0","All",,,"False","T","EveryTick") -> 4337.25 | I21: -0.0008063122732 | J21: =RTD("cqg.rtd",,"StudyData", "Close("&$D$12&") when LocalYear("&$D$12&")="&$D$2&" and localMonth("&$D$12&") ="&$E$2&" and LocalDay("&$D$12&")="&$F$2&" and Barix("&$D$12&",reference:=StartOfDay)="&A21&"", "Bar", "", "Close","5","0","All",,,"False","T","EveryTick") -> 4333.5 | K21: -0.004022063893 | L21: =RTD("cqg.rtd",,"StudyData", "Close("&$D$12&") when LocalYear("&$D$12&")="&$D$3&" and localMonth("&$D$12&") ="&$E$3&" and LocalDay("&$D$12&")="&$F$3&" and Barix("&$D$12&",reference:=StartOfDay)="&A21&"", "Bar", "", "Close","5","0","All",,,"False","T","EveryTick") -> 4362.25 | M21: -0.004563865594 | N21: =RTD("cqg.rtd",,"StudyData", "Close("&$D$12&") when LocalYear("&$D$12&")="&$D$4&" and localMonth("&$D$12&") ="&$E$4&" and LocalDay("&$D$12&")="&$F$4&" and Barix("&$D$12&",reference:=StartOfDay)="&A21&"", "Bar", "", "Close","5","0","All",,,"False","T","EveryTick") -> 4392 | O21: 0.0004555808656 | P21: =RTD("cqg.rtd",,"StudyData", "Close("&$D$12&") when LocalYear("&$D$12&")="&$D$5&" and localMonth("&$D$12&") ="&$E$5&" and LocalDay("&$D$12&")="&$F$5&" and Barix("&$D$12&",reference:=StartOfDay)="&A21&"", "Bar", "", "Close","5","0","All",,,"False","T","EveryTick") -> 4376.75 | Q21: 0.005225080386 | R21: =RTD("cqg.rtd",,"StudyData", "Close("&$D$12&") when LocalYear("&$D$12&")="&$D$6&" and localMonth("&$D$12&") ="&$E$6&" and LocalDay("&$D$12&")="&$F$6&" and Barix("&$D$12&",reference:=StartOfDay)="&A21&"", "Bar", "", "Close","5","0","All",,,"False","T","EveryTick") -> 4296.5 | S21: -0.008652514998 | T21: =RTD("cqg.rtd",,"StudyData", "Close("&$D$12&") when LocalYear("&$D$12&")="&$D$7&" and localMonth("&$D$12&") ="&$E$7&" and LocalDay("&$D$12&")="&$F$7&" and Barix("&$D$12&",reference:=StartOfDay)="&A21&"", "Bar", "", "Close","5","0","All",,,"False","T","EveryTick") -> 4292 | U21: 0.0001747742499 | V21: =RTD("cqg.rtd",,"StudyData", "Close("&$D$12&") when LocalYear("&$D$12&")="&$D$8&" and localMonth("&$D$12&") ="&$E$8&" and LocalDay("&$D$12&")="&$F$8&" and Barix("&$D$12&",reference:=StartOfDay)="&A21&"", "Bar", "", "Close","5","0","All",,,"False","T","EveryTick") -> 4320.75 | W21: -0.005294964029 | X21: =RTD("cqg.rtd",,"StudyData", "Close("&$D$12&") when LocalYear("&$D$12&")="&$D$9&" and localMonth("&$D$12&") ="&$E$9&" and LocalDay("&$D$12&")="&$F$9&" and Barix("&$D$12&",reference:=StartOfDay)="&A21&"", "Bar", "", "Close","5","0","All",,,"False","T","EveryTick") -> 4273.75 | Y21: -0.005584317375 | Z21: =RTD("cqg.rtd",,"StudyData", "Close("&$D$12&") when LocalYear("&$D$12&")="&$D$10&" and localMonth("&$D$12&") ="&$E$10&" and LocalDay("&$D$12&")="&$F$10&" and Barix("&$D$12&",reference:=StartOfDay)="&A21&"", "Bar", "", "Close","5","0","All",,,"False","T","EveryTick") -> 4385.25 | AA21: 0.008161388586
A22: 117 | B22: 02:45:00 | D22: 4 | E22: #.0000 | G22: 2021-09-30 | H22: =RTD("cqg.rtd",,"StudyData", "Close("&$D$12&") when LocalYear("&$D$12&")="&$D$1&" and localMonth("&$D$12&") ="&$E$1&" and LocalDay("&$D$12&")="&$F$1&" and Barix("&$D$12&",reference:=StartOfDay)="&A22&"", "Bar", "", "Close","5","0","All",,,"False","T","EveryTick") -> 4338.5 | I22: -0.0005183436042 | J22: =RTD("cqg.rtd",,"StudyData", "Close("&$D$12&") when LocalYear("&$D$12&")="&$D$2&" and localMonth("&$D$12&") ="&$E$2&" and LocalDay("&$D$12&")="&$F$2&" and Barix("&$D$12&",reference:=StartOfDay)="&A22&"", "Bar", "", "Close","5","0","All",,,"False","T","EveryTick") -> 4336.25 | K22: -0.003390025282 | L22: =RTD("cqg.rtd",,"StudyData", "Close("&$D$12&") when LocalYear("&$D$12&")="&$D$3&" and localMonth("&$D$12&") ="&$E$3&" and LocalDay("&$D$12&")="&$F$3&" and Barix("&$D$12&",reference:=StartOfDay)="&A22&"", "Bar", "", "Close","5","0","All",,,"False","T","EveryTick") -> 4366 | M22: -0.003708140795 | N22: =RTD("cqg.rtd",,"StudyData", "Close("&$D$12&") when LocalYear("&$D$12&")="&$D$4&" and localMonth("&$D$12&") ="&$E$4&" and LocalDay("&$D$12&")="&$F$4&" and Barix("&$D$12&",reference:=StartOfDay)="&A22&"", "Bar", "", "Close","5","0","All",,,"False","T","EveryTick") -> 4392.75 | O22: 0.0006264236902 | P22: =RTD("cqg.rtd",,"StudyData", "Close("&$D$12&") when LocalYear("&$D$12&")="&$D$5&" and localMonth("&$D$12&") ="&$E$5&" and LocalDay("&$D$12&")="&$F$5&" and Barix("&$D$12&",reference:=StartOfDay)="&A22&"", "Bar", "", "Close","5","0","All",,,"False","T","EveryTick") -> 4378 | Q22: 0.005512172715 | R22: =RTD("cqg.rtd",,"StudyData", "Close("&$D$12&") when LocalYear("&$D$12&")="&$D$6&" and localMonth("&$D$12&") ="&$E$6&" and LocalDay("&$D$12&")="&$F$6&" and Barix("&$D$12&",reference:=StartOfDay)="&A22&"", "Bar", "", "Close","5","0","All",,,"False","T","EveryTick") -> 4293 | S22: -0.009460083064 | T22: =RTD("cqg.rtd",,"StudyData", "Close("&$D$12&") when LocalYear("&$D$12&")="&$D$7&" and localMonth("&$D$12&") ="&$E$7&" and LocalDay("&$D$12&")="&$F$7&" and Barix("&$D$12&",reference:=StartOfDay)="&A22&"", "Bar", "", "Close","5","0","All",,,"False","T","EveryTick") -> 4296 | U22: 0.001106903583 | V22: =RTD("cqg.rtd",,"StudyData", "Close("&$D$12&") when LocalYear("&$D$12&")="&$D$8&" and localMonth("&$D$12&") ="&$E$8&" and LocalDay("&$D$12&")="&$F$8&" and Barix("&$D$12&",reference:=StartOfDay)="&A22&"", "Bar", "", "Close","5","0","All",,,"False","T","EveryTick") -> 4324.25 | W22: -0.004489208633 | X22: =RTD("cqg.rtd",,"StudyData", "Close("&$D$12&") when LocalYear("&$D$12&")="&$D$9&" and localMonth("&$D$12&") ="&$E$9&" and LocalDay("&$D$12&")="&$F$9&" and Barix("&$D$12&",reference:=StartOfDay)="&A22&"", "Bar", "", "Close","5","0","All",,,"False","T","EveryTick") -> 4272.5 | Y22: -0.005875167239 | Z22: =RTD("cqg.rtd",,"StudyData", "Close("&$D$12&") when LocalYear("&$D$12&")="&$D$10&" and localMonth("&$D$12&") ="&$E$10&" and LocalDay("&$D$12&")="&$F$10&" and Barix("&$D$12&",reference:=StartOfDay)="&A22&"", "Bar", "", "Close","5","0","All",,,"False","T","EveryTick") -> 4386.25 | AA22: 0.008391286856
A23: 118 | B23: 02:50:00 | D23: 5 | E23: #.00000 | H23: =RTD("cqg.rtd",,"StudyData", "Close("&$D$12&") when LocalYear("&$D$12&")="&$D$1&" and localMonth("&$D$12&") ="&$E$1&" and LocalDay("&$D$12&")="&$F$1&" and Barix("&$D$12&",reference:=StartOfDay)="&A23&"", "Bar", "", "Close","5","0","All",,,"False","T","EveryTick") -> 4340.25 | I23: -0.0001151874676 | J23: =RTD("cqg.rtd",,"StudyData", "Close("&$D$12&") when LocalYear("&$D$12&")="&$D$2&" and localMonth("&$D$12&") ="&$E$2&" and LocalDay("&$D$12&")="&$F$2&" and Barix("&$D$12&",reference:=StartOfDay)="&A23&"", "Bar", "", "Close","5","0","All",,,"False","T","EveryTick") -> 4336.75 | K23: -0.00327510917 | L23: =RTD("cqg.rtd",,"StudyData", "Close("&$D$12&") when LocalYear("&$D$12&")="&$D$3&" and localMonth("&$D$12&") ="&$E$3&" and LocalDay("&$D$12&")="&$F$3&" and Barix("&$D$12&",reference:=StartOfDay)="&A23&"", "Bar", "", "Close","5","0","All",,,"False","T","EveryTick") -> 4364.75 | M23: -0.003993382395 | N23: =RTD("cqg.rtd",,"StudyData", "Close("&$D$12&") when LocalYear("&$D$12&")="&$D$4&" and localMonth("&$D$12&") ="&$E$4&" and LocalDay("&$D$12&")="&$F$4&" and Barix("&$D$12&",reference:=StartOfDay)="&A23&"", "Bar", "", "Close","5","0","All",,,"False","T","EveryTick") -> 4391.5 | O23: 0.0003416856492 | P23: =RTD("cqg.rtd",,"StudyData", "Close("&$D$12&") when LocalYear("&$D$12&")="&$D$5&" and localMonth("&$D$12&") ="&$E$5&" and LocalDay("&$D$12&")="&$F$5&" and Barix("&$D$12&",reference:=StartOfDay)="&A23&"", "Bar", "", "Close","5","0","All",,,"False","T","EveryTick") -> 4378.75 | Q23: 0.005684428112 | R23: =RTD("cqg.rtd",,"StudyData", "Close("&$D$12&") when LocalYear("&$D$12&")="&$D$6&" and localMonth("&$D$12&") ="&$E$6&" and LocalDay("&$D$12&")="&$F$6&" and Barix("&$D$12&",reference:=StartOfDay)="&A23&"", "Bar", "", "Close","5","0","All",,,"False","T","EveryTick") -> 4297.25 | S23: -0.008479464698 | T23: =RTD("cqg.rtd",,"StudyData", "Close("&$D$12&") when LocalYear("&$D$12&")="&$D$7&" and localMonth("&$D$12&") ="&$E$7&" and LocalDay("&$D$12&")="&$F$7&" and Barix("&$D$12&",reference:=StartOfDay)="&A23&"", "Bar", "", "Close","5","0","All",,,"False","T","EveryTick") -> 4292.75 | U23: 0.0003495484999 | V23: =RTD("cqg.rtd",,"StudyData", "Close("&$D$12&") when LocalYear("&$D$12&")="&$D$8&" and localMonth("&$D$12&") ="&$E$8&" and LocalDay("&$D$12&")="&$F$8&" and Barix("&$D$12&",reference:=StartOfDay)="&A23&"", "Bar", "", "Close","5","0","All",,,"False","T","EveryTick") -> 4324 | W23: -0.00454676259 | X23: =RTD("cqg.rtd",,"StudyData", "Close("&$D$12&") when LocalYear("&$D$12&")="&$D$9&" and localMonth("&$D$12&") ="&$E$9&" and LocalDay("&$D$12&")="&$F$9&" and Barix("&$D$12&",reference:=StartOfDay)="&A23&"", "Bar", "", "Close","5","0","All",,,"False","T","EveryTick") -> 4277.5 | Y23: -0.004711767785 | Z23: =RTD("cqg.rtd",,"StudyData", "Close("&$D$12&") when LocalYear("&$D$12&")="&$D$10&" and localMonth("&$D$12&") ="&$E$10&" and LocalDay("&$D$12&")="&$F$10&" and Barix("&$D$12&",reference:=StartOfDay)="&A23&"", "Bar", "", "Close","5","0","All",,,"False","T","EveryTick") -> 4384.25 | AA23: 0.007931490316
A24: 119 | B24: 02:55:00 | D24: 6 | E24: #.000000 | H24: =RTD("cqg.rtd",,"StudyData", "Close("&$D$12&") when LocalYear("&$D$12&")="&$D$1&" and localMonth("&$D$12&") ="&$E$1&" and LocalDay("&$D$12&")="&$F$1&" and Barix("&$D$12&",reference:=StartOfDay)="&A24&"", "Bar", "", "Close","5","0","All",,,"False","T","EveryTick") -> 4340.5 | I24: -5.75937338e-05 | J24: =RTD("cqg.rtd",,"StudyData", "Close("&$D$12&") when LocalYear("&$D$12&")="&$D$2&" and localMonth("&$D$12&") ="&$E$2&" and LocalDay("&$D$12&")="&$F$2&" and Barix("&$D$12&",reference:=StartOfDay)="&A24&"", "Bar", "", "Close","5","0","All",,,"False","T","EveryTick") -> 4334.5 | K24: -0.003792231671 | L24: =RTD("cqg.rtd",,"StudyData", "Close("&$D$12&") when LocalYear("&$D$12&")="&$D$3&" and localMonth("&$D$12&") ="&$E$3&" and LocalDay("&$D$12&")="&$F$3&" and Barix("&$D$12&",reference:=StartOfDay)="&A24&"", "Bar", "", "Close","5","0","All",,,"False","T","EveryTick") -> 4367.25 | M24: -0.003422899196 | N24: =RTD("cqg.rtd",,"StudyData", "Close("&$D$12&") when LocalYear("&$D$12&")="&$D$4&" and localMonth("&$D$12&") ="&$E$4&" and LocalDay("&$D$12&")="&$F$4&" and Barix("&$D$12&",reference:=StartOfDay)="&A24&"", "Bar", "", "Close","5","0","All",,,"False","T","EveryTick") -> 4391.5 | O24: 0.0003416856492 | P24: =RTD("cqg.rtd",,"StudyData", "Close("&$D$12&") when LocalYear("&$D$12&")="&$D$5&" and localMonth("&$D$12&") ="&$E$5&" and LocalDay("&$D$12&")="&$F$5&" and Barix("&$D$12&",reference:=StartOfDay)="&A24&"", "Bar", "", "Close","5","0","All",,,"False","T","EveryTick") -> 4380.5 | Q24: 0.006086357373 | R24: =RTD("cqg.rtd",,"StudyData", "Close("&$D$12&") when LocalYear("&$D$12&")="&$D$6&" and localMonth("&$D$12&") ="&$E$6&" and LocalDay("&$D$12&")="&$F$6&" and Barix("&$D$12&",reference:=StartOfDay)="&A24&"", "Bar", "", "Close","5","0","All",,,"False","T","EveryTick") -> 4292.5 | S24: -0.009575449931 | T24: =RTD("cqg.rtd",,"StudyData", "Close("&$D$12&") when LocalYear("&$D$12&")="&$D$7&" and localMonth("&$D$12&") ="&$E$7&" and LocalDay("&$D$12&")="&$F$7&" and Barix("&$D$12&",reference:=StartOfDay)="&A24&"", "Bar", "", "Close","5","0","All",,,"False","T","EveryTick") -> 4287.75 | U24: -0.0008156131663 | V24: =RTD("cqg.rtd",,"StudyData", "Close("&$D$12&") when LocalYear("&$D$12&")="&$D$8&" and localMonth("&$D$12&") ="&$E$8&" and LocalDay("&$D$12&")="&$F$8&" and Barix("&$D$12&",reference:=StartOfDay)="&A24&"", "Bar", "", "Close","5","0","All",,,"False","T","EveryTick") -> 4325.5 | W24: -0.004201438849 | X24: =RTD("cqg.rtd",,"StudyData", "Close("&$D$12&") when LocalYear("&$D$12&")="&$D$9&" and localMonth("&$D$12&") ="&$E$9&" and LocalDay("&$D$12&")="&$F$9&" and Barix("&$D$12&",reference:=StartOfDay)="&A24&"", "Bar", "", "Close","5","0","All",,,"False","T","EveryTick") -> 4275.5 | Y24: -0.005177127567 | Z24: =RTD("cqg.rtd",,"StudyData", "Close("&$D$12&") when LocalYear("&$D$12&")="&$D$10&" and localMonth("&$D$12&") ="&$E$10&" and LocalDay("&$D$12&")="&$F$10&" and Barix("&$D$12&",reference:=StartOfDay)="&A24&"", "Bar", "", "Close","5","0","All",,,"False","T","EveryTick") -> 4382.5 | AA24: 0.007529168343
A25: 120 | B25: 03:00:00 | D25: 7 | E25: #.0000000 | H25: =RTD("cqg.rtd",,"StudyData", "Close("&$D$12&") when LocalYear("&$D$12&")="&$D$1&" and localMonth("&$D$12&") ="&$E$1&" and LocalDay("&$D$12&")="&$F$1&" and Barix("&$D$12&",reference:=StartOfDay)="&A25&"", "Bar", "", "Close","5","0","All",,,"False","T","EveryTick") -> 4340.25 | I25: -0.0001151874676 | J25: =RTD("cqg.rtd",,"StudyData", "Close("&$D$12&") when LocalYear("&$D$12&")="&$D$2&" and localMonth("&$D$12&") ="&$E$2&" and LocalDay("&$D$12&")="&$F$2&" and Barix("&$D$12&",reference:=StartOfDay)="&A25&"", "Bar", "", "Close","5","0","All",,,"False","T","EveryTick") -> 4334.25 | K25: -0.003849689726 | L25: =RTD("cqg.rtd",,"StudyData", "Close("&$D$12&") when LocalYear("&$D$12&")="&$D$3&" and localMonth("&$D$12&") ="&$E$3&" and LocalDay("&$D$12&")="&$F$3&" and Barix("&$D$12&",reference:=StartOfDay)="&A25&"", "Bar", "", "Close","5","0","All",,,"False","T","EveryTick") -> 4371 | M25: -0.002567174397 | N25: =RTD("cqg.rtd",,"StudyData", "Close("&$D$12&") when LocalYear("&$D$12&")="&$D$4&" and localMonth("&$D$12&") ="&$E$4&" and LocalDay("&$D$12&")="&$F$4&" and Barix("&$D$12&",reference:=StartOfDay)="&A25&"", "Bar", "", "Close","5","0","All",,,"False","T","EveryTick") -> 4390 | O25: 0 | P25: =RTD("cqg.rtd",,"StudyData", "Close("&$D$12&") when LocalYear("&$D$12&")="&$D$5&" and localMonth("&$D$12&") ="&$E$5&" and LocalDay("&$D$12&")="&$F$5&" and Barix("&$D$12&",reference:=StartOfDay)="&A25&"", "Bar", "", "Close","5","0","All",,,"False","T","EveryTick") -> 4377.75 | Q25: 0.005454754249 | R25: =RTD("cqg.rtd",,"StudyData", "Close("&$D$12&") when LocalYear("&$D$12&")="&$D$6&" and localMonth("&$D$12&") ="&$E$6&" and LocalDay("&$D$12&")="&$F$6&" and Barix("&$D$12&",reference:=StartOfDay)="&A25&"", "Bar", "", "Close","5","0","All",,,"False","T","EveryTick") -> 4290.25 | S25: -0.01009460083 | T25: =RTD("cqg.rtd",,"StudyData", "Close("&$D$12&") when LocalYear("&$D$12&")="&$D$7&" and localMonth("&$D$12&") ="&$E$7&" and LocalDay("&$D$12&")="&$F$7&" and Barix("&$D$12&",reference:=StartOfDay)="&A25&"", "Bar", "", "Close","5","0","All",,,"False","T","EveryTick") -> 4292 | U25: 0.0001747742499 | V25: =RTD("cqg.rtd",,"StudyData", "Close("&$D$12&") when LocalYear("&$D$12&")="&$D$8&" and localMonth("&$D$12&") ="&$E$8&" and LocalDay("&$D$12&")="&$F$8&" and Barix("&$D$12&",reference:=StartOfDay)="&A25&"", "Bar", "", "Close","5","0","All",,,"False","T","EveryTick") -> 4331 | W25: -0.002935251799 | X25: =RTD("cqg.rtd",,"StudyData", "Close("&$D$12&") when LocalYear("&$D$12&")="&$D$9&" and localMonth("&$D$12&") ="&$E$9&" and LocalDay("&$D$12&")="&$F$9&" and Barix("&$D$12&",reference:=StartOfDay)="&A25&"", "Bar", "", "Close","5","0","All",,,"False","T","EveryTick") -> 4276.5 | Y25: -0.004944447676 | Z25: =RTD("cqg.rtd",,"StudyData", "Close("&$D$12&") when LocalYear("&$D$12&")="&$D$10&" and localMonth("&$D$12&") ="&$E$10&" and LocalDay("&$D$12&")="&$F$10&" and Barix("&$D$12&",reference:=StartOfDay)="&A25&"", "Bar", "", "Close","5","0","All",,,"False","T","EveryTick") -> 4385 | AA25: 0.008103914018
A26: 121 | B26: 03:05:00 | D26: =RTD("cqg.rtd", ,"ContractData","TUA", "Ticksize",, "T") -> 0.00390625 | H26: =RTD("cqg.rtd",,"StudyData", "Close("&$D$12&") when LocalYear("&$D$12&")="&$D$1&" and localMonth("&$D$12&") ="&$E$1&" and LocalDay("&$D$12&")="&$F$1&" and Barix("&$D$12&",reference:=StartOfDay)="&A26&"", "Bar", "", "Close","5","0","All",,,"False","T","EveryTick") -> 4339.25 | I26: -0.0003455624028 | J26: =RTD("cqg.rtd",,"StudyData", "Close("&$D$12&") when LocalYear("&$D$12&")="&$D$2&" and localMonth("&$D$12&") ="&$E$2&" and LocalDay("&$D$12&")="&$F$2&" and Barix("&$D$12&",reference:=StartOfDay)="&A26&"", "Bar", "", "Close","5","0","All",,,"False","T","EveryTick") -> 4334.25 | K26: -0.003849689726 | L26: =RTD("cqg.rtd",,"StudyData", "Close("&$D$12&") when LocalYear("&$D$12&")="&$D$3&" and localMonth("&$D$12&") ="&$E$3&" and LocalDay("&$D$12&")="&$F$3&" and Barix("&$D$12&",reference:=StartOfDay)="&A26&"", "Bar", "", "Close","5","0","All",,,"False","T","EveryTick") -> 4368 | M26: -0.003251754236 | N26: =RTD("cqg.rtd",,"StudyData", "Close("&$D$12&") when LocalYear("&$D$12&")="&$D$4&" and localMonth("&$D$12&") ="&$E$4&" and LocalDay("&$D$12&")="&$F$4&" and Barix("&$D$12&",reference:=StartOfDay)="&A26&"", "Bar", "", "Close","5","0","All",,,"False","T","EveryTick") -> 4391.25 | O26: 0.000284738041 | P26: =RTD("cqg.rtd",,"StudyData", "Close("&$D$12&") when LocalYear("&$D$12&")="&$D$5&" and localMonth("&$D$12&") ="&$E$5&" and LocalDay("&$D$12&")="&$F$5&" and Barix("&$D$12&",reference:=StartOfDay)="&A26&"", "Bar", "", "Close","5","0","All",,,"False","T","EveryTick") -> 4378.75 | Q26: 0.005684428112 | R26: =RTD("cqg.rtd",,"StudyData", "Close("&$D$12&") when LocalYear("&$D$12&")="&$D$6&" and localMonth("&$D$12&") ="&$E$6&" and LocalDay("&$D$12&")="&$F$6&" and Barix("&$D$12&",reference:=StartOfDay)="&A26&"", "Bar", "", "Close","5","0","All",,,"False","T","EveryTick") -> 4287 | S26: -0.01084448546 | T26: =RTD("cqg.rtd",,"StudyData", "Close("&$D$12&") when LocalYear("&$D$12&")="&$D$7&" and localMonth("&$D$12&") ="&$E$7&" and LocalDay("&$D$12&")="&$F$7&" and Barix("&$D$12&",reference:=StartOfDay)="&A26&"", "Bar", "", "Close","5","0","All",,,"False","T","EveryTick") -> 4295 | U26: 0.0008738712496 | V26: =RTD("cqg.rtd",,"StudyData", "Close("&$D$12&") when LocalYear("&$D$12&")="&$D$8&" and localMonth("&$D$12&") ="&$E$8&" and LocalDay("&$D$12&")="&$F$8&" and Barix("&$D$12&",reference:=StartOfDay)="&A26&"", "Bar", "", "Close","5","0","All",,,"False","T","EveryTick") -> 4329.25 | W26: -0.003338129496 | X26: =RTD("cqg.rtd",,"StudyData", "Close("&$D$12&") when LocalYear("&$D$12&")="&$D$9&" and localMonth("&$D$12&") ="&$E$9&" and LocalDay("&$D$12&")="&$F$9&" and Barix("&$D$12&",reference:=StartOfDay)="&A26&"", "Bar", "", "Close","5","0","All",,,"False","T","EveryTick") -> 4272.75 | Y26: -0.005816997266 | Z26: =RTD("cqg.rtd",,"StudyData", "Close("&$D$12&") when LocalYear("&$D$12&")="&$D$10&" and localMonth("&$D$12&") ="&$E$10&" and LocalDay("&$D$12&")="&$F$10&" and Barix("&$D$12&",reference:=StartOfDay)="&A26&"", "Bar", "", "Close","5","0","All",,,"False","T","EveryTick") -> 4383.25 | AA26: 0.007701592046
A27: 122 | B27: 03:10:00 | D27: =RTD("cqg.rtd", ,"ContractData","TYA", "LastTrade",, "B") -> 131-09'+ | H27: =RTD("cqg.rtd",,"StudyData", "Close("&$D$12&") when LocalYear("&$D$12&")="&$D$1&" and localMonth("&$D$12&") ="&$E$1&" and LocalDay("&$D$12&")="&$F$1&" and Barix("&$D$12&",reference:=StartOfDay)="&A27&"", "Bar", "", "Close","5","0","All",,,"False","T","EveryTick") -> 4340 | I27: -0.0001727812014 | J27: =RTD("cqg.rtd",,"StudyData", "Close("&$D$12&") when LocalYear("&$D$12&")="&$D$2&" and localMonth("&$D$12&") ="&$E$2&" and LocalDay("&$D$12&")="&$F$2&" and Barix("&$D$12&",reference:=StartOfDay)="&A27&"", "Bar", "", "Close","5","0","All",,,"False","T","EveryTick") -> 4333.5 | K27: -0.004022063893 | L27: =RTD("cqg.rtd",,"StudyData", "Close("&$D$12&") when LocalYear("&$D$12&")="&$D$3&" and localMonth("&$D$12&") ="&$E$3&" and LocalDay("&$D$12&")="&$F$3&" and Barix("&$D$12&",reference:=StartOfDay)="&A27&"", "Bar", "", "Close","5","0","All",,,"False","T","EveryTick") -> 4370.5 | M27: -0.002681271037 | N27: =RTD("cqg.rtd",,"StudyData", "Close("&$D$12&") when LocalYear("&$D$12&")="&$D$4&" and localMonth("&$D$12&") ="&$E$4&" and LocalDay("&$D$12&")="&$F$4&" and Barix("&$D$12&",reference:=StartOfDay)="&A27&"", "Bar", "", "Close","5","0","All",,,"False","T","EveryTick") -> 4388.75 | O27: -0.000284738041 | P27: =RTD("cqg.rtd",,"StudyData", "Close("&$D$12&") when LocalYear("&$D$12&")="&$D$5&" and localMonth("&$D$12&") ="&$E$5&" and LocalDay("&$D$12&")="&$F$5&" and Barix("&$D$12&",reference:=StartOfDay)="&A27&"", "Bar", "", "Close","5","0","All",,,"False","T","EveryTick") -> 4376.75 | Q27: 0.005225080386 | R27: =RTD("cqg.rtd",,"StudyData", "Close("&$D$12&") when LocalYear("&$D$12&")="&$D$6&" and localMonth("&$D$12&") ="&$E$6&" and LocalDay("&$D$12&")="&$F$6&" and Barix("&$D$12&",reference:=StartOfDay)="&A27&"", "Bar", "", "Close","5","0","All",,,"False","T","EveryTick") -> 4293.5 | S27: -0.009344716198 | T27: =RTD("cqg.rtd",,"StudyData", "Close("&$D$12&") when LocalYear("&$D$12&")="&$D$7&" and localMonth("&$D$12&") ="&$E$7&" and LocalDay("&$D$12&")="&$F$7&" and Barix("&$D$12&",reference:=StartOfDay)="&A27&"", "Bar", "", "Close","5","0","All",,,"False","T","EveryTick") -> 4299 | U27: 0.001806000583 | V27: =RTD("cqg.rtd",,"StudyData", "Close("&$D$12&") when LocalYear("&$D$12&")="&$D$8&" and localMonth("&$D$12&") ="&$E$8&" and LocalDay("&$D$12&")="&$F$8&" and Barix("&$D$12&",reference:=StartOfDay)="&A27&"", "Bar", "", "Close","5","0","All",,,"False","T","EveryTick") -> 4330 | W27: -0.003165467626 | X27: =RTD("cqg.rtd",,"StudyData", "Close("&$D$12&") when LocalYear("&$D$12&")="&$D$9&" and localMonth("&$D$12&") ="&$E$9&" and LocalDay("&$D$12&")="&$F$9&" and Barix("&$D$12&",reference:=StartOfDay)="&A27&"", "Bar", "", "Close","5","0","All",,,"False","T","EveryTick") -> 4270.25 | Y27: -0.006398696993 | Z27: =RTD("cqg.rtd",,"StudyData", "Close("&$D$12&") when LocalYear("&$D$12&")="&$D$10&" and localMonth("&$D$12&") ="&$E$10&" and LocalDay("&$D$12&")="&$F$10&" and Barix("&$D$12&",reference:=StartOfDay)="&A27&"", "Bar", "", "Close","5","0","All",,,"False","T","EveryTick") -> 4381.25 | AA27: 0.007241795505
A28: 123 | B28: 03:15:00 | D28: =RTD("cqg.rtd", ,"ContractData","TUA", "TickSize",, "T") -> 0.00390625 | F28: =1.04166666666667*60*5 -> 312.5 | H28: =RTD("cqg.rtd",,"StudyData", "Close("&$D$12&") when LocalYear("&$D$12&")="&$D$1&" and localMonth("&$D$12&") ="&$E$1&" and LocalDay("&$D$12&")="&$F$1&" and Barix("&$D$12&",reference:=StartOfDay)="&A28&"", "Bar", "", "Close","5","0","All",,,"False","T","EveryTick") -> 4345.25 | I28: 0.001036687208 | J28: =RTD("cqg.rtd",,"StudyData", "Close("&$D$12&") when LocalYear("&$D$12&")="&$D$2&" and localMonth("&$D$12&") ="&$E$2&" and LocalDay("&$D$12&")="&$F$2&" and Barix("&$D$12&",reference:=StartOfDay)="&A28&"", "Bar", "", "Close","5","0","All",,,"False","T","EveryTick") -> 4332.25 | K28: -0.004309354171 | L28: =RTD("cqg.rtd",,"StudyData", "Close("&$D$12&") when LocalYear("&$D$12&")="&$D$3&" and localMonth("&$D$12&") ="&$E$3&" and LocalDay("&$D$12&")="&$F$3&" and Barix("&$D$12&",reference:=StartOfDay)="&A28&"", "Bar", "", "Close","5","0","All",,,"False","T","EveryTick") -> 4370.25 | M28: -0.002738319356 | N28: =RTD("cqg.rtd",,"StudyData", "Close("&$D$12&") when LocalYear("&$D$12&")="&$D$4&" and localMonth("&$D$12&") ="&$E$4&" and LocalDay("&$D$12&")="&$F$4&" and Barix("&$D$12&",reference:=StartOfDay)="&A28&"", "Bar", "", "Close","5","0","All",,,"False","T","EveryTick") -> 4389.25 | O28: -0.0001708428246 | P28: =RTD("cqg.rtd",,"StudyData", "Close("&$D$12&") when LocalYear("&$D$12&")="&$D$5&" and localMonth("&$D$12&") ="&$E$5&" and LocalDay("&$D$12&")="&$F$5&" and Barix("&$D$12&",reference:=StartOfDay)="&A28&"", "Bar", "", "Close","5","0","All",,,"False","T","EveryTick") -> 4375.5 | Q28: 0.004937988057 | R28: =RTD("cqg.rtd",,"StudyData", "Close("&$D$12&") when LocalYear("&$D$12&")="&$D$6&" and localMonth("&$D$12&") ="&$E$6&" and LocalDay("&$D$12&")="&$F$6&" and Barix("&$D$12&",reference:=StartOfDay)="&A28&"", "Bar", "", "Close","5","0","All",,,"False","T","EveryTick") -> 4290.25 | S28: -0.01009460083 | T28: =RTD("cqg.rtd",,"StudyData", "Close("&$D$12&") when LocalYear("&$D$12&")="&$D$7&" and localMonth("&$D$12&") ="&$E$7&" and LocalDay("&$D$12&")="&$F$7&" and Barix("&$D$12&",reference:=StartOfDay)="&A28&"", "Bar", "", "Close","5","0","All",,,"False","T","EveryTick") -> 4299.5 | U28: 0.001922516749 | V28: =RTD("cqg.rtd",,"StudyData", "Close("&$D$12&") when LocalYear("&$D$12&")="&$D$8&" and localMonth("&$D$12&") ="&$E$8&" and LocalDay("&$D$12&")="&$F$8&" and Barix("&$D$12&",reference:=StartOfDay)="&A28&"", "Bar", "", "Close","5","0","All",,,"False","T","EveryTick") -> 4327 | W28: -0.003856115108 | X28: =RTD("cqg.rtd",,"StudyData", "Close("&$D$12&") when LocalYear("&$D$12&")="&$D$9&" and localMonth("&$D$12&") ="&$E$9&" and LocalDay("&$D$12&")="&$F$9&" and Barix("&$D$12&",reference:=StartOfDay)="&A28&"", "Bar", "", "Close","5","0","All",,,"False","T","EveryTick") -> 4269 | Y28: -0.006689546856 | Z28: =RTD("cqg.rtd",,"StudyData", "Close("&$D$12&") when LocalYear("&$D$12&")="&$D$10&" and localMonth("&$D$12&") ="&$E$10&" and LocalDay("&$D$12&")="&$F$10&" and Barix("&$D$12&",reference:=StartOfDay)="&A28&"", "Bar", "", "Close","5","0","All",,,"False","T","EveryTick") -> 4377 | AA28: 0.006264727858
A29: 124 | B29: 03:20:00 | D29: =RTD("cqg.rtd", ,"ContractData","JY6", "Ticksize",, "B") -> +0.0000010 | H29: =RTD("cqg.rtd",,"StudyData", "Close("&$D$12&") when LocalYear("&$D$12&")="&$D$1&" and localMonth("&$D$12&") ="&$E$1&" and LocalDay("&$D$12&")="&$F$1&" and Barix("&$D$12&",reference:=StartOfDay)="&A29&"", "Bar", "", "Close","5","0","All",,,"False","T","EveryTick") -> 4347 | I29: 0.001439843345 | J29: =RTD("cqg.rtd",,"StudyData", "Close("&$D$12&") when LocalYear("&$D$12&")="&$D$2&" and localMonth("&$D$12&") ="&$E$2&" and LocalDay("&$D$12&")="&$F$2&" and Barix("&$D$12&",reference:=StartOfDay)="&A29&"", "Bar", "", "Close","5","0","All",,,"False","T","EveryTick") -> 4339 | K29: -0.00275798667 | L29: =RTD("cqg.rtd",,"StudyData", "Close("&$D$12&") when LocalYear("&$D$12&")="&$D$3&" and localMonth("&$D$12&") ="&$E$3&" and LocalDay("&$D$12&")="&$F$3&" and Barix("&$D$12&",reference:=StartOfDay)="&A29&"", "Bar", "", "Close","5","0","All",,,"False","T","EveryTick") -> 4363.25 | M29: -0.004335672314 | N29: =RTD("cqg.rtd",,"StudyData", "Close("&$D$12&") when LocalYear("&$D$12&")="&$D$4&" and localMonth("&$D$12&") ="&$E$4&" and LocalDay("&$D$12&")="&$F$4&" and Barix("&$D$12&",reference:=StartOfDay)="&A29&"", "Bar", "", "Close","5","0","All",,,"False","T","EveryTick") -> 4390.75 | O29: 0.0001708428246 | P29: =RTD("cqg.rtd",,"StudyData", "Close("&$D$12&") when LocalYear("&$D$12&")="&$D$5&" and localMonth("&$D$12&") ="&$E$5&" and LocalDay("&$D$12&")="&$F$5&" and Barix("&$D$12&",reference:=StartOfDay)="&A29&"", "Bar", "", "Close","5","0","All",,,"False","T","EveryTick") -> 4374.25 | Q29: 0.004650895728 | R29: =RTD("cqg.rtd",,"StudyData", "Close("&$D$12&") when LocalYear("&$D$12&")="&$D$6&" and localMonth("&$D$12&") ="&$E$6&" and LocalDay("&$D$12&")="&$F$6&" and Barix("&$D$12&",reference:=StartOfDay)="&A29&"", "Bar", "", "Close","5","0","All",,,"False","T","EveryTick") -> 4293 | S29: -0.009460083064 | T29: =RTD("cqg.rtd",,"StudyData", "Close("&$D$12&") when LocalYear("&$D$12&")="&$D$7&" and localMonth("&$D$12&") ="&$E$7&" and LocalDay("&$D$12&")="&$F$7&" and Barix("&$D$12&",reference:=StartOfDay)="&A29&"", "Bar", "", "Close","5","0","All",,,"False","T","EveryTick") -> 4298.5 | U29: 0.001689484416 | V29: =RTD("cqg.rtd",,"StudyData", "Close("&$D$12&") when LocalYear("&$D$12&")="&$D$8&" and localMonth("&$D$12&") ="&$E$8&" and LocalDay("&$D$12&")="&$F$8&" and Barix("&$D$12&",reference:=StartOfDay)="&A29&"", "Bar", "", "Close","5","0","All",,,"False","T","EveryTick") -> 4327.25 | W29: -0.003798561151 | X29: =RTD("cqg.rtd",,"StudyData", "Close("&$D$12&") when LocalYear("&$D$12&")="&$D$9&" and localMonth("&$D$12&") ="&$E$9&" and LocalDay("&$D$12&")="&$F$9&" and Barix("&$D$12&",reference:=StartOfDay)="&A29&"", "Bar", "", "Close","5","0","All",,,"False","T","EveryTick") -> 4268.75 | Y29: -0.006747716829 | Z29: =RTD("cqg.rtd",,"StudyData", "Close("&$D$12&") when LocalYear("&$D$12&")="&$D$10&" and localMonth("&$D$12&") ="&$E$10&" and LocalDay("&$D$12&")="&$F$10&" and Barix("&$D$12&",reference:=StartOfDay)="&A29&"", "Bar", "", "Close","5","0","All",,,"False","T","EveryTick") -> 4379.75 | AA29: 0.0068969481
A30: 125 | B30: 03:25:00 | D30: =RTD("cqg.rtd", ,"ContractData","FVA", "TickSize",, "B") -> +0-00'+ | F30: =8*60/5 -> 96 | H30: =RTD("cqg.rtd",,"StudyData", "Close("&$D$12&") when LocalYear("&$D$12&")="&$D$1&" and localMonth("&$D$12&") ="&$E$1&" and LocalDay("&$D$12&")="&$F$1&" and Barix("&$D$12&",reference:=StartOfDay)="&A30&"", "Bar", "", "Close","5","0","All",,,"False","T","EveryTick") -> 4346.25 | I30: 0.001267062144 | J30: =RTD("cqg.rtd",,"StudyData", "Close("&$D$12&") when LocalYear("&$D$12&")="&$D$2&" and localMonth("&$D$12&") ="&$E$2&" and LocalDay("&$D$12&")="&$F$2&" and Barix("&$D$12&",reference:=StartOfDay)="&A30&"", "Bar", "", "Close","5","0","All",,,"False","T","EveryTick") -> 4337.75 | K30: -0.003045276948 | L30: =RTD("cqg.rtd",,"StudyData", "Close("&$D$12&") when LocalYear("&$D$12&")="&$D$3&" and localMonth("&$D$12&") ="&$E$3&" and LocalDay("&$D$12&")="&$F$3&" and Barix("&$D$12&",reference:=StartOfDay)="&A30&"", "Bar", "", "Close","5","0","All",,,"False","T","EveryTick") -> 4367.5 | M30: -0.003365850876 | N30: =RTD("cqg.rtd",,"StudyData", "Close("&$D$12&") when LocalYear("&$D$12&")="&$D$4&" and localMonth("&$D$12&") ="&$E$4&" and LocalDay("&$D$12&")="&$F$4&" and Barix("&$D$12&",reference:=StartOfDay)="&A30&"", "Bar", "", "Close","5","0","All",,,"False","T","EveryTick") -> 4390.5 | O30: 0.0001138952164 | P30: =RTD("cqg.rtd",,"StudyData", "Close("&$D$12&") when LocalYear("&$D$12&")="&$D$5&" and localMonth("&$D$12&") ="&$E$5&" and LocalDay("&$D$12&")="&$F$5&" and Barix("&$D$12&",reference:=StartOfDay)="&A30&"", "Bar", "", "Close","5","0","All",,,"False","T","EveryTick") -> 4376.75 | Q30: 0.005225080386 | R30: =RTD("cqg.rtd",,"StudyData", "Close("&$D$12&") when LocalYear("&$D$12&")="&$D$6&" and localMonth("&$D$12&") ="&$E$6&" and LocalDay("&$D$12&")="&$F$6&" and Barix("&$D$12&",reference:=StartOfDay)="&A30&"", "Bar", "", "Close","5","0","All",,,"False","T","EveryTick") -> 4295.25 | S30: -0.008940932164 | T30: =RTD("cqg.rtd",,"StudyData", "Close("&$D$12&") when LocalYear("&$D$12&")="&$D$7&" and localMonth("&$D$12&") ="&$E$7&" and LocalDay("&$D$12&")="&$F$7&" and Barix("&$D$12&",reference:=StartOfDay)="&A30&"", "Bar", "", "Close","5","0","All",,,"False","T","EveryTick") -> 4300.5 | U30: 0.002155549082 | V30: =RTD("cqg.rtd",,"StudyData", "Close("&$D$12&") when LocalYear("&$D$12&")="&$D$8&" and localMonth("&$D$12&") ="&$E$8&" and LocalDay("&$D$12&")="&$F$8&" and Barix("&$D$12&",reference:=StartOfDay)="&A30&"", "Bar", "", "Close","5","0","All",,,"False","T","EveryTick") -> 4325.25 | W30: -0.004258992806 | X30: =RTD("cqg.rtd",,"StudyData", "Close("&$D$12&") when LocalYear("&$D$12&")="&$D$9&" and localMonth("&$D$12&") ="&$E$9&" and LocalDay("&$D$12&")="&$F$9&" and Barix("&$D$12&",reference:=StartOfDay)="&A30&"", "Bar", "", "Close","5","0","All",,,"False","T","EveryTick") -> 4271.5 | Y30: -0.006107847129 | Z30: =RTD("cqg.rtd",,"StudyData", "Close("&$D$12&") when LocalYear("&$D$12&")="&$D$10&" and localMonth("&$D$12&") ="&$E$10&" and LocalDay("&$D$12&")="&$F$10&" and Barix("&$D$12&",reference:=StartOfDay)="&A30&"", "Bar", "", "Close","5","0","All",,,"False","T","EveryTick") -> 4379.25 | AA30: 0.006781998965
A31: 126 | B31: 03:30:00 | D31: =RTD("cqg.rtd", ,"ContractData","TYA", "TickSize",, "B") -> +0-00'+ | F31: =F30/F35 -> 1 | H31: =RTD("cqg.rtd",,"StudyData", "Close("&$D$12&") when LocalYear("&$D$12&")="&$D$1&" and localMonth("&$D$12&") ="&$E$1&" and LocalDay("&$D$12&")="&$F$1&" and Barix("&$D$12&",reference:=StartOfDay)="&A31&"", "Bar", "", "Close","5","0","All",,,"False","T","EveryTick") -> 4346.25 | I31: 0.001267062144 | J31: =RTD("cqg.rtd",,"StudyData", "Close("&$D$12&") when LocalYear("&$D$12&")="&$D$2&" and localMonth("&$D$12&") ="&$E$2&" and LocalDay("&$D$12&")="&$F$2&" and Barix("&$D$12&",reference:=StartOfDay)="&A31&"", "Bar", "", "Close","5","0","All",,,"False","T","EveryTick") -> 4338.25 | K31: -0.002930360837 | L31: =RTD("cqg.rtd",,"StudyData", "Close("&$D$12&") when LocalYear("&$D$12&")="&$D$3&" and localMonth("&$D$12&") ="&$E$3&" and LocalDay("&$D$12&")="&$F$3&" and Barix("&$D$12&",reference:=StartOfDay)="&A31&"", "Bar", "", "Close","5","0","All",,,"False","T","EveryTick") -> 4371 | M31: -0.002567174397 | N31: =RTD("cqg.rtd",,"StudyData", "Close("&$D$12&") when LocalYear("&$D$12&")="&$D$4&" and localMonth("&$D$12&") ="&$E$4&" and LocalDay("&$D$12&")="&$F$4&" and Barix("&$D$12&",reference:=StartOfDay)="&A31&"", "Bar", "", "Close","5","0","All",,,"False","T","EveryTick") -> 4388.75 | O31: -0.000284738041 | P31: =RTD("cqg.rtd",,"StudyData", "Close("&$D$12&") when LocalYear("&$D$12&")="&$D$5&" and localMonth("&$D$12&") ="&$E$5&" and LocalDay("&$D$12&")="&$F$5&" and Barix("&$D$12&",reference:=StartOfDay)="&A31&"", "Bar", "", "Close","5","0","All",,,"False","T","EveryTick") -> 4379.25 | Q31: 0.005799265044 | R31: =RTD("cqg.rtd",,"StudyData", "Close("&$D$12&") when LocalYear("&$D$12&")="&$D$6&" and localMonth("&$D$12&") ="&$E$6&" and LocalDay("&$D$12&")="&$F$6&" and Barix("&$D$12&",reference:=StartOfDay)="&A31&"", "Bar", "", "Close","5","0","All",,,"False","T","EveryTick") -> 4295 | S31: -0.008998615598 | T31: =RTD("cqg.rtd",,"StudyData", "Close("&$D$12&") when LocalYear("&$D$12&")="&$D$7&" and localMonth("&$D$12&") ="&$E$7&" and LocalDay("&$D$12&")="&$F$7&" and Barix("&$D$12&",reference:=StartOfDay)="&A31&"", "Bar", "", "Close","5","0","All",,,"False","T","EveryTick") -> 4301.75 | U31: 0.002446839499 | V31: =RTD("cqg.rtd",,"StudyData", "Close("&$D$12&") when LocalYear("&$D$12&")="&$D$8&" and localMonth("&$D$12&") ="&$E$8&" and LocalDay("&$D$12&")="&$F$8&" and Barix("&$D$12&",reference:=StartOfDay)="&A31&"", "Bar", "", "Close","5","0","All",,,"False","T","EveryTick") -> 4322.5 | W31: -0.004892086331 | X31: =RTD("cqg.rtd",,"StudyData", "Close("&$D$12&") when LocalYear("&$D$12&")="&$D$9&" and localMonth("&$D$12&") ="&$E$9&" and LocalDay("&$D$12&")="&$F$9&" and Barix("&$D$12&",reference:=StartOfDay)="&A31&"", "Bar", "", "Close","5","0","All",,,"False","T","EveryTick") -> 4269.5 | Y31: -0.006573206911 | Z31: =RTD("cqg.rtd",,"StudyData", "Close("&$D$12&") when LocalYear("&$D$12&")="&$D$10&" and localMonth("&$D$12&") ="&$E$10&" and LocalDay("&$D$12&")="&$F$10&" and Barix("&$D$12&",reference:=StartOfDay)="&A31&"", "Bar", "", "Close","5","0","All",,,"False","T","EveryTick") -> 4379 | AA31: 0.006724524398
A32: 127 | B32: 03:35:00 | D32: =RTD("cqg.rtd", ,"ContractData","TYA", "TickSize",, "B") -> +0-00'+ | F32: 0.7083333333 | G32: 1.041666667 | H32: =RTD("cqg.rtd",,"StudyData", "Close("&$D$12&") when LocalYear("&$D$12&")="&$D$1&" and localMonth("&$D$12&") ="&$E$1&" and LocalDay("&$D$12&")="&$F$1&" and Barix("&$D$12&",reference:=StartOfDay)="&A32&"", "Bar", "", "Close","5","0","All",,,"False","T","EveryTick") -> 4344.5 | I32: 0.000863906007 | J32: =RTD("cqg.rtd",,"StudyData", "Close("&$D$12&") when LocalYear("&$D$12&")="&$D$2&" and localMonth("&$D$12&") ="&$E$2&" and LocalDay("&$D$12&")="&$F$2&" and Barix("&$D$12&",reference:=StartOfDay)="&A32&"", "Bar", "", "Close","5","0","All",,,"False","T","EveryTick") -> 4340 | K32: -0.002528154447 | L32: =RTD("cqg.rtd",,"StudyData", "Close("&$D$12&") when LocalYear("&$D$12&")="&$D$3&" and localMonth("&$D$12&") ="&$E$3&" and LocalDay("&$D$12&")="&$F$3&" and Barix("&$D$12&",reference:=StartOfDay)="&A32&"", "Bar", "", "Close","5","0","All",,,"False","T","EveryTick") -> 4368.5 | M32: -0.003137657596 | N32: =RTD("cqg.rtd",,"StudyData", "Close("&$D$12&") when LocalYear("&$D$12&")="&$D$4&" and localMonth("&$D$12&") ="&$E$4&" and LocalDay("&$D$12&")="&$F$4&" and Barix("&$D$12&",reference:=StartOfDay)="&A32&"", "Bar", "", "Close","5","0","All",,,"False","T","EveryTick") -> 4388 | O32: -0.0004555808656 | P32: =RTD("cqg.rtd",,"StudyData", "Close("&$D$12&") when LocalYear("&$D$12&")="&$D$5&" and localMonth("&$D$12&") ="&$E$5&" and LocalDay("&$D$12&")="&$F$5&" and Barix("&$D$12&",reference:=StartOfDay)="&A32&"", "Bar", "", "Close","5","0","All",,,"False","T","EveryTick") -> 4380.25 | Q32: 0.006028938907 | R32: =RTD("cqg.rtd",,"StudyData", "Close("&$D$12&") when LocalYear("&$D$12&")="&$D$6&" and localMonth("&$D$12&") ="&$E$6&" and LocalDay("&$D$12&")="&$F$6&" and Barix("&$D$12&",reference:=StartOfDay)="&A32&"", "Bar", "", "Close","5","0","All",,,"False","T","EveryTick") -> 4293 | S32: -0.009460083064 | T32: =RTD("cqg.rtd",,"StudyData", "Close("&$D$12&") when LocalYear("&$D$12&")="&$D$7&" and localMonth("&$D$12&") ="&$E$7&" and LocalDay("&$D$12&")="&$F$7&" and Barix("&$D$12&",reference:=StartOfDay)="&A32&"", "Bar", "", "Close","5","0","All",,,"False","T","EveryTick") -> 4301.5 | U32: 0.002388581416 | V32: =RTD("cqg.rtd",,"StudyData", "Close("&$D$12&") when LocalYear("&$D$12&")="&$D$8&" and localMonth("&$D$12&") ="&$E$8&" and LocalDay("&$D$12&")="&$F$8&" and Barix("&$D$12&",reference:=StartOfDay)="&A32&"", "Bar", "", "Close","5","0","All",,,"False","T","EveryTick") -> 4320.5 | W32: -0.005352517986 | X32: =RTD("cqg.rtd",,"StudyData", "Close("&$D$12&") when LocalYear("&$D$12&")="&$D$9&" and localMonth("&$D$12&") ="&$E$9&" and LocalDay("&$D$12&")="&$F$9&" and Barix("&$D$12&",reference:=StartOfDay)="&A32&"", "Bar", "", "Close","5","0","All",,,"False","T","EveryTick") -> 4272 | Y32: -0.005991507184 | Z32: =RTD("cqg.rtd",,"StudyData", "Close("&$D$12&") when LocalYear("&$D$12&")="&$D$10&" and localMonth("&$D$12&") ="&$E$10&" and LocalDay("&$D$12&")="&$F$10&" and Barix("&$D$12&",reference:=StartOfDay)="&A32&"", "Bar", "", "Close","5","0","All",,,"False","T","EveryTick") -> 4378.5 | AA32: 0.006609575263
A33: 128 | B33: 03:40:00 | D33: =RTD("cqg.rtd", ,"ContractData","USA", "TickSize",, "B") -> +0-02' | F33: 0.04166666667 | G33: =(F34-F33)/5 -> 3.391666667 | H33: =RTD("cqg.rtd",,"StudyData", "Close("&$D$12&") when LocalYear("&$D$12&")="&$D$1&" and localMonth("&$D$12&") ="&$E$1&" and LocalDay("&$D$12&")="&$F$1&" and Barix("&$D$12&",reference:=StartOfDay)="&A33&"", "Bar", "", "Close","5","0","All",,,"False","T","EveryTick") -> 4349.25 | I33: =IFERROR((H33-$G$2)/$G$2,NA()) -> 0.001958186949 | J33: =RTD("cqg.rtd",,"StudyData", "Close("&$D$12&") when LocalYear("&$D$12&")="&$D$2&" and localMonth("&$D$12&") ="&$E$2&" and LocalDay("&$D$12&")="&$F$2&" and Barix("&$D$12&",reference:=StartOfDay)="&A33&"", "Bar", "", "Close","5","0","All",,,"False","T","EveryTick") -> 4341 | K33: =IFERROR((J33-$G$3)/$G$3,NA()) -> -0.002298322225 | L33: =RTD("cqg.rtd",,"StudyData", "Close("&$D$12&") when LocalYear("&$D$12&")="&$D$3&" and localMonth("&$D$12&") ="&$E$3&" and LocalDay("&$D$12&")="&$F$3&" and Barix("&$D$12&",reference:=StartOfDay)="&A33&"", "Bar", "", "Close","5","0","All",,,"False","T","EveryTick") -> 4365.75 | M33: =IFERROR((L33-$G$4)/$G$4,NA()) -> -0.003765189115 | N33: =RTD("cqg.rtd",,"StudyData", "Close("&$D$12&") when LocalYear("&$D$12&")="&$D$4&" and localMonth("&$D$12&") ="&$E$4&" and LocalDay("&$D$12&")="&$F$4&" and Barix("&$D$12&",reference:=StartOfDay)="&A33&"", "Bar", "", "Close","5","0","All",,,"False","T","EveryTick") -> 4388.75 | O33: =IFERROR((N33-$G$5)/$G$5,NA()) -> -0.000284738041 | P33: =RTD("cqg.rtd",,"StudyData", "Close("&$D$12&") when LocalYear("&$D$12&")="&$D$5&" and localMonth("&$D$12&") ="&$E$5&" and LocalDay("&$D$12&")="&$F$5&" and Barix("&$D$12&",reference:=StartOfDay)="&A33&"", "Bar", "", "Close","5","0","All",,,"False","T","EveryTick") -> 4380.5 | Q33: =IFERROR((P33-$G$6)/$G$6,NA()) -> 0.006086357373 | R33: =RTD("cqg.rtd",,"StudyData", "Close("&$D$12&") when LocalYear("&$D$12&")="&$D$6&" and localMonth("&$D$12&") ="&$E$6&" and LocalDay("&$D$12&")="&$F$6&" and Barix("&$D$12&",reference:=StartOfDay)="&A33&"", "Bar", "", "Close","5","0","All",,,"False","T","EveryTick") -> 4293.75 | S33: =IFERROR((R33-$G$7)/$G$7,NA()) -> -0.009287032764 | T33: =RTD("cqg.rtd",,"StudyData", "Close("&$D$12&") when LocalYear("&$D$12&")="&$D$7&" and localMonth("&$D$12&") ="&$E$7&" and LocalDay("&$D$12&")="&$F$7&" and Barix("&$D$12&",reference:=StartOfDay)="&A33&"", "Bar", "", "Close","5","0","All",,,"False","T","EveryTick") -> 4299.5 | U33: =IFERROR((T33-$G$8)/$G$8,NA()) -> 0.001922516749 | V33: =RTD("cqg.rtd",,"StudyData", "Close("&$D$12&") when LocalYear("&$D$12&")="&$D$8&" and localMonth("&$D$12&") ="&$E$8&" and LocalDay("&$D$12&")="&$F$8&" and Barix("&$D$12&",reference:=StartOfDay)="&A33&"", "Bar", "", "Close","5","0","All",,,"False","T","EveryTick") -> 4322.25 | W33: =IFERROR((V33-$G$9)/$G$9,NA()) -> -0.004949640288 | X33: =RTD("cqg.rtd",,"StudyData", "Close("&$D$12&") when LocalYear("&$D$12&")="&$D$9&" and localMonth("&$D$12&") ="&$E$9&" and LocalDay("&$D$12&")="&$F$9&" and Barix("&$D$12&",reference:=StartOfDay)="&A33&"", "Bar", "", "Close","5","0","All",,,"False","T","EveryTick") -> 4274.25 | Y33: =IFERROR((X33-$G$10)/$G$10,NA()) -> -0.00546797743 | Z33: =RTD("cqg.rtd",,"StudyData", "Close("&$D$12&") when LocalYear("&$D$12&")="&$D$10&" and localMonth("&$D$12&") ="&$E$10&" and LocalDay("&$D$12&")="&$F$10&" and Barix("&$D$12&",reference:=StartOfDay)="&A33&"", "Bar", "", "Close","5","0","All",,,"False","T","EveryTick") -> 4378 | AA33: =IFERROR((Z33-$G$11)/$G$11,NA()) -> 0.006494626128
A34: 129 | B34: 03:45:00 | D34: =32*D28 -> 0.125 | F34: =RTD("cqg.rtd", , "ContractData",D12,"OpenTime","0")*24 -> 17 | G34: 25 | H34: =RTD("cqg.rtd",,"StudyData", "Close("&$D$12&") when LocalYear("&$D$12&")="&$D$1&" and localMonth("&$D$12&") ="&$E$1&" and LocalDay("&$D$12&")="&$F$1&" and Barix("&$D$12&",reference:=StartOfDay)="&A34&"", "Bar", "", "Close","5","0","All",,,"False","T","EveryTick") -> 4352 | I34: 0.002591718021 | J34: =RTD("cqg.rtd",,"StudyData", "Close("&$D$12&") when LocalYear("&$D$12&")="&$D$2&" and localMonth("&$D$12&") ="&$E$2&" and LocalDay("&$D$12&")="&$F$2&" and Barix("&$D$12&",reference:=StartOfDay)="&A34&"", "Bar", "", "Close","5","0","All",,,"False","T","EveryTick") -> 4345.5 | K34: -0.001264077224 | L34: =RTD("cqg.rtd",,"StudyData", "Close("&$D$12&") when LocalYear("&$D$12&")="&$D$3&" and localMonth("&$D$12&") ="&$E$3&" and LocalDay("&$D$12&")="&$F$3&" and Barix("&$D$12&",reference:=StartOfDay)="&A34&"", "Bar", "", "Close","5","0","All",,,"False","T","EveryTick") -> 4364 | M34: -0.004164527355 | N34: =RTD("cqg.rtd",,"StudyData", "Close("&$D$12&") when LocalYear("&$D$12&")="&$D$4&" and localMonth("&$D$12&") ="&$E$4&" and LocalDay("&$D$12&")="&$F$4&" and Barix("&$D$12&",reference:=StartOfDay)="&A34&"", "Bar", "", "Close","5","0","All",,,"False","T","EveryTick") -> 4389.5 | O34: -0.0001138952164 | P34: =RTD("cqg.rtd",,"StudyData", "Close("&$D$12&") when LocalYear("&$D$12&")="&$D$5&" and localMonth("&$D$12&") ="&$E$5&" and LocalDay("&$D$12&")="&$F$5&" and Barix("&$D$12&",reference:=StartOfDay)="&A34&"", "Bar", "", "Close","5","0","All",,,"False","T","EveryTick") -> 4382.25 | Q34: 0.006488286633 | R34: =RTD("cqg.rtd",,"StudyData", "Close("&$D$12&") when LocalYear("&$D$12&")="&$D$6&" and localMonth("&$D$12&") ="&$E$6&" and LocalDay("&$D$12&")="&$F$6&" and Barix("&$D$12&",reference:=StartOfDay)="&A34&"", "Bar", "", "Close","5","0","All",,,"False","T","EveryTick") -> 4287.75 | S34: -0.01067143516 | T34: =RTD("cqg.rtd",,"StudyData", "Close("&$D$12&") when LocalYear("&$D$12&")="&$D$7&" and localMonth("&$D$12&") ="&$E$7&" and LocalDay("&$D$12&")="&$F$7&" and Barix("&$D$12&",reference:=StartOfDay)="&A34&"", "Bar", "", "Close","5","0","All",,,"False","T","EveryTick") -> 4299.5 | U34: 0.001922516749 | V34: =RTD("cqg.rtd",,"StudyData", "Close("&$D$12&") when LocalYear("&$D$12&")="&$D$8&" and localMonth("&$D$12&") ="&$E$8&" and LocalDay("&$D$12&")="&$F$8&" and Barix("&$D$12&",reference:=StartOfDay)="&A34&"", "Bar", "", "Close","5","0","All",,,"False","T","EveryTick") -> 4323.5 | W34: -0.004661870504 | X34: =RTD("cqg.rtd",,"StudyData", "Close("&$D$12&") when LocalYear("&$D$12&")="&$D$9&" and localMonth("&$D$12&") ="&$E$9&" and LocalDay("&$D$12&")="&$F$9&" and Barix("&$D$12&",reference:=StartOfDay)="&A34&"", "Bar", "", "Close","5","0","All",,,"False","T","EveryTick") -> 4272 | Y34: -0.005991507184 | Z34: =RTD("cqg.rtd",,"StudyData", "Close("&$D$12&") when LocalYear("&$D$12&")="&$D$10&" and localMonth("&$D$12&") ="&$E$10&" and LocalDay("&$D$12&")="&$F$10&" and Barix("&$D$12&",reference:=StartOfDay)="&A34&"", "Bar", "", "Close","5","0","All",,,"False","T","EveryTick") -> 4379.25 | AA34: 0.006781998965 | AE34: =IFERROR(IF(AND(H33<>"",H34<>"",H35=""),A34,""),"") -> 
A35: 130 | B35: 03:50:00 | F35: =(G34-F34)*60/5 -> 96 | H35: =RTD("cqg.rtd",,"StudyData", "Close("&$D$12&") when LocalYear("&$D$12&")="&$D$1&" and localMonth("&$D$12&") ="&$E$1&" and LocalDay("&$D$12&")="&$F$1&" and Barix("&$D$12&",reference:=StartOfDay)="&A35&"", "Bar", "", "Close","5","0","All",,,"False","T","EveryTick") -> 4351.25 | I35: 0.00241893682 | J35: =RTD("cqg.rtd",,"StudyData", "Close("&$D$12&") when LocalYear("&$D$12&")="&$D$2&" and localMonth("&$D$12&") ="&$E$2&" and LocalDay("&$D$12&")="&$F$2&" and Barix("&$D$12&",reference:=StartOfDay)="&A35&"", "Bar", "", "Close","5","0","All",,,"False","T","EveryTick") -> 4345.75 | K35: -0.001206619168 | L35: =RTD("cqg.rtd",,"StudyData", "Close("&$D$12&") when LocalYear("&$D$12&")="&$D$3&" and localMonth("&$D$12&") ="&$E$3&" and LocalDay("&$D$12&")="&$F$3&" and Barix("&$D$12&",reference:=StartOfDay)="&A35&"", "Bar", "", "Close","5","0","All",,,"False","T","EveryTick") -> 4367.25 | M35: -0.003422899196 | N35: =RTD("cqg.rtd",,"StudyData", "Close("&$D$12&") when LocalYear("&$D$12&")="&$D$4&" and localMonth("&$D$12&") ="&$E$4&" and LocalDay("&$D$12&")="&$F$4&" and Barix("&$D$12&",reference:=StartOfDay)="&A35&"", "Bar", "", "Close","5","0","All",,,"False","T","EveryTick") -> 4384 | O35: -0.001366742597 | P35: =RTD("cqg.rtd",,"StudyData", "Close("&$D$12&") when LocalYear("&$D$12&")="&$D$5&" and localMonth("&$D$12&") ="&$E$5&" and LocalDay("&$D$12&")="&$F$5&" and Barix("&$D$12&",reference:=StartOfDay)="&A35&"", "Bar", "", "Close","5","0","All",,,"False","T","EveryTick") -> 4382.5 | Q35: 0.006545705099 | R35: =RTD("cqg.rtd",,"StudyData", "Close("&$D$12&") when LocalYear("&$D$12&")="&$D$6&" and localMonth("&$D$12&") ="&$E$6&" and LocalDay("&$D$12&")="&$F$6&" and Barix("&$D$12&",reference:=StartOfDay)="&A35&"", "Bar", "", "Close","5","0","All",,,"False","T","EveryTick") -> 4286.5 | S35: -0.01095985233 | T35: =RTD("cqg.rtd",,"StudyData", "Close("&$D$12&") when LocalYear("&$D$12&")="&$D$7&" and localMonth("&$D$12&") ="&$E$7&" and LocalDay("&$D$12&")="&$F$7&" and Barix("&$D$12&",reference:=StartOfDay)="&A35&"", "Bar", "", "Close","5","0","All",,,"False","T","EveryTick") -> 4302.25 | U35: 0.002563355666 | V35: =RTD("cqg.rtd",,"StudyData", "Close("&$D$12&") when LocalYear("&$D$12&")="&$D$8&" and localMonth("&$D$12&") ="&$E$8&" and LocalDay("&$D$12&")="&$F$8&" and Barix("&$D$12&",reference:=StartOfDay)="&A35&"", "Bar", "", "Close","5","0","All",,,"False","T","EveryTick") -> 4326 | W35: -0.004086330935 | X35: =RTD("cqg.rtd",,"StudyData", "Close("&$D$12&") when LocalYear("&$D$12&")="&$D$9&" and localMonth("&$D$12&") ="&$E$9&" and LocalDay("&$D$12&")="&$F$9&" and Barix("&$D$12&",reference:=StartOfDay)="&A35&"", "Bar", "", "Close","5","0","All",,,"False","T","EveryTick") -> 4271.25 | Y35: -0.006166017102 | Z35: =RTD("cqg.rtd",,"StudyData", "Close("&$D$12&") when LocalYear("&$D$12&")="&$D$10&" and localMonth("&$D$12&") ="&$E$10&" and LocalDay("&$D$12&")="&$F$10&" and Barix("&$D$12&",reference:=StartOfDay)="&A35&"", "Bar", "", "Close","5","0","All",,,"False","T","EveryTick") -> 4380.25 | AA35: 0.007011897235
A36: 131 | B36: 03:55:00 | F36: =(G34-F34)*60/5 -> 96 | H36: =RTD("cqg.rtd",,"StudyData", "Close("&$D$12&") when LocalYear("&$D$12&")="&$D$1&" and localMonth("&$D$12&") ="&$E$1&" and LocalDay("&$D$12&")="&$F$1&" and Barix("&$D$12&",reference:=StartOfDay)="&A36&"", "Bar", "", "Close","5","0","All",,,"False","T","EveryTick") -> 4349.75 | I36: 0.002073374417 | J36: =RTD("cqg.rtd",,"StudyData", "Close("&$D$12&") when LocalYear("&$D$12&")="&$D$2&" and localMonth("&$D$12&") ="&$E$2&" and LocalDay("&$D$12&")="&$F$2&" and Barix("&$D$12&",reference:=StartOfDay)="&A36&"", "Bar", "", "Close","5","0","All",,,"False","T","EveryTick") -> 4346.75 | K36: -0.0009767869455 | L36: =RTD("cqg.rtd",,"StudyData", "Close("&$D$12&") when LocalYear("&$D$12&")="&$D$3&" and localMonth("&$D$12&") ="&$E$3&" and LocalDay("&$D$12&")="&$F$3&" and Barix("&$D$12&",reference:=StartOfDay)="&A36&"", "Bar", "", "Close","5","0","All",,,"False","T","EveryTick") -> 4369.5 | M36: -0.002909464316 | N36: =RTD("cqg.rtd",,"StudyData", "Close("&$D$12&") when LocalYear("&$D$12&")="&$D$4&" and localMonth("&$D$12&") ="&$E$4&" and LocalDay("&$D$12&")="&$F$4&" and Barix("&$D$12&",reference:=StartOfDay)="&A36&"", "Bar", "", "Close","5","0","All",,,"False","T","EveryTick") -> 4383.75 | O36: -0.001423690205 | P36: =RTD("cqg.rtd",,"StudyData", "Close("&$D$12&") when LocalYear("&$D$12&")="&$D$5&" and localMonth("&$D$12&") ="&$E$5&" and LocalDay("&$D$12&")="&$F$5&" and Barix("&$D$12&",reference:=StartOfDay)="&A36&"", "Bar", "", "Close","5","0","All",,,"False","T","EveryTick") -> 4380.5 | Q36: 0.006086357373 | R36: =RTD("cqg.rtd",,"StudyData", "Close("&$D$12&") when LocalYear("&$D$12&")="&$D$6&" and localMonth("&$D$12&") ="&$E$6&" and LocalDay("&$D$12&")="&$F$6&" and Barix("&$D$12&",reference:=StartOfDay)="&A36&"", "Bar", "", "Close","5","0","All",,,"False","T","EveryTick") -> 4287.25 | S36: -0.01078680203 | T36: =RTD("cqg.rtd",,"StudyData", "Close("&$D$12&") when LocalYear("&$D$12&")="&$D$7&" and localMonth("&$D$12&") ="&$E$7&" and LocalDay("&$D$12&")="&$F$7&" and Barix("&$D$12&",reference:=StartOfDay)="&A36&"", "Bar", "", "Close","5","0","All",,,"False","T","EveryTick") -> 4304 | U36: 0.002971162249 | V36: =RTD("cqg.rtd",,"StudyData", "Close("&$D$12&") when LocalYear("&$D$12&")="&$D$8&" and localMonth("&$D$12&") ="&$E$8&" and LocalDay("&$D$12&")="&$F$8&" and Barix("&$D$12&",reference:=StartOfDay)="&A36&"", "Bar", "", "Close","5","0","All",,,"False","T","EveryTick") -> 4330.5 | W36: -0.003050359712 | X36: =RTD("cqg.rtd",,"StudyData", "Close("&$D$12&") when LocalYear("&$D$12&")="&$D$9&" and localMonth("&$D$12&") ="&$E$9&" and LocalDay("&$D$12&")="&$F$9&" and Barix("&$D$12&",reference:=StartOfDay)="&A36&"", "Bar", "", "Close","5","0","All",,,"False","T","EveryTick") -> 4272 | Y36: -0.005991507184 | Z36: =RTD("cqg.rtd",,"StudyData", "Close("&$D$12&") when LocalYear("&$D$12&")="&$D$10&" and localMonth("&$D$12&") ="&$E$10&" and LocalDay("&$D$12&")="&$F$10&" and Barix("&$D$12&",reference:=StartOfDay)="&A36&"", "Bar", "", "Close","5","0","All",,,"False","T","EveryTick") -> 4380.5 | AA36: 0.007069371803
A37: 132 | B37: 04:00:00 | H37: =RTD("cqg.rtd",,"StudyData", "Close("&$D$12&") when LocalYear("&$D$12&")="&$D$1&" and localMonth("&$D$12&") ="&$E$1&" and LocalDay("&$D$12&")="&$F$1&" and Barix("&$D$12&",reference:=StartOfDay)="&A37&"", "Bar", "", "Close","5","0","All",,,"False","T","EveryTick") -> 4348.5 | I37: 0.001785405748 | J37: =RTD("cqg.rtd",,"StudyData", "Close("&$D$12&") when LocalYear("&$D$12&")="&$D$2&" and localMonth("&$D$12&") ="&$E$2&" and LocalDay("&$D$12&")="&$F$2&" and Barix("&$D$12&",reference:=StartOfDay)="&A37&"", "Bar", "", "Close","5","0","All",,,"False","T","EveryTick") -> 4349 | K37: -0.000459664445 | L37: =RTD("cqg.rtd",,"StudyData", "Close("&$D$12&") when LocalYear("&$D$12&")="&$D$3&" and localMonth("&$D$12&") ="&$E$3&" and LocalDay("&$D$12&")="&$F$3&" and Barix("&$D$12&",reference:=StartOfDay)="&A37&"", "Bar", "", "Close","5","0","All",,,"False","T","EveryTick") -> 4370.25 | M37: -0.002738319356 | N37: =RTD("cqg.rtd",,"StudyData", "Close("&$D$12&") when LocalYear("&$D$12&")="&$D$4&" and localMonth("&$D$12&") ="&$E$4&" and LocalDay("&$D$12&")="&$F$4&" and Barix("&$D$12&",reference:=StartOfDay)="&A37&"", "Bar", "", "Close","5","0","All",,,"False","T","EveryTick") -> 4383.75 | O37: -0.001423690205 | P37: =RTD("cqg.rtd",,"StudyData", "Close("&$D$12&") when LocalYear("&$D$12&")="&$D$5&" and localMonth("&$D$12&") ="&$E$5&" and LocalDay("&$D$12&")="&$F$5&" and Barix("&$D$12&",reference:=StartOfDay)="&A37&"", "Bar", "", "Close","5","0","All",,,"False","T","EveryTick") -> 4379.75 | Q37: 0.005914101975 | R37: =RTD("cqg.rtd",,"StudyData", "Close("&$D$12&") when LocalYear("&$D$12&")="&$D$6&" and localMonth("&$D$12&") ="&$E$6&" and LocalDay("&$D$12&")="&$F$6&" and Barix("&$D$12&",reference:=StartOfDay)="&A37&"", "Bar", "", "Close","5","0","All",,,"False","T","EveryTick") -> 4285.25 | S37: -0.0112482695 | T37: =RTD("cqg.rtd",,"StudyData", "Close("&$D$12&") when LocalYear("&$D$12&")="&$D$7&" and localMonth("&$D$12&") ="&$E$7&" and LocalDay("&$D$12&")="&$F$7&" and Barix("&$D$12&",reference:=StartOfDay)="&A37&"", "Bar", "", "Close","5","0","All",,,"False","T","EveryTick") -> 4306.25 | U37: 0.003495484999 | V37: =RTD("cqg.rtd",,"StudyData", "Close("&$D$12&") when LocalYear("&$D$12&")="&$D$8&" and localMonth("&$D$12&") ="&$E$8&" and LocalDay("&$D$12&")="&$F$8&" and Barix("&$D$12&",reference:=StartOfDay)="&A37&"", "Bar", "", "Close","5","0","All",,,"False","T","EveryTick") -> 4331.25 | W37: -0.002877697842 | X37: =RTD("cqg.rtd",,"StudyData", "Close("&$D$12&") when LocalYear("&$D$12&")="&$D$9&" and localMonth("&$D$12&") ="&$E$9&" and LocalDay("&$D$12&")="&$F$9&" and Barix("&$D$12&",reference:=StartOfDay)="&A37&"", "Bar", "", "Close","5","0","All",,,"False","T","EveryTick") -> 4275.25 | Y37: -0.005235297539 | Z37: =RTD("cqg.rtd",,"StudyData", "Close("&$D$12&") when LocalYear("&$D$12&")="&$D$10&" and localMonth("&$D$12&") ="&$E$10&" and LocalDay("&$D$12&")="&$F$10&" and Barix("&$D$12&",reference:=StartOfDay)="&A37&"", "Bar", "", "Close","5","0","All",,,"False","T","EveryTick") -> 4380.75 | AA37: 0.00712684637
A38: 133 | B38: 04:05:00 | C38: -40 | D38: =RTD("cqg.rtd",,"StudyData", $D$12, "Tick", "FlatTicks=0", "Tick","D",C38,"PrimaryOnly") -> 4334.75 | F38: EP | G38: 96 | H38: =RTD("cqg.rtd",,"StudyData", "Close("&$D$12&") when LocalYear("&$D$12&")="&$D$1&" and localMonth("&$D$12&") ="&$E$1&" and LocalDay("&$D$12&")="&$F$1&" and Barix("&$D$12&",reference:=StartOfDay)="&A38&"", "Bar", "", "Close","5","0","All",,,"False","T","EveryTick") -> 4347.5 | I38: 0.001555030813 | J38: =RTD("cqg.rtd",,"StudyData", "Close("&$D$12&") when LocalYear("&$D$12&")="&$D$2&" and localMonth("&$D$12&") ="&$E$2&" and LocalDay("&$D$12&")="&$F$2&" and Barix("&$D$12&",reference:=StartOfDay)="&A38&"", "Bar", "", "Close","5","0","All",,,"False","T","EveryTick") -> 4349 | K38: -0.000459664445 | L38: =RTD("cqg.rtd",,"StudyData", "Close("&$D$12&") when LocalYear("&$D$12&")="&$D$3&" and localMonth("&$D$12&") ="&$E$3&" and LocalDay("&$D$12&")="&$F$3&" and Barix("&$D$12&",reference:=StartOfDay)="&A38&"", "Bar", "", "Close","5","0","All",,,"False","T","EveryTick") -> 4371.5 | M38: -0.002453077757 | N38: =RTD("cqg.rtd",,"StudyData", "Close("&$D$12&") when LocalYear("&$D$12&")="&$D$4&" and localMonth("&$D$12&") ="&$E$4&" and LocalDay("&$D$12&")="&$F$4&" and Barix("&$D$12&",reference:=StartOfDay)="&A38&"", "Bar", "", "Close","5","0","All",,,"False","T","EveryTick") -> 4382.75 | O38: -0.001651480638 | P38: =RTD("cqg.rtd",,"StudyData", "Close("&$D$12&") when LocalYear("&$D$12&")="&$D$5&" and localMonth("&$D$12&") ="&$E$5&" and LocalDay("&$D$12&")="&$F$5&" and Barix("&$D$12&",reference:=StartOfDay)="&A38&"", "Bar", "", "Close","5","0","All",,,"False","T","EveryTick") -> 4380.25 | Q38: 0.006028938907 | R38: =RTD("cqg.rtd",,"StudyData", "Close("&$D$12&") when LocalYear("&$D$12&")="&$D$6&" and localMonth("&$D$12&") ="&$E$6&" and LocalDay("&$D$12&")="&$F$6&" and Barix("&$D$12&",reference:=StartOfDay)="&A38&"", "Bar", "", "Close","5","0","All",,,"False","T","EveryTick") -> 4285.75 | S38: -0.01113290263 | T38: =RTD("cqg.rtd",,"StudyData", "Close("&$D$12&") when LocalYear("&$D$12&")="&$D$7&" and localMonth("&$D$12&") ="&$E$7&" and LocalDay("&$D$12&")="&$F$7&" and Barix("&$D$12&",reference:=StartOfDay)="&A38&"", "Bar", "", "Close","5","0","All",,,"False","T","EveryTick") -> 4306.75 | U38: 0.003612001165 | V38: =RTD("cqg.rtd",,"StudyData", "Close("&$D$12&") when LocalYear("&$D$12&")="&$D$8&" and localMonth("&$D$12&") ="&$E$8&" and LocalDay("&$D$12&")="&$F$8&" and Barix("&$D$12&",reference:=StartOfDay)="&A38&"", "Bar", "", "Close","5","0","All",,,"False","T","EveryTick") -> 4331.5 | W38: -0.002820143885 | X38: =RTD("cqg.rtd",,"StudyData", "Close("&$D$12&") when LocalYear("&$D$12&")="&$D$9&" and localMonth("&$D$12&") ="&$E$9&" and LocalDay("&$D$12&")="&$F$9&" and Barix("&$D$12&",reference:=StartOfDay)="&A38&"", "Bar", "", "Close","5","0","All",,,"False","T","EveryTick") -> 4273.25 | Y38: -0.005700657321 | Z38: =RTD("cqg.rtd",,"StudyData", "Close("&$D$12&") when LocalYear("&$D$12&")="&$D$10&" and localMonth("&$D$12&") ="&$E$10&" and LocalDay("&$D$12&")="&$F$10&" and Barix("&$D$12&",reference:=StartOfDay)="&A38&"", "Bar", "", "Close","5","0","All",,,"False","T","EveryTick") -> 4379.75 | AA38: 0.0068969481
A39: 134 | B39: 04:10:00 | C39: =C38+1 -> -39 | D39: =RTD("cqg.rtd",,"StudyData", $D$12, "Tick", "FlatTicks=0", "Tick","D",C39,"PrimaryOnly") -> 4335 | F39: ENQ | G39: 96 | H39: =RTD("cqg.rtd",,"StudyData", "Close("&$D$12&") when LocalYear("&$D$12&")="&$D$1&" and localMonth("&$D$12&") ="&$E$1&" and LocalDay("&$D$12&")="&$F$1&" and Barix("&$D$12&",reference:=StartOfDay)="&A39&"", "Bar", "", "Close","5","0","All",,,"False","T","EveryTick") -> 4349 | I39: 0.001900593215 | J39: =RTD("cqg.rtd",,"StudyData", "Close("&$D$12&") when LocalYear("&$D$12&")="&$D$2&" and localMonth("&$D$12&") ="&$E$2&" and LocalDay("&$D$12&")="&$F$2&" and Barix("&$D$12&",reference:=StartOfDay)="&A39&"", "Bar", "", "Close","5","0","All",,,"False","T","EveryTick") -> 4351.25 | K39: 5.745805562e-05 | L39: =RTD("cqg.rtd",,"StudyData", "Close("&$D$12&") when LocalYear("&$D$12&")="&$D$3&" and localMonth("&$D$12&") ="&$E$3&" and LocalDay("&$D$12&")="&$F$3&" and Barix("&$D$12&",reference:=StartOfDay)="&A39&"", "Bar", "", "Close","5","0","All",,,"False","T","EveryTick") -> 4369.25 | M39: -0.002966512636 | N39: =RTD("cqg.rtd",,"StudyData", "Close("&$D$12&") when LocalYear("&$D$12&")="&$D$4&" and localMonth("&$D$12&") ="&$E$4&" and LocalDay("&$D$12&")="&$F$4&" and Barix("&$D$12&",reference:=StartOfDay)="&A39&"", "Bar", "", "Close","5","0","All",,,"False","T","EveryTick") -> 4382.25 | O39: -0.001765375854 | P39: =RTD("cqg.rtd",,"StudyData", "Close("&$D$12&") when LocalYear("&$D$12&")="&$D$5&" and localMonth("&$D$12&") ="&$E$5&" and LocalDay("&$D$12&")="&$F$5&" and Barix("&$D$12&",reference:=StartOfDay)="&A39&"", "Bar", "", "Close","5","0","All",,,"False","T","EveryTick") -> 4378.75 | Q39: 0.005684428112 | R39: =RTD("cqg.rtd",,"StudyData", "Close("&$D$12&") when LocalYear("&$D$12&")="&$D$6&" and localMonth("&$D$12&") ="&$E$6&" and LocalDay("&$D$12&")="&$F$6&" and Barix("&$D$12&",reference:=StartOfDay)="&A39&"", "Bar", "", "Close","5","0","All",,,"False","T","EveryTick") -> 4283.25 | S39: -0.01170973696 | T39: =RTD("cqg.rtd",,"StudyData", "Close("&$D$12&") when LocalYear("&$D$12&")="&$D$7&" and localMonth("&$D$12&") ="&$E$7&" and LocalDay("&$D$12&")="&$F$7&" and Barix("&$D$12&",reference:=StartOfDay)="&A39&"", "Bar", "", "Close","5","0","All",,,"False","T","EveryTick") -> 4307.25 | U39: 0.003728517332 | V39: =RTD("cqg.rtd",,"StudyData", "Close("&$D$12&") when LocalYear("&$D$12&")="&$D$8&" and localMonth("&$D$12&") ="&$E$8&" and LocalDay("&$D$12&")="&$F$8&" and Barix("&$D$12&",reference:=StartOfDay)="&A39&"", "Bar", "", "Close","5","0","All",,,"False","T","EveryTick") -> 4333 | W39: -0.002474820144 | X39: =RTD("cqg.rtd",,"StudyData", "Close("&$D$12&") when LocalYear("&$D$12&")="&$D$9&" and localMonth("&$D$12&") ="&$E$9&" and LocalDay("&$D$12&")="&$F$9&" and Barix("&$D$12&",reference:=StartOfDay)="&A39&"", "Bar", "", "Close","5","0","All",,,"False","T","EveryTick") -> 4276.5 | Y39: -0.004944447676 | Z39: =RTD("cqg.rtd",,"StudyData", "Close("&$D$12&") when LocalYear("&$D$12&")="&$D$10&" and localMonth("&$D$12&") ="&$E$10&" and LocalDay("&$D$12&")="&$F$10&" and Barix("&$D$12&",reference:=StartOfDay)="&A39&"", "Bar", "", "Close","5","0","All",,,"False","T","EveryTick") -> 4380.25 | AA39: 0.007011897235
A40: 135 | B40: 04:15:00 | C40: -38 | D40: =RTD("cqg.rtd",,"StudyData", $D$12, "Tick", "FlatTicks=0", "Tick","D",C40,"PrimaryOnly") -> 4334.75 | F40: YM | G40: 96 | H40: =RTD("cqg.rtd",,"StudyData", "Close("&$D$12&") when LocalYear("&$D$12&")="&$D$1&" and localMonth("&$D$12&") ="&$E$1&" and LocalDay("&$D$12&")="&$F$1&" and Barix("&$D$12&",reference:=StartOfDay)="&A40&"", "Bar", "", "Close","5","0","All",,,"False","T","EveryTick") -> 4349.5 | I40: 0.002015780683 | J40: =RTD("cqg.rtd",,"StudyData", "Close("&$D$12&") when LocalYear("&$D$12&")="&$D$2&" and localMonth("&$D$12&") ="&$E$2&" and LocalDay("&$D$12&")="&$F$2&" and Barix("&$D$12&",reference:=StartOfDay)="&A40&"", "Bar", "", "Close","5","0","All",,,"False","T","EveryTick") -> 4354.5 | K40: 0.0008044127787 | L40: =RTD("cqg.rtd",,"StudyData", "Close("&$D$12&") when LocalYear("&$D$12&")="&$D$3&" and localMonth("&$D$12&") ="&$E$3&" and LocalDay("&$D$12&")="&$F$3&" and Barix("&$D$12&",reference:=StartOfDay)="&A40&"", "Bar", "", "Close","5","0","All",,,"False","T","EveryTick") -> 4369.25 | M40: -0.002966512636 | N40: =RTD("cqg.rtd",,"StudyData", "Close("&$D$12&") when LocalYear("&$D$12&")="&$D$4&" and localMonth("&$D$12&") ="&$E$4&" and LocalDay("&$D$12&")="&$F$4&" and Barix("&$D$12&",reference:=StartOfDay)="&A40&"", "Bar", "", "Close","5","0","All",,,"False","T","EveryTick") -> 4382.75 | O40: -0.001651480638 | P40: =RTD("cqg.rtd",,"StudyData", "Close("&$D$12&") when LocalYear("&$D$12&")="&$D$5&" and localMonth("&$D$12&") ="&$E$5&" and LocalDay("&$D$12&")="&$F$5&" and Barix("&$D$12&",reference:=StartOfDay)="&A40&"", "Bar", "", "Close","5","0","All",,,"False","T","EveryTick") -> 4378.5 | Q40: 0.005627009646 | R40: =RTD("cqg.rtd",,"StudyData", "Close("&$D$12&") when LocalYear("&$D$12&")="&$D$6&" and localMonth("&$D$12&") ="&$E$6&" and LocalDay("&$D$12&")="&$F$6&" and Barix("&$D$12&",reference:=StartOfDay)="&A40&"", "Bar", "", "Close","5","0","All",,,"False","T","EveryTick") -> 4283 | S40: -0.0117674204 | T40: =RTD("cqg.rtd",,"StudyData", "Close("&$D$12&") when LocalYear("&$D$12&")="&$D$7&" and localMonth("&$D$12&") ="&$E$7&" and LocalDay("&$D$12&")="&$F$7&" and Barix("&$D$12&",reference:=StartOfDay)="&A40&"", "Bar", "", "Close","5","0","All",,,"False","T","EveryTick") -> 4307.5 | U40: 0.003786775415 | V40: =RTD("cqg.rtd",,"StudyData", "Close("&$D$12&") when LocalYear("&$D$12&")="&$D$8&" and localMonth("&$D$12&") ="&$E$8&" and LocalDay("&$D$12&")="&$F$8&" and Barix("&$D$12&",reference:=StartOfDay)="&A40&"", "Bar", "", "Close","5","0","All",,,"False","T","EveryTick") -> 4332 | W40: -0.002705035971 | X40: =RTD("cqg.rtd",,"StudyData", "Close("&$D$12&") when LocalYear("&$D$12&")="&$D$9&" and localMonth("&$D$12&") ="&$E$9&" and LocalDay("&$D$12&")="&$F$9&" and Barix("&$D$12&",reference:=StartOfDay)="&A40&"", "Bar", "", "Close","5","0","All",,,"False","T","EveryTick") -> 4274 | Y40: -0.005526147403 | Z40: =RTD("cqg.rtd",,"StudyData", "Close("&$D$12&") when LocalYear("&$D$12&")="&$D$10&" and localMonth("&$D$12&") ="&$E$10&" and LocalDay("&$D$12&")="&$F$10&" and Barix("&$D$12&",reference:=StartOfDay)="&A40&"", "Bar", "", "Close","5","0","All",,,"False","T","EveryTick") -> 4379.5 | AA40: 0.006839473533
A41: 136 | B41: 04:20:00 | C41: -37 | D41: =RTD("cqg.rtd",,"StudyData", $D$12, "Tick", "FlatTicks=0", "Tick","D",C41,"PrimaryOnly") -> 4335 | F41: RTY | G41: 96 | H41: =RTD("cqg.rtd",,"StudyData", "Close("&$D$12&") when LocalYear("&$D$12&")="&$D$1&" and localMonth("&$D$12&") ="&$E$1&" and LocalDay("&$D$12&")="&$F$1&" and Barix("&$D$12&",reference:=StartOfDay)="&A41&"", "Bar", "", "Close","5","0","All",,,"False","T","EveryTick") -> 4351.25 | I41: 0.00241893682 | J41: =RTD("cqg.rtd",,"StudyData", "Close("&$D$12&") when LocalYear("&$D$12&")="&$D$2&" and localMonth("&$D$12&") ="&$E$2&" and LocalDay("&$D$12&")="&$F$2&" and Barix("&$D$12&",reference:=StartOfDay)="&A41&"", "Bar", "", "Close","5","0","All",,,"False","T","EveryTick") -> 4354 | K41: 0.0006894966674 | L41: =RTD("cqg.rtd",,"StudyData", "Close("&$D$12&") when LocalYear("&$D$12&")="&$D$3&" and localMonth("&$D$12&") ="&$E$3&" and LocalDay("&$D$12&")="&$F$3&" and Barix("&$D$12&",reference:=StartOfDay)="&A41&"", "Bar", "", "Close","5","0","All",,,"False","T","EveryTick") -> 4370.25 | M41: -0.002738319356 | N41: =RTD("cqg.rtd",,"StudyData", "Close("&$D$12&") when LocalYear("&$D$12&")="&$D$4&" and localMonth("&$D$12&") ="&$E$4&" and LocalDay("&$D$12&")="&$F$4&" and Barix("&$D$12&",reference:=StartOfDay)="&A41&"", "Bar", "", "Close","5","0","All",,,"False","T","EveryTick") -> 4382.75 | O41: -0.001651480638 | P41: =RTD("cqg.rtd",,"StudyData", "Close("&$D$12&") when LocalYear("&$D$12&")="&$D$5&" and localMonth("&$D$12&") ="&$E$5&" and LocalDay("&$D$12&")="&$F$5&" and Barix("&$D$12&",reference:=StartOfDay)="&A41&"", "Bar", "", "Close","5","0","All",,,"False","T","EveryTick") -> 4378.25 | Q41: 0.005569591181 | R41: =RTD("cqg.rtd",,"StudyData", "Close("&$D$12&") when LocalYear("&$D$12&")="&$D$6&" and localMonth("&$D$12&") ="&$E$6&" and LocalDay("&$D$12&")="&$F$6&" and Barix("&$D$12&",reference:=StartOfDay)="&A41&"", "Bar", "", "Close","5","0","All",,,"False","T","EveryTick") -> 4279.75 | S41: -0.01251730503 | T41: =RTD("cqg.rtd",,"StudyData", "Close("&$D$12&") when LocalYear("&$D$12&")="&$D$7&" and localMonth("&$D$12&") ="&$E$7&" and LocalDay("&$D$12&")="&$F$7&" and Barix("&$D$12&",reference:=StartOfDay)="&A41&"", "Bar", "", "Close","5","0","All",,,"False","T","EveryTick") -> 4308 | U41: 0.003903291582 | V41: =RTD("cqg.rtd",,"StudyData", "Close("&$D$12&") when LocalYear("&$D$12&")="&$D$8&" and localMonth("&$D$12&") ="&$E$8&" and LocalDay("&$D$12&")="&$F$8&" and Barix("&$D$12&",reference:=StartOfDay)="&A41&"", "Bar", "", "Close","5","0","All",,,"False","T","EveryTick") -> 4332.25 | W41: -0.002647482014 | X41: =RTD("cqg.rtd",,"StudyData", "Close("&$D$12&") when LocalYear("&$D$12&")="&$D$9&" and localMonth("&$D$12&") ="&$E$9&" and LocalDay("&$D$12&")="&$F$9&" and Barix("&$D$12&",reference:=StartOfDay)="&A41&"", "Bar", "", "Close","5","0","All",,,"False","T","EveryTick") -> 4274.5 | Y41: -0.005409807457 | Z41: =RTD("cqg.rtd",,"StudyData", "Close("&$D$12&") when LocalYear("&$D$12&")="&$D$10&" and localMonth("&$D$12&") ="&$E$10&" and LocalDay("&$D$12&")="&$F$10&" and Barix("&$D$12&",reference:=StartOfDay)="&A41&"", "Bar", "", "Close","5","0","All",,,"False","T","EveryTick") -> 4378.5 | AA41: 0.006609575263
A42: 137 | B42: 04:25:00 | C42: -36 | D42: =RTD("cqg.rtd",,"StudyData", $D$12, "Tick", "FlatTicks=0", "Tick","D",C42,"PrimaryOnly") -> 4335.25 | F42: EMD | G42: 96 | H42: =RTD("cqg.rtd",,"StudyData", "Close("&$D$12&") when LocalYear("&$D$12&")="&$D$1&" and localMonth("&$D$12&") ="&$E$1&" and LocalDay("&$D$12&")="&$F$1&" and Barix("&$D$12&",reference:=StartOfDay)="&A42&"", "Bar", "", "Close","5","0","All",,,"False","T","EveryTick") -> 4349.25 | I42: 0.001958186949 | J42: =RTD("cqg.rtd",,"StudyData", "Close("&$D$12&") when LocalYear("&$D$12&")="&$D$2&" and localMonth("&$D$12&") ="&$E$2&" and LocalDay("&$D$12&")="&$F$2&" and Barix("&$D$12&",reference:=StartOfDay)="&A42&"", "Bar", "", "Close","5","0","All",,,"False","T","EveryTick") -> 4353.75 | K42: 0.0006320386118 | L42: =RTD("cqg.rtd",,"StudyData", "Close("&$D$12&") when LocalYear("&$D$12&")="&$D$3&" and localMonth("&$D$12&") ="&$E$3&" and LocalDay("&$D$12&")="&$F$3&" and Barix("&$D$12&",reference:=StartOfDay)="&A42&"", "Bar", "", "Close","5","0","All",,,"False","T","EveryTick") -> 4369.75 | M42: -0.002852415996 | N42: =RTD("cqg.rtd",,"StudyData", "Close("&$D$12&") when LocalYear("&$D$12&")="&$D$4&" and localMonth("&$D$12&") ="&$E$4&" and LocalDay("&$D$12&")="&$F$4&" and Barix("&$D$12&",reference:=StartOfDay)="&A42&"", "Bar", "", "Close","5","0","All",,,"False","T","EveryTick") -> 4384.25 | O42: -0.001309794989 | P42: =RTD("cqg.rtd",,"StudyData", "Close("&$D$12&") when LocalYear("&$D$12&")="&$D$5&" and localMonth("&$D$12&") ="&$E$5&" and LocalDay("&$D$12&")="&$F$5&" and Barix("&$D$12&",reference:=StartOfDay)="&A42&"", "Bar", "", "Close","5","0","All",,,"False","T","EveryTick") -> 4377.75 | Q42: 0.005454754249 | R42: =RTD("cqg.rtd",,"StudyData", "Close("&$D$12&") when LocalYear("&$D$12&")="&$D$6&" and localMonth("&$D$12&") ="&$E$6&" and LocalDay("&$D$12&")="&$F$6&" and Barix("&$D$12&",reference:=StartOfDay)="&A42&"", "Bar", "", "Close","5","0","All",,,"False","T","EveryTick") -> 4277.25 | S42: -0.01309413936 | T42: =RTD("cqg.rtd",,"StudyData", "Close("&$D$12&") when LocalYear("&$D$12&")="&$D$7&" and localMonth("&$D$12&") ="&$E$7&" and LocalDay("&$D$12&")="&$F$7&" and Barix("&$D$12&",reference:=StartOfDay)="&A42&"", "Bar", "", "Close","5","0","All",,,"False","T","EveryTick") -> 4308 | U42: 0.003903291582 | V42: =RTD("cqg.rtd",,"StudyData", "Close("&$D$12&") when LocalYear("&$D$12&")="&$D$8&" and localMonth("&$D$12&") ="&$E$8&" and LocalDay("&$D$12&")="&$F$8&" and Barix("&$D$12&",reference:=StartOfDay)="&A42&"", "Bar", "", "Close","5","0","All",,,"False","T","EveryTick") -> 4333.25 | W42: -0.002417266187 | X42: =RTD("cqg.rtd",,"StudyData", "Close("&$D$12&") when LocalYear("&$D$12&")="&$D$9&" and localMonth("&$D$12&") ="&$E$9&" and LocalDay("&$D$12&")="&$F$9&" and Barix("&$D$12&",reference:=StartOfDay)="&A42&"", "Bar", "", "Close","5","0","All",,,"False","T","EveryTick") -> 4277 | Y42: -0.004828107731 | Z42: =RTD("cqg.rtd",,"StudyData", "Close("&$D$12&") when LocalYear("&$D$12&")="&$D$10&" and localMonth("&$D$12&") ="&$E$10&" and LocalDay("&$D$12&")="&$F$10&" and Barix("&$D$12&",reference:=StartOfDay)="&A42&"", "Bar", "", "Close","5","0","All",,,"False","T","EveryTick") -> 4377.75 | AA42: 0.00643715156
A43: 138 | B43: 04:30:00 | C43: -35 | D43: =RTD("cqg.rtd",,"StudyData", $D$12, "Tick", "FlatTicks=0", "Tick","D",C43,"PrimaryOnly") -> 4335 | F43: NIY | G43: 96 | H43: =RTD("cqg.rtd",,"StudyData", "Close("&$D$12&") when LocalYear("&$D$12&")="&$D$1&" and localMonth("&$D$12&") ="&$E$1&" and LocalDay("&$D$12&")="&$F$1&" and Barix("&$D$12&",reference:=StartOfDay)="&A43&"", "Bar", "", "Close","5","0","All",,,"False","T","EveryTick") -> 4349.5 | I43: 0.002015780683 | J43: =RTD("cqg.rtd",,"StudyData", "Close("&$D$12&") when LocalYear("&$D$12&")="&$D$2&" and localMonth("&$D$12&") ="&$E$2&" and LocalDay("&$D$12&")="&$F$2&" and Barix("&$D$12&",reference:=StartOfDay)="&A43&"", "Bar", "", "Close","5","0","All",,,"False","T","EveryTick") -> 4353.25 | K43: 0.0005171225006 | L43: =RTD("cqg.rtd",,"StudyData", "Close("&$D$12&") when LocalYear("&$D$12&")="&$D$3&" and localMonth("&$D$12&") ="&$E$3&" and LocalDay("&$D$12&")="&$F$3&" and Barix("&$D$12&",reference:=StartOfDay)="&A43&"", "Bar", "", "Close","5","0","All",,,"False","T","EveryTick") -> 4369.75 | M43: -0.002852415996 | N43: =RTD("cqg.rtd",,"StudyData", "Close("&$D$12&") when LocalYear("&$D$12&")="&$D$4&" and localMonth("&$D$12&") ="&$E$4&" and LocalDay("&$D$12&")="&$F$4&" and Barix("&$D$12&",reference:=StartOfDay)="&A43&"", "Bar", "", "Close","5","0","All",,,"False","T","EveryTick") -> 4384.25 | O43: -0.001309794989 | P43: =RTD("cqg.rtd",,"StudyData", "Close("&$D$12&") when LocalYear("&$D$12&")="&$D$5&" and localMonth("&$D$12&") ="&$E$5&" and LocalDay("&$D$12&")="&$F$5&" and Barix("&$D$12&",reference:=StartOfDay)="&A43&"", "Bar", "", "Close","5","0","All",,,"False","T","EveryTick") -> 4379.5 | Q43: 0.005856683509 | R43: =RTD("cqg.rtd",,"StudyData", "Close("&$D$12&") when LocalYear("&$D$12&")="&$D$6&" and localMonth("&$D$12&") ="&$E$6&" and LocalDay("&$D$12&")="&$F$6&" and Barix("&$D$12&",reference:=StartOfDay)="&A43&"", "Bar", "", "Close","5","0","All",,,"False","T","EveryTick") -> 4280.5 | S43: -0.01234425473 | T43: =RTD("cqg.rtd",,"StudyData", "Close("&$D$12&") when LocalYear("&$D$12&")="&$D$7&" and localMonth("&$D$12&") ="&$E$7&" and LocalDay("&$D$12&")="&$F$7&" and Barix("&$D$12&",reference:=StartOfDay)="&A43&"", "Bar", "", "Close","5","0","All",,,"False","T","EveryTick") -> 4306.75 | U43: 0.003612001165 | V43: =RTD("cqg.rtd",,"StudyData", "Close("&$D$12&") when LocalYear("&$D$12&")="&$D$8&" and localMonth("&$D$12&") ="&$E$8&" and LocalDay("&$D$12&")="&$F$8&" and Barix("&$D$12&",reference:=StartOfDay)="&A43&"", "Bar", "", "Close","5","0","All",,,"False","T","EveryTick") -> 4330.75 | W43: -0.002992805755 | X43: =RTD("cqg.rtd",,"StudyData", "Close("&$D$12&") when LocalYear("&$D$12&")="&$D$9&" and localMonth("&$D$12&") ="&$E$9&" and LocalDay("&$D$12&")="&$F$9&" and Barix("&$D$12&",reference:=StartOfDay)="&A43&"", "Bar", "", "Close","5","0","All",,,"False","T","EveryTick") -> 4274.25 | Y43: -0.00546797743 | Z43: =RTD("cqg.rtd",,"StudyData", "Close("&$D$12&") when LocalYear("&$D$12&")="&$D$10&" and localMonth("&$D$12&") ="&$E$10&" and LocalDay("&$D$12&")="&$F$10&" and Barix("&$D$12&",reference:=StartOfDay)="&A43&"", "Bar", "", "Close","5","0","All",,,"False","T","EveryTick") -> 4377.75 | AA43: 0.00643715156
A44: 139 | B44: 04:35:00 | C44: -34 | D44: =RTD("cqg.rtd",,"StudyData", $D$12, "Tick", "FlatTicks=0", "Tick","D",C44,"PrimaryOnly") -> 4335.25 | F44: DSX | G44: 69 | H44: =RTD("cqg.rtd",,"StudyData", "Close("&$D$12&") when LocalYear("&$D$12&")="&$D$1&" and localMonth("&$D$12&") ="&$E$1&" and LocalDay("&$D$12&")="&$F$1&" and Barix("&$D$12&",reference:=StartOfDay)="&A44&"", "Bar", "", "Close","5","0","All",,,"False","T","EveryTick") -> 4351.5 | I44: 0.002476530553 | J44: =RTD("cqg.rtd",,"StudyData", "Close("&$D$12&") when LocalYear("&$D$12&")="&$D$2&" and localMonth("&$D$12&") ="&$E$2&" and LocalDay("&$D$12&")="&$F$2&" and Barix("&$D$12&",reference:=StartOfDay)="&A44&"", "Bar", "", "Close","5","0","All",,,"False","T","EveryTick") -> 4351.5 | K44: 0.0001149161112 | L44: =RTD("cqg.rtd",,"StudyData", "Close("&$D$12&") when LocalYear("&$D$12&")="&$D$3&" and localMonth("&$D$12&") ="&$E$3&" and LocalDay("&$D$12&")="&$F$3&" and Barix("&$D$12&",reference:=StartOfDay)="&A44&"", "Bar", "", "Close","5","0","All",,,"False","T","EveryTick") -> 4370.25 | M44: -0.002738319356 | N44: =RTD("cqg.rtd",,"StudyData", "Close("&$D$12&") when LocalYear("&$D$12&")="&$D$4&" and localMonth("&$D$12&") ="&$E$4&" and LocalDay("&$D$12&")="&$F$4&" and Barix("&$D$12&",reference:=StartOfDay)="&A44&"", "Bar", "", "Close","5","0","All",,,"False","T","EveryTick") -> 4385.75 | O44: -0.0009681093394 | P44: =RTD("cqg.rtd",,"StudyData", "Close("&$D$12&") when LocalYear("&$D$12&")="&$D$5&" and localMonth("&$D$12&") ="&$E$5&" and LocalDay("&$D$12&")="&$F$5&" and Barix("&$D$12&",reference:=StartOfDay)="&A44&"", "Bar", "", "Close","5","0","All",,,"False","T","EveryTick") -> 4378.75 | Q44: 0.005684428112 | R44: =RTD("cqg.rtd",,"StudyData", "Close("&$D$12&") when LocalYear("&$D$12&")="&$D$6&" and localMonth("&$D$12&") ="&$E$6&" and LocalDay("&$D$12&")="&$F$6&" and Barix("&$D$12&",reference:=StartOfDay)="&A44&"", "Bar", "", "Close","5","0","All",,,"False","T","EveryTick") -> 4275.25 | S44: -0.01355560683 | T44: =RTD("cqg.rtd",,"StudyData", "Close("&$D$12&") when LocalYear("&$D$12&")="&$D$7&" and localMonth("&$D$12&") ="&$E$7&" and LocalDay("&$D$12&")="&$F$7&" and Barix("&$D$12&",reference:=StartOfDay)="&A44&"", "Bar", "", "Close","5","0","All",,,"False","T","EveryTick") -> 4307.75 | U44: 0.003845033498 | V44: =RTD("cqg.rtd",,"StudyData", "Close("&$D$12&") when LocalYear("&$D$12&")="&$D$8&" and localMonth("&$D$12&") ="&$E$8&" and LocalDay("&$D$12&")="&$F$8&" and Barix("&$D$12&",reference:=StartOfDay)="&A44&"", "Bar", "", "Close","5","0","All",,,"False","T","EveryTick") -> 4330.5 | W44: -0.003050359712 | X44: =RTD("cqg.rtd",,"StudyData", "Close("&$D$12&") when LocalYear("&$D$12&")="&$D$9&" and localMonth("&$D$12&") ="&$E$9&" and LocalDay("&$D$12&")="&$F$9&" and Barix("&$D$12&",reference:=StartOfDay)="&A44&"", "Bar", "", "Close","5","0","All",,,"False","T","EveryTick") -> 4273.75 | Y44: -0.005584317375 | Z44: =RTD("cqg.rtd",,"StudyData", "Close("&$D$12&") when LocalYear("&$D$12&")="&$D$10&" and localMonth("&$D$12&") ="&$E$10&" and LocalDay("&$D$12&")="&$F$10&" and Barix("&$D$12&",reference:=StartOfDay)="&A44&"", "Bar", "", "Close","5","0","All",,,"False","T","EveryTick") -> 4378.25 | AA44: 0.006552100695
A45: 140 | B45: 04:40:00 | C45: -33 | D45: =RTD("cqg.rtd",,"StudyData", $D$12, "Tick", "FlatTicks=0", "Tick","D",C45,"PrimaryOnly") -> 4335 | F45: DD | G45: 69 | H45: =RTD("cqg.rtd",,"StudyData", "Close("&$D$12&") when LocalYear("&$D$12&")="&$D$1&" and localMonth("&$D$12&") ="&$E$1&" and LocalDay("&$D$12&")="&$F$1&" and Barix("&$D$12&",reference:=StartOfDay)="&A45&"", "Bar", "", "Close","5","0","All",,,"False","T","EveryTick") -> 4350 | I45: 0.002130968151 | J45: =RTD("cqg.rtd",,"StudyData", "Close("&$D$12&") when LocalYear("&$D$12&")="&$D$2&" and localMonth("&$D$12&") ="&$E$2&" and LocalDay("&$D$12&")="&$F$2&" and Barix("&$D$12&",reference:=StartOfDay)="&A45&"", "Bar", "", "Close","5","0","All",,,"False","T","EveryTick") -> 4351.75 | K45: 0.0001723741669 | L45: =RTD("cqg.rtd",,"StudyData", "Close("&$D$12&") when LocalYear("&$D$12&")="&$D$3&" and localMonth("&$D$12&") ="&$E$3&" and LocalDay("&$D$12&")="&$F$3&" and Barix("&$D$12&",reference:=StartOfDay)="&A45&"", "Bar", "", "Close","5","0","All",,,"False","T","EveryTick") -> 4370.75 | M45: -0.002624222717 | N45: =RTD("cqg.rtd",,"StudyData", "Close("&$D$12&") when LocalYear("&$D$12&")="&$D$4&" and localMonth("&$D$12&") ="&$E$4&" and LocalDay("&$D$12&")="&$F$4&" and Barix("&$D$12&",reference:=StartOfDay)="&A45&"", "Bar", "", "Close","5","0","All",,,"False","T","EveryTick") -> 4387.75 | O45: -0.0005125284738 | P45: =RTD("cqg.rtd",,"StudyData", "Close("&$D$12&") when LocalYear("&$D$12&")="&$D$5&" and localMonth("&$D$12&") ="&$E$5&" and LocalDay("&$D$12&")="&$F$5&" and Barix("&$D$12&",reference:=StartOfDay)="&A45&"", "Bar", "", "Close","5","0","All",,,"False","T","EveryTick") -> 4377.5 | Q45: 0.005397335783 | R45: =RTD("cqg.rtd",,"StudyData", "Close("&$D$12&") when LocalYear("&$D$12&")="&$D$6&" and localMonth("&$D$12&") ="&$E$6&" and LocalDay("&$D$12&")="&$F$6&" and Barix("&$D$12&",reference:=StartOfDay)="&A45&"", "Bar", "", "Close","5","0","All",,,"False","T","EveryTick") -> 4275 | S45: -0.01361329026 | T45: =RTD("cqg.rtd",,"StudyData", "Close("&$D$12&") when LocalYear("&$D$12&")="&$D$7&" and localMonth("&$D$12&") ="&$E$7&" and LocalDay("&$D$12&")="&$F$7&" and Barix("&$D$12&",reference:=StartOfDay)="&A45&"", "Bar", "", "Close","5","0","All",,,"False","T","EveryTick") -> 4307.75 | U45: 0.003845033498 | V45: =RTD("cqg.rtd",,"StudyData", "Close("&$D$12&") when LocalYear("&$D$12&")="&$D$8&" and localMonth("&$D$12&") ="&$E$8&" and LocalDay("&$D$12&")="&$F$8&" and Barix("&$D$12&",reference:=StartOfDay)="&A45&"", "Bar", "", "Close","5","0","All",,,"False","T","EveryTick") -> 4332.5 | W45: -0.002589928058 | X45: =RTD("cqg.rtd",,"StudyData", "Close("&$D$12&") when LocalYear("&$D$12&")="&$D$9&" and localMonth("&$D$12&") ="&$E$9&" and LocalDay("&$D$12&")="&$F$9&" and Barix("&$D$12&",reference:=StartOfDay)="&A45&"", "Bar", "", "Close","5","0","All",,,"False","T","EveryTick") -> 4272.25 | Y45: -0.005933337211 | Z45: =RTD("cqg.rtd",,"StudyData", "Close("&$D$12&") when LocalYear("&$D$12&")="&$D$10&" and localMonth("&$D$12&") ="&$E$10&" and LocalDay("&$D$12&")="&$F$10&" and Barix("&$D$12&",reference:=StartOfDay)="&A45&"", "Bar", "", "Close","5","0","All",,,"False","T","EveryTick") -> 4372.25 | AA45: 0.005172711075
A46: =A45+1 -> 141 | B46: 04:45:00 | C46: -32 | D46: =RTD("cqg.rtd",,"StudyData", $D$12, "Tick", "FlatTicks=0", "Tick","D",C46,"PrimaryOnly") -> 4334.75 | F46: QFA | G46: 72 | H46: =RTD("cqg.rtd",,"StudyData", "Close("&$D$12&") when LocalYear("&$D$12&")="&$D$1&" and localMonth("&$D$12&") ="&$E$1&" and LocalDay("&$D$12&")="&$F$1&" and Barix("&$D$12&",reference:=StartOfDay)="&A46&"", "Bar", "", "Close","5","0","All",,,"False","T","EveryTick") -> 4350.5 | I46: 0.002246155618 | J46: =RTD("cqg.rtd",,"StudyData", "Close("&$D$12&") when LocalYear("&$D$12&")="&$D$2&" and localMonth("&$D$12&") ="&$E$2&" and LocalDay("&$D$12&")="&$F$2&" and Barix("&$D$12&",reference:=StartOfDay)="&A46&"", "Bar", "", "Close","5","0","All",,,"False","T","EveryTick") -> 4351.75 | K46: 0.0001723741669 | L46: =RTD("cqg.rtd",,"StudyData", "Close("&$D$12&") when LocalYear("&$D$12&")="&$D$3&" and localMonth("&$D$12&") ="&$E$3&" and LocalDay("&$D$12&")="&$F$3&" and Barix("&$D$12&",reference:=StartOfDay)="&A46&"", "Bar", "", "Close","5","0","All",,,"False","T","EveryTick") -> 4370.25 | M46: -0.002738319356 | N46: =RTD("cqg.rtd",,"StudyData", "Close("&$D$12&") when LocalYear("&$D$12&")="&$D$4&" and localMonth("&$D$12&") ="&$E$4&" and LocalDay("&$D$12&")="&$F$4&" and Barix("&$D$12&",reference:=StartOfDay)="&A46&"", "Bar", "", "Close","5","0","All",,,"False","T","EveryTick") -> 4386.75 | O46: -0.0007403189066 | P46: =RTD("cqg.rtd",,"StudyData", "Close("&$D$12&") when LocalYear("&$D$12&")="&$D$5&" and localMonth("&$D$12&") ="&$E$5&" and LocalDay("&$D$12&")="&$F$5&" and Barix("&$D$12&",reference:=StartOfDay)="&A46&"", "Bar", "", "Close","5","0","All",,,"False","T","EveryTick") -> 4379.75 | Q46: 0.005914101975 | R46: =RTD("cqg.rtd",,"StudyData", "Close("&$D$12&") when LocalYear("&$D$12&")="&$D$6&" and localMonth("&$D$12&") ="&$E$6&" and LocalDay("&$D$12&")="&$F$6&" and Barix("&$D$12&",reference:=StartOfDay)="&A46&"", "Bar", "", "Close","5","0","All",,,"False","T","EveryTick") -> 4280.25 | S46: -0.01240193816 | T46: =RTD("cqg.rtd",,"StudyData", "Close("&$D$12&") when LocalYear("&$D$12&")="&$D$7&" and localMonth("&$D$12&") ="&$E$7&" and LocalDay("&$D$12&")="&$F$7&" and Barix("&$D$12&",reference:=StartOfDay)="&A46&"", "Bar", "", "Close","5","0","All",,,"False","T","EveryTick") -> 4307.75 | U46: 0.003845033498 | V46: =RTD("cqg.rtd",,"StudyData", "Close("&$D$12&") when LocalYear("&$D$12&")="&$D$8&" and localMonth("&$D$12&") ="&$E$8&" and LocalDay("&$D$12&")="&$F$8&" and Barix("&$D$12&",reference:=StartOfDay)="&A46&"", "Bar", "", "Close","5","0","All",,,"False","T","EveryTick") -> 4333 | W46: -0.002474820144 | X46: =RTD("cqg.rtd",,"StudyData", "Close("&$D$12&") when LocalYear("&$D$12&")="&$D$9&" and localMonth("&$D$12&") ="&$E$9&" and LocalDay("&$D$12&")="&$F$9&" and Barix("&$D$12&",reference:=StartOfDay)="&A46&"", "Bar", "", "Close","5","0","All",,,"False","T","EveryTick") -> 4273.5 | Y46: -0.005642487348 | Z46: =RTD("cqg.rtd",,"StudyData", "Close("&$D$12&") when LocalYear("&$D$12&")="&$D$10&" and localMonth("&$D$12&") ="&$E$10&" and LocalDay("&$D$12&")="&$F$10&" and Barix("&$D$12&",reference:=StartOfDay)="&A46&"", "Bar", "", "Close","5","0","All",,,"False","T","EveryTick") -> 4371.5 | AA46: 0.005000287373
A47: 142 | B47: 04:50:00 | C47: -31 | D47: =RTD("cqg.rtd",,"StudyData", $D$12, "Tick", "FlatTicks=0", "Tick","D",C47,"PrimaryOnly") -> 4334.5 | F47: CLE | G47: 96 | H47: =RTD("cqg.rtd",,"StudyData", "Close("&$D$12&") when LocalYear("&$D$12&")="&$D$1&" and localMonth("&$D$12&") ="&$E$1&" and LocalDay("&$D$12&")="&$F$1&" and Barix("&$D$12&",reference:=StartOfDay)="&A47&"", "Bar", "", "Close","5","0","All",,,"False","T","EveryTick") -> 4350.25 | I47: 0.002188561884 | J47: =RTD("cqg.rtd",,"StudyData", "Close("&$D$12&") when LocalYear("&$D$12&")="&$D$2&" and localMonth("&$D$12&") ="&$E$2&" and LocalDay("&$D$12&")="&$F$2&" and Barix("&$D$12&",reference:=StartOfDay)="&A47&"", "Bar", "", "Close","5","0","All",,,"False","T","EveryTick") -> 4352.5 | K47: 0.0003447483337 | L47: =RTD("cqg.rtd",,"StudyData", "Close("&$D$12&") when LocalYear("&$D$12&")="&$D$3&" and localMonth("&$D$12&") ="&$E$3&" and LocalDay("&$D$12&")="&$F$3&" and Barix("&$D$12&",reference:=StartOfDay)="&A47&"", "Bar", "", "Close","5","0","All",,,"False","T","EveryTick") -> 4372 | M47: -0.002338981117 | N47: =RTD("cqg.rtd",,"StudyData", "Close("&$D$12&") when LocalYear("&$D$12&")="&$D$4&" and localMonth("&$D$12&") ="&$E$4&" and LocalDay("&$D$12&")="&$F$4&" and Barix("&$D$12&",reference:=StartOfDay)="&A47&"", "Bar", "", "Close","5","0","All",,,"False","T","EveryTick") -> 4388.25 | O47: -0.0003986332574 | P47: =RTD("cqg.rtd",,"StudyData", "Close("&$D$12&") when LocalYear("&$D$12&")="&$D$5&" and localMonth("&$D$12&") ="&$E$5&" and LocalDay("&$D$12&")="&$F$5&" and Barix("&$D$12&",reference:=StartOfDay)="&A47&"", "Bar", "", "Close","5","0","All",,,"False","T","EveryTick") -> 4381 | Q47: 0.006201194304 | R47: =RTD("cqg.rtd",,"StudyData", "Close("&$D$12&") when LocalYear("&$D$12&")="&$D$6&" and localMonth("&$D$12&") ="&$E$6&" and LocalDay("&$D$12&")="&$F$6&" and Barix("&$D$12&",reference:=StartOfDay)="&A47&"", "Bar", "", "Close","5","0","All",,,"False","T","EveryTick") -> 4281.25 | S47: -0.01217120443 | T47: =RTD("cqg.rtd",,"StudyData", "Close("&$D$12&") when LocalYear("&$D$12&")="&$D$7&" and localMonth("&$D$12&") ="&$E$7&" and LocalDay("&$D$12&")="&$F$7&" and Barix("&$D$12&",reference:=StartOfDay)="&A47&"", "Bar", "", "Close","5","0","All",,,"False","T","EveryTick") -> 4309.25 | U47: 0.004194581998 | V47: =RTD("cqg.rtd",,"StudyData", "Close("&$D$12&") when LocalYear("&$D$12&")="&$D$8&" and localMonth("&$D$12&") ="&$E$8&" and LocalDay("&$D$12&")="&$F$8&" and Barix("&$D$12&",reference:=StartOfDay)="&A47&"", "Bar", "", "Close","5","0","All",,,"False","T","EveryTick") -> 4329.5 | W47: -0.00328057554 | X47: =RTD("cqg.rtd",,"StudyData", "Close("&$D$12&") when LocalYear("&$D$12&")="&$D$9&" and localMonth("&$D$12&") ="&$E$9&" and LocalDay("&$D$12&")="&$F$9&" and Barix("&$D$12&",reference:=StartOfDay)="&A47&"", "Bar", "", "Close","5","0","All",,,"False","T","EveryTick") -> 4272.25 | Y47: -0.005933337211 | Z47: =RTD("cqg.rtd",,"StudyData", "Close("&$D$12&") when LocalYear("&$D$12&")="&$D$10&" and localMonth("&$D$12&") ="&$E$10&" and LocalDay("&$D$12&")="&$F$10&" and Barix("&$D$12&",reference:=StartOfDay)="&A47&"", "Bar", "", "Close","5","0","All",,,"False","T","EveryTick") -> 4371.75 | AA47: 0.00505776194
A48: 143 | B48: 04:55:00 | C48: -30 | D48: =RTD("cqg.rtd",,"StudyData", $D$12, "Tick", "FlatTicks=0", "Tick","D",C48,"PrimaryOnly") -> 4334.75 | F48: ET | G48: 72 | H48: =RTD("cqg.rtd",,"StudyData", "Close("&$D$12&") when LocalYear("&$D$12&")="&$D$1&" and localMonth("&$D$12&") ="&$E$1&" and LocalDay("&$D$12&")="&$F$1&" and Barix("&$D$12&",reference:=StartOfDay)="&A48&"", "Bar", "", "Close","5","0","All",,,"False","T","EveryTick") -> 4348.75 | I48: 0.001842999482 | J48: =RTD("cqg.rtd",,"StudyData", "Close("&$D$12&") when LocalYear("&$D$12&")="&$D$2&" and localMonth("&$D$12&") ="&$E$2&" and LocalDay("&$D$12&")="&$F$2&" and Barix("&$D$12&",reference:=StartOfDay)="&A48&"", "Bar", "", "Close","5","0","All",,,"False","T","EveryTick") -> 4352 | K48: 0.0002298322225 | L48: =RTD("cqg.rtd",,"StudyData", "Close("&$D$12&") when LocalYear("&$D$12&")="&$D$3&" and localMonth("&$D$12&") ="&$E$3&" and LocalDay("&$D$12&")="&$F$3&" and Barix("&$D$12&",reference:=StartOfDay)="&A48&"", "Bar", "", "Close","5","0","All",,,"False","T","EveryTick") -> 4370.5 | M48: -0.002681271037 | N48: =RTD("cqg.rtd",,"StudyData", "Close("&$D$12&") when LocalYear("&$D$12&")="&$D$4&" and localMonth("&$D$12&") ="&$E$4&" and LocalDay("&$D$12&")="&$F$4&" and Barix("&$D$12&",reference:=StartOfDay)="&A48&"", "Bar", "", "Close","5","0","All",,,"False","T","EveryTick") -> 4390.5 | O48: 0.0001138952164 | P48: =RTD("cqg.rtd",,"StudyData", "Close("&$D$12&") when LocalYear("&$D$12&")="&$D$5&" and localMonth("&$D$12&") ="&$E$5&" and LocalDay("&$D$12&")="&$F$5&" and Barix("&$D$12&",reference:=StartOfDay)="&A48&"", "Bar", "", "Close","5","0","All",,,"False","T","EveryTick") -> 4382 | Q48: 0.006430868167 | R48: =RTD("cqg.rtd",,"StudyData", "Close("&$D$12&") when LocalYear("&$D$12&")="&$D$6&" and localMonth("&$D$12&") ="&$E$6&" and LocalDay("&$D$12&")="&$F$6&" and Barix("&$D$12&",reference:=StartOfDay)="&A48&"", "Bar", "", "Close","5","0","All",,,"False","T","EveryTick") -> 4280.75 | S48: -0.0122865713 | T48: =RTD("cqg.rtd",,"StudyData", "Close("&$D$12&") when LocalYear("&$D$12&")="&$D$7&" and localMonth("&$D$12&") ="&$E$7&" and LocalDay("&$D$12&")="&$F$7&" and Barix("&$D$12&",reference:=StartOfDay)="&A48&"", "Bar", "", "Close","5","0","All",,,"False","T","EveryTick") -> 4309.5 | U48: 0.004252840082 | V48: =RTD("cqg.rtd",,"StudyData", "Close("&$D$12&") when LocalYear("&$D$12&")="&$D$8&" and localMonth("&$D$12&") ="&$E$8&" and LocalDay("&$D$12&")="&$F$8&" and Barix("&$D$12&",reference:=StartOfDay)="&A48&"", "Bar", "", "Close","5","0","All",,,"False","T","EveryTick") -> 4330.25 | W48: -0.003107913669 | X48: =RTD("cqg.rtd",,"StudyData", "Close("&$D$12&") when LocalYear("&$D$12&")="&$D$9&" and localMonth("&$D$12&") ="&$E$9&" and LocalDay("&$D$12&")="&$F$9&" and Barix("&$D$12&",reference:=StartOfDay)="&A48&"", "Bar", "", "Close","5","0","All",,,"False","T","EveryTick") -> 4275.5 | Y48: -0.005177127567 | Z48: =RTD("cqg.rtd",,"StudyData", "Close("&$D$12&") when LocalYear("&$D$12&")="&$D$10&" and localMonth("&$D$12&") ="&$E$10&" and LocalDay("&$D$12&")="&$F$10&" and Barix("&$D$12&",reference:=StartOfDay)="&A48&"", "Bar", "", "Close","5","0","All",,,"False","T","EveryTick") -> 4370.5 | AA48: 0.004770389103
A49: 144 | B49: 05:00:00 | C49: -29 | D49: =RTD("cqg.rtd",,"StudyData", $D$12, "Tick", "FlatTicks=0", "Tick","D",C49,"PrimaryOnly") -> 4335 | F49: QO | G49: 72 | H49: =RTD("cqg.rtd",,"StudyData", "Close("&$D$12&") when LocalYear("&$D$12&")="&$D$1&" and localMonth("&$D$12&") ="&$E$1&" and LocalDay("&$D$12&")="&$F$1&" and Barix("&$D$12&",reference:=StartOfDay)="&A49&"", "Bar", "", "Close","5","0","All",,,"False","T","EveryTick") -> 4349 | I49: 0.001900593215 | J49: =RTD("cqg.rtd",,"StudyData", "Close("&$D$12&") when LocalYear("&$D$12&")="&$D$2&" and localMonth("&$D$12&") ="&$E$2&" and LocalDay("&$D$12&")="&$F$2&" and Barix("&$D$12&",reference:=StartOfDay)="&A49&"", "Bar", "", "Close","5","0","All",,,"False","T","EveryTick") -> 4352.75 | K49: 0.0004022063893 | L49: =RTD("cqg.rtd",,"StudyData", "Close("&$D$12&") when LocalYear("&$D$12&")="&$D$3&" and localMonth("&$D$12&") ="&$E$3&" and LocalDay("&$D$12&")="&$F$3&" and Barix("&$D$12&",reference:=StartOfDay)="&A49&"", "Bar", "", "Close","5","0","All",,,"False","T","EveryTick") -> 4367.75 | M49: -0.003308802556 | N49: =RTD("cqg.rtd",,"StudyData", "Close("&$D$12&") when LocalYear("&$D$12&")="&$D$4&" and localMonth("&$D$12&") ="&$E$4&" and LocalDay("&$D$12&")="&$F$4&" and Barix("&$D$12&",reference:=StartOfDay)="&A49&"", "Bar", "", "Close","5","0","All",,,"False","T","EveryTick") -> 4391 | O49: 0.0002277904328 | P49: =RTD("cqg.rtd",,"StudyData", "Close("&$D$12&") when LocalYear("&$D$12&")="&$D$5&" and localMonth("&$D$12&") ="&$E$5&" and LocalDay("&$D$12&")="&$F$5&" and Barix("&$D$12&",reference:=StartOfDay)="&A49&"", "Bar", "", "Close","5","0","All",,,"False","T","EveryTick") -> 4384.5 | Q49: 0.007005052825 | R49: =RTD("cqg.rtd",,"StudyData", "Close("&$D$12&") when LocalYear("&$D$12&")="&$D$6&" and localMonth("&$D$12&") ="&$E$6&" and LocalDay("&$D$12&")="&$F$6&" and Barix("&$D$12&",reference:=StartOfDay)="&A49&"", "Bar", "", "Close","5","0","All",,,"False","T","EveryTick") -> 4279 | S49: -0.01269035533 | T49: =RTD("cqg.rtd",,"StudyData", "Close("&$D$12&") when LocalYear("&$D$12&")="&$D$7&" and localMonth("&$D$12&") ="&$E$7&" and LocalDay("&$D$12&")="&$F$7&" and Barix("&$D$12&",reference:=StartOfDay)="&A49&"", "Bar", "", "Close","5","0","All",,,"False","T","EveryTick") -> 4308.25 | U49: 0.003961549665 | V49: =RTD("cqg.rtd",,"StudyData", "Close("&$D$12&") when LocalYear("&$D$12&")="&$D$8&" and localMonth("&$D$12&") ="&$E$8&" and LocalDay("&$D$12&")="&$F$8&" and Barix("&$D$12&",reference:=StartOfDay)="&A49&"", "Bar", "", "Close","5","0","All",,,"False","T","EveryTick") -> 4333.75 | W49: -0.002302158273 | X49: =RTD("cqg.rtd",,"StudyData", "Close("&$D$12&") when LocalYear("&$D$12&")="&$D$9&" and localMonth("&$D$12&") ="&$E$9&" and LocalDay("&$D$12&")="&$F$9&" and Barix("&$D$12&",reference:=StartOfDay)="&A49&"", "Bar", "", "Close","5","0","All",,,"False","T","EveryTick") -> 4275.5 | Y49: -0.005177127567 | Z49: =RTD("cqg.rtd",,"StudyData", "Close("&$D$12&") when LocalYear("&$D$12&")="&$D$10&" and localMonth("&$D$12&") ="&$E$10&" and LocalDay("&$D$12&")="&$F$10&" and Barix("&$D$12&",reference:=StartOfDay)="&A49&"", "Bar", "", "Close","5","0","All",,,"False","T","EveryTick") -> 4372.75 | AA49: 0.00528766021
A50: 145 | B50: 05:05:00 | C50: -28 | D50: =RTD("cqg.rtd",,"StudyData", $D$12, "Tick", "FlatTicks=0", "Tick","D",C50,"PrimaryOnly") -> 4334.75 | F50: GCE | G50: 96 | H50: =RTD("cqg.rtd",,"StudyData", "Close("&$D$12&") when LocalYear("&$D$12&")="&$D$1&" and localMonth("&$D$12&") ="&$E$1&" and LocalDay("&$D$12&")="&$F$1&" and Barix("&$D$12&",reference:=StartOfDay)="&A50&"", "Bar", "", "Close","5","0","All",,,"False","T","EveryTick") -> 4349 | I50: 0.001900593215 | J50: =RTD("cqg.rtd",,"StudyData", "Close("&$D$12&") when LocalYear("&$D$12&")="&$D$2&" and localMonth("&$D$12&") ="&$E$2&" and LocalDay("&$D$12&")="&$F$2&" and Barix("&$D$12&",reference:=StartOfDay)="&A50&"", "Bar", "", "Close","5","0","All",,,"False","T","EveryTick") -> 4350.75 | K50: -5.745805562e-05 | L50: =RTD("cqg.rtd",,"StudyData", "Close("&$D$12&") when LocalYear("&$D$12&")="&$D$3&" and localMonth("&$D$12&") ="&$E$3&" and LocalDay("&$D$12&")="&$F$3&" and Barix("&$D$12&",reference:=StartOfDay)="&A50&"", "Bar", "", "Close","5","0","All",,,"False","T","EveryTick") -> 4369.5 | M50: -0.002909464316 | N50: =RTD("cqg.rtd",,"StudyData", "Close("&$D$12&") when LocalYear("&$D$12&")="&$D$4&" and localMonth("&$D$12&") ="&$E$4&" and LocalDay("&$D$12&")="&$F$4&" and Barix("&$D$12&",reference:=StartOfDay)="&A50&"", "Bar", "", "Close","5","0","All",,,"False","T","EveryTick") -> 4390.5 | O50: 0.0001138952164 | P50: =RTD("cqg.rtd",,"StudyData", "Close("&$D$12&") when LocalYear("&$D$12&")="&$D$5&" and localMonth("&$D$12&") ="&$E$5&" and LocalDay("&$D$12&")="&$F$5&" and Barix("&$D$12&",reference:=StartOfDay)="&A50&"", "Bar", "", "Close","5","0","All",,,"False","T","EveryTick") -> 4384.5 | Q50: 0.007005052825 | R50: =RTD("cqg.rtd",,"StudyData", "Close("&$D$12&") when LocalYear("&$D$12&")="&$D$6&" and localMonth("&$D$12&") ="&$E$6&" and LocalDay("&$D$12&")="&$F$6&" and Barix("&$D$12&",reference:=StartOfDay)="&A50&"", "Bar", "", "Close","5","0","All",,,"False","T","EveryTick") -> 4281 | S50: -0.01222888786 | T50: =RTD("cqg.rtd",,"StudyData", "Close("&$D$12&") when LocalYear("&$D$12&")="&$D$7&" and localMonth("&$D$12&") ="&$E$7&" and LocalDay("&$D$12&")="&$F$7&" and Barix("&$D$12&",reference:=StartOfDay)="&A50&"", "Bar", "", "Close","5","0","All",,,"False","T","EveryTick") -> 4305.75 | U50: 0.003378968832 | V50: =RTD("cqg.rtd",,"StudyData", "Close("&$D$12&") when LocalYear("&$D$12&")="&$D$8&" and localMonth("&$D$12&") ="&$E$8&" and LocalDay("&$D$12&")="&$F$8&" and Barix("&$D$12&",reference:=StartOfDay)="&A50&"", "Bar", "", "Close","5","0","All",,,"False","T","EveryTick") -> 4334.25 | W50: -0.00218705036 | X50: =RTD("cqg.rtd",,"StudyData", "Close("&$D$12&") when LocalYear("&$D$12&")="&$D$9&" and localMonth("&$D$12&") ="&$E$9&" and LocalDay("&$D$12&")="&$F$9&" and Barix("&$D$12&",reference:=StartOfDay)="&A50&"", "Bar", "", "Close","5","0","All",,,"False","T","EveryTick") -> 4277.5 | Y50: -0.004711767785 | Z50: =RTD("cqg.rtd",,"StudyData", "Close("&$D$12&") when LocalYear("&$D$12&")="&$D$10&" and localMonth("&$D$12&") ="&$E$10&" and LocalDay("&$D$12&")="&$F$10&" and Barix("&$D$12&",reference:=StartOfDay)="&A50&"", "Bar", "", "Close","5","0","All",,,"False","T","EveryTick") -> 4373.5 | AA50: 0.005460083913
A51: 146 | B51: 05:10:00 | C51: -27 | D51: =RTD("cqg.rtd",,"StudyData", $D$12, "Tick", "FlatTicks=0", "Tick","D",C51,"PrimaryOnly") -> 4334.5 | F51: CPE | G51: 96 | H51: =RTD("cqg.rtd",,"StudyData", "Close("&$D$12&") when LocalYear("&$D$12&")="&$D$1&" and localMonth("&$D$12&") ="&$E$1&" and LocalDay("&$D$12&")="&$F$1&" and Barix("&$D$12&",reference:=StartOfDay)="&A51&"", "Bar", "", "Close","5","0","All",,,"False","T","EveryTick") -> 4349.5 | I51: 0.002015780683 | J51: =RTD("cqg.rtd",,"StudyData", "Close("&$D$12&") when LocalYear("&$D$12&")="&$D$2&" and localMonth("&$D$12&") ="&$E$2&" and LocalDay("&$D$12&")="&$F$2&" and Barix("&$D$12&",reference:=StartOfDay)="&A51&"", "Bar", "", "Close","5","0","All",,,"False","T","EveryTick") -> 4349 | K51: -0.000459664445 | L51: =RTD("cqg.rtd",,"StudyData", "Close("&$D$12&") when LocalYear("&$D$12&")="&$D$3&" and localMonth("&$D$12&") ="&$E$3&" and LocalDay("&$D$12&")="&$F$3&" and Barix("&$D$12&",reference:=StartOfDay)="&A51&"", "Bar", "", "Close","5","0","All",,,"False","T","EveryTick") -> 4369.25 | M51: -0.002966512636 | N51: =RTD("cqg.rtd",,"StudyData", "Close("&$D$12&") when LocalYear("&$D$12&")="&$D$4&" and localMonth("&$D$12&") ="&$E$4&" and LocalDay("&$D$12&")="&$F$4&" and Barix("&$D$12&",reference:=StartOfDay)="&A51&"", "Bar", "", "Close","5","0","All",,,"False","T","EveryTick") -> 4391.25 | O51: 0.000284738041 | P51: =RTD("cqg.rtd",,"StudyData", "Close("&$D$12&") when LocalYear("&$D$12&")="&$D$5&" and localMonth("&$D$12&") ="&$E$5&" and LocalDay("&$D$12&")="&$F$5&" and Barix("&$D$12&",reference:=StartOfDay)="&A51&"", "Bar", "", "Close","5","0","All",,,"False","T","EveryTick") -> 4384.25 | Q51: 0.006947634359 | R51: =RTD("cqg.rtd",,"StudyData", "Close("&$D$12&") when LocalYear("&$D$12&")="&$D$6&" and localMonth("&$D$12&") ="&$E$6&" and LocalDay("&$D$12&")="&$F$6&" and Barix("&$D$12&",reference:=StartOfDay)="&A51&"", "Bar", "", "Close","5","0","All",,,"False","T","EveryTick") -> 4281 | S51: -0.01222888786 | T51: =RTD("cqg.rtd",,"StudyData", "Close("&$D$12&") when LocalYear("&$D$12&")="&$D$7&" and localMonth("&$D$12&") ="&$E$7&" and LocalDay("&$D$12&")="&$F$7&" and Barix("&$D$12&",reference:=StartOfDay)="&A51&"", "Bar", "", "Close","5","0","All",,,"False","T","EveryTick") -> 4306.5 | U51: 0.003553743082 | V51: =RTD("cqg.rtd",,"StudyData", "Close("&$D$12&") when LocalYear("&$D$12&")="&$D$8&" and localMonth("&$D$12&") ="&$E$8&" and LocalDay("&$D$12&")="&$F$8&" and Barix("&$D$12&",reference:=StartOfDay)="&A51&"", "Bar", "", "Close","5","0","All",,,"False","T","EveryTick") -> 4334.5 | W51: -0.002129496403 | X51: =RTD("cqg.rtd",,"StudyData", "Close("&$D$12&") when LocalYear("&$D$12&")="&$D$9&" and localMonth("&$D$12&") ="&$E$9&" and LocalDay("&$D$12&")="&$F$9&" and Barix("&$D$12&",reference:=StartOfDay)="&A51&"", "Bar", "", "Close","5","0","All",,,"False","T","EveryTick") -> 4281 | Y51: -0.003897388168 | Z51: =RTD("cqg.rtd",,"StudyData", "Close("&$D$12&") when LocalYear("&$D$12&")="&$D$10&" and localMonth("&$D$12&") ="&$E$10&" and LocalDay("&$D$12&")="&$F$10&" and Barix("&$D$12&",reference:=StartOfDay)="&A51&"", "Bar", "", "Close","5","0","All",,,"False","T","EveryTick") -> 4371 | AA51: 0.004885338238
A52: 147 | B52: 05:15:00 | C52: -26 | D52: =RTD("cqg.rtd",,"StudyData", $D$12, "Tick", "FlatTicks=0", "Tick","D",C52,"PrimaryOnly") -> 4334.25 | F52: ULA | G52: 96 | H52: =RTD("cqg.rtd",,"StudyData", "Close("&$D$12&") when LocalYear("&$D$12&")="&$D$1&" and localMonth("&$D$12&") ="&$E$1&" and LocalDay("&$D$12&")="&$F$1&" and Barix("&$D$12&",reference:=StartOfDay)="&A52&"", "Bar", "", "Close","5","0","All",,,"False","T","EveryTick") -> 4352.75 | I52: 0.002764499222 | J52: =RTD("cqg.rtd",,"StudyData", "Close("&$D$12&") when LocalYear("&$D$12&")="&$D$2&" and localMonth("&$D$12&") ="&$E$2&" and LocalDay("&$D$12&")="&$F$2&" and Barix("&$D$12&",reference:=StartOfDay)="&A52&"", "Bar", "", "Close","5","0","All",,,"False","T","EveryTick") -> 4347 | K52: -0.0009193288899 | L52: =RTD("cqg.rtd",,"StudyData", "Close("&$D$12&") when LocalYear("&$D$12&")="&$D$3&" and localMonth("&$D$12&") ="&$E$3&" and LocalDay("&$D$12&")="&$F$3&" and Barix("&$D$12&",reference:=StartOfDay)="&A52&"", "Bar", "", "Close","5","0","All",,,"False","T","EveryTick") -> 4368.75 | M52: -0.003080609276 | N52: =RTD("cqg.rtd",,"StudyData", "Close("&$D$12&") when LocalYear("&$D$12&")="&$D$4&" and localMonth("&$D$12&") ="&$E$4&" and LocalDay("&$D$12&")="&$F$4&" and Barix("&$D$12&",reference:=StartOfDay)="&A52&"", "Bar", "", "Close","5","0","All",,,"False","T","EveryTick") -> 4391.75 | O52: 0.0003986332574 | P52: =RTD("cqg.rtd",,"StudyData", "Close("&$D$12&") when LocalYear("&$D$12&")="&$D$5&" and localMonth("&$D$12&") ="&$E$5&" and LocalDay("&$D$12&")="&$F$5&" and Barix("&$D$12&",reference:=StartOfDay)="&A52&"", "Bar", "", "Close","5","0","All",,,"False","T","EveryTick") -> 4383.25 | Q52: 0.006717960496 | R52: =RTD("cqg.rtd",,"StudyData", "Close("&$D$12&") when LocalYear("&$D$12&")="&$D$6&" and localMonth("&$D$12&") ="&$E$6&" and LocalDay("&$D$12&")="&$F$6&" and Barix("&$D$12&",reference:=StartOfDay)="&A52&"", "Bar", "", "Close","5","0","All",,,"False","T","EveryTick") -> 4284.5 | S52: -0.0114213198 | T52: =RTD("cqg.rtd",,"StudyData", "Close("&$D$12&") when LocalYear("&$D$12&")="&$D$7&" and localMonth("&$D$12&") ="&$E$7&" and LocalDay("&$D$12&")="&$F$7&" and Barix("&$D$12&",reference:=StartOfDay)="&A52&"", "Bar", "", "Close","5","0","All",,,"False","T","EveryTick") -> 4307 | U52: 0.003670259248 | V52: =RTD("cqg.rtd",,"StudyData", "Close("&$D$12&") when LocalYear("&$D$12&")="&$D$8&" and localMonth("&$D$12&") ="&$E$8&" and LocalDay("&$D$12&")="&$F$8&" and Barix("&$D$12&",reference:=StartOfDay)="&A52&"", "Bar", "", "Close","5","0","All",,,"False","T","EveryTick") -> 4330.75 | W52: -0.002992805755 | X52: =RTD("cqg.rtd",,"StudyData", "Close("&$D$12&") when LocalYear("&$D$12&")="&$D$9&" and localMonth("&$D$12&") ="&$E$9&" and LocalDay("&$D$12&")="&$F$9&" and Barix("&$D$12&",reference:=StartOfDay)="&A52&"", "Bar", "", "Close","5","0","All",,,"False","T","EveryTick") -> 4280.5 | Y52: -0.004013728114 | Z52: =RTD("cqg.rtd",,"StudyData", "Close("&$D$12&") when LocalYear("&$D$12&")="&$D$10&" and localMonth("&$D$12&") ="&$E$10&" and LocalDay("&$D$12&")="&$F$10&" and Barix("&$D$12&",reference:=StartOfDay)="&A52&"", "Bar", "", "Close","5","0","All",,,"False","T","EveryTick") -> 4370 | AA52: 0.004655439968
A53: 148 | B53: 05:20:00 | C53: -25 | D53: =RTD("cqg.rtd",,"StudyData", $D$12, "Tick", "FlatTicks=0", "Tick","D",C53,"PrimaryOnly") -> 4334.5 | F53: USA | G53: 96 | H53: =RTD("cqg.rtd",,"StudyData", "Close("&$D$12&") when LocalYear("&$D$12&")="&$D$1&" and localMonth("&$D$12&") ="&$E$1&" and LocalDay("&$D$12&")="&$F$1&" and Barix("&$D$12&",reference:=StartOfDay)="&A53&"", "Bar", "", "Close","5","0","All",,,"False","T","EveryTick") -> 4350 | I53: 0.002130968151 | J53: =RTD("cqg.rtd",,"StudyData", "Close("&$D$12&") when LocalYear("&$D$12&")="&$D$2&" and localMonth("&$D$12&") ="&$E$2&" and LocalDay("&$D$12&")="&$F$2&" and Barix("&$D$12&",reference:=StartOfDay)="&A53&"", "Bar", "", "Close","5","0","All",,,"False","T","EveryTick") -> 4346.75 | K53: -0.0009767869455 | L53: =RTD("cqg.rtd",,"StudyData", "Close("&$D$12&") when LocalYear("&$D$12&")="&$D$3&" and localMonth("&$D$12&") ="&$E$3&" and LocalDay("&$D$12&")="&$F$3&" and Barix("&$D$12&",reference:=StartOfDay)="&A53&"", "Bar", "", "Close","5","0","All",,,"False","T","EveryTick") -> 4368.75 | M53: -0.003080609276 | N53: =RTD("cqg.rtd",,"StudyData", "Close("&$D$12&") when LocalYear("&$D$12&")="&$D$4&" and localMonth("&$D$12&") ="&$E$4&" and LocalDay("&$D$12&")="&$F$4&" and Barix("&$D$12&",reference:=StartOfDay)="&A53&"", "Bar", "", "Close","5","0","All",,,"False","T","EveryTick") -> 4390.5 | O53: 0.0001138952164 | P53: =RTD("cqg.rtd",,"StudyData", "Close("&$D$12&") when LocalYear("&$D$12&")="&$D$5&" and localMonth("&$D$12&") ="&$E$5&" and LocalDay("&$D$12&")="&$F$5&" and Barix("&$D$12&",reference:=StartOfDay)="&A53&"", "Bar", "", "Close","5","0","All",,,"False","T","EveryTick") -> 4381.75 | Q53: 0.006373449701 | R53: =RTD("cqg.rtd",,"StudyData", "Close("&$D$12&") when LocalYear("&$D$12&")="&$D$6&" and localMonth("&$D$12&") ="&$E$6&" and LocalDay("&$D$12&")="&$F$6&" and Barix("&$D$12&",reference:=StartOfDay)="&A53&"", "Bar", "", "Close","5","0","All",,,"False","T","EveryTick") -> 4281.75 | S53: -0.01205583756 | T53: =RTD("cqg.rtd",,"StudyData", "Close("&$D$12&") when LocalYear("&$D$12&")="&$D$7&" and localMonth("&$D$12&") ="&$E$7&" and LocalDay("&$D$12&")="&$F$7&" and Barix("&$D$12&",reference:=StartOfDay)="&A53&"", "Bar", "", "Close","5","0","All",,,"False","T","EveryTick") -> 4307.75 | U53: 0.003845033498 | V53: =RTD("cqg.rtd",,"StudyData", "Close("&$D$12&") when LocalYear("&$D$12&")="&$D$8&" and localMonth("&$D$12&") ="&$E$8&" and LocalDay("&$D$12&")="&$F$8&" and Barix("&$D$12&",reference:=StartOfDay)="&A53&"", "Bar", "", "Close","5","0","All",,,"False","T","EveryTick") -> 4328.5 | W53: -0.003510791367 | X53: =RTD("cqg.rtd",,"StudyData", "Close("&$D$12&") when LocalYear("&$D$12&")="&$D$9&" and localMonth("&$D$12&") ="&$E$9&" and LocalDay("&$D$12&")="&$F$9&" and Barix("&$D$12&",reference:=StartOfDay)="&A53&"", "Bar", "", "Close","5","0","All",,,"False","T","EveryTick") -> 4276.75 | Y53: -0.004886277703 | Z53: =RTD("cqg.rtd",,"StudyData", "Close("&$D$12&") when LocalYear("&$D$12&")="&$D$10&" and localMonth("&$D$12&") ="&$E$10&" and LocalDay("&$D$12&")="&$F$10&" and Barix("&$D$12&",reference:=StartOfDay)="&A53&"", "Bar", "", "Close","5","0","All",,,"False","T","EveryTick") -> 4364.25 | AA53: 0.003333524915
A54: 149 | B54: 05:25:00 | C54: -24 | D54: =RTD("cqg.rtd",,"StudyData", $D$12, "Tick", "FlatTicks=0", "Tick","D",C54,"PrimaryOnly") -> 4334.25 | F54: TYA | G54: 96 | H54: =RTD("cqg.rtd",,"StudyData", "Close("&$D$12&") when LocalYear("&$D$12&")="&$D$1&" and localMonth("&$D$12&") ="&$E$1&" and LocalDay("&$D$12&")="&$F$1&" and Barix("&$D$12&",reference:=StartOfDay)="&A54&"", "Bar", "", "Close","5","0","All",,,"False","T","EveryTick") -> 4349 | I54: 0.001900593215 | J54: =RTD("cqg.rtd",,"StudyData", "Close("&$D$12&") when LocalYear("&$D$12&")="&$D$2&" and localMonth("&$D$12&") ="&$E$2&" and LocalDay("&$D$12&")="&$F$2&" and Barix("&$D$12&",reference:=StartOfDay)="&A54&"", "Bar", "", "Close","5","0","All",,,"False","T","EveryTick") -> 4347.75 | K54: -0.0007469547231 | L54: =RTD("cqg.rtd",,"StudyData", "Close("&$D$12&") when LocalYear("&$D$12&")="&$D$3&" and localMonth("&$D$12&") ="&$E$3&" and LocalDay("&$D$12&")="&$F$3&" and Barix("&$D$12&",reference:=StartOfDay)="&A54&"", "Bar", "", "Close","5","0","All",,,"False","T","EveryTick") -> 4366 | M54: -0.003708140795 | N54: =RTD("cqg.rtd",,"StudyData", "Close("&$D$12&") when LocalYear("&$D$12&")="&$D$4&" and localMonth("&$D$12&") ="&$E$4&" and LocalDay("&$D$12&")="&$F$4&" and Barix("&$D$12&",reference:=StartOfDay)="&A54&"", "Bar", "", "Close","5","0","All",,,"False","T","EveryTick") -> 4393.75 | O54: 0.000854214123 | P54: =RTD("cqg.rtd",,"StudyData", "Close("&$D$12&") when LocalYear("&$D$12&")="&$D$5&" and localMonth("&$D$12&") ="&$E$5&" and LocalDay("&$D$12&")="&$F$5&" and Barix("&$D$12&",reference:=StartOfDay)="&A54&"", "Bar", "", "Close","5","0","All",,,"False","T","EveryTick") -> 4381.25 | Q54: 0.00625861277 | R54: =RTD("cqg.rtd",,"StudyData", "Close("&$D$12&") when LocalYear("&$D$12&")="&$D$6&" and localMonth("&$D$12&") ="&$E$6&" and LocalDay("&$D$12&")="&$F$6&" and Barix("&$D$12&",reference:=StartOfDay)="&A54&"", "Bar", "", "Close","5","0","All",,,"False","T","EveryTick") -> 4284 | S54: -0.01153668666 | T54: =RTD("cqg.rtd",,"StudyData", "Close("&$D$12&") when LocalYear("&$D$12&")="&$D$7&" and localMonth("&$D$12&") ="&$E$7&" and LocalDay("&$D$12&")="&$F$7&" and Barix("&$D$12&",reference:=StartOfDay)="&A54&"", "Bar", "", "Close","5","0","All",,,"False","T","EveryTick") -> 4306.25 | U54: 0.003495484999 | V54: =RTD("cqg.rtd",,"StudyData", "Close("&$D$12&") when LocalYear("&$D$12&")="&$D$8&" and localMonth("&$D$12&") ="&$E$8&" and LocalDay("&$D$12&")="&$F$8&" and Barix("&$D$12&",reference:=StartOfDay)="&A54&"", "Bar", "", "Close","5","0","All",,,"False","T","EveryTick") -> 4330.5 | W54: -0.003050359712 | X54: =RTD("cqg.rtd",,"StudyData", "Close("&$D$12&") when LocalYear("&$D$12&")="&$D$9&" and localMonth("&$D$12&") ="&$E$9&" and LocalDay("&$D$12&")="&$F$9&" and Barix("&$D$12&",reference:=StartOfDay)="&A54&"", "Bar", "", "Close","5","0","All",,,"False","T","EveryTick") -> 4278.5 | Y54: -0.004479087895 | Z54: =RTD("cqg.rtd",,"StudyData", "Close("&$D$12&") when LocalYear("&$D$12&")="&$D$10&" and localMonth("&$D$12&") ="&$E$10&" and LocalDay("&$D$12&")="&$F$10&" and Barix("&$D$12&",reference:=StartOfDay)="&A54&"", "Bar", "", "Close","5","0","All",,,"False","T","EveryTick") -> 4364 | AA54: 0.003276050348
A55: 150 | B55: 05:30:00 | C55: -23 | D55: =RTD("cqg.rtd",,"StudyData", $D$12, "Tick", "FlatTicks=0", "Tick","D",C55,"PrimaryOnly") -> 4334.5 | F55: TNA | G55: 96 | H55: =RTD("cqg.rtd",,"StudyData", "Close("&$D$12&") when LocalYear("&$D$12&")="&$D$1&" and localMonth("&$D$12&") ="&$E$1&" and LocalDay("&$D$12&")="&$F$1&" and Barix("&$D$12&",reference:=StartOfDay)="&A55&"", "Bar", "", "Close","5","0","All",,,"False","T","EveryTick") -> 4348.75 | I55: 0.001842999482 | J55: =RTD("cqg.rtd",,"StudyData", "Close("&$D$12&") when LocalYear("&$D$12&")="&$D$2&" and localMonth("&$D$12&") ="&$E$2&" and LocalDay("&$D$12&")="&$F$2&" and Barix("&$D$12&",reference:=StartOfDay)="&A55&"", "Bar", "", "Close","5","0","All",,,"False","T","EveryTick") -> 4348 | K55: -0.0006894966674 | L55: =RTD("cqg.rtd",,"StudyData", "Close("&$D$12&") when LocalYear("&$D$12&")="&$D$3&" and localMonth("&$D$12&") ="&$E$3&" and LocalDay("&$D$12&")="&$F$3&" and Barix("&$D$12&",reference:=StartOfDay)="&A55&"", "Bar", "", "Close","5","0","All",,,"False","T","EveryTick") -> 4364.75 | M55: -0.003993382395 | N55: =RTD("cqg.rtd",,"StudyData", "Close("&$D$12&") when LocalYear("&$D$12&")="&$D$4&" and localMonth("&$D$12&") ="&$E$4&" and LocalDay("&$D$12&")="&$F$4&" and Barix("&$D$12&",reference:=StartOfDay)="&A55&"", "Bar", "", "Close","5","0","All",,,"False","T","EveryTick") -> 4394.5 | O55: 0.001025056948 | P55: =RTD("cqg.rtd",,"StudyData", "Close("&$D$12&") when LocalYear("&$D$12&")="&$D$5&" and localMonth("&$D$12&") ="&$E$5&" and LocalDay("&$D$12&")="&$F$5&" and Barix("&$D$12&",reference:=StartOfDay)="&A55&"", "Bar", "", "Close","5","0","All",,,"False","T","EveryTick") -> 4381.5 | Q55: 0.006316031236 | R55: =RTD("cqg.rtd",,"StudyData", "Close("&$D$12&") when LocalYear("&$D$12&")="&$D$6&" and localMonth("&$D$12&") ="&$E$6&" and LocalDay("&$D$12&")="&$F$6&" and Barix("&$D$12&",reference:=StartOfDay)="&A55&"", "Bar", "", "Close","5","0","All",,,"False","T","EveryTick") -> 4280.75 | S55: -0.0122865713 | T55: =RTD("cqg.rtd",,"StudyData", "Close("&$D$12&") when LocalYear("&$D$12&")="&$D$7&" and localMonth("&$D$12&") ="&$E$7&" and LocalDay("&$D$12&")="&$F$7&" and Barix("&$D$12&",reference:=StartOfDay)="&A55&"", "Bar", "", "Close","5","0","All",,,"False","T","EveryTick") -> 4303.75 | U55: 0.002912904165 | V55: =RTD("cqg.rtd",,"StudyData", "Close("&$D$12&") when LocalYear("&$D$12&")="&$D$8&" and localMonth("&$D$12&") ="&$E$8&" and LocalDay("&$D$12&")="&$F$8&" and Barix("&$D$12&",reference:=StartOfDay)="&A55&"", "Bar", "", "Close","5","0","All",,,"False","T","EveryTick") -> 4330.25 | W55: -0.003107913669 | X55: =RTD("cqg.rtd",,"StudyData", "Close("&$D$12&") when LocalYear("&$D$12&")="&$D$9&" and localMonth("&$D$12&") ="&$E$9&" and LocalDay("&$D$12&")="&$F$9&" and Barix("&$D$12&",reference:=StartOfDay)="&A55&"", "Bar", "", "Close","5","0","All",,,"False","T","EveryTick") -> 4279.75 | Y55: -0.004188238032 | Z55: =RTD("cqg.rtd",,"StudyData", "Close("&$D$12&") when LocalYear("&$D$12&")="&$D$10&" and localMonth("&$D$12&") ="&$E$10&" and LocalDay("&$D$12&")="&$F$10&" and Barix("&$D$12&",reference:=StartOfDay)="&A55&"", "Bar", "", "Close","5","0","All",,,"False","T","EveryTick") -> 4366.25 | AA55: 0.003793321455
A56: 151 | B56: 05:35:00 | C56: -22 | D56: =RTD("cqg.rtd",,"StudyData", $D$12, "Tick", "FlatTicks=0", "Tick","D",C56,"PrimaryOnly") -> 4334.75 | F56: FVA | G56: 96 | H56: =RTD("cqg.rtd",,"StudyData", "Close("&$D$12&") when LocalYear("&$D$12&")="&$D$1&" and localMonth("&$D$12&") ="&$E$1&" and LocalDay("&$D$12&")="&$F$1&" and Barix("&$D$12&",reference:=StartOfDay)="&A56&"", "Bar", "", "Close","5","0","All",,,"False","T","EveryTick") -> 4346.75 | I56: 0.001382249611 | J56: =RTD("cqg.rtd",,"StudyData", "Close("&$D$12&") when LocalYear("&$D$12&")="&$D$2&" and localMonth("&$D$12&") ="&$E$2&" and LocalDay("&$D$12&")="&$F$2&" and Barix("&$D$12&",reference:=StartOfDay)="&A56&"", "Bar", "", "Close","5","0","All",,,"False","T","EveryTick") -> 4348.75 | K56: -0.0005171225006 | L56: =RTD("cqg.rtd",,"StudyData", "Close("&$D$12&") when LocalYear("&$D$12&")="&$D$3&" and localMonth("&$D$12&") ="&$E$3&" and LocalDay("&$D$12&")="&$F$3&" and Barix("&$D$12&",reference:=StartOfDay)="&A56&"", "Bar", "", "Close","5","0","All",,,"False","T","EveryTick") -> 4364.5 | M56: -0.004050430715 | N56: =RTD("cqg.rtd",,"StudyData", "Close("&$D$12&") when LocalYear("&$D$12&")="&$D$4&" and localMonth("&$D$12&") ="&$E$4&" and LocalDay("&$D$12&")="&$F$4&" and Barix("&$D$12&",reference:=StartOfDay)="&A56&"", "Bar", "", "Close","5","0","All",,,"False","T","EveryTick") -> 4394 | O56: 0.0009111617312 | P56: =RTD("cqg.rtd",,"StudyData", "Close("&$D$12&") when LocalYear("&$D$12&")="&$D$5&" and localMonth("&$D$12&") ="&$E$5&" and LocalDay("&$D$12&")="&$F$5&" and Barix("&$D$12&",reference:=StartOfDay)="&A56&"", "Bar", "", "Close","5","0","All",,,"False","T","EveryTick") -> 4383 | Q56: 0.00666054203 | R56: =RTD("cqg.rtd",,"StudyData", "Close("&$D$12&") when LocalYear("&$D$12&")="&$D$6&" and localMonth("&$D$12&") ="&$E$6&" and LocalDay("&$D$12&")="&$F$6&" and Barix("&$D$12&",reference:=StartOfDay)="&A56&"", "Bar", "", "Close","5","0","All",,,"False","T","EveryTick") -> 4282.25 | S56: -0.0119404707 | T56: =RTD("cqg.rtd",,"StudyData", "Close("&$D$12&") when LocalYear("&$D$12&")="&$D$7&" and localMonth("&$D$12&") ="&$E$7&" and LocalDay("&$D$12&")="&$F$7&" and Barix("&$D$12&",reference:=StartOfDay)="&A56&"", "Bar", "", "Close","5","0","All",,,"False","T","EveryTick") -> 4307.5 | U56: 0.003786775415 | V56: =RTD("cqg.rtd",,"StudyData", "Close("&$D$12&") when LocalYear("&$D$12&")="&$D$8&" and localMonth("&$D$12&") ="&$E$8&" and LocalDay("&$D$12&")="&$F$8&" and Barix("&$D$12&",reference:=StartOfDay)="&A56&"", "Bar", "", "Close","5","0","All",,,"False","T","EveryTick") -> 4329.25 | W56: -0.003338129496 | X56: =RTD("cqg.rtd",,"StudyData", "Close("&$D$12&") when LocalYear("&$D$12&")="&$D$9&" and localMonth("&$D$12&") ="&$E$9&" and LocalDay("&$D$12&")="&$F$9&" and Barix("&$D$12&",reference:=StartOfDay)="&A56&"", "Bar", "", "Close","5","0","All",,,"False","T","EveryTick") -> 4278.5 | Y56: -0.004479087895 | Z56: =RTD("cqg.rtd",,"StudyData", "Close("&$D$12&") when LocalYear("&$D$12&")="&$D$10&" and localMonth("&$D$12&") ="&$E$10&" and LocalDay("&$D$12&")="&$F$10&" and Barix("&$D$12&",reference:=StartOfDay)="&A56&"", "Bar", "", "Close","5","0","All",,,"False","T","EveryTick") -> 4367.25 | AA56: 0.004023219725
A57: 152 | B57: 05:40:00 | C57: -21 | D57: =RTD("cqg.rtd",,"StudyData", $D$12, "Tick", "FlatTicks=0", "Tick","D",C57,"PrimaryOnly") -> 4334.5 | F57: TUA | G57: 96 | H57: =RTD("cqg.rtd",,"StudyData", "Close("&$D$12&") when LocalYear("&$D$12&")="&$D$1&" and localMonth("&$D$12&") ="&$E$1&" and LocalDay("&$D$12&")="&$F$1&" and Barix("&$D$12&",reference:=StartOfDay)="&A57&"", "Bar", "", "Close","5","0","All",,,"False","T","EveryTick") -> 4346.75 | I57: 0.001382249611 | J57: =RTD("cqg.rtd",,"StudyData", "Close("&$D$12&") when LocalYear("&$D$12&")="&$D$2&" and localMonth("&$D$12&") ="&$E$2&" and LocalDay("&$D$12&")="&$F$2&" and Barix("&$D$12&",reference:=StartOfDay)="&A57&"", "Bar", "", "Close","5","0","All",,,"False","T","EveryTick") -> 4350.75 | K57: -5.745805562e-05 | L57: =RTD("cqg.rtd",,"StudyData", "Close("&$D$12&") when LocalYear("&$D$12&")="&$D$3&" and localMonth("&$D$12&") ="&$E$3&" and LocalDay("&$D$12&")="&$F$3&" and Barix("&$D$12&",reference:=StartOfDay)="&A57&"", "Bar", "", "Close","5","0","All",,,"False","T","EveryTick") -> 4362.25 | M57: -0.004563865594 | N57: =RTD("cqg.rtd",,"StudyData", "Close("&$D$12&") when LocalYear("&$D$12&")="&$D$4&" and localMonth("&$D$12&") ="&$E$4&" and LocalDay("&$D$12&")="&$F$4&" and Barix("&$D$12&",reference:=StartOfDay)="&A57&"", "Bar", "", "Close","5","0","All",,,"False","T","EveryTick") -> 4393.5 | O57: 0.0007972665148 | P57: =RTD("cqg.rtd",,"StudyData", "Close("&$D$12&") when LocalYear("&$D$12&")="&$D$5&" and localMonth("&$D$12&") ="&$E$5&" and LocalDay("&$D$12&")="&$F$5&" and Barix("&$D$12&",reference:=StartOfDay)="&A57&"", "Bar", "", "Close","5","0","All",,,"False","T","EveryTick") -> 4383.75 | Q57: 0.006832797428 | R57: =RTD("cqg.rtd",,"StudyData", "Close("&$D$12&") when LocalYear("&$D$12&")="&$D$6&" and localMonth("&$D$12&") ="&$E$6&" and LocalDay("&$D$12&")="&$F$6&" and Barix("&$D$12&",reference:=StartOfDay)="&A57&"", "Bar", "", "Close","5","0","All",,,"False","T","EveryTick") -> 4280.75 | S57: -0.0122865713 | T57: =RTD("cqg.rtd",,"StudyData", "Close("&$D$12&") when LocalYear("&$D$12&")="&$D$7&" and localMonth("&$D$12&") ="&$E$7&" and LocalDay("&$D$12&")="&$F$7&" and Barix("&$D$12&",reference:=StartOfDay)="&A57&"", "Bar", "", "Close","5","0","All",,,"False","T","EveryTick") -> 4306.25 | U57: 0.003495484999 | V57: =RTD("cqg.rtd",,"StudyData", "Close("&$D$12&") when LocalYear("&$D$12&")="&$D$8&" and localMonth("&$D$12&") ="&$E$8&" and LocalDay("&$D$12&")="&$F$8&" and Barix("&$D$12&",reference:=StartOfDay)="&A57&"", "Bar", "", "Close","5","0","All",,,"False","T","EveryTick") -> 4327 | W57: -0.003856115108 | X57: =RTD("cqg.rtd",,"StudyData", "Close("&$D$12&") when LocalYear("&$D$12&")="&$D$9&" and localMonth("&$D$12&") ="&$E$9&" and LocalDay("&$D$12&")="&$F$9&" and Barix("&$D$12&",reference:=StartOfDay)="&A57&"", "Bar", "", "Close","5","0","All",,,"False","T","EveryTick") -> 4280.25 | Y57: -0.004071898086 | Z57: =RTD("cqg.rtd",,"StudyData", "Close("&$D$12&") when LocalYear("&$D$12&")="&$D$10&" and localMonth("&$D$12&") ="&$E$10&" and LocalDay("&$D$12&")="&$F$10&" and Barix("&$D$12&",reference:=StartOfDay)="&A57&"", "Bar", "", "Close","5","0","All",,,"False","T","EveryTick") -> 4366.75 | AA57: 0.00390827059
A58: 153 | B58: 05:45:00 | C58: -20 | D58: =RTD("cqg.rtd",,"StudyData", $D$12, "Tick", "FlatTicks=0", "Tick","D",C58,"PrimaryOnly") -> 4334.75 | F58: FGBX | G58: 69 | H58: =RTD("cqg.rtd",,"StudyData", "Close("&$D$12&") when LocalYear("&$D$12&")="&$D$1&" and localMonth("&$D$12&") ="&$E$1&" and LocalDay("&$D$12&")="&$F$1&" and Barix("&$D$12&",reference:=StartOfDay)="&A58&"", "Bar", "", "Close","5","0","All",,,"False","T","EveryTick") -> 4347 | I58: 0.001439843345 | J58: =RTD("cqg.rtd",,"StudyData", "Close("&$D$12&") when LocalYear("&$D$12&")="&$D$2&" and localMonth("&$D$12&") ="&$E$2&" and LocalDay("&$D$12&")="&$F$2&" and Barix("&$D$12&",reference:=StartOfDay)="&A58&"", "Bar", "", "Close","5","0","All",,,"False","T","EveryTick") -> 4351.5 | K58: 0.0001149161112 | L58: =RTD("cqg.rtd",,"StudyData", "Close("&$D$12&") when LocalYear("&$D$12&")="&$D$3&" and localMonth("&$D$12&") ="&$E$3&" and LocalDay("&$D$12&")="&$F$3&" and Barix("&$D$12&",reference:=StartOfDay)="&A58&"", "Bar", "", "Close","5","0","All",,,"False","T","EveryTick") -> 4359.5 | M58: -0.005191397113 | N58: =RTD("cqg.rtd",,"StudyData", "Close("&$D$12&") when LocalYear("&$D$12&")="&$D$4&" and localMonth("&$D$12&") ="&$E$4&" and LocalDay("&$D$12&")="&$F$4&" and Barix("&$D$12&",reference:=StartOfDay)="&A58&"", "Bar", "", "Close","5","0","All",,,"False","T","EveryTick") -> 4393 | O58: 0.0006833712984 | P58: =RTD("cqg.rtd",,"StudyData", "Close("&$D$12&") when LocalYear("&$D$12&")="&$D$5&" and localMonth("&$D$12&") ="&$E$5&" and LocalDay("&$D$12&")="&$F$5&" and Barix("&$D$12&",reference:=StartOfDay)="&A58&"", "Bar", "", "Close","5","0","All",,,"False","T","EveryTick") -> 4385 | Q58: 0.007119889757 | R58: =RTD("cqg.rtd",,"StudyData", "Close("&$D$12&") when LocalYear("&$D$12&")="&$D$6&" and localMonth("&$D$12&") ="&$E$6&" and LocalDay("&$D$12&")="&$F$6&" and Barix("&$D$12&",reference:=StartOfDay)="&A58&"", "Bar", "", "Close","5","0","All",,,"False","T","EveryTick") -> 4279.75 | S58: -0.01251730503 | T58: =RTD("cqg.rtd",,"StudyData", "Close("&$D$12&") when LocalYear("&$D$12&")="&$D$7&" and localMonth("&$D$12&") ="&$E$7&" and LocalDay("&$D$12&")="&$F$7&" and Barix("&$D$12&",reference:=StartOfDay)="&A58&"", "Bar", "", "Close","5","0","All",,,"False","T","EveryTick") -> 4304.25 | U58: 0.003029420332 | V58: =RTD("cqg.rtd",,"StudyData", "Close("&$D$12&") when LocalYear("&$D$12&")="&$D$8&" and localMonth("&$D$12&") ="&$E$8&" and LocalDay("&$D$12&")="&$F$8&" and Barix("&$D$12&",reference:=StartOfDay)="&A58&"", "Bar", "", "Close","5","0","All",,,"False","T","EveryTick") -> 4328 | W58: -0.003625899281 | X58: =RTD("cqg.rtd",,"StudyData", "Close("&$D$12&") when LocalYear("&$D$12&")="&$D$9&" and localMonth("&$D$12&") ="&$E$9&" and LocalDay("&$D$12&")="&$F$9&" and Barix("&$D$12&",reference:=StartOfDay)="&A58&"", "Bar", "", "Close","5","0","All",,,"False","T","EveryTick") -> 4280 | Y58: -0.004130068059 | Z58: =RTD("cqg.rtd",,"StudyData", "Close("&$D$12&") when LocalYear("&$D$12&")="&$D$10&" and localMonth("&$D$12&") ="&$E$10&" and LocalDay("&$D$12&")="&$F$10&" and Barix("&$D$12&",reference:=StartOfDay)="&A58&"", "Bar", "", "Close","5","0","All",,,"False","T","EveryTick") -> 4370.5 | AA58: 0.004770389103
A59: 154 | B59: 05:50:00 | C59: -19 | D59: =RTD("cqg.rtd",,"StudyData", $D$12, "Tick", "FlatTicks=0", "Tick","D",C59,"PrimaryOnly") -> 4334.5 | F59: DB | G59: 69 | H59: =RTD("cqg.rtd",,"StudyData", "Close("&$D$12&") when LocalYear("&$D$12&")="&$D$1&" and localMonth("&$D$12&") ="&$E$1&" and LocalDay("&$D$12&")="&$F$1&" and Barix("&$D$12&",reference:=StartOfDay)="&A59&"", "Bar", "", "Close","5","0","All",,,"False","T","EveryTick") -> 4348 | I59: 0.00167021828 | J59: =RTD("cqg.rtd",,"StudyData", "Close("&$D$12&") when LocalYear("&$D$12&")="&$D$2&" and localMonth("&$D$12&") ="&$E$2&" and LocalDay("&$D$12&")="&$F$2&" and Barix("&$D$12&",reference:=StartOfDay)="&A59&"", "Bar", "", "Close","5","0","All",,,"False","T","EveryTick") -> 4354.5 | K59: 0.0008044127787 | L59: =RTD("cqg.rtd",,"StudyData", "Close("&$D$12&") when LocalYear("&$D$12&")="&$D$3&" and localMonth("&$D$12&") ="&$E$3&" and LocalDay("&$D$12&")="&$F$3&" and Barix("&$D$12&",reference:=StartOfDay)="&A59&"", "Bar", "", "Close","5","0","All",,,"False","T","EveryTick") -> 4360.5 | M59: -0.004963203834 | N59: =RTD("cqg.rtd",,"StudyData", "Close("&$D$12&") when LocalYear("&$D$12&")="&$D$4&" and localMonth("&$D$12&") ="&$E$4&" and LocalDay("&$D$12&")="&$F$4&" and Barix("&$D$12&",reference:=StartOfDay)="&A59&"", "Bar", "", "Close","5","0","All",,,"False","T","EveryTick") -> 4392.25 | O59: 0.0005125284738 | P59: =RTD("cqg.rtd",,"StudyData", "Close("&$D$12&") when LocalYear("&$D$12&")="&$D$5&" and localMonth("&$D$12&") ="&$E$5&" and LocalDay("&$D$12&")="&$F$5&" and Barix("&$D$12&",reference:=StartOfDay)="&A59&"", "Bar", "", "Close","5","0","All",,,"False","T","EveryTick") -> 4386.5 | Q59: 0.007464400551 | R59: =RTD("cqg.rtd",,"StudyData", "Close("&$D$12&") when LocalYear("&$D$12&")="&$D$6&" and localMonth("&$D$12&") ="&$E$6&" and LocalDay("&$D$12&")="&$F$6&" and Barix("&$D$12&",reference:=StartOfDay)="&A59&"", "Bar", "", "Close","5","0","All",,,"False","T","EveryTick") -> 4279.75 | S59: -0.01251730503 | T59: =RTD("cqg.rtd",,"StudyData", "Close("&$D$12&") when LocalYear("&$D$12&")="&$D$7&" and localMonth("&$D$12&") ="&$E$7&" and LocalDay("&$D$12&")="&$F$7&" and Barix("&$D$12&",reference:=StartOfDay)="&A59&"", "Bar", "", "Close","5","0","All",,,"False","T","EveryTick") -> 4303.5 | U59: 0.002854646082 | V59: =RTD("cqg.rtd",,"StudyData", "Close("&$D$12&") when LocalYear("&$D$12&")="&$D$8&" and localMonth("&$D$12&") ="&$E$8&" and LocalDay("&$D$12&")="&$F$8&" and Barix("&$D$12&",reference:=StartOfDay)="&A59&"", "Bar", "", "Close","5","0","All",,,"False","T","EveryTick") -> 4329.25 | W59: -0.003338129496 | X59: =RTD("cqg.rtd",,"StudyData", "Close("&$D$12&") when LocalYear("&$D$12&")="&$D$9&" and localMonth("&$D$12&") ="&$E$9&" and LocalDay("&$D$12&")="&$F$9&" and Barix("&$D$12&",reference:=StartOfDay)="&A59&"", "Bar", "", "Close","5","0","All",,,"False","T","EveryTick") -> 4280.75 | Y59: -0.003955558141 | Z59: =RTD("cqg.rtd",,"StudyData", "Close("&$D$12&") when LocalYear("&$D$12&")="&$D$10&" and localMonth("&$D$12&") ="&$E$10&" and LocalDay("&$D$12&")="&$F$10&" and Barix("&$D$12&",reference:=StartOfDay)="&A59&"", "Bar", "", "Close","5","0","All",,,"False","T","EveryTick") -> 4368.5 | AA59: 0.004310592563
A60: 155 | B60: 05:55:00 | C60: -18 | D60: =RTD("cqg.rtd",,"StudyData", $D$12, "Tick", "FlatTicks=0", "Tick","D",C60,"PrimaryOnly") -> 4334.75 | F60: DL | G60: 69 | H60: =RTD("cqg.rtd",,"StudyData", "Close("&$D$12&") when LocalYear("&$D$12&")="&$D$1&" and localMonth("&$D$12&") ="&$E$1&" and LocalDay("&$D$12&")="&$F$1&" and Barix("&$D$12&",reference:=StartOfDay)="&A60&"", "Bar", "", "Close","5","0","All",,,"False","T","EveryTick") -> 4346.5 | I60: 0.001324655877 | J60: =RTD("cqg.rtd",,"StudyData", "Close("&$D$12&") when LocalYear("&$D$12&")="&$D$2&" and localMonth("&$D$12&") ="&$E$2&" and LocalDay("&$D$12&")="&$F$2&" and Barix("&$D$12&",reference:=StartOfDay)="&A60&"", "Bar", "", "Close","5","0","All",,,"False","T","EveryTick") -> 4356.5 | K60: 0.001264077224 | L60: =RTD("cqg.rtd",,"StudyData", "Close("&$D$12&") when LocalYear("&$D$12&")="&$D$3&" and localMonth("&$D$12&") ="&$E$3&" and LocalDay("&$D$12&")="&$F$3&" and Barix("&$D$12&",reference:=StartOfDay)="&A60&"", "Bar", "", "Close","5","0","All",,,"False","T","EveryTick") -> 4360.75 | M60: -0.004906155514 | N60: =RTD("cqg.rtd",,"StudyData", "Close("&$D$12&") when LocalYear("&$D$12&")="&$D$4&" and localMonth("&$D$12&") ="&$E$4&" and LocalDay("&$D$12&")="&$F$4&" and Barix("&$D$12&",reference:=StartOfDay)="&A60&"", "Bar", "", "Close","5","0","All",,,"False","T","EveryTick") -> 4390.5 | O60: 0.0001138952164 | P60: =RTD("cqg.rtd",,"StudyData", "Close("&$D$12&") when LocalYear("&$D$12&")="&$D$5&" and localMonth("&$D$12&") ="&$E$5&" and LocalDay("&$D$12&")="&$F$5&" and Barix("&$D$12&",reference:=StartOfDay)="&A60&"", "Bar", "", "Close","5","0","All",,,"False","T","EveryTick") -> 4389.75 | Q60: 0.008210840606 | R60: =RTD("cqg.rtd",,"StudyData", "Close("&$D$12&") when LocalYear("&$D$12&")="&$D$6&" and localMonth("&$D$12&") ="&$E$6&" and LocalDay("&$D$12&")="&$F$6&" and Barix("&$D$12&",reference:=StartOfDay)="&A60&"", "Bar", "", "Close","5","0","All",,,"False","T","EveryTick") -> 4281.75 | S60: -0.01205583756 | T60: =RTD("cqg.rtd",,"StudyData", "Close("&$D$12&") when LocalYear("&$D$12&")="&$D$7&" and localMonth("&$D$12&") ="&$E$7&" and LocalDay("&$D$12&")="&$F$7&" and Barix("&$D$12&",reference:=StartOfDay)="&A60&"", "Bar", "", "Close","5","0","All",,,"False","T","EveryTick") -> 4306.25 | U60: 0.003495484999 | V60: =RTD("cqg.rtd",,"StudyData", "Close("&$D$12&") when LocalYear("&$D$12&")="&$D$8&" and localMonth("&$D$12&") ="&$E$8&" and LocalDay("&$D$12&")="&$F$8&" and Barix("&$D$12&",reference:=StartOfDay)="&A60&"", "Bar", "", "Close","5","0","All",,,"False","T","EveryTick") -> 4332.5 | W60: -0.002589928058 | X60: =RTD("cqg.rtd",,"StudyData", "Close("&$D$12&") when LocalYear("&$D$12&")="&$D$9&" and localMonth("&$D$12&") ="&$E$9&" and LocalDay("&$D$12&")="&$F$9&" and Barix("&$D$12&",reference:=StartOfDay)="&A60&"", "Bar", "", "Close","5","0","All",,,"False","T","EveryTick") -> 4283 | Y60: -0.003432028387 | Z60: =RTD("cqg.rtd",,"StudyData", "Close("&$D$12&") when LocalYear("&$D$12&")="&$D$10&" and localMonth("&$D$12&") ="&$E$10&" and LocalDay("&$D$12&")="&$F$10&" and Barix("&$D$12&",reference:=StartOfDay)="&A60&"", "Bar", "", "Close","5","0","All",,,"False","T","EveryTick") -> 4366.5 | AA60: 0.003850796023
A61: 156 | B61: 06:00:00 | C61: -17 | D61: =RTD("cqg.rtd",,"StudyData", $D$12, "Tick", "FlatTicks=0", "Tick","D",C61,"PrimaryOnly") -> 4335 | F61: DG | G61: 69 | H61: =RTD("cqg.rtd",,"StudyData", "Close("&$D$12&") when LocalYear("&$D$12&")="&$D$1&" and localMonth("&$D$12&") ="&$E$1&" and LocalDay("&$D$12&")="&$F$1&" and Barix("&$D$12&",reference:=StartOfDay)="&A61&"", "Bar", "", "Close","5","0","All",,,"False","T","EveryTick") -> 4346.5 | I61: 0.001324655877 | J61: =RTD("cqg.rtd",,"StudyData", "Close("&$D$12&") when LocalYear("&$D$12&")="&$D$2&" and localMonth("&$D$12&") ="&$E$2&" and LocalDay("&$D$12&")="&$F$2&" and Barix("&$D$12&",reference:=StartOfDay)="&A61&"", "Bar", "", "Close","5","0","All",,,"False","T","EveryTick") -> 4353.75 | K61: 0.0006320386118 | L61: =RTD("cqg.rtd",,"StudyData", "Close("&$D$12&") when LocalYear("&$D$12&")="&$D$3&" and localMonth("&$D$12&") ="&$E$3&" and LocalDay("&$D$12&")="&$F$3&" and Barix("&$D$12&",reference:=StartOfDay)="&A61&"", "Bar", "", "Close","5","0","All",,,"False","T","EveryTick") -> 4361.5 | M61: -0.004735010554 | N61: =RTD("cqg.rtd",,"StudyData", "Close("&$D$12&") when LocalYear("&$D$12&")="&$D$4&" and localMonth("&$D$12&") ="&$E$4&" and LocalDay("&$D$12&")="&$F$4&" and Barix("&$D$12&",reference:=StartOfDay)="&A61&"", "Bar", "", "Close","5","0","All",,,"False","T","EveryTick") -> 4393.75 | O61: 0.000854214123 | P61: =RTD("cqg.rtd",,"StudyData", "Close("&$D$12&") when LocalYear("&$D$12&")="&$D$5&" and localMonth("&$D$12&") ="&$E$5&" and LocalDay("&$D$12&")="&$F$5&" and Barix("&$D$12&",reference:=StartOfDay)="&A61&"", "Bar", "", "Close","5","0","All",,,"False","T","EveryTick") -> 4390.25 | Q61: 0.008325677538 | R61: =RTD("cqg.rtd",,"StudyData", "Close("&$D$12&") when LocalYear("&$D$12&")="&$D$6&" and localMonth("&$D$12&") ="&$E$6&" and LocalDay("&$D$12&")="&$F$6&" and Barix("&$D$12&",reference:=StartOfDay)="&A61&"", "Bar", "", "Close","5","0","All",,,"False","T","EveryTick") -> 4282.5 | S61: -0.01188278726 | T61: =RTD("cqg.rtd",,"StudyData", "Close("&$D$12&") when LocalYear("&$D$12&")="&$D$7&" and localMonth("&$D$12&") ="&$E$7&" and LocalDay("&$D$12&")="&$F$7&" and Barix("&$D$12&",reference:=StartOfDay)="&A61&"", "Bar", "", "Close","5","0","All",,,"False","T","EveryTick") -> 4306 | U61: 0.003437226915 | V61: =RTD("cqg.rtd",,"StudyData", "Close("&$D$12&") when LocalYear("&$D$12&")="&$D$8&" and localMonth("&$D$12&") ="&$E$8&" and LocalDay("&$D$12&")="&$F$8&" and Barix("&$D$12&",reference:=StartOfDay)="&A61&"", "Bar", "", "Close","5","0","All",,,"False","T","EveryTick") -> 4328.5 | W61: -0.003510791367 | X61: =RTD("cqg.rtd",,"StudyData", "Close("&$D$12&") when LocalYear("&$D$12&")="&$D$9&" and localMonth("&$D$12&") ="&$E$9&" and LocalDay("&$D$12&")="&$F$9&" and Barix("&$D$12&",reference:=StartOfDay)="&A61&"", "Bar", "", "Close","5","0","All",,,"False","T","EveryTick") -> 4287.25 | Y61: -0.002443138852 | Z61: =RTD("cqg.rtd",,"StudyData", "Close("&$D$12&") when LocalYear("&$D$12&")="&$D$10&" and localMonth("&$D$12&") ="&$E$10&" and LocalDay("&$D$12&")="&$F$10&" and Barix("&$D$12&",reference:=StartOfDay)="&A61&"", "Bar", "", "Close","5","0","All",,,"False","T","EveryTick") -> 4364 | AA61: 0.003276050348
A62: 157 | B62: 06:05:00 | C62: -16 | D62: =RTD("cqg.rtd",,"StudyData", $D$12, "Tick", "FlatTicks=0", "Tick","D",C62,"PrimaryOnly") -> 4335.25 | F62: FOAT | G62: 0 | H62: =RTD("cqg.rtd",,"StudyData", "Close("&$D$12&") when LocalYear("&$D$12&")="&$D$1&" and localMonth("&$D$12&") ="&$E$1&" and LocalDay("&$D$12&")="&$F$1&" and Barix("&$D$12&",reference:=StartOfDay)="&A62&"", "Bar", "", "Close","5","0","All",,,"False","T","EveryTick") -> 4344.25 | I62: 0.0008063122732 | J62: =RTD("cqg.rtd",,"StudyData", "Close("&$D$12&") when LocalYear("&$D$12&")="&$D$2&" and localMonth("&$D$12&") ="&$E$2&" and LocalDay("&$D$12&")="&$F$2&" and Barix("&$D$12&",reference:=StartOfDay)="&A62&"", "Bar", "", "Close","5","0","All",,,"False","T","EveryTick") -> 4355.75 | K62: 0.001091703057 | L62: =RTD("cqg.rtd",,"StudyData", "Close("&$D$12&") when LocalYear("&$D$12&")="&$D$3&" and localMonth("&$D$12&") ="&$E$3&" and LocalDay("&$D$12&")="&$F$3&" and Barix("&$D$12&",reference:=StartOfDay)="&A62&"", "Bar", "", "Close","5","0","All",,,"False","T","EveryTick") -> 4363.25 | M62: -0.004335672314 | N62: =RTD("cqg.rtd",,"StudyData", "Close("&$D$12&") when LocalYear("&$D$12&")="&$D$4&" and localMonth("&$D$12&") ="&$E$4&" and LocalDay("&$D$12&")="&$F$4&" and Barix("&$D$12&",reference:=StartOfDay)="&A62&"", "Bar", "", "Close","5","0","All",,,"False","T","EveryTick") -> 4395 | O62: 0.001138952164 | P62: =RTD("cqg.rtd",,"StudyData", "Close("&$D$12&") when LocalYear("&$D$12&")="&$D$5&" and localMonth("&$D$12&") ="&$E$5&" and LocalDay("&$D$12&")="&$F$5&" and Barix("&$D$12&",reference:=StartOfDay)="&A62&"", "Bar", "", "Close","5","0","All",,,"False","T","EveryTick") -> 4392.25 | Q62: 0.008785025264 | R62: =RTD("cqg.rtd",,"StudyData", "Close("&$D$12&") when LocalYear("&$D$12&")="&$D$6&" and localMonth("&$D$12&") ="&$E$6&" and LocalDay("&$D$12&")="&$F$6&" and Barix("&$D$12&",reference:=StartOfDay)="&A62&"", "Bar", "", "Close","5","0","All",,,"False","T","EveryTick") -> 4282.25 | S62: -0.0119404707 | T62: =RTD("cqg.rtd",,"StudyData", "Close("&$D$12&") when LocalYear("&$D$12&")="&$D$7&" and localMonth("&$D$12&") ="&$E$7&" and LocalDay("&$D$12&")="&$F$7&" and Barix("&$D$12&",reference:=StartOfDay)="&A62&"", "Bar", "", "Close","5","0","All",,,"False","T","EveryTick") -> 4306 | U62: 0.003437226915 | V62: =RTD("cqg.rtd",,"StudyData", "Close("&$D$12&") when LocalYear("&$D$12&")="&$D$8&" and localMonth("&$D$12&") ="&$E$8&" and LocalDay("&$D$12&")="&$F$8&" and Barix("&$D$12&",reference:=StartOfDay)="&A62&"", "Bar", "", "Close","5","0","All",,,"False","T","EveryTick") -> 4328.5 | W62: -0.003510791367 | X62: =RTD("cqg.rtd",,"StudyData", "Close("&$D$12&") when LocalYear("&$D$12&")="&$D$9&" and localMonth("&$D$12&") ="&$E$9&" and LocalDay("&$D$12&")="&$F$9&" and Barix("&$D$12&",reference:=StartOfDay)="&A62&"", "Bar", "", "Close","5","0","All",,,"False","T","EveryTick") -> 4288.5 | Y62: -0.002152288988 | Z62: =RTD("cqg.rtd",,"StudyData", "Close("&$D$12&") when LocalYear("&$D$12&")="&$D$10&" and localMonth("&$D$12&") ="&$E$10&" and LocalDay("&$D$12&")="&$F$10&" and Barix("&$D$12&",reference:=StartOfDay)="&A62&"", "Bar", "", "Close","5","0","All",,,"False","T","EveryTick") -> 4367.5 | AA62: 0.004080694293
A63: 158 | B63: 06:10:00 | C63: -15 | D63: =RTD("cqg.rtd",,"StudyData", $D$12, "Tick", "FlatTicks=0", "Tick","D",C63,"PrimaryOnly") -> 4335.5 | F63: QGA | G63: 0 | H63: =RTD("cqg.rtd",,"StudyData", "Close("&$D$12&") when LocalYear("&$D$12&")="&$D$1&" and localMonth("&$D$12&") ="&$E$1&" and LocalDay("&$D$12&")="&$F$1&" and Barix("&$D$12&",reference:=StartOfDay)="&A63&"", "Bar", "", "Close","5","0","All",,,"False","T","EveryTick") -> 4344.75 | I63: 0.0009214997408 | J63: =RTD("cqg.rtd",,"StudyData", "Close("&$D$12&") when LocalYear("&$D$12&")="&$D$2&" and localMonth("&$D$12&") ="&$E$2&" and LocalDay("&$D$12&")="&$F$2&" and Barix("&$D$12&",reference:=StartOfDay)="&A63&"", "Bar", "", "Close","5","0","All",,,"False","T","EveryTick") -> 4356.25 | K63: 0.001206619168 | L63: =RTD("cqg.rtd",,"StudyData", "Close("&$D$12&") when LocalYear("&$D$12&")="&$D$3&" and localMonth("&$D$12&") ="&$E$3&" and LocalDay("&$D$12&")="&$F$3&" and Barix("&$D$12&",reference:=StartOfDay)="&A63&"", "Bar", "", "Close","5","0","All",,,"False","T","EveryTick") -> 4365 | M63: -0.003936334075 | N63: =RTD("cqg.rtd",,"StudyData", "Close("&$D$12&") when LocalYear("&$D$12&")="&$D$4&" and localMonth("&$D$12&") ="&$E$4&" and LocalDay("&$D$12&")="&$F$4&" and Barix("&$D$12&",reference:=StartOfDay)="&A63&"", "Bar", "", "Close","5","0","All",,,"False","T","EveryTick") -> 4394.5 | O63: 0.001025056948 | P63: =RTD("cqg.rtd",,"StudyData", "Close("&$D$12&") when LocalYear("&$D$12&")="&$D$5&" and localMonth("&$D$12&") ="&$E$5&" and LocalDay("&$D$12&")="&$F$5&" and Barix("&$D$12&",reference:=StartOfDay)="&A63&"", "Bar", "", "Close","5","0","All",,,"False","T","EveryTick") -> 4393.25 | Q63: 0.009014699127 | R63: =RTD("cqg.rtd",,"StudyData", "Close("&$D$12&") when LocalYear("&$D$12&")="&$D$6&" and localMonth("&$D$12&") ="&$E$6&" and LocalDay("&$D$12&")="&$F$6&" and Barix("&$D$12&",reference:=StartOfDay)="&A63&"", "Bar", "", "Close","5","0","All",,,"False","T","EveryTick") -> 4286 | S63: -0.0110752192 | T63: =RTD("cqg.rtd",,"StudyData", "Close("&$D$12&") when LocalYear("&$D$12&")="&$D$7&" and localMonth("&$D$12&") ="&$E$7&" and LocalDay("&$D$12&")="&$F$7&" and Barix("&$D$12&",reference:=StartOfDay)="&A63&"", "Bar", "", "Close","5","0","All",,,"False","T","EveryTick") -> 4306.25 | U63: 0.003495484999 | V63: =RTD("cqg.rtd",,"StudyData", "Close("&$D$12&") when LocalYear("&$D$12&")="&$D$8&" and localMonth("&$D$12&") ="&$E$8&" and LocalDay("&$D$12&")="&$F$8&" and Barix("&$D$12&",reference:=StartOfDay)="&A63&"", "Bar", "", "Close","5","0","All",,,"False","T","EveryTick") -> 4323.75 | W63: -0.004604316547 | X63: =RTD("cqg.rtd",,"StudyData", "Close("&$D$12&") when LocalYear("&$D$12&")="&$D$9&" and localMonth("&$D$12&") ="&$E$9&" and LocalDay("&$D$12&")="&$F$9&" and Barix("&$D$12&",reference:=StartOfDay)="&A63&"", "Bar", "", "Close","5","0","All",,,"False","T","EveryTick") -> 4292.5 | Y63: -0.001221569426 | Z63: =RTD("cqg.rtd",,"StudyData", "Close("&$D$12&") when LocalYear("&$D$12&")="&$D$10&" and localMonth("&$D$12&") ="&$E$10&" and LocalDay("&$D$12&")="&$F$10&" and Barix("&$D$12&",reference:=StartOfDay)="&A63&"", "Bar", "", "Close","5","0","All",,,"False","T","EveryTick") -> 4370 | AA63: 0.004655439968
A64: 159 | B64: 06:15:00 | C64: -14 | D64: =RTD("cqg.rtd",,"StudyData", $D$12, "Tick", "FlatTicks=0", "Tick","D",C64,"PrimaryOnly") -> 4335.25 | H64: =RTD("cqg.rtd",,"StudyData", "Close("&$D$12&") when LocalYear("&$D$12&")="&$D$1&" and localMonth("&$D$12&") ="&$E$1&" and LocalDay("&$D$12&")="&$F$1&" and Barix("&$D$12&",reference:=StartOfDay)="&A64&"", "Bar", "", "Close","5","0","All",,,"False","T","EveryTick") -> 4347.25 | I64: 0.001497437079 | J64: =RTD("cqg.rtd",,"StudyData", "Close("&$D$12&") when LocalYear("&$D$12&")="&$D$2&" and localMonth("&$D$12&") ="&$E$2&" and LocalDay("&$D$12&")="&$F$2&" and Barix("&$D$12&",reference:=StartOfDay)="&A64&"", "Bar", "", "Close","5","0","All",,,"False","T","EveryTick") -> 4355.75 | K64: 0.001091703057 | L64: =RTD("cqg.rtd",,"StudyData", "Close("&$D$12&") when LocalYear("&$D$12&")="&$D$3&" and localMonth("&$D$12&") ="&$E$3&" and LocalDay("&$D$12&")="&$F$3&" and Barix("&$D$12&",reference:=StartOfDay)="&A64&"", "Bar", "", "Close","5","0","All",,,"False","T","EveryTick") -> 4365.75 | M64: -0.003765189115 | N64: =RTD("cqg.rtd",,"StudyData", "Close("&$D$12&") when LocalYear("&$D$12&")="&$D$4&" and localMonth("&$D$12&") ="&$E$4&" and LocalDay("&$D$12&")="&$F$4&" and Barix("&$D$12&",reference:=StartOfDay)="&A64&"", "Bar", "", "Close","5","0","All",,,"False","T","EveryTick") -> 4395.25 | O64: 0.001195899772 | P64: =RTD("cqg.rtd",,"StudyData", "Close("&$D$12&") when LocalYear("&$D$12&")="&$D$5&" and localMonth("&$D$12&") ="&$E$5&" and LocalDay("&$D$12&")="&$F$5&" and Barix("&$D$12&",reference:=StartOfDay)="&A64&"", "Bar", "", "Close","5","0","All",,,"False","T","EveryTick") -> 4395.25 | Q64: 0.009474046853 | R64: =RTD("cqg.rtd",,"StudyData", "Close("&$D$12&") when LocalYear("&$D$12&")="&$D$6&" and localMonth("&$D$12&") ="&$E$6&" and LocalDay("&$D$12&")="&$F$6&" and Barix("&$D$12&",reference:=StartOfDay)="&A64&"", "Bar", "", "Close","5","0","All",,,"False","T","EveryTick") -> 4285.75 | S64: -0.01113290263 | T64: =RTD("cqg.rtd",,"StudyData", "Close("&$D$12&") when LocalYear("&$D$12&")="&$D$7&" and localMonth("&$D$12&") ="&$E$7&" and LocalDay("&$D$12&")="&$F$7&" and Barix("&$D$12&",reference:=StartOfDay)="&A64&"", "Bar", "", "Close","5","0","All",,,"False","T","EveryTick") -> 4307.75 | U64: 0.003845033498 | V64: =RTD("cqg.rtd",,"StudyData", "Close("&$D$12&") when LocalYear("&$D$12&")="&$D$8&" and localMonth("&$D$12&") ="&$E$8&" and LocalDay("&$D$12&")="&$F$8&" and Barix("&$D$12&",reference:=StartOfDay)="&A64&"", "Bar", "", "Close","5","0","All",,,"False","T","EveryTick") -> 4324 | W64: -0.00454676259 | X64: =RTD("cqg.rtd",,"StudyData", "Close("&$D$12&") when LocalYear("&$D$12&")="&$D$9&" and localMonth("&$D$12&") ="&$E$9&" and LocalDay("&$D$12&")="&$F$9&" and Barix("&$D$12&",reference:=StartOfDay)="&A64&"", "Bar", "", "Close","5","0","All",,,"False","T","EveryTick") -> 4294.25 | Y64: -0.0008143796172 | Z64: =RTD("cqg.rtd",,"StudyData", "Close("&$D$12&") when LocalYear("&$D$12&")="&$D$10&" and localMonth("&$D$12&") ="&$E$10&" and LocalDay("&$D$12&")="&$F$10&" and Barix("&$D$12&",reference:=StartOfDay)="&A64&"", "Bar", "", "Close","5","0","All",,,"False","T","EveryTick") -> 4370.75 | AA64: 0.00482786367
A65: 160 | B65: 06:20:00 | C65: -13 | D65: =RTD("cqg.rtd",,"StudyData", $D$12, "Tick", "FlatTicks=0", "Tick","D",C65,"PrimaryOnly") -> 4335.5 | H65: =RTD("cqg.rtd",,"StudyData", "Close("&$D$12&") when LocalYear("&$D$12&")="&$D$1&" and localMonth("&$D$12&") ="&$E$1&" and LocalDay("&$D$12&")="&$F$1&" and Barix("&$D$12&",reference:=StartOfDay)="&A65&"", "Bar", "", "Close","5","0","All",,,"False","T","EveryTick") -> 4347.25 | I65: =IFERROR((H65-$G$2)/$G$2,NA()) -> 0.001497437079 | J65: =RTD("cqg.rtd",,"StudyData", "Close("&$D$12&") when LocalYear("&$D$12&")="&$D$2&" and localMonth("&$D$12&") ="&$E$2&" and LocalDay("&$D$12&")="&$F$2&" and Barix("&$D$12&",reference:=StartOfDay)="&A65&"", "Bar", "", "Close","5","0","All",,,"False","T","EveryTick") -> 4356.75 | K65: =IFERROR((J65-$G$3)/$G$3,NA()) -> 0.001321535279 | L65: =RTD("cqg.rtd",,"StudyData", "Close("&$D$12&") when LocalYear("&$D$12&")="&$D$3&" and localMonth("&$D$12&") ="&$E$3&" and LocalDay("&$D$12&")="&$F$3&" and Barix("&$D$12&",reference:=StartOfDay)="&A65&"", "Bar", "", "Close","5","0","All",,,"False","T","EveryTick") -> 4366 | M65: =IFERROR((L65-$G$4)/$G$4,NA()) -> -0.003708140795 | N65: =RTD("cqg.rtd",,"StudyData", "Close("&$D$12&") when LocalYear("&$D$12&")="&$D$4&" and localMonth("&$D$12&") ="&$E$4&" and LocalDay("&$D$12&")="&$F$4&" and Barix("&$D$12&",reference:=StartOfDay)="&A65&"", "Bar", "", "Close","5","0","All",,,"False","T","EveryTick") -> 4396.25 | O65: =IFERROR((N65-$G$5)/$G$5,NA()) -> 0.001423690205 | P65: =RTD("cqg.rtd",,"StudyData", "Close("&$D$12&") when LocalYear("&$D$12&")="&$D$5&" and localMonth("&$D$12&") ="&$E$5&" and LocalDay("&$D$12&")="&$F$5&" and Barix("&$D$12&",reference:=StartOfDay)="&A65&"", "Bar", "", "Close","5","0","All",,,"False","T","EveryTick") -> 4396 | Q65: =IFERROR((P65-$G$6)/$G$6,NA()) -> 0.009646302251 | R65: =RTD("cqg.rtd",,"StudyData", "Close("&$D$12&") when LocalYear("&$D$12&")="&$D$6&" and localMonth("&$D$12&") ="&$E$6&" and LocalDay("&$D$12&")="&$F$6&" and Barix("&$D$12&",reference:=StartOfDay)="&A65&"", "Bar", "", "Close","5","0","All",,,"False","T","EveryTick") -> 4285 | S65: =IFERROR((R65-$G$7)/$G$7,NA()) -> -0.01130595293 | T65: =RTD("cqg.rtd",,"StudyData", "Close("&$D$12&") when LocalYear("&$D$12&")="&$D$7&" and localMonth("&$D$12&") ="&$E$7&" and LocalDay("&$D$12&")="&$F$7&" and Barix("&$D$12&",reference:=StartOfDay)="&A65&"", "Bar", "", "Close","5","0","All",,,"False","T","EveryTick") -> 4305.25 | U65: =IFERROR((T65-$G$8)/$G$8,NA()) -> 0.003262452665 | V65: =RTD("cqg.rtd",,"StudyData", "Close("&$D$12&") when LocalYear("&$D$12&")="&$D$8&" and localMonth("&$D$12&") ="&$E$8&" and LocalDay("&$D$12&")="&$F$8&" and Barix("&$D$12&",reference:=StartOfDay)="&A65&"", "Bar", "", "Close","5","0","All",,,"False","T","EveryTick") -> 4324.75 | W65: =IFERROR((V65-$G$9)/$G$9,NA()) -> -0.004374100719 | X65: =RTD("cqg.rtd",,"StudyData", "Close("&$D$12&") when LocalYear("&$D$12&")="&$D$9&" and localMonth("&$D$12&") ="&$E$9&" and LocalDay("&$D$12&")="&$F$9&" and Barix("&$D$12&",reference:=StartOfDay)="&A65&"", "Bar", "", "Close","5","0","All",,,"False","T","EveryTick") -> 4298 | Y65: =IFERROR((X65-$G$10)/$G$10,NA()) -> 5.816997266e-05 | Z65: =RTD("cqg.rtd",,"StudyData", "Close("&$D$12&") when LocalYear("&$D$12&")="&$D$10&" and localMonth("&$D$12&") ="&$E$10&" and LocalDay("&$D$12&")="&$F$10&" and Barix("&$D$12&",reference:=StartOfDay)="&A65&"", "Bar", "", "Close","5","0","All",,,"False","T","EveryTick") -> 4369 | AA65: =IFERROR((Z65-$G$11)/$G$11,NA()) -> 0.004425541698
A66: 161 | B66: 06:25:00 | C66: -12 | D66: =RTD("cqg.rtd",,"StudyData", $D$12, "Tick", "FlatTicks=0", "Tick","D",C66,"PrimaryOnly") -> 4335.75 | H66: =RTD("cqg.rtd",,"StudyData", "Close("&$D$12&") when LocalYear("&$D$12&")="&$D$1&" and localMonth("&$D$12&") ="&$E$1&" and LocalDay("&$D$12&")="&$F$1&" and Barix("&$D$12&",reference:=StartOfDay)="&A66&"", "Bar", "", "Close","5","0","All",,,"False","T","EveryTick") -> 4349.25 | I66: 0.001958186949 | J66: =RTD("cqg.rtd",,"StudyData", "Close("&$D$12&") when LocalYear("&$D$12&")="&$D$2&" and localMonth("&$D$12&") ="&$E$2&" and LocalDay("&$D$12&")="&$F$2&" and Barix("&$D$12&",reference:=StartOfDay)="&A66&"", "Bar", "", "Close","5","0","All",,,"False","T","EveryTick") -> 4358 | K66: 0.001608825557 | L66: =RTD("cqg.rtd",,"StudyData", "Close("&$D$12&") when LocalYear("&$D$12&")="&$D$3&" and localMonth("&$D$12&") ="&$E$3&" and LocalDay("&$D$12&")="&$F$3&" and Barix("&$D$12&",reference:=StartOfDay)="&A66&"", "Bar", "", "Close","5","0","All",,,"False","T","EveryTick") -> 4367 | M66: -0.003479947516 | N66: =RTD("cqg.rtd",,"StudyData", "Close("&$D$12&") when LocalYear("&$D$12&")="&$D$4&" and localMonth("&$D$12&") ="&$E$4&" and LocalDay("&$D$12&")="&$F$4&" and Barix("&$D$12&",reference:=StartOfDay)="&A66&"", "Bar", "", "Close","5","0","All",,,"False","T","EveryTick") -> 4396.25 | O66: 0.001423690205 | P66: =RTD("cqg.rtd",,"StudyData", "Close("&$D$12&") when LocalYear("&$D$12&")="&$D$5&" and localMonth("&$D$12&") ="&$E$5&" and LocalDay("&$D$12&")="&$F$5&" and Barix("&$D$12&",reference:=StartOfDay)="&A66&"", "Bar", "", "Close","5","0","All",,,"False","T","EveryTick") -> 4396 | Q66: 0.009646302251 | R66: =RTD("cqg.rtd",,"StudyData", "Close("&$D$12&") when LocalYear("&$D$12&")="&$D$6&" and localMonth("&$D$12&") ="&$E$6&" and LocalDay("&$D$12&")="&$F$6&" and Barix("&$D$12&",reference:=StartOfDay)="&A66&"", "Bar", "", "Close","5","0","All",,,"False","T","EveryTick") -> 4286.25 | S66: -0.01101753576 | T66: =RTD("cqg.rtd",,"StudyData", "Close("&$D$12&") when LocalYear("&$D$12&")="&$D$7&" and localMonth("&$D$12&") ="&$E$7&" and LocalDay("&$D$12&")="&$F$7&" and Barix("&$D$12&",reference:=StartOfDay)="&A66&"", "Bar", "", "Close","5","0","All",,,"False","T","EveryTick") -> 4311.25 | U66: 0.004660646665 | V66: =RTD("cqg.rtd",,"StudyData", "Close("&$D$12&") when LocalYear("&$D$12&")="&$D$8&" and localMonth("&$D$12&") ="&$E$8&" and LocalDay("&$D$12&")="&$F$8&" and Barix("&$D$12&",reference:=StartOfDay)="&A66&"", "Bar", "", "Close","5","0","All",,,"False","T","EveryTick") -> 4326.75 | W66: -0.003913669065 | X66: =RTD("cqg.rtd",,"StudyData", "Close("&$D$12&") when LocalYear("&$D$12&")="&$D$9&" and localMonth("&$D$12&") ="&$E$9&" and LocalDay("&$D$12&")="&$F$9&" and Barix("&$D$12&",reference:=StartOfDay)="&A66&"", "Bar", "", "Close","5","0","All",,,"False","T","EveryTick") -> 4303.5 | Y66: 0.001337909371 | Z66: =RTD("cqg.rtd",,"StudyData", "Close("&$D$12&") when LocalYear("&$D$12&")="&$D$10&" and localMonth("&$D$12&") ="&$E$10&" and LocalDay("&$D$12&")="&$F$10&" and Barix("&$D$12&",reference:=StartOfDay)="&A66&"", "Bar", "", "Close","5","0","All",,,"False","T","EveryTick") -> 4368 | AA66: 0.004195643428 | AE66: =IFERROR(IF(AND(H65<>"",H66<>"",H67=""),A66,""),"") -> 
A67: 162 | B67: =B66+5/60/24 -> 06:30:00 | C67: -11 | D67: =RTD("cqg.rtd",,"StudyData", $D$12, "Tick", "FlatTicks=0", "Tick","D",C67,"PrimaryOnly") -> 4336 | H67: =RTD("cqg.rtd",,"StudyData", "Close("&$D$12&") when LocalYear("&$D$12&")="&$D$1&" and localMonth("&$D$12&") ="&$E$1&" and LocalDay("&$D$12&")="&$F$1&" and Barix("&$D$12&",reference:=StartOfDay)="&A67&"", "Bar", "", "Close","5","0","All",,,"False","T","EveryTick") -> 4349.5 | I67: 0.002015780683 | J67: =RTD("cqg.rtd",,"StudyData", "Close("&$D$12&") when LocalYear("&$D$12&")="&$D$2&" and localMonth("&$D$12&") ="&$E$2&" and LocalDay("&$D$12&")="&$F$2&" and Barix("&$D$12&",reference:=StartOfDay)="&A67&"", "Bar", "", "Close","5","0","All",,,"False","T","EveryTick") -> 4356.5 | K67: 0.001264077224 | L67: =RTD("cqg.rtd",,"StudyData", "Close("&$D$12&") when LocalYear("&$D$12&")="&$D$3&" and localMonth("&$D$12&") ="&$E$3&" and LocalDay("&$D$12&")="&$F$3&" and Barix("&$D$12&",reference:=StartOfDay)="&A67&"", "Bar", "", "Close","5","0","All",,,"False","T","EveryTick") -> 4365.75 | M67: -0.003765189115 | N67: =RTD("cqg.rtd",,"StudyData", "Close("&$D$12&") when LocalYear("&$D$12&")="&$D$4&" and localMonth("&$D$12&") ="&$E$4&" and LocalDay("&$D$12&")="&$F$4&" and Barix("&$D$12&",reference:=StartOfDay)="&A67&"", "Bar", "", "Close","5","0","All",,,"False","T","EveryTick") -> 4393.75 | O67: 0.000854214123 | P67: =RTD("cqg.rtd",,"StudyData", "Close("&$D$12&") when LocalYear("&$D$12&")="&$D$5&" and localMonth("&$D$12&") ="&$E$5&" and LocalDay("&$D$12&")="&$F$5&" and Barix("&$D$12&",reference:=StartOfDay)="&A67&"", "Bar", "", "Close","5","0","All",,,"False","T","EveryTick") -> 4394.5 | Q67: 0.009301791456 | R67: =RTD("cqg.rtd",,"StudyData", "Close("&$D$12&") when LocalYear("&$D$12&")="&$D$6&" and localMonth("&$D$12&") ="&$E$6&" and LocalDay("&$D$12&")="&$F$6&" and Barix("&$D$12&",reference:=StartOfDay)="&A67&"", "Bar", "", "Close","5","0","All",,,"False","T","EveryTick") -> 4283.5 | S67: -0.01165205353 | T67: =RTD("cqg.rtd",,"StudyData", "Close("&$D$12&") when LocalYear("&$D$12&")="&$D$7&" and localMonth("&$D$12&") ="&$E$7&" and LocalDay("&$D$12&")="&$F$7&" and Barix("&$D$12&",reference:=StartOfDay)="&A67&"", "Bar", "", "Close","5","0","All",,,"False","T","EveryTick") -> 4310.5 | U67: 0.004485872415 | V67: =RTD("cqg.rtd",,"StudyData", "Close("&$D$12&") when LocalYear("&$D$12&")="&$D$8&" and localMonth("&$D$12&") ="&$E$8&" and LocalDay("&$D$12&")="&$F$8&" and Barix("&$D$12&",reference:=StartOfDay)="&A67&"", "Bar", "", "Close","5","0","All",,,"False","T","EveryTick") -> 4325.75 | W67: -0.004143884892 | X67: =RTD("cqg.rtd",,"StudyData", "Close("&$D$12&") when LocalYear("&$D$12&")="&$D$9&" and localMonth("&$D$12&") ="&$E$9&" and LocalDay("&$D$12&")="&$F$9&" and Barix("&$D$12&",reference:=StartOfDay)="&A67&"", "Bar", "", "Close","5","0","All",,,"False","T","EveryTick") -> 4308.5 | Y67: 0.002501308824 | Z67: =RTD("cqg.rtd",,"StudyData", "Close("&$D$12&") when LocalYear("&$D$12&")="&$D$10&" and localMonth("&$D$12&") ="&$E$10&" and LocalDay("&$D$12&")="&$F$10&" and Barix("&$D$12&",reference:=StartOfDay)="&A67&"", "Bar", "", "Close","5","0","All",,,"False","T","EveryTick") -> 4367.25 | AA67: 0.004023219725
A68: 163 | B68: 06:35:00 | C68: -10 | D68: =RTD("cqg.rtd",,"StudyData", $D$12, "Tick", "FlatTicks=0", "Tick","D",C68,"PrimaryOnly") -> 4335.75 | H68: =RTD("cqg.rtd",,"StudyData", "Close("&$D$12&") when LocalYear("&$D$12&")="&$D$1&" and localMonth("&$D$12&") ="&$E$1&" and LocalDay("&$D$12&")="&$F$1&" and Barix("&$D$12&",reference:=StartOfDay)="&A68&"", "Bar", "", "Close","5","0","All",,,"False","T","EveryTick") -> 4348 | I68: 0.00167021828 | J68: =RTD("cqg.rtd",,"StudyData", "Close("&$D$12&") when LocalYear("&$D$12&")="&$D$2&" and localMonth("&$D$12&") ="&$E$2&" and LocalDay("&$D$12&")="&$F$2&" and Barix("&$D$12&",reference:=StartOfDay)="&A68&"", "Bar", "", "Close","5","0","All",,,"False","T","EveryTick") -> 4355.75 | K68: 0.001091703057 | L68: =RTD("cqg.rtd",,"StudyData", "Close("&$D$12&") when LocalYear("&$D$12&")="&$D$3&" and localMonth("&$D$12&") ="&$E$3&" and LocalDay("&$D$12&")="&$F$3&" and Barix("&$D$12&",reference:=StartOfDay)="&A68&"", "Bar", "", "Close","5","0","All",,,"False","T","EveryTick") -> 4365.5 | M68: -0.003822237435 | N68: =RTD("cqg.rtd",,"StudyData", "Close("&$D$12&") when LocalYear("&$D$12&")="&$D$4&" and localMonth("&$D$12&") ="&$E$4&" and LocalDay("&$D$12&")="&$F$4&" and Barix("&$D$12&",reference:=StartOfDay)="&A68&"", "Bar", "", "Close","5","0","All",,,"False","T","EveryTick") -> 4393.75 | O68: 0.000854214123 | P68: =RTD("cqg.rtd",,"StudyData", "Close("&$D$12&") when LocalYear("&$D$12&")="&$D$5&" and localMonth("&$D$12&") ="&$E$5&" and LocalDay("&$D$12&")="&$F$5&" and Barix("&$D$12&",reference:=StartOfDay)="&A68&"", "Bar", "", "Close","5","0","All",,,"False","T","EveryTick") -> 4396.25 | Q68: 0.009703720717 | R68: =RTD("cqg.rtd",,"StudyData", "Close("&$D$12&") when LocalYear("&$D$12&")="&$D$6&" and localMonth("&$D$12&") ="&$E$6&" and LocalDay("&$D$12&")="&$F$6&" and Barix("&$D$12&",reference:=StartOfDay)="&A68&"", "Bar", "", "Close","5","0","All",,,"False","T","EveryTick") -> 4285.25 | S68: -0.0112482695 | T68: =RTD("cqg.rtd",,"StudyData", "Close("&$D$12&") when LocalYear("&$D$12&")="&$D$7&" and localMonth("&$D$12&") ="&$E$7&" and LocalDay("&$D$12&")="&$F$7&" and Barix("&$D$12&",reference:=StartOfDay)="&A68&"", "Bar", "", "Close","5","0","All",,,"False","T","EveryTick") -> 4314.5 | U68: 0.005418001748 | V68: =RTD("cqg.rtd",,"StudyData", "Close("&$D$12&") when LocalYear("&$D$12&")="&$D$8&" and localMonth("&$D$12&") ="&$E$8&" and LocalDay("&$D$12&")="&$F$8&" and Barix("&$D$12&",reference:=StartOfDay)="&A68&"", "Bar", "", "Close","5","0","All",,,"False","T","EveryTick") -> 4328 | W68: -0.003625899281 | X68: =RTD("cqg.rtd",,"StudyData", "Close("&$D$12&") when LocalYear("&$D$12&")="&$D$9&" and localMonth("&$D$12&") ="&$E$9&" and LocalDay("&$D$12&")="&$F$9&" and Barix("&$D$12&",reference:=StartOfDay)="&A68&"", "Bar", "", "Close","5","0","All",,,"False","T","EveryTick") -> 4310.75 | Y68: 0.003024838578 | Z68: =RTD("cqg.rtd",,"StudyData", "Close("&$D$12&") when LocalYear("&$D$12&")="&$D$10&" and localMonth("&$D$12&") ="&$E$10&" and LocalDay("&$D$12&")="&$F$10&" and Barix("&$D$12&",reference:=StartOfDay)="&A68&"", "Bar", "", "Close","5","0","All",,,"False","T","EveryTick") -> 4365 | AA68: 0.003505948618
A69: 164 | B69: 06:40:00 | C69: -9 | D69: =RTD("cqg.rtd",,"StudyData", $D$12, "Tick", "FlatTicks=0", "Tick","D",C69,"PrimaryOnly") -> 4335.5 | H69: =RTD("cqg.rtd",,"StudyData", "Close("&$D$12&") when LocalYear("&$D$12&")="&$D$1&" and localMonth("&$D$12&") ="&$E$1&" and LocalDay("&$D$12&")="&$F$1&" and Barix("&$D$12&",reference:=StartOfDay)="&A69&"", "Bar", "", "Close","5","0","All",,,"False","T","EveryTick") -> 4347.75 | I69: 0.001612624546 | J69: =RTD("cqg.rtd",,"StudyData", "Close("&$D$12&") when LocalYear("&$D$12&")="&$D$2&" and localMonth("&$D$12&") ="&$E$2&" and LocalDay("&$D$12&")="&$F$2&" and Barix("&$D$12&",reference:=StartOfDay)="&A69&"", "Bar", "", "Close","5","0","All",,,"False","T","EveryTick") -> 4354 | K69: 0.0006894966674 | L69: =RTD("cqg.rtd",,"StudyData", "Close("&$D$12&") when LocalYear("&$D$12&")="&$D$3&" and localMonth("&$D$12&") ="&$E$3&" and LocalDay("&$D$12&")="&$F$3&" and Barix("&$D$12&",reference:=StartOfDay)="&A69&"", "Bar", "", "Close","5","0","All",,,"False","T","EveryTick") -> 4365.5 | M69: -0.003822237435 | N69: =RTD("cqg.rtd",,"StudyData", "Close("&$D$12&") when LocalYear("&$D$12&")="&$D$4&" and localMonth("&$D$12&") ="&$E$4&" and LocalDay("&$D$12&")="&$F$4&" and Barix("&$D$12&",reference:=StartOfDay)="&A69&"", "Bar", "", "Close","5","0","All",,,"False","T","EveryTick") -> 4394 | O69: 0.0009111617312 | P69: =RTD("cqg.rtd",,"StudyData", "Close("&$D$12&") when LocalYear("&$D$12&")="&$D$5&" and localMonth("&$D$12&") ="&$E$5&" and LocalDay("&$D$12&")="&$F$5&" and Barix("&$D$12&",reference:=StartOfDay)="&A69&"", "Bar", "", "Close","5","0","All",,,"False","T","EveryTick") -> 4395.5 | Q69: 0.009531465319 | R69: =RTD("cqg.rtd",,"StudyData", "Close("&$D$12&") when LocalYear("&$D$12&")="&$D$6&" and localMonth("&$D$12&") ="&$E$6&" and LocalDay("&$D$12&")="&$F$6&" and Barix("&$D$12&",reference:=StartOfDay)="&A69&"", "Bar", "", "Close","5","0","All",,,"False","T","EveryTick") -> 4282.75 | S69: -0.01182510383 | T69: =RTD("cqg.rtd",,"StudyData", "Close("&$D$12&") when LocalYear("&$D$12&")="&$D$7&" and localMonth("&$D$12&") ="&$E$7&" and LocalDay("&$D$12&")="&$F$7&" and Barix("&$D$12&",reference:=StartOfDay)="&A69&"", "Bar", "", "Close","5","0","All",,,"False","T","EveryTick") -> 4312.25 | U69: 0.004893678998 | V69: =RTD("cqg.rtd",,"StudyData", "Close("&$D$12&") when LocalYear("&$D$12&")="&$D$8&" and localMonth("&$D$12&") ="&$E$8&" and LocalDay("&$D$12&")="&$F$8&" and Barix("&$D$12&",reference:=StartOfDay)="&A69&"", "Bar", "", "Close","5","0","All",,,"False","T","EveryTick") -> 4326.75 | W69: -0.003913669065 | X69: =RTD("cqg.rtd",,"StudyData", "Close("&$D$12&") when LocalYear("&$D$12&")="&$D$9&" and localMonth("&$D$12&") ="&$E$9&" and LocalDay("&$D$12&")="&$F$9&" and Barix("&$D$12&",reference:=StartOfDay)="&A69&"", "Bar", "", "Close","5","0","All",,,"False","T","EveryTick") -> 4309.25 | Y69: 0.002675818742 | Z69: =RTD("cqg.rtd",,"StudyData", "Close("&$D$12&") when LocalYear("&$D$12&")="&$D$10&" and localMonth("&$D$12&") ="&$E$10&" and LocalDay("&$D$12&")="&$F$10&" and Barix("&$D$12&",reference:=StartOfDay)="&A69&"", "Bar", "", "Close","5","0","All",,,"False","T","EveryTick") -> 4361.75 | AA69: 0.00275877924
A70: 165 | B70: 06:45:00 | C70: -8 | D70: =RTD("cqg.rtd",,"StudyData", $D$12, "Tick", "FlatTicks=0", "Tick","D",C70,"PrimaryOnly") -> 4335.25 | H70: =RTD("cqg.rtd",,"StudyData", "Close("&$D$12&") when LocalYear("&$D$12&")="&$D$1&" and localMonth("&$D$12&") ="&$E$1&" and LocalDay("&$D$12&")="&$F$1&" and Barix("&$D$12&",reference:=StartOfDay)="&A70&"", "Bar", "", "Close","5","0","All",,,"False","T","EveryTick") -> 4348.25 | I70: 0.001727812014 | J70: =RTD("cqg.rtd",,"StudyData", "Close("&$D$12&") when LocalYear("&$D$12&")="&$D$2&" and localMonth("&$D$12&") ="&$E$2&" and LocalDay("&$D$12&")="&$F$2&" and Barix("&$D$12&",reference:=StartOfDay)="&A70&"", "Bar", "", "Close","5","0","All",,,"False","T","EveryTick") -> 4353.25 | K70: 0.0005171225006 | L70: =RTD("cqg.rtd",,"StudyData", "Close("&$D$12&") when LocalYear("&$D$12&")="&$D$3&" and localMonth("&$D$12&") ="&$E$3&" and LocalDay("&$D$12&")="&$F$3&" and Barix("&$D$12&",reference:=StartOfDay)="&A70&"", "Bar", "", "Close","5","0","All",,,"False","T","EveryTick") -> 4365 | M70: -0.003936334075 | N70: =RTD("cqg.rtd",,"StudyData", "Close("&$D$12&") when LocalYear("&$D$12&")="&$D$4&" and localMonth("&$D$12&") ="&$E$4&" and LocalDay("&$D$12&")="&$F$4&" and Barix("&$D$12&",reference:=StartOfDay)="&A70&"", "Bar", "", "Close","5","0","All",,,"False","T","EveryTick") -> 4394.75 | O70: 0.001082004556 | P70: =RTD("cqg.rtd",,"StudyData", "Close("&$D$12&") when LocalYear("&$D$12&")="&$D$5&" and localMonth("&$D$12&") ="&$E$5&" and LocalDay("&$D$12&")="&$F$5&" and Barix("&$D$12&",reference:=StartOfDay)="&A70&"", "Bar", "", "Close","5","0","All",,,"False","T","EveryTick") -> 4396 | Q70: 0.009646302251 | R70: =RTD("cqg.rtd",,"StudyData", "Close("&$D$12&") when LocalYear("&$D$12&")="&$D$6&" and localMonth("&$D$12&") ="&$E$6&" and LocalDay("&$D$12&")="&$F$6&" and Barix("&$D$12&",reference:=StartOfDay)="&A70&"", "Bar", "", "Close","5","0","All",,,"False","T","EveryTick") -> 4283.5 | S70: -0.01165205353 | T70: =RTD("cqg.rtd",,"StudyData", "Close("&$D$12&") when LocalYear("&$D$12&")="&$D$7&" and localMonth("&$D$12&") ="&$E$7&" and LocalDay("&$D$12&")="&$F$7&" and Barix("&$D$12&",reference:=StartOfDay)="&A70&"", "Bar", "", "Close","5","0","All",,,"False","T","EveryTick") -> 4312.25 | U70: 0.004893678998 | V70: =RTD("cqg.rtd",,"StudyData", "Close("&$D$12&") when LocalYear("&$D$12&")="&$D$8&" and localMonth("&$D$12&") ="&$E$8&" and LocalDay("&$D$12&")="&$F$8&" and Barix("&$D$12&",reference:=StartOfDay)="&A70&"", "Bar", "", "Close","5","0","All",,,"False","T","EveryTick") -> 4324.25 | W70: -0.004489208633 | X70: =RTD("cqg.rtd",,"StudyData", "Close("&$D$12&") when LocalYear("&$D$12&")="&$D$9&" and localMonth("&$D$12&") ="&$E$9&" and LocalDay("&$D$12&")="&$F$9&" and Barix("&$D$12&",reference:=StartOfDay)="&A70&"", "Bar", "", "Close","5","0","All",,,"False","T","EveryTick") -> 4315 | Y70: 0.004013728114 | Z70: =RTD("cqg.rtd",,"StudyData", "Close("&$D$12&") when LocalYear("&$D$12&")="&$D$10&" and localMonth("&$D$12&") ="&$E$10&" and LocalDay("&$D$12&")="&$F$10&" and Barix("&$D$12&",reference:=StartOfDay)="&A70&"", "Bar", "", "Close","5","0","All",,,"False","T","EveryTick") -> 4362 | AA70: 0.002816253808
A71: 166 | B71: 06:50:00 | C71: -7 | D71: =RTD("cqg.rtd",,"StudyData", $D$12, "Tick", "FlatTicks=0", "Tick","D",C71,"PrimaryOnly") -> 4335.5 | H71: =RTD("cqg.rtd",,"StudyData", "Close("&$D$12&") when LocalYear("&$D$12&")="&$D$1&" and localMonth("&$D$12&") ="&$E$1&" and LocalDay("&$D$12&")="&$F$1&" and Barix("&$D$12&",reference:=StartOfDay)="&A71&"", "Bar", "", "Close","5","0","All",,,"False","T","EveryTick") -> 4350 | I71: 0.002130968151 | J71: =RTD("cqg.rtd",,"StudyData", "Close("&$D$12&") when LocalYear("&$D$12&")="&$D$2&" and localMonth("&$D$12&") ="&$E$2&" and LocalDay("&$D$12&")="&$F$2&" and Barix("&$D$12&",reference:=StartOfDay)="&A71&"", "Bar", "", "Close","5","0","All",,,"False","T","EveryTick") -> 4354 | K71: 0.0006894966674 | L71: =RTD("cqg.rtd",,"StudyData", "Close("&$D$12&") when LocalYear("&$D$12&")="&$D$3&" and localMonth("&$D$12&") ="&$E$3&" and LocalDay("&$D$12&")="&$F$3&" and Barix("&$D$12&",reference:=StartOfDay)="&A71&"", "Bar", "", "Close","5","0","All",,,"False","T","EveryTick") -> 4362 | M71: -0.004620913914 | N71: =RTD("cqg.rtd",,"StudyData", "Close("&$D$12&") when LocalYear("&$D$12&")="&$D$4&" and localMonth("&$D$12&") ="&$E$4&" and LocalDay("&$D$12&")="&$F$4&" and Barix("&$D$12&",reference:=StartOfDay)="&A71&"", "Bar", "", "Close","5","0","All",,,"False","T","EveryTick") -> 4394 | O71: 0.0009111617312 | P71: =RTD("cqg.rtd",,"StudyData", "Close("&$D$12&") when LocalYear("&$D$12&")="&$D$5&" and localMonth("&$D$12&") ="&$E$5&" and LocalDay("&$D$12&")="&$F$5&" and Barix("&$D$12&",reference:=StartOfDay)="&A71&"", "Bar", "", "Close","5","0","All",,,"False","T","EveryTick") -> 4394.5 | Q71: 0.009301791456 | R71: =RTD("cqg.rtd",,"StudyData", "Close("&$D$12&") when LocalYear("&$D$12&")="&$D$6&" and localMonth("&$D$12&") ="&$E$6&" and LocalDay("&$D$12&")="&$F$6&" and Barix("&$D$12&",reference:=StartOfDay)="&A71&"", "Bar", "", "Close","5","0","All",,,"False","T","EveryTick") -> 4285.75 | S71: -0.01113290263 | T71: =RTD("cqg.rtd",,"StudyData", "Close("&$D$12&") when LocalYear("&$D$12&")="&$D$7&" and localMonth("&$D$12&") ="&$E$7&" and LocalDay("&$D$12&")="&$F$7&" and Barix("&$D$12&",reference:=StartOfDay)="&A71&"", "Bar", "", "Close","5","0","All",,,"False","T","EveryTick") -> 4311.25 | U71: 0.004660646665 | V71: =RTD("cqg.rtd",,"StudyData", "Close("&$D$12&") when LocalYear("&$D$12&")="&$D$8&" and localMonth("&$D$12&") ="&$E$8&" and LocalDay("&$D$12&")="&$F$8&" and Barix("&$D$12&",reference:=StartOfDay)="&A71&"", "Bar", "", "Close","5","0","All",,,"False","T","EveryTick") -> 4324.5 | W71: -0.004431654676 | X71: =RTD("cqg.rtd",,"StudyData", "Close("&$D$12&") when LocalYear("&$D$12&")="&$D$9&" and localMonth("&$D$12&") ="&$E$9&" and LocalDay("&$D$12&")="&$F$9&" and Barix("&$D$12&",reference:=StartOfDay)="&A71&"", "Bar", "", "Close","5","0","All",,,"False","T","EveryTick") -> 4308.75 | Y71: 0.002559478797 | Z71: =RTD("cqg.rtd",,"StudyData", "Close("&$D$12&") when LocalYear("&$D$12&")="&$D$10&" and localMonth("&$D$12&") ="&$E$10&" and LocalDay("&$D$12&")="&$F$10&" and Barix("&$D$12&",reference:=StartOfDay)="&A71&"", "Bar", "", "Close","5","0","All",,,"False","T","EveryTick") -> 4366.25 | AA71: 0.003793321455
A72: 167 | B72: 06:55:00 | C72: -6 | D72: =RTD("cqg.rtd",,"StudyData", $D$12, "Tick", "FlatTicks=0", "Tick","D",C72,"PrimaryOnly") -> 4335.75 | H72: =RTD("cqg.rtd",,"StudyData", "Close("&$D$12&") when LocalYear("&$D$12&")="&$D$1&" and localMonth("&$D$12&") ="&$E$1&" and LocalDay("&$D$12&")="&$F$1&" and Barix("&$D$12&",reference:=StartOfDay)="&A72&"", "Bar", "", "Close","5","0","All",,,"False","T","EveryTick") -> 4348.75 | I72: 0.001842999482 | J72: =RTD("cqg.rtd",,"StudyData", "Close("&$D$12&") when LocalYear("&$D$12&")="&$D$2&" and localMonth("&$D$12&") ="&$E$2&" and LocalDay("&$D$12&")="&$F$2&" and Barix("&$D$12&",reference:=StartOfDay)="&A72&"", "Bar", "", "Close","5","0","All",,,"False","T","EveryTick") -> 4352.5 | K72: 0.0003447483337 | L72: =RTD("cqg.rtd",,"StudyData", "Close("&$D$12&") when LocalYear("&$D$12&")="&$D$3&" and localMonth("&$D$12&") ="&$E$3&" and LocalDay("&$D$12&")="&$F$3&" and Barix("&$D$12&",reference:=StartOfDay)="&A72&"", "Bar", "", "Close","5","0","All",,,"False","T","EveryTick") -> 4363 | M72: -0.004392720634 | N72: =RTD("cqg.rtd",,"StudyData", "Close("&$D$12&") when LocalYear("&$D$12&")="&$D$4&" and localMonth("&$D$12&") ="&$E$4&" and LocalDay("&$D$12&")="&$F$4&" and Barix("&$D$12&",reference:=StartOfDay)="&A72&"", "Bar", "", "Close","5","0","All",,,"False","T","EveryTick") -> 4394.25 | O72: 0.0009681093394 | P72: =RTD("cqg.rtd",,"StudyData", "Close("&$D$12&") when LocalYear("&$D$12&")="&$D$5&" and localMonth("&$D$12&") ="&$E$5&" and LocalDay("&$D$12&")="&$F$5&" and Barix("&$D$12&",reference:=StartOfDay)="&A72&"", "Bar", "", "Close","5","0","All",,,"False","T","EveryTick") -> 4394.5 | Q72: 0.009301791456 | R72: =RTD("cqg.rtd",,"StudyData", "Close("&$D$12&") when LocalYear("&$D$12&")="&$D$6&" and localMonth("&$D$12&") ="&$E$6&" and LocalDay("&$D$12&")="&$F$6&" and Barix("&$D$12&",reference:=StartOfDay)="&A72&"", "Bar", "", "Close","5","0","All",,,"False","T","EveryTick") -> 4289.5 | S72: -0.01026765113 | T72: =RTD("cqg.rtd",,"StudyData", "Close("&$D$12&") when LocalYear("&$D$12&")="&$D$7&" and localMonth("&$D$12&") ="&$E$7&" and LocalDay("&$D$12&")="&$F$7&" and Barix("&$D$12&",reference:=StartOfDay)="&A72&"", "Bar", "", "Close","5","0","All",,,"False","T","EveryTick") -> 4310.75 | U72: 0.004544130498 | V72: =RTD("cqg.rtd",,"StudyData", "Close("&$D$12&") when LocalYear("&$D$12&")="&$D$8&" and localMonth("&$D$12&") ="&$E$8&" and LocalDay("&$D$12&")="&$F$8&" and Barix("&$D$12&",reference:=StartOfDay)="&A72&"", "Bar", "", "Close","5","0","All",,,"False","T","EveryTick") -> 4327.25 | W72: -0.003798561151 | X72: =RTD("cqg.rtd",,"StudyData", "Close("&$D$12&") when LocalYear("&$D$12&")="&$D$9&" and localMonth("&$D$12&") ="&$E$9&" and LocalDay("&$D$12&")="&$F$9&" and Barix("&$D$12&",reference:=StartOfDay)="&A72&"", "Bar", "", "Close","5","0","All",,,"False","T","EveryTick") -> 4310.75 | Y72: 0.003024838578 | Z72: =RTD("cqg.rtd",,"StudyData", "Close("&$D$12&") when LocalYear("&$D$12&")="&$D$10&" and localMonth("&$D$12&") ="&$E$10&" and LocalDay("&$D$12&")="&$F$10&" and Barix("&$D$12&",reference:=StartOfDay)="&A72&"", "Bar", "", "Close","5","0","All",,,"False","T","EveryTick") -> 4365 | AA72: 0.003505948618
A73: 168 | B73: 07:00:00 | C73: -5 | D73: =RTD("cqg.rtd",,"StudyData", $D$12, "Tick", "FlatTicks=0", "Tick","D",C73,"PrimaryOnly") -> 4336 | H73: =RTD("cqg.rtd",,"StudyData", "Close("&$D$12&") when LocalYear("&$D$12&")="&$D$1&" and localMonth("&$D$12&") ="&$E$1&" and LocalDay("&$D$12&")="&$F$1&" and Barix("&$D$12&",reference:=StartOfDay)="&A73&"", "Bar", "", "Close","5","0","All",,,"False","T","EveryTick") -> 4351.75 | I73: 0.002534124287 | J73: =RTD("cqg.rtd",,"StudyData", "Close("&$D$12&") when LocalYear("&$D$12&")="&$D$2&" and localMonth("&$D$12&") ="&$E$2&" and LocalDay("&$D$12&")="&$F$2&" and Barix("&$D$12&",reference:=StartOfDay)="&A73&"", "Bar", "", "Close","5","0","All",,,"False","T","EveryTick") -> 4353.25 | K73: 0.0005171225006 | L73: =RTD("cqg.rtd",,"StudyData", "Close("&$D$12&") when LocalYear("&$D$12&")="&$D$3&" and localMonth("&$D$12&") ="&$E$3&" and LocalDay("&$D$12&")="&$F$3&" and Barix("&$D$12&",reference:=StartOfDay)="&A73&"", "Bar", "", "Close","5","0","All",,,"False","T","EveryTick") -> 4362.5 | M73: -0.004506817274 | N73: =RTD("cqg.rtd",,"StudyData", "Close("&$D$12&") when LocalYear("&$D$12&")="&$D$4&" and localMonth("&$D$12&") ="&$E$4&" and LocalDay("&$D$12&")="&$F$4&" and Barix("&$D$12&",reference:=StartOfDay)="&A73&"", "Bar", "", "Close","5","0","All",,,"False","T","EveryTick") -> 4393 | O73: 0.0006833712984 | P73: =RTD("cqg.rtd",,"StudyData", "Close("&$D$12&") when LocalYear("&$D$12&")="&$D$5&" and localMonth("&$D$12&") ="&$E$5&" and LocalDay("&$D$12&")="&$F$5&" and Barix("&$D$12&",reference:=StartOfDay)="&A73&"", "Bar", "", "Close","5","0","All",,,"False","T","EveryTick") -> 4395.5 | Q73: 0.009531465319 | R73: =RTD("cqg.rtd",,"StudyData", "Close("&$D$12&") when LocalYear("&$D$12&")="&$D$6&" and localMonth("&$D$12&") ="&$E$6&" and LocalDay("&$D$12&")="&$F$6&" and Barix("&$D$12&",reference:=StartOfDay)="&A73&"", "Bar", "", "Close","5","0","All",,,"False","T","EveryTick") -> 4290.5 | S73: -0.0100369174 | T73: =RTD("cqg.rtd",,"StudyData", "Close("&$D$12&") when LocalYear("&$D$12&")="&$D$7&" and localMonth("&$D$12&") ="&$E$7&" and LocalDay("&$D$12&")="&$F$7&" and Barix("&$D$12&",reference:=StartOfDay)="&A73&"", "Bar", "", "Close","5","0","All",,,"False","T","EveryTick") -> 4310.75 | U73: 0.004544130498 | V73: =RTD("cqg.rtd",,"StudyData", "Close("&$D$12&") when LocalYear("&$D$12&")="&$D$8&" and localMonth("&$D$12&") ="&$E$8&" and LocalDay("&$D$12&")="&$F$8&" and Barix("&$D$12&",reference:=StartOfDay)="&A73&"", "Bar", "", "Close","5","0","All",,,"False","T","EveryTick") -> 4327.25 | W73: -0.003798561151 | X73: =RTD("cqg.rtd",,"StudyData", "Close("&$D$12&") when LocalYear("&$D$12&")="&$D$9&" and localMonth("&$D$12&") ="&$E$9&" and LocalDay("&$D$12&")="&$F$9&" and Barix("&$D$12&",reference:=StartOfDay)="&A73&"", "Bar", "", "Close","5","0","All",,,"False","T","EveryTick") -> 4312 | Y73: 0.003315688442 | Z73: =RTD("cqg.rtd",,"StudyData", "Close("&$D$12&") when LocalYear("&$D$12&")="&$D$10&" and localMonth("&$D$12&") ="&$E$10&" and LocalDay("&$D$12&")="&$F$10&" and Barix("&$D$12&",reference:=StartOfDay)="&A73&"", "Bar", "", "Close","5","0","All",,,"False","T","EveryTick") -> 4365 | AA73: 0.003505948618
A74: 169 | B74: 07:05:00 | C74: -4 | D74: =RTD("cqg.rtd",,"StudyData", $D$12, "Tick", "FlatTicks=0", "Tick","D",C74,"PrimaryOnly") -> 4335.75 | H74: =RTD("cqg.rtd",,"StudyData", "Close("&$D$12&") when LocalYear("&$D$12&")="&$D$1&" and localMonth("&$D$12&") ="&$E$1&" and LocalDay("&$D$12&")="&$F$1&" and Barix("&$D$12&",reference:=StartOfDay)="&A74&"", "Bar", "", "Close","5","0","All",,,"False","T","EveryTick") -> 4349.5 | I74: 0.002015780683 | J74: =RTD("cqg.rtd",,"StudyData", "Close("&$D$12&") when LocalYear("&$D$12&")="&$D$2&" and localMonth("&$D$12&") ="&$E$2&" and LocalDay("&$D$12&")="&$F$2&" and Barix("&$D$12&",reference:=StartOfDay)="&A74&"", "Bar", "", "Close","5","0","All",,,"False","T","EveryTick") -> 4356.25 | K74: 0.001206619168 | L74: =RTD("cqg.rtd",,"StudyData", "Close("&$D$12&") when LocalYear("&$D$12&")="&$D$3&" and localMonth("&$D$12&") ="&$E$3&" and LocalDay("&$D$12&")="&$F$3&" and Barix("&$D$12&",reference:=StartOfDay)="&A74&"", "Bar", "", "Close","5","0","All",,,"False","T","EveryTick") -> 4361.25 | M74: -0.004792058874 | N74: =RTD("cqg.rtd",,"StudyData", "Close("&$D$12&") when LocalYear("&$D$12&")="&$D$4&" and localMonth("&$D$12&") ="&$E$4&" and LocalDay("&$D$12&")="&$F$4&" and Barix("&$D$12&",reference:=StartOfDay)="&A74&"", "Bar", "", "Close","5","0","All",,,"False","T","EveryTick") -> 4394 | O74: 0.0009111617312 | P74: =RTD("cqg.rtd",,"StudyData", "Close("&$D$12&") when LocalYear("&$D$12&")="&$D$5&" and localMonth("&$D$12&") ="&$E$5&" and LocalDay("&$D$12&")="&$F$5&" and Barix("&$D$12&",reference:=StartOfDay)="&A74&"", "Bar", "", "Close","5","0","All",,,"False","T","EveryTick") -> 4394 | Q74: 0.009186954525 | R74: =RTD("cqg.rtd",,"StudyData", "Close("&$D$12&") when LocalYear("&$D$12&")="&$D$6&" and localMonth("&$D$12&") ="&$E$6&" and LocalDay("&$D$12&")="&$F$6&" and Barix("&$D$12&",reference:=StartOfDay)="&A74&"", "Bar", "", "Close","5","0","All",,,"False","T","EveryTick") -> 4290 | S74: -0.01015228426 | T74: =RTD("cqg.rtd",,"StudyData", "Close("&$D$12&") when LocalYear("&$D$12&")="&$D$7&" and localMonth("&$D$12&") ="&$E$7&" and LocalDay("&$D$12&")="&$F$7&" and Barix("&$D$12&",reference:=StartOfDay)="&A74&"", "Bar", "", "Close","5","0","All",,,"False","T","EveryTick") -> 4310 | U74: 0.004369356248 | V74: =RTD("cqg.rtd",,"StudyData", "Close("&$D$12&") when LocalYear("&$D$12&")="&$D$8&" and localMonth("&$D$12&") ="&$E$8&" and LocalDay("&$D$12&")="&$F$8&" and Barix("&$D$12&",reference:=StartOfDay)="&A74&"", "Bar", "", "Close","5","0","All",,,"False","T","EveryTick") -> 4330.5 | W74: -0.003050359712 | X74: =RTD("cqg.rtd",,"StudyData", "Close("&$D$12&") when LocalYear("&$D$12&")="&$D$9&" and localMonth("&$D$12&") ="&$E$9&" and LocalDay("&$D$12&")="&$F$9&" and Barix("&$D$12&",reference:=StartOfDay)="&A74&"", "Bar", "", "Close","5","0","All",,,"False","T","EveryTick") -> 4312.75 | Y74: 0.00349019836 | Z74: =RTD("cqg.rtd",,"StudyData", "Close("&$D$12&") when LocalYear("&$D$12&")="&$D$10&" and localMonth("&$D$12&") ="&$E$10&" and LocalDay("&$D$12&")="&$F$10&" and Barix("&$D$12&",reference:=StartOfDay)="&A74&"", "Bar", "", "Close","5","0","All",,,"False","T","EveryTick") -> 4364.5 | AA74: 0.003390999483
A75: 170 | B75: 07:10:00 | C75: -3 | D75: =RTD("cqg.rtd",,"StudyData", $D$12, "Tick", "FlatTicks=0", "Tick","D",C75,"PrimaryOnly") -> 4335.5 | H75: =RTD("cqg.rtd",,"StudyData", "Close("&$D$12&") when LocalYear("&$D$12&")="&$D$1&" and localMonth("&$D$12&") ="&$E$1&" and LocalDay("&$D$12&")="&$F$1&" and Barix("&$D$12&",reference:=StartOfDay)="&A75&"", "Bar", "", "Close","5","0","All",,,"False","T","EveryTick") -> 4350.75 | I75: 0.002303749352 | J75: =RTD("cqg.rtd",,"StudyData", "Close("&$D$12&") when LocalYear("&$D$12&")="&$D$2&" and localMonth("&$D$12&") ="&$E$2&" and LocalDay("&$D$12&")="&$F$2&" and Barix("&$D$12&",reference:=StartOfDay)="&A75&"", "Bar", "", "Close","5","0","All",,,"False","T","EveryTick") -> 4357 | K75: 0.001378993335 | L75: =RTD("cqg.rtd",,"StudyData", "Close("&$D$12&") when LocalYear("&$D$12&")="&$D$3&" and localMonth("&$D$12&") ="&$E$3&" and LocalDay("&$D$12&")="&$F$3&" and Barix("&$D$12&",reference:=StartOfDay)="&A75&"", "Bar", "", "Close","5","0","All",,,"False","T","EveryTick") -> 4362.75 | M75: -0.004449768954 | N75: =RTD("cqg.rtd",,"StudyData", "Close("&$D$12&") when LocalYear("&$D$12&")="&$D$4&" and localMonth("&$D$12&") ="&$E$4&" and LocalDay("&$D$12&")="&$F$4&" and Barix("&$D$12&",reference:=StartOfDay)="&A75&"", "Bar", "", "Close","5","0","All",,,"False","T","EveryTick") -> 4394.25 | O75: 0.0009681093394 | P75: =RTD("cqg.rtd",,"StudyData", "Close("&$D$12&") when LocalYear("&$D$12&")="&$D$5&" and localMonth("&$D$12&") ="&$E$5&" and LocalDay("&$D$12&")="&$F$5&" and Barix("&$D$12&",reference:=StartOfDay)="&A75&"", "Bar", "", "Close","5","0","All",,,"False","T","EveryTick") -> 4393.25 | Q75: 0.009014699127 | R75: =RTD("cqg.rtd",,"StudyData", "Close("&$D$12&") when LocalYear("&$D$12&")="&$D$6&" and localMonth("&$D$12&") ="&$E$6&" and LocalDay("&$D$12&")="&$F$6&" and Barix("&$D$12&",reference:=StartOfDay)="&A75&"", "Bar", "", "Close","5","0","All",,,"False","T","EveryTick") -> 4293.5 | S75: -0.009344716198 | T75: =RTD("cqg.rtd",,"StudyData", "Close("&$D$12&") when LocalYear("&$D$12&")="&$D$7&" and localMonth("&$D$12&") ="&$E$7&" and LocalDay("&$D$12&")="&$F$7&" and Barix("&$D$12&",reference:=StartOfDay)="&A75&"", "Bar", "", "Close","5","0","All",,,"False","T","EveryTick") -> 4311.5 | U75: 0.004718904748 | V75: =RTD("cqg.rtd",,"StudyData", "Close("&$D$12&") when LocalYear("&$D$12&")="&$D$8&" and localMonth("&$D$12&") ="&$E$8&" and LocalDay("&$D$12&")="&$F$8&" and Barix("&$D$12&",reference:=StartOfDay)="&A75&"", "Bar", "", "Close","5","0","All",,,"False","T","EveryTick") -> 4331.75 | W75: -0.002762589928 | X75: =RTD("cqg.rtd",,"StudyData", "Close("&$D$12&") when LocalYear("&$D$12&")="&$D$9&" and localMonth("&$D$12&") ="&$E$9&" and LocalDay("&$D$12&")="&$F$9&" and Barix("&$D$12&",reference:=StartOfDay)="&A75&"", "Bar", "", "Close","5","0","All",,,"False","T","EveryTick") -> 4311.75 | Y75: 0.003257518469 | Z75: =RTD("cqg.rtd",,"StudyData", "Close("&$D$12&") when LocalYear("&$D$12&")="&$D$10&" and localMonth("&$D$12&") ="&$E$10&" and LocalDay("&$D$12&")="&$F$10&" and Barix("&$D$12&",reference:=StartOfDay)="&A75&"", "Bar", "", "Close","5","0","All",,,"False","T","EveryTick") -> 4363 | AA75: 0.003046152078
A76: 171 | B76: 07:15:00 | C76: -2 | D76: =RTD("cqg.rtd",,"StudyData", $D$12, "Tick", "FlatTicks=0", "Tick","D",C76,"PrimaryOnly") -> 4335.75 | H76: =RTD("cqg.rtd",,"StudyData", "Close("&$D$12&") when LocalYear("&$D$12&")="&$D$1&" and localMonth("&$D$12&") ="&$E$1&" and LocalDay("&$D$12&")="&$F$1&" and Barix("&$D$12&",reference:=StartOfDay)="&A76&"", "Bar", "", "Close","5","0","All",,,"False","T","EveryTick") -> 4348.75 | I76: 0.001842999482 | J76: =RTD("cqg.rtd",,"StudyData", "Close("&$D$12&") when LocalYear("&$D$12&")="&$D$2&" and localMonth("&$D$12&") ="&$E$2&" and LocalDay("&$D$12&")="&$F$2&" and Barix("&$D$12&",reference:=StartOfDay)="&A76&"", "Bar", "", "Close","5","0","All",,,"False","T","EveryTick") -> 4359 | K76: 0.00183865778 | L76: =RTD("cqg.rtd",,"StudyData", "Close("&$D$12&") when LocalYear("&$D$12&")="&$D$3&" and localMonth("&$D$12&") ="&$E$3&" and LocalDay("&$D$12&")="&$F$3&" and Barix("&$D$12&",reference:=StartOfDay)="&A76&"", "Bar", "", "Close","5","0","All",,,"False","T","EveryTick") -> 4365 | M76: -0.003936334075 | N76: =RTD("cqg.rtd",,"StudyData", "Close("&$D$12&") when LocalYear("&$D$12&")="&$D$4&" and localMonth("&$D$12&") ="&$E$4&" and LocalDay("&$D$12&")="&$F$4&" and Barix("&$D$12&",reference:=StartOfDay)="&A76&"", "Bar", "", "Close","5","0","All",,,"False","T","EveryTick") -> 4395 | O76: 0.001138952164 | P76: =RTD("cqg.rtd",,"StudyData", "Close("&$D$12&") when LocalYear("&$D$12&")="&$D$5&" and localMonth("&$D$12&") ="&$E$5&" and LocalDay("&$D$12&")="&$F$5&" and Barix("&$D$12&",reference:=StartOfDay)="&A76&"", "Bar", "", "Close","5","0","All",,,"False","T","EveryTick") -> 4393 | Q76: 0.008957280661 | R76: =RTD("cqg.rtd",,"StudyData", "Close("&$D$12&") when LocalYear("&$D$12&")="&$D$6&" and localMonth("&$D$12&") ="&$E$6&" and LocalDay("&$D$12&")="&$F$6&" and Barix("&$D$12&",reference:=StartOfDay)="&A76&"", "Bar", "", "Close","5","0","All",,,"False","T","EveryTick") -> 4287 | S76: -0.01084448546 | T76: =RTD("cqg.rtd",,"StudyData", "Close("&$D$12&") when LocalYear("&$D$12&")="&$D$7&" and localMonth("&$D$12&") ="&$E$7&" and LocalDay("&$D$12&")="&$F$7&" and Barix("&$D$12&",reference:=StartOfDay)="&A76&"", "Bar", "", "Close","5","0","All",,,"False","T","EveryTick") -> 4311 | U76: 0.004602388581 | V76: =RTD("cqg.rtd",,"StudyData", "Close("&$D$12&") when LocalYear("&$D$12&")="&$D$8&" and localMonth("&$D$12&") ="&$E$8&" and LocalDay("&$D$12&")="&$F$8&" and Barix("&$D$12&",reference:=StartOfDay)="&A76&"", "Bar", "", "Close","5","0","All",,,"False","T","EveryTick") -> 4330.75 | W76: -0.002992805755 | X76: =RTD("cqg.rtd",,"StudyData", "Close("&$D$12&") when LocalYear("&$D$12&")="&$D$9&" and localMonth("&$D$12&") ="&$E$9&" and LocalDay("&$D$12&")="&$F$9&" and Barix("&$D$12&",reference:=StartOfDay)="&A76&"", "Bar", "", "Close","5","0","All",,,"False","T","EveryTick") -> 4318 | Y76: 0.004711767785 | Z76: =RTD("cqg.rtd",,"StudyData", "Close("&$D$12&") when LocalYear("&$D$12&")="&$D$10&" and localMonth("&$D$12&") ="&$E$10&" and LocalDay("&$D$12&")="&$F$10&" and Barix("&$D$12&",reference:=StartOfDay)="&A76&"", "Bar", "", "Close","5","0","All",,,"False","T","EveryTick") -> 4363.75 | AA76: 0.00321857578
A77: 172 | B77: 07:20:00 | C77: -1 | D77: =RTD("cqg.rtd",,"StudyData", $D$12, "Tick", "FlatTicks=0", "Tick","D",C77,"PrimaryOnly") -> 4336 | H77: =RTD("cqg.rtd",,"StudyData", "Close("&$D$12&") when LocalYear("&$D$12&")="&$D$1&" and localMonth("&$D$12&") ="&$E$1&" and LocalDay("&$D$12&")="&$F$1&" and Barix("&$D$12&",reference:=StartOfDay)="&A77&"", "Bar", "", "Close","5","0","All",,,"False","T","EveryTick") -> 4348 | I77: 0.00167021828 | J77: =RTD("cqg.rtd",,"StudyData", "Close("&$D$12&") when LocalYear("&$D$12&")="&$D$2&" and localMonth("&$D$12&") ="&$E$2&" and LocalDay("&$D$12&")="&$F$2&" and Barix("&$D$12&",reference:=StartOfDay)="&A77&"", "Bar", "", "Close","5","0","All",,,"False","T","EveryTick") -> 4362.75 | K77: 0.002700528614 | L77: =RTD("cqg.rtd",,"StudyData", "Close("&$D$12&") when LocalYear("&$D$12&")="&$D$3&" and localMonth("&$D$12&") ="&$E$3&" and LocalDay("&$D$12&")="&$F$3&" and Barix("&$D$12&",reference:=StartOfDay)="&A77&"", "Bar", "", "Close","5","0","All",,,"False","T","EveryTick") -> 4366.5 | M77: -0.003594044155 | N77: =RTD("cqg.rtd",,"StudyData", "Close("&$D$12&") when LocalYear("&$D$12&")="&$D$4&" and localMonth("&$D$12&") ="&$E$4&" and LocalDay("&$D$12&")="&$F$4&" and Barix("&$D$12&",reference:=StartOfDay)="&A77&"", "Bar", "", "Close","5","0","All",,,"False","T","EveryTick") -> 4399.75 | O77: 0.00222095672 | P77: =RTD("cqg.rtd",,"StudyData", "Close("&$D$12&") when LocalYear("&$D$12&")="&$D$5&" and localMonth("&$D$12&") ="&$E$5&" and LocalDay("&$D$12&")="&$F$5&" and Barix("&$D$12&",reference:=StartOfDay)="&A77&"", "Bar", "", "Close","5","0","All",,,"False","T","EveryTick") -> 4393.5 | Q77: 0.009072117593 | R77: =RTD("cqg.rtd",,"StudyData", "Close("&$D$12&") when LocalYear("&$D$12&")="&$D$6&" and localMonth("&$D$12&") ="&$E$6&" and LocalDay("&$D$12&")="&$F$6&" and Barix("&$D$12&",reference:=StartOfDay)="&A77&"", "Bar", "", "Close","5","0","All",,,"False","T","EveryTick") -> 4293.5 | S77: -0.009344716198 | T77: =RTD("cqg.rtd",,"StudyData", "Close("&$D$12&") when LocalYear("&$D$12&")="&$D$7&" and localMonth("&$D$12&") ="&$E$7&" and LocalDay("&$D$12&")="&$F$7&" and Barix("&$D$12&",reference:=StartOfDay)="&A77&"", "Bar", "", "Close","5","0","All",,,"False","T","EveryTick") -> 4309 | U77: 0.004136323915 | V77: =RTD("cqg.rtd",,"StudyData", "Close("&$D$12&") when LocalYear("&$D$12&")="&$D$8&" and localMonth("&$D$12&") ="&$E$8&" and LocalDay("&$D$12&")="&$F$8&" and Barix("&$D$12&",reference:=StartOfDay)="&A77&"", "Bar", "", "Close","5","0","All",,,"False","T","EveryTick") -> 4330.5 | W77: -0.003050359712 | X77: =RTD("cqg.rtd",,"StudyData", "Close("&$D$12&") when LocalYear("&$D$12&")="&$D$9&" and localMonth("&$D$12&") ="&$E$9&" and LocalDay("&$D$12&")="&$F$9&" and Barix("&$D$12&",reference:=StartOfDay)="&A77&"", "Bar", "", "Close","5","0","All",,,"False","T","EveryTick") -> 4315.25 | Y77: 0.004071898086 | Z77: =RTD("cqg.rtd",,"StudyData", "Close("&$D$12&") when LocalYear("&$D$12&")="&$D$10&" and localMonth("&$D$12&") ="&$E$10&" and LocalDay("&$D$12&")="&$F$10&" and Barix("&$D$12&",reference:=StartOfDay)="&A77&"", "Bar", "", "Close","5","0","All",,,"False","T","EveryTick") -> 4365 | AA77: 0.003505948618
A78: =A77+1 -> 173 | B78: 07:25:00 | C78: 0 | D78: =RTD("cqg.rtd",,"StudyData", $D$12, "Tick", "FlatTicks=0", "Tick","D",C78,"PrimaryOnly") -> 4335.75 | H78: =RTD("cqg.rtd",,"StudyData", "Close("&$D$12&") when LocalYear("&$D$12&")="&$D$1&" and localMonth("&$D$12&") ="&$E$1&" and LocalDay("&$D$12&")="&$F$1&" and Barix("&$D$12&",reference:=StartOfDay)="&A78&"", "Bar", "", "Close","5","0","All",,,"False","T","EveryTick") -> 4348.5 | I78: 0.001785405748 | J78: =RTD("cqg.rtd",,"StudyData", "Close("&$D$12&") when LocalYear("&$D$12&")="&$D$2&" and localMonth("&$D$12&") ="&$E$2&" and LocalDay("&$D$12&")="&$F$2&" and Barix("&$D$12&",reference:=StartOfDay)="&A78&"", "Bar", "", "Close","5","0","All",,,"False","T","EveryTick") -> 4364.5 | K78: 0.003102735003 | L78: =RTD("cqg.rtd",,"StudyData", "Close("&$D$12&") when LocalYear("&$D$12&")="&$D$3&" and localMonth("&$D$12&") ="&$E$3&" and LocalDay("&$D$12&")="&$F$3&" and Barix("&$D$12&",reference:=StartOfDay)="&A78&"", "Bar", "", "Close","5","0","All",,,"False","T","EveryTick") -> 4367 | M78: -0.003479947516 | N78: =RTD("cqg.rtd",,"StudyData", "Close("&$D$12&") when LocalYear("&$D$12&")="&$D$4&" and localMonth("&$D$12&") ="&$E$4&" and LocalDay("&$D$12&")="&$F$4&" and Barix("&$D$12&",reference:=StartOfDay)="&A78&"", "Bar", "", "Close","5","0","All",,,"False","T","EveryTick") -> 4398 | O78: 0.001822323462 | P78: =RTD("cqg.rtd",,"StudyData", "Close("&$D$12&") when LocalYear("&$D$12&")="&$D$5&" and localMonth("&$D$12&") ="&$E$5&" and LocalDay("&$D$12&")="&$F$5&" and Barix("&$D$12&",reference:=StartOfDay)="&A78&"", "Bar", "", "Close","5","0","All",,,"False","T","EveryTick") -> 4393.75 | Q78: 0.009129536059 | R78: =RTD("cqg.rtd",,"StudyData", "Close("&$D$12&") when LocalYear("&$D$12&")="&$D$6&" and localMonth("&$D$12&") ="&$E$6&" and LocalDay("&$D$12&")="&$F$6&" and Barix("&$D$12&",reference:=StartOfDay)="&A78&"", "Bar", "", "Close","5","0","All",,,"False","T","EveryTick") -> 4298.25 | S78: -0.008248730964 | T78: =RTD("cqg.rtd",,"StudyData", "Close("&$D$12&") when LocalYear("&$D$12&")="&$D$7&" and localMonth("&$D$12&") ="&$E$7&" and LocalDay("&$D$12&")="&$F$7&" and Barix("&$D$12&",reference:=StartOfDay)="&A78&"", "Bar", "", "Close","5","0","All",,,"False","T","EveryTick") -> 4308.75 | U78: 0.004078065832 | V78: =RTD("cqg.rtd",,"StudyData", "Close("&$D$12&") when LocalYear("&$D$12&")="&$D$8&" and localMonth("&$D$12&") ="&$E$8&" and LocalDay("&$D$12&")="&$F$8&" and Barix("&$D$12&",reference:=StartOfDay)="&A78&"", "Bar", "", "Close","5","0","All",,,"False","T","EveryTick") -> 4331.5 | W78: -0.002820143885 | X78: =RTD("cqg.rtd",,"StudyData", "Close("&$D$12&") when LocalYear("&$D$12&")="&$D$9&" and localMonth("&$D$12&") ="&$E$9&" and LocalDay("&$D$12&")="&$F$9&" and Barix("&$D$12&",reference:=StartOfDay)="&A78&"", "Bar", "", "Close","5","0","All",,,"False","T","EveryTick") -> 4319.25 | Y78: 0.005002617649 | Z78: =RTD("cqg.rtd",,"StudyData", "Close("&$D$12&") when LocalYear("&$D$12&")="&$D$10&" and localMonth("&$D$12&") ="&$E$10&" and LocalDay("&$D$12&")="&$F$10&" and Barix("&$D$12&",reference:=StartOfDay)="&A78&"", "Bar", "", "Close","5","0","All",,,"False","T","EveryTick") -> 4365.25 | AA78: 0.003563423185
A79: 174 | B79: 07:30:00 | H79: =RTD("cqg.rtd",,"StudyData", "Close("&$D$12&") when LocalYear("&$D$12&")="&$D$1&" and localMonth("&$D$12&") ="&$E$1&" and LocalDay("&$D$12&")="&$F$1&" and Barix("&$D$12&",reference:=StartOfDay)="&A79&"", "Bar", "", "Close","5","0","All",,,"False","T","EveryTick") -> 4341.75 | I79: 0.0002303749352 | J79: =RTD("cqg.rtd",,"StudyData", "Close("&$D$12&") when LocalYear("&$D$12&")="&$D$2&" and localMonth("&$D$12&") ="&$E$2&" and LocalDay("&$D$12&")="&$F$2&" and Barix("&$D$12&",reference:=StartOfDay)="&A79&"", "Bar", "", "Close","5","0","All",,,"False","T","EveryTick") -> 4362 | K79: 0.002528154447 | L79: =RTD("cqg.rtd",,"StudyData", "Close("&$D$12&") when LocalYear("&$D$12&")="&$D$3&" and localMonth("&$D$12&") ="&$E$3&" and LocalDay("&$D$12&")="&$F$3&" and Barix("&$D$12&",reference:=StartOfDay)="&A79&"", "Bar", "", "Close","5","0","All",,,"False","T","EveryTick") -> 4370.25 | M79: -0.002738319356 | N79: =RTD("cqg.rtd",,"StudyData", "Close("&$D$12&") when LocalYear("&$D$12&")="&$D$4&" and localMonth("&$D$12&") ="&$E$4&" and LocalDay("&$D$12&")="&$F$4&" and Barix("&$D$12&",reference:=StartOfDay)="&A79&"", "Bar", "", "Close","5","0","All",,,"False","T","EveryTick") -> 4389.5 | O79: -0.0001138952164 | P79: =RTD("cqg.rtd",,"StudyData", "Close("&$D$12&") when LocalYear("&$D$12&")="&$D$5&" and localMonth("&$D$12&") ="&$E$5&" and LocalDay("&$D$12&")="&$F$5&" and Barix("&$D$12&",reference:=StartOfDay)="&A79&"", "Bar", "", "Close","5","0","All",,,"False","T","EveryTick") -> 4393 | Q79: 0.008957280661 | R79: =RTD("cqg.rtd",,"StudyData", "Close("&$D$12&") when LocalYear("&$D$12&")="&$D$6&" and localMonth("&$D$12&") ="&$E$6&" and LocalDay("&$D$12&")="&$F$6&" and Barix("&$D$12&",reference:=StartOfDay)="&A79&"", "Bar", "", "Close","5","0","All",,,"False","T","EveryTick") -> 4298 | S79: -0.008306414398 | T79: =RTD("cqg.rtd",,"StudyData", "Close("&$D$12&") when LocalYear("&$D$12&")="&$D$7&" and localMonth("&$D$12&") ="&$E$7&" and LocalDay("&$D$12&")="&$F$7&" and Barix("&$D$12&",reference:=StartOfDay)="&A79&"", "Bar", "", "Close","5","0","All",,,"False","T","EveryTick") -> 4308.75 | U79: 0.004078065832 | V79: =RTD("cqg.rtd",,"StudyData", "Close("&$D$12&") when LocalYear("&$D$12&")="&$D$8&" and localMonth("&$D$12&") ="&$E$8&" and LocalDay("&$D$12&")="&$F$8&" and Barix("&$D$12&",reference:=StartOfDay)="&A79&"", "Bar", "", "Close","5","0","All",,,"False","T","EveryTick") -> 4329 | W79: -0.003395683453 | X79: =RTD("cqg.rtd",,"StudyData", "Close("&$D$12&") when LocalYear("&$D$12&")="&$D$9&" and localMonth("&$D$12&") ="&$E$9&" and LocalDay("&$D$12&")="&$F$9&" and Barix("&$D$12&",reference:=StartOfDay)="&A79&"", "Bar", "", "Close","5","0","All",,,"False","T","EveryTick") -> 4311.75 | Y79: 0.003257518469 | Z79: =RTD("cqg.rtd",,"StudyData", "Close("&$D$12&") when LocalYear("&$D$12&")="&$D$10&" and localMonth("&$D$12&") ="&$E$10&" and LocalDay("&$D$12&")="&$F$10&" and Barix("&$D$12&",reference:=StartOfDay)="&A79&"", "Bar", "", "Close","5","0","All",,,"False","T","EveryTick") -> 4367.5 | AA79: 0.004080694293
A80: 175 | B80: 07:35:00 | H80: =RTD("cqg.rtd",,"StudyData", "Close("&$D$12&") when LocalYear("&$D$12&")="&$D$1&" and localMonth("&$D$12&") ="&$E$1&" and LocalDay("&$D$12&")="&$F$1&" and Barix("&$D$12&",reference:=StartOfDay)="&A80&"", "Bar", "", "Close","5","0","All",,,"False","T","EveryTick") -> 4340.5 | I80: -5.75937338e-05 | J80: =RTD("cqg.rtd",,"StudyData", "Close("&$D$12&") when LocalYear("&$D$12&")="&$D$2&" and localMonth("&$D$12&") ="&$E$2&" and LocalDay("&$D$12&")="&$F$2&" and Barix("&$D$12&",reference:=StartOfDay)="&A80&"", "Bar", "", "Close","5","0","All",,,"False","T","EveryTick") -> 4360 | K80: 0.002068490002 | L80: =RTD("cqg.rtd",,"StudyData", "Close("&$D$12&") when LocalYear("&$D$12&")="&$D$3&" and localMonth("&$D$12&") ="&$E$3&" and LocalDay("&$D$12&")="&$F$3&" and Barix("&$D$12&",reference:=StartOfDay)="&A80&"", "Bar", "", "Close","5","0","All",,,"False","T","EveryTick") -> 4373.5 | M80: -0.001996691197 | N80: =RTD("cqg.rtd",,"StudyData", "Close("&$D$12&") when LocalYear("&$D$12&")="&$D$4&" and localMonth("&$D$12&") ="&$E$4&" and LocalDay("&$D$12&")="&$F$4&" and Barix("&$D$12&",reference:=StartOfDay)="&A80&"", "Bar", "", "Close","5","0","All",,,"False","T","EveryTick") -> 4405 | O80: 0.003416856492 | P80: =RTD("cqg.rtd",,"StudyData", "Close("&$D$12&") when LocalYear("&$D$12&")="&$D$5&" and localMonth("&$D$12&") ="&$E$5&" and LocalDay("&$D$12&")="&$F$5&" and Barix("&$D$12&",reference:=StartOfDay)="&A80&"", "Bar", "", "Close","5","0","All",,,"False","T","EveryTick") -> 4394.75 | Q80: 0.009359209922 | R80: =RTD("cqg.rtd",,"StudyData", "Close("&$D$12&") when LocalYear("&$D$12&")="&$D$6&" and localMonth("&$D$12&") ="&$E$6&" and LocalDay("&$D$12&")="&$F$6&" and Barix("&$D$12&",reference:=StartOfDay)="&A80&"", "Bar", "", "Close","5","0","All",,,"False","T","EveryTick") -> 4296.5 | S80: -0.008652514998 | T80: =RTD("cqg.rtd",,"StudyData", "Close("&$D$12&") when LocalYear("&$D$12&")="&$D$7&" and localMonth("&$D$12&") ="&$E$7&" and LocalDay("&$D$12&")="&$F$7&" and Barix("&$D$12&",reference:=StartOfDay)="&A80&"", "Bar", "", "Close","5","0","All",,,"False","T","EveryTick") -> 4310.75 | U80: 0.004544130498 | V80: =RTD("cqg.rtd",,"StudyData", "Close("&$D$12&") when LocalYear("&$D$12&")="&$D$8&" and localMonth("&$D$12&") ="&$E$8&" and LocalDay("&$D$12&")="&$F$8&" and Barix("&$D$12&",reference:=StartOfDay)="&A80&"", "Bar", "", "Close","5","0","All",,,"False","T","EveryTick") -> 4332.25 | W80: -0.002647482014 | X80: =RTD("cqg.rtd",,"StudyData", "Close("&$D$12&") when LocalYear("&$D$12&")="&$D$9&" and localMonth("&$D$12&") ="&$E$9&" and LocalDay("&$D$12&")="&$F$9&" and Barix("&$D$12&",reference:=StartOfDay)="&A80&"", "Bar", "", "Close","5","0","All",,,"False","T","EveryTick") -> 4306.5 | Y80: 0.002035949043 | Z80: =RTD("cqg.rtd",,"StudyData", "Close("&$D$12&") when LocalYear("&$D$12&")="&$D$10&" and localMonth("&$D$12&") ="&$E$10&" and LocalDay("&$D$12&")="&$F$10&" and Barix("&$D$12&",reference:=StartOfDay)="&A80&"", "Bar", "", "Close","5","0","All",,,"False","T","EveryTick") -> 4365 | AA80: 0.003505948618
A81: 176 | B81: 07:40:00 | H81: =RTD("cqg.rtd",,"StudyData", "Close("&$D$12&") when LocalYear("&$D$12&")="&$D$1&" and localMonth("&$D$12&") ="&$E$1&" and LocalDay("&$D$12&")="&$F$1&" and Barix("&$D$12&",reference:=StartOfDay)="&A81&"", "Bar", "", "Close","5","0","All",,,"False","T","EveryTick") -> 4335 | I81: -0.001324655877 | J81: =RTD("cqg.rtd",,"StudyData", "Close("&$D$12&") when LocalYear("&$D$12&")="&$D$2&" and localMonth("&$D$12&") ="&$E$2&" and LocalDay("&$D$12&")="&$F$2&" and Barix("&$D$12&",reference:=StartOfDay)="&A81&"", "Bar", "", "Close","5","0","All",,,"False","T","EveryTick") -> 4357.5 | K81: 0.001493909446 | L81: =RTD("cqg.rtd",,"StudyData", "Close("&$D$12&") when LocalYear("&$D$12&")="&$D$3&" and localMonth("&$D$12&") ="&$E$3&" and LocalDay("&$D$12&")="&$F$3&" and Barix("&$D$12&",reference:=StartOfDay)="&A81&"", "Bar", "", "Close","5","0","All",,,"False","T","EveryTick") -> 4372.75 | M81: -0.002167836157 | N81: =RTD("cqg.rtd",,"StudyData", "Close("&$D$12&") when LocalYear("&$D$12&")="&$D$4&" and localMonth("&$D$12&") ="&$E$4&" and LocalDay("&$D$12&")="&$F$4&" and Barix("&$D$12&",reference:=StartOfDay)="&A81&"", "Bar", "", "Close","5","0","All",,,"False","T","EveryTick") -> 4394.75 | O81: 0.001082004556 | P81: =RTD("cqg.rtd",,"StudyData", "Close("&$D$12&") when LocalYear("&$D$12&")="&$D$5&" and localMonth("&$D$12&") ="&$E$5&" and LocalDay("&$D$12&")="&$F$5&" and Barix("&$D$12&",reference:=StartOfDay)="&A81&"", "Bar", "", "Close","5","0","All",,,"False","T","EveryTick") -> 4397.25 | Q81: 0.00993339458 | R81: =RTD("cqg.rtd",,"StudyData", "Close("&$D$12&") when LocalYear("&$D$12&")="&$D$6&" and localMonth("&$D$12&") ="&$E$6&" and LocalDay("&$D$12&")="&$F$6&" and Barix("&$D$12&",reference:=StartOfDay)="&A81&"", "Bar", "", "Close","5","0","All",,,"False","T","EveryTick") -> 4299.5 | S81: -0.007960313798 | T81: =RTD("cqg.rtd",,"StudyData", "Close("&$D$12&") when LocalYear("&$D$12&")="&$D$7&" and localMonth("&$D$12&") ="&$E$7&" and LocalDay("&$D$12&")="&$F$7&" and Barix("&$D$12&",reference:=StartOfDay)="&A81&"", "Bar", "", "Close","5","0","All",,,"False","T","EveryTick") -> 4311.5 | U81: 0.004718904748 | V81: =RTD("cqg.rtd",,"StudyData", "Close("&$D$12&") when LocalYear("&$D$12&")="&$D$8&" and localMonth("&$D$12&") ="&$E$8&" and LocalDay("&$D$12&")="&$F$8&" and Barix("&$D$12&",reference:=StartOfDay)="&A81&"", "Bar", "", "Close","5","0","All",,,"False","T","EveryTick") -> 4335.75 | W81: -0.001841726619 | X81: =RTD("cqg.rtd",,"StudyData", "Close("&$D$12&") when LocalYear("&$D$12&")="&$D$9&" and localMonth("&$D$12&") ="&$E$9&" and LocalDay("&$D$12&")="&$F$9&" and Barix("&$D$12&",reference:=StartOfDay)="&A81&"", "Bar", "", "Close","5","0","All",,,"False","T","EveryTick") -> 4306.75 | Y81: 0.002094119016 | Z81: =RTD("cqg.rtd",,"StudyData", "Close("&$D$12&") when LocalYear("&$D$12&")="&$D$10&" and localMonth("&$D$12&") ="&$E$10&" and LocalDay("&$D$12&")="&$F$10&" and Barix("&$D$12&",reference:=StartOfDay)="&A81&"", "Bar", "", "Close","5","0","All",,,"False","T","EveryTick") -> 4366 | AA81: 0.003735846888
A82: 177 | B82: 07:45:00 | H82: =RTD("cqg.rtd",,"StudyData", "Close("&$D$12&") when LocalYear("&$D$12&")="&$D$1&" and localMonth("&$D$12&") ="&$E$1&" and LocalDay("&$D$12&")="&$F$1&" and Barix("&$D$12&",reference:=StartOfDay)="&A82&"", "Bar", "", "Close","5","0","All",,,"False","T","EveryTick") -> 4336 | I82: -0.001094280942 | J82: =RTD("cqg.rtd",,"StudyData", "Close("&$D$12&") when LocalYear("&$D$12&")="&$D$2&" and localMonth("&$D$12&") ="&$E$2&" and LocalDay("&$D$12&")="&$F$2&" and Barix("&$D$12&",reference:=StartOfDay)="&A82&"", "Bar", "", "Close","5","0","All",,,"False","T","EveryTick") -> 4354.5 | K82: 0.0008044127787 | L82: =RTD("cqg.rtd",,"StudyData", "Close("&$D$12&") when LocalYear("&$D$12&")="&$D$3&" and localMonth("&$D$12&") ="&$E$3&" and LocalDay("&$D$12&")="&$F$3&" and Barix("&$D$12&",reference:=StartOfDay)="&A82&"", "Bar", "", "Close","5","0","All",,,"False","T","EveryTick") -> 4371.5 | M82: -0.002453077757 | N82: =RTD("cqg.rtd",,"StudyData", "Close("&$D$12&") when LocalYear("&$D$12&")="&$D$4&" and localMonth("&$D$12&") ="&$E$4&" and LocalDay("&$D$12&")="&$F$4&" and Barix("&$D$12&",reference:=StartOfDay)="&A82&"", "Bar", "", "Close","5","0","All",,,"False","T","EveryTick") -> 4387.5 | O82: -0.000569476082 | P82: =RTD("cqg.rtd",,"StudyData", "Close("&$D$12&") when LocalYear("&$D$12&")="&$D$5&" and localMonth("&$D$12&") ="&$E$5&" and LocalDay("&$D$12&")="&$F$5&" and Barix("&$D$12&",reference:=StartOfDay)="&A82&"", "Bar", "", "Close","5","0","All",,,"False","T","EveryTick") -> 4396 | Q82: 0.009646302251 | R82: =RTD("cqg.rtd",,"StudyData", "Close("&$D$12&") when LocalYear("&$D$12&")="&$D$6&" and localMonth("&$D$12&") ="&$E$6&" and LocalDay("&$D$12&")="&$F$6&" and Barix("&$D$12&",reference:=StartOfDay)="&A82&"", "Bar", "", "Close","5","0","All",,,"False","T","EveryTick") -> 4298 | S82: -0.008306414398 | T82: =RTD("cqg.rtd",,"StudyData", "Close("&$D$12&") when LocalYear("&$D$12&")="&$D$7&" and localMonth("&$D$12&") ="&$E$7&" and LocalDay("&$D$12&")="&$F$7&" and Barix("&$D$12&",reference:=StartOfDay)="&A82&"", "Bar", "", "Close","5","0","All",,,"False","T","EveryTick") -> 4310.5 | U82: 0.004485872415 | V82: =RTD("cqg.rtd",,"StudyData", "Close("&$D$12&") when LocalYear("&$D$12&")="&$D$8&" and localMonth("&$D$12&") ="&$E$8&" and LocalDay("&$D$12&")="&$F$8&" and Barix("&$D$12&",reference:=StartOfDay)="&A82&"", "Bar", "", "Close","5","0","All",,,"False","T","EveryTick") -> 4339.25 | W82: -0.001035971223 | X82: =RTD("cqg.rtd",,"StudyData", "Close("&$D$12&") when LocalYear("&$D$12&")="&$D$9&" and localMonth("&$D$12&") ="&$E$9&" and LocalDay("&$D$12&")="&$F$9&" and Barix("&$D$12&",reference:=StartOfDay)="&A82&"", "Bar", "", "Close","5","0","All",,,"False","T","EveryTick") -> 4306.75 | Y82: 0.002094119016 | Z82: =RTD("cqg.rtd",,"StudyData", "Close("&$D$12&") when LocalYear("&$D$12&")="&$D$10&" and localMonth("&$D$12&") ="&$E$10&" and LocalDay("&$D$12&")="&$F$10&" and Barix("&$D$12&",reference:=StartOfDay)="&A82&"", "Bar", "", "Close","5","0","All",,,"False","T","EveryTick") -> 4366.75 | AA82: 0.00390827059
A83: 178 | B83: 07:50:00 | H83: =RTD("cqg.rtd",,"StudyData", "Close("&$D$12&") when LocalYear("&$D$12&")="&$D$1&" and localMonth("&$D$12&") ="&$E$1&" and LocalDay("&$D$12&")="&$F$1&" and Barix("&$D$12&",reference:=StartOfDay)="&A83&"", "Bar", "", "Close","5","0","All",,,"False","T","EveryTick") -> 4340.75 | I83: 0 | J83: =RTD("cqg.rtd",,"StudyData", "Close("&$D$12&") when LocalYear("&$D$12&")="&$D$2&" and localMonth("&$D$12&") ="&$E$2&" and LocalDay("&$D$12&")="&$F$2&" and Barix("&$D$12&",reference:=StartOfDay)="&A83&"", "Bar", "", "Close","5","0","All",,,"False","T","EveryTick") -> 4356.25 | K83: 0.001206619168 | L83: =RTD("cqg.rtd",,"StudyData", "Close("&$D$12&") when LocalYear("&$D$12&")="&$D$3&" and localMonth("&$D$12&") ="&$E$3&" and LocalDay("&$D$12&")="&$F$3&" and Barix("&$D$12&",reference:=StartOfDay)="&A83&"", "Bar", "", "Close","5","0","All",,,"False","T","EveryTick") -> 4371.25 | M83: -0.002510126077 | N83: =RTD("cqg.rtd",,"StudyData", "Close("&$D$12&") when LocalYear("&$D$12&")="&$D$4&" and localMonth("&$D$12&") ="&$E$4&" and LocalDay("&$D$12&")="&$F$4&" and Barix("&$D$12&",reference:=StartOfDay)="&A83&"", "Bar", "", "Close","5","0","All",,,"False","T","EveryTick") -> 4393.25 | O83: 0.0007403189066 | P83: =RTD("cqg.rtd",,"StudyData", "Close("&$D$12&") when LocalYear("&$D$12&")="&$D$5&" and localMonth("&$D$12&") ="&$E$5&" and LocalDay("&$D$12&")="&$F$5&" and Barix("&$D$12&",reference:=StartOfDay)="&A83&"", "Bar", "", "Close","5","0","All",,,"False","T","EveryTick") -> 4396 | Q83: 0.009646302251 | R83: =RTD("cqg.rtd",,"StudyData", "Close("&$D$12&") when LocalYear("&$D$12&")="&$D$6&" and localMonth("&$D$12&") ="&$E$6&" and LocalDay("&$D$12&")="&$F$6&" and Barix("&$D$12&",reference:=StartOfDay)="&A83&"", "Bar", "", "Close","5","0","All",,,"False","T","EveryTick") -> 4293.25 | S83: -0.009402399631 | T83: =RTD("cqg.rtd",,"StudyData", "Close("&$D$12&") when LocalYear("&$D$12&")="&$D$7&" and localMonth("&$D$12&") ="&$E$7&" and LocalDay("&$D$12&")="&$F$7&" and Barix("&$D$12&",reference:=StartOfDay)="&A83&"", "Bar", "", "Close","5","0","All",,,"False","T","EveryTick") -> 4310.75 | U83: 0.004544130498 | V83: =RTD("cqg.rtd",,"StudyData", "Close("&$D$12&") when LocalYear("&$D$12&")="&$D$8&" and localMonth("&$D$12&") ="&$E$8&" and LocalDay("&$D$12&")="&$F$8&" and Barix("&$D$12&",reference:=StartOfDay)="&A83&"", "Bar", "", "Close","5","0","All",,,"False","T","EveryTick") -> 4341 | W83: -0.0006330935252 | X83: =RTD("cqg.rtd",,"StudyData", "Close("&$D$12&") when LocalYear("&$D$12&")="&$D$9&" and localMonth("&$D$12&") ="&$E$9&" and LocalDay("&$D$12&")="&$F$9&" and Barix("&$D$12&",reference:=StartOfDay)="&A83&"", "Bar", "", "Close","5","0","All",,,"False","T","EveryTick") -> 4308.5 | Y83: 0.002501308824 | Z83: =RTD("cqg.rtd",,"StudyData", "Close("&$D$12&") when LocalYear("&$D$12&")="&$D$10&" and localMonth("&$D$12&") ="&$E$10&" and LocalDay("&$D$12&")="&$F$10&" and Barix("&$D$12&",reference:=StartOfDay)="&A83&"", "Bar", "", "Close","5","0","All",,,"False","T","EveryTick") -> 4366.25 | AA83: 0.003793321455
A84: 179 | B84: 07:55:00 | H84: =RTD("cqg.rtd",,"StudyData", "Close("&$D$12&") when LocalYear("&$D$12&")="&$D$1&" and localMonth("&$D$12&") ="&$E$1&" and LocalDay("&$D$12&")="&$F$1&" and Barix("&$D$12&",reference:=StartOfDay)="&A84&"", "Bar", "", "Close","5","0","All",,,"False","T","EveryTick") -> 4339 | I84: -0.0004031561366 | J84: =RTD("cqg.rtd",,"StudyData", "Close("&$D$12&") when LocalYear("&$D$12&")="&$D$2&" and localMonth("&$D$12&") ="&$E$2&" and LocalDay("&$D$12&")="&$F$2&" and Barix("&$D$12&",reference:=StartOfDay)="&A84&"", "Bar", "", "Close","5","0","All",,,"False","T","EveryTick") -> 4357 | K84: 0.001378993335 | L84: =RTD("cqg.rtd",,"StudyData", "Close("&$D$12&") when LocalYear("&$D$12&")="&$D$3&" and localMonth("&$D$12&") ="&$E$3&" and LocalDay("&$D$12&")="&$F$3&" and Barix("&$D$12&",reference:=StartOfDay)="&A84&"", "Bar", "", "Close","5","0","All",,,"False","T","EveryTick") -> 4372.75 | M84: -0.002167836157 | N84: =RTD("cqg.rtd",,"StudyData", "Close("&$D$12&") when LocalYear("&$D$12&")="&$D$4&" and localMonth("&$D$12&") ="&$E$4&" and LocalDay("&$D$12&")="&$F$4&" and Barix("&$D$12&",reference:=StartOfDay)="&A84&"", "Bar", "", "Close","5","0","All",,,"False","T","EveryTick") -> 4400.5 | O84: 0.002391799544 | P84: =RTD("cqg.rtd",,"StudyData", "Close("&$D$12&") when LocalYear("&$D$12&")="&$D$5&" and localMonth("&$D$12&") ="&$E$5&" and LocalDay("&$D$12&")="&$F$5&" and Barix("&$D$12&",reference:=StartOfDay)="&A84&"", "Bar", "", "Close","5","0","All",,,"False","T","EveryTick") -> 4394.5 | Q84: 0.009301791456 | R84: =RTD("cqg.rtd",,"StudyData", "Close("&$D$12&") when LocalYear("&$D$12&")="&$D$6&" and localMonth("&$D$12&") ="&$E$6&" and LocalDay("&$D$12&")="&$F$6&" and Barix("&$D$12&",reference:=StartOfDay)="&A84&"", "Bar", "", "Close","5","0","All",,,"False","T","EveryTick") -> 4293.25 | S84: -0.009402399631 | T84: =RTD("cqg.rtd",,"StudyData", "Close("&$D$12&") when LocalYear("&$D$12&")="&$D$7&" and localMonth("&$D$12&") ="&$E$7&" and LocalDay("&$D$12&")="&$F$7&" and Barix("&$D$12&",reference:=StartOfDay)="&A84&"", "Bar", "", "Close","5","0","All",,,"False","T","EveryTick") -> 4311.75 | U84: 0.004777162831 | V84: =RTD("cqg.rtd",,"StudyData", "Close("&$D$12&") when LocalYear("&$D$12&")="&$D$8&" and localMonth("&$D$12&") ="&$E$8&" and LocalDay("&$D$12&")="&$F$8&" and Barix("&$D$12&",reference:=StartOfDay)="&A84&"", "Bar", "", "Close","5","0","All",,,"False","T","EveryTick") -> 4338.25 | W84: -0.00126618705 | X84: =RTD("cqg.rtd",,"StudyData", "Close("&$D$12&") when LocalYear("&$D$12&")="&$D$9&" and localMonth("&$D$12&") ="&$E$9&" and LocalDay("&$D$12&")="&$F$9&" and Barix("&$D$12&",reference:=StartOfDay)="&A84&"", "Bar", "", "Close","5","0","All",,,"False","T","EveryTick") -> 4309.25 | Y84: 0.002675818742 | Z84: =RTD("cqg.rtd",,"StudyData", "Close("&$D$12&") when LocalYear("&$D$12&")="&$D$10&" and localMonth("&$D$12&") ="&$E$10&" and LocalDay("&$D$12&")="&$F$10&" and Barix("&$D$12&",reference:=StartOfDay)="&A84&"", "Bar", "", "Close","5","0","All",,,"False","T","EveryTick") -> 4364 | AA84: 0.003276050348
A85: 180 | B85: 08:00:00 | H85: =RTD("cqg.rtd",,"StudyData", "Close("&$D$12&") when LocalYear("&$D$12&")="&$D$1&" and localMonth("&$D$12&") ="&$E$1&" and LocalDay("&$D$12&")="&$F$1&" and Barix("&$D$12&",reference:=StartOfDay)="&A85&"", "Bar", "", "Close","5","0","All",,,"False","T","EveryTick") -> 4340.25 | I85: -0.0001151874676 | J85: =RTD("cqg.rtd",,"StudyData", "Close("&$D$12&") when LocalYear("&$D$12&")="&$D$2&" and localMonth("&$D$12&") ="&$E$2&" and LocalDay("&$D$12&")="&$F$2&" and Barix("&$D$12&",reference:=StartOfDay)="&A85&"", "Bar", "", "Close","5","0","All",,,"False","T","EveryTick") -> 4358.25 | K85: 0.001666283613 | L85: =RTD("cqg.rtd",,"StudyData", "Close("&$D$12&") when LocalYear("&$D$12&")="&$D$3&" and localMonth("&$D$12&") ="&$E$3&" and LocalDay("&$D$12&")="&$F$3&" and Barix("&$D$12&",reference:=StartOfDay)="&A85&"", "Bar", "", "Close","5","0","All",,,"False","T","EveryTick") -> 4374.5 | M85: -0.001768497918 | N85: =RTD("cqg.rtd",,"StudyData", "Close("&$D$12&") when LocalYear("&$D$12&")="&$D$4&" and localMonth("&$D$12&") ="&$E$4&" and LocalDay("&$D$12&")="&$F$4&" and Barix("&$D$12&",reference:=StartOfDay)="&A85&"", "Bar", "", "Close","5","0","All",,,"False","T","EveryTick") -> 4403 | O85: 0.002961275626 | P85: =RTD("cqg.rtd",,"StudyData", "Close("&$D$12&") when LocalYear("&$D$12&")="&$D$5&" and localMonth("&$D$12&") ="&$E$5&" and LocalDay("&$D$12&")="&$F$5&" and Barix("&$D$12&",reference:=StartOfDay)="&A85&"", "Bar", "", "Close","5","0","All",,,"False","T","EveryTick") -> 4392.5 | Q85: 0.00884244373 | R85: =RTD("cqg.rtd",,"StudyData", "Close("&$D$12&") when LocalYear("&$D$12&")="&$D$6&" and localMonth("&$D$12&") ="&$E$6&" and LocalDay("&$D$12&")="&$F$6&" and Barix("&$D$12&",reference:=StartOfDay)="&A85&"", "Bar", "", "Close","5","0","All",,,"False","T","EveryTick") -> 4295.5 | S85: -0.008883248731 | T85: =RTD("cqg.rtd",,"StudyData", "Close("&$D$12&") when LocalYear("&$D$12&")="&$D$7&" and localMonth("&$D$12&") ="&$E$7&" and LocalDay("&$D$12&")="&$F$7&" and Barix("&$D$12&",reference:=StartOfDay)="&A85&"", "Bar", "", "Close","5","0","All",,,"False","T","EveryTick") -> 4310 | U85: 0.004369356248 | V85: =RTD("cqg.rtd",,"StudyData", "Close("&$D$12&") when LocalYear("&$D$12&")="&$D$8&" and localMonth("&$D$12&") ="&$E$8&" and LocalDay("&$D$12&")="&$F$8&" and Barix("&$D$12&",reference:=StartOfDay)="&A85&"", "Bar", "", "Close","5","0","All",,,"False","T","EveryTick") -> 4337.25 | W85: -0.001496402878 | X85: =RTD("cqg.rtd",,"StudyData", "Close("&$D$12&") when LocalYear("&$D$12&")="&$D$9&" and localMonth("&$D$12&") ="&$E$9&" and LocalDay("&$D$12&")="&$F$9&" and Barix("&$D$12&",reference:=StartOfDay)="&A85&"", "Bar", "", "Close","5","0","All",,,"False","T","EveryTick") -> 4314.75 | Y85: 0.003955558141 | Z85: =RTD("cqg.rtd",,"StudyData", "Close("&$D$12&") when LocalYear("&$D$12&")="&$D$10&" and localMonth("&$D$12&") ="&$E$10&" and LocalDay("&$D$12&")="&$F$10&" and Barix("&$D$12&",reference:=StartOfDay)="&A85&"", "Bar", "", "Close","5","0","All",,,"False","T","EveryTick") -> 4361 | AA85: 0.002586355538
A86: 181 | B86: 08:05:00 | H86: =RTD("cqg.rtd",,"StudyData", "Close("&$D$12&") when LocalYear("&$D$12&")="&$D$1&" and localMonth("&$D$12&") ="&$E$1&" and LocalDay("&$D$12&")="&$F$1&" and Barix("&$D$12&",reference:=StartOfDay)="&A86&"", "Bar", "", "Close","5","0","All",,,"False","T","EveryTick") -> 4341.5 | I86: 0.0001727812014 | J86: =RTD("cqg.rtd",,"StudyData", "Close("&$D$12&") when LocalYear("&$D$12&")="&$D$2&" and localMonth("&$D$12&") ="&$E$2&" and LocalDay("&$D$12&")="&$F$2&" and Barix("&$D$12&",reference:=StartOfDay)="&A86&"", "Bar", "", "Close","5","0","All",,,"False","T","EveryTick") -> 4361 | K86: 0.002298322225 | L86: =RTD("cqg.rtd",,"StudyData", "Close("&$D$12&") when LocalYear("&$D$12&")="&$D$3&" and localMonth("&$D$12&") ="&$E$3&" and LocalDay("&$D$12&")="&$F$3&" and Barix("&$D$12&",reference:=StartOfDay)="&A86&"", "Bar", "", "Close","5","0","All",,,"False","T","EveryTick") -> 4374.5 | M86: -0.001768497918 | N86: =RTD("cqg.rtd",,"StudyData", "Close("&$D$12&") when LocalYear("&$D$12&")="&$D$4&" and localMonth("&$D$12&") ="&$E$4&" and LocalDay("&$D$12&")="&$F$4&" and Barix("&$D$12&",reference:=StartOfDay)="&A86&"", "Bar", "", "Close","5","0","All",,,"False","T","EveryTick") -> 4401 | O86: 0.002505694761 | P86: =RTD("cqg.rtd",,"StudyData", "Close("&$D$12&") when LocalYear("&$D$12&")="&$D$5&" and localMonth("&$D$12&") ="&$E$5&" and LocalDay("&$D$12&")="&$F$5&" and Barix("&$D$12&",reference:=StartOfDay)="&A86&"", "Bar", "", "Close","5","0","All",,,"False","T","EveryTick") -> 4391.25 | Q86: 0.008555351401 | R86: =RTD("cqg.rtd",,"StudyData", "Close("&$D$12&") when LocalYear("&$D$12&")="&$D$6&" and localMonth("&$D$12&") ="&$E$6&" and LocalDay("&$D$12&")="&$F$6&" and Barix("&$D$12&",reference:=StartOfDay)="&A86&"", "Bar", "", "Close","5","0","All",,,"False","T","EveryTick") -> 4295 | S86: -0.008998615598 | T86: =RTD("cqg.rtd",,"StudyData", "Close("&$D$12&") when LocalYear("&$D$12&")="&$D$7&" and localMonth("&$D$12&") ="&$E$7&" and LocalDay("&$D$12&")="&$F$7&" and Barix("&$D$12&",reference:=StartOfDay)="&A86&"", "Bar", "", "Close","5","0","All",,,"False","T","EveryTick") -> 4305.75 | U86: 0.003378968832 | V86: =RTD("cqg.rtd",,"StudyData", "Close("&$D$12&") when LocalYear("&$D$12&")="&$D$8&" and localMonth("&$D$12&") ="&$E$8&" and LocalDay("&$D$12&")="&$F$8&" and Barix("&$D$12&",reference:=StartOfDay)="&A86&"", "Bar", "", "Close","5","0","All",,,"False","T","EveryTick") -> 4335.5 | W86: -0.001899280576 | X86: =RTD("cqg.rtd",,"StudyData", "Close("&$D$12&") when LocalYear("&$D$12&")="&$D$9&" and localMonth("&$D$12&") ="&$E$9&" and LocalDay("&$D$12&")="&$F$9&" and Barix("&$D$12&",reference:=StartOfDay)="&A86&"", "Bar", "", "Close","5","0","All",,,"False","T","EveryTick") -> 4312 | Y86: 0.003315688442 | Z86: =RTD("cqg.rtd",,"StudyData", "Close("&$D$12&") when LocalYear("&$D$12&")="&$D$10&" and localMonth("&$D$12&") ="&$E$10&" and LocalDay("&$D$12&")="&$F$10&" and Barix("&$D$12&",reference:=StartOfDay)="&A86&"", "Bar", "", "Close","5","0","All",,,"False","T","EveryTick") -> 4359.5 | AA86: 0.002241508133
A87: 182 | B87: 08:10:00 | H87: =RTD("cqg.rtd",,"StudyData", "Close("&$D$12&") when LocalYear("&$D$12&")="&$D$1&" and localMonth("&$D$12&") ="&$E$1&" and LocalDay("&$D$12&")="&$F$1&" and Barix("&$D$12&",reference:=StartOfDay)="&A87&"", "Bar", "", "Close","5","0","All",,,"False","T","EveryTick") -> 4344.75 | I87: 0.0009214997408 | J87: =RTD("cqg.rtd",,"StudyData", "Close("&$D$12&") when LocalYear("&$D$12&")="&$D$2&" and localMonth("&$D$12&") ="&$E$2&" and LocalDay("&$D$12&")="&$F$2&" and Barix("&$D$12&",reference:=StartOfDay)="&A87&"", "Bar", "", "Close","5","0","All",,,"False","T","EveryTick") -> 4361 | K87: 0.002298322225 | L87: =RTD("cqg.rtd",,"StudyData", "Close("&$D$12&") when LocalYear("&$D$12&")="&$D$3&" and localMonth("&$D$12&") ="&$E$3&" and LocalDay("&$D$12&")="&$F$3&" and Barix("&$D$12&",reference:=StartOfDay)="&A87&"", "Bar", "", "Close","5","0","All",,,"False","T","EveryTick") -> 4377.5 | M87: -0.001083918079 | N87: =RTD("cqg.rtd",,"StudyData", "Close("&$D$12&") when LocalYear("&$D$12&")="&$D$4&" and localMonth("&$D$12&") ="&$E$4&" and LocalDay("&$D$12&")="&$F$4&" and Barix("&$D$12&",reference:=StartOfDay)="&A87&"", "Bar", "", "Close","5","0","All",,,"False","T","EveryTick") -> 4401.25 | O87: 0.002562642369 | P87: =RTD("cqg.rtd",,"StudyData", "Close("&$D$12&") when LocalYear("&$D$12&")="&$D$5&" and localMonth("&$D$12&") ="&$E$5&" and LocalDay("&$D$12&")="&$F$5&" and Barix("&$D$12&",reference:=StartOfDay)="&A87&"", "Bar", "", "Close","5","0","All",,,"False","T","EveryTick") -> 4389 | Q87: 0.008038585209 | R87: =RTD("cqg.rtd",,"StudyData", "Close("&$D$12&") when LocalYear("&$D$12&")="&$D$6&" and localMonth("&$D$12&") ="&$E$6&" and LocalDay("&$D$12&")="&$F$6&" and Barix("&$D$12&",reference:=StartOfDay)="&A87&"", "Bar", "", "Close","5","0","All",,,"False","T","EveryTick") -> 4301 | S87: -0.007614213198 | T87: =RTD("cqg.rtd",,"StudyData", "Close("&$D$12&") when LocalYear("&$D$12&")="&$D$7&" and localMonth("&$D$12&") ="&$E$7&" and LocalDay("&$D$12&")="&$F$7&" and Barix("&$D$12&",reference:=StartOfDay)="&A87&"", "Bar", "", "Close","5","0","All",,,"False","T","EveryTick") -> 4306.75 | U87: 0.003612001165 | V87: =RTD("cqg.rtd",,"StudyData", "Close("&$D$12&") when LocalYear("&$D$12&")="&$D$8&" and localMonth("&$D$12&") ="&$E$8&" and LocalDay("&$D$12&")="&$F$8&" and Barix("&$D$12&",reference:=StartOfDay)="&A87&"", "Bar", "", "Close","5","0","All",,,"False","T","EveryTick") -> 4336.25 | W87: -0.001726618705 | X87: =RTD("cqg.rtd",,"StudyData", "Close("&$D$12&") when LocalYear("&$D$12&")="&$D$9&" and localMonth("&$D$12&") ="&$E$9&" and LocalDay("&$D$12&")="&$F$9&" and Barix("&$D$12&",reference:=StartOfDay)="&A87&"", "Bar", "", "Close","5","0","All",,,"False","T","EveryTick") -> 4314.75 | Y87: 0.003955558141 | Z87: =RTD("cqg.rtd",,"StudyData", "Close("&$D$12&") when LocalYear("&$D$12&")="&$D$10&" and localMonth("&$D$12&") ="&$E$10&" and LocalDay("&$D$12&")="&$F$10&" and Barix("&$D$12&",reference:=StartOfDay)="&A87&"", "Bar", "", "Close","5","0","All",,,"False","T","EveryTick") -> 4361.5 | AA87: 0.002701304673
A88: 183 | B88: 08:15:00 | H88: =RTD("cqg.rtd",,"StudyData", "Close("&$D$12&") when LocalYear("&$D$12&")="&$D$1&" and localMonth("&$D$12&") ="&$E$1&" and LocalDay("&$D$12&")="&$F$1&" and Barix("&$D$12&",reference:=StartOfDay)="&A88&"", "Bar", "", "Close","5","0","All",,,"False","T","EveryTick") -> 4348.75 | I88: 0.001842999482 | J88: =RTD("cqg.rtd",,"StudyData", "Close("&$D$12&") when LocalYear("&$D$12&")="&$D$2&" and localMonth("&$D$12&") ="&$E$2&" and LocalDay("&$D$12&")="&$F$2&" and Barix("&$D$12&",reference:=StartOfDay)="&A88&"", "Bar", "", "Close","5","0","All",,,"False","T","EveryTick") -> 4360.25 | K88: 0.002125948058 | L88: =RTD("cqg.rtd",,"StudyData", "Close("&$D$12&") when LocalYear("&$D$12&")="&$D$3&" and localMonth("&$D$12&") ="&$E$3&" and LocalDay("&$D$12&")="&$F$3&" and Barix("&$D$12&",reference:=StartOfDay)="&A88&"", "Bar", "", "Close","5","0","All",,,"False","T","EveryTick") -> 4375.75 | M88: -0.001483256318 | N88: =RTD("cqg.rtd",,"StudyData", "Close("&$D$12&") when LocalYear("&$D$12&")="&$D$4&" and localMonth("&$D$12&") ="&$E$4&" and LocalDay("&$D$12&")="&$F$4&" and Barix("&$D$12&",reference:=StartOfDay)="&A88&"", "Bar", "", "Close","5","0","All",,,"False","T","EveryTick") -> 4399.25 | O88: 0.002107061503 | P88: =RTD("cqg.rtd",,"StudyData", "Close("&$D$12&") when LocalYear("&$D$12&")="&$D$5&" and localMonth("&$D$12&") ="&$E$5&" and LocalDay("&$D$12&")="&$F$5&" and Barix("&$D$12&",reference:=StartOfDay)="&A88&"", "Bar", "", "Close","5","0","All",,,"False","T","EveryTick") -> 4388.5 | Q88: 0.007923748277 | R88: =RTD("cqg.rtd",,"StudyData", "Close("&$D$12&") when LocalYear("&$D$12&")="&$D$6&" and localMonth("&$D$12&") ="&$E$6&" and LocalDay("&$D$12&")="&$F$6&" and Barix("&$D$12&",reference:=StartOfDay)="&A88&"", "Bar", "", "Close","5","0","All",,,"False","T","EveryTick") -> 4301 | S88: -0.007614213198 | T88: =RTD("cqg.rtd",,"StudyData", "Close("&$D$12&") when LocalYear("&$D$12&")="&$D$7&" and localMonth("&$D$12&") ="&$E$7&" and LocalDay("&$D$12&")="&$F$7&" and Barix("&$D$12&",reference:=StartOfDay)="&A88&"", "Bar", "", "Close","5","0","All",,,"False","T","EveryTick") -> 4308.75 | U88: 0.004078065832 | V88: =RTD("cqg.rtd",,"StudyData", "Close("&$D$12&") when LocalYear("&$D$12&")="&$D$8&" and localMonth("&$D$12&") ="&$E$8&" and LocalDay("&$D$12&")="&$F$8&" and Barix("&$D$12&",reference:=StartOfDay)="&A88&"", "Bar", "", "Close","5","0","All",,,"False","T","EveryTick") -> 4335.5 | W88: -0.001899280576 | X88: =RTD("cqg.rtd",,"StudyData", "Close("&$D$12&") when LocalYear("&$D$12&")="&$D$9&" and localMonth("&$D$12&") ="&$E$9&" and LocalDay("&$D$12&")="&$F$9&" and Barix("&$D$12&",reference:=StartOfDay)="&A88&"", "Bar", "", "Close","5","0","All",,,"False","T","EveryTick") -> 4316 | Y88: 0.004246408004 | Z88: =RTD("cqg.rtd",,"StudyData", "Close("&$D$12&") when LocalYear("&$D$12&")="&$D$10&" and localMonth("&$D$12&") ="&$E$10&" and LocalDay("&$D$12&")="&$F$10&" and Barix("&$D$12&",reference:=StartOfDay)="&A88&"", "Bar", "", "Close","5","0","All",,,"False","T","EveryTick") -> 4360.75 | AA88: 0.00252888097
A89: 184 | B89: 08:20:00 | H89: =RTD("cqg.rtd",,"StudyData", "Close("&$D$12&") when LocalYear("&$D$12&")="&$D$1&" and localMonth("&$D$12&") ="&$E$1&" and LocalDay("&$D$12&")="&$F$1&" and Barix("&$D$12&",reference:=StartOfDay)="&A89&"", "Bar", "", "Close","5","0","All",,,"False","T","EveryTick") -> 4351.25 | I89: 0.00241893682 | J89: =RTD("cqg.rtd",,"StudyData", "Close("&$D$12&") when LocalYear("&$D$12&")="&$D$2&" and localMonth("&$D$12&") ="&$E$2&" and LocalDay("&$D$12&")="&$F$2&" and Barix("&$D$12&",reference:=StartOfDay)="&A89&"", "Bar", "", "Close","5","0","All",,,"False","T","EveryTick") -> 4360.25 | K89: 0.002125948058 | L89: =RTD("cqg.rtd",,"StudyData", "Close("&$D$12&") when LocalYear("&$D$12&")="&$D$3&" and localMonth("&$D$12&") ="&$E$3&" and LocalDay("&$D$12&")="&$F$3&" and Barix("&$D$12&",reference:=StartOfDay)="&A89&"", "Bar", "", "Close","5","0","All",,,"False","T","EveryTick") -> 4375.25 | M89: -0.001597352958 | N89: =RTD("cqg.rtd",,"StudyData", "Close("&$D$12&") when LocalYear("&$D$12&")="&$D$4&" and localMonth("&$D$12&") ="&$E$4&" and LocalDay("&$D$12&")="&$F$4&" and Barix("&$D$12&",reference:=StartOfDay)="&A89&"", "Bar", "", "Close","5","0","All",,,"False","T","EveryTick") -> 4400.5 | O89: 0.002391799544 | P89: =RTD("cqg.rtd",,"StudyData", "Close("&$D$12&") when LocalYear("&$D$12&")="&$D$5&" and localMonth("&$D$12&") ="&$E$5&" and LocalDay("&$D$12&")="&$F$5&" and Barix("&$D$12&",reference:=StartOfDay)="&A89&"", "Bar", "", "Close","5","0","All",,,"False","T","EveryTick") -> 4387.75 | Q89: 0.00775149288 | R89: =RTD("cqg.rtd",,"StudyData", "Close("&$D$12&") when LocalYear("&$D$12&")="&$D$6&" and localMonth("&$D$12&") ="&$E$6&" and LocalDay("&$D$12&")="&$F$6&" and Barix("&$D$12&",reference:=StartOfDay)="&A89&"", "Bar", "", "Close","5","0","All",,,"False","T","EveryTick") -> 4298.25 | S89: -0.008248730964 | T89: =RTD("cqg.rtd",,"StudyData", "Close("&$D$12&") when LocalYear("&$D$12&")="&$D$7&" and localMonth("&$D$12&") ="&$E$7&" and LocalDay("&$D$12&")="&$F$7&" and Barix("&$D$12&",reference:=StartOfDay)="&A89&"", "Bar", "", "Close","5","0","All",,,"False","T","EveryTick") -> 4305.5 | U89: 0.003320710749 | V89: =RTD("cqg.rtd",,"StudyData", "Close("&$D$12&") when LocalYear("&$D$12&")="&$D$8&" and localMonth("&$D$12&") ="&$E$8&" and LocalDay("&$D$12&")="&$F$8&" and Barix("&$D$12&",reference:=StartOfDay)="&A89&"", "Bar", "", "Close","5","0","All",,,"False","T","EveryTick") -> 4335 | W89: -0.002014388489 | X89: =RTD("cqg.rtd",,"StudyData", "Close("&$D$12&") when LocalYear("&$D$12&")="&$D$9&" and localMonth("&$D$12&") ="&$E$9&" and LocalDay("&$D$12&")="&$F$9&" and Barix("&$D$12&",reference:=StartOfDay)="&A89&"", "Bar", "", "Close","5","0","All",,,"False","T","EveryTick") -> 4315.25 | Y89: 0.004071898086 | Z89: =RTD("cqg.rtd",,"StudyData", "Close("&$D$12&") when LocalYear("&$D$12&")="&$D$10&" and localMonth("&$D$12&") ="&$E$10&" and LocalDay("&$D$12&")="&$F$10&" and Barix("&$D$12&",reference:=StartOfDay)="&A89&"", "Bar", "", "Close","5","0","All",,,"False","T","EveryTick") -> 4362.75 | AA89: 0.00298867751
A90: 185 | B90: 08:25:00 | H90: =RTD("cqg.rtd",,"StudyData", "Close("&$D$12&") when LocalYear("&$D$12&")="&$D$1&" and localMonth("&$D$12&") ="&$E$1&" and LocalDay("&$D$12&")="&$F$1&" and Barix("&$D$12&",reference:=StartOfDay)="&A90&"", "Bar", "", "Close","5","0","All",,,"False","T","EveryTick") -> 4351 | I90: 0.002361343086 | J90: =RTD("cqg.rtd",,"StudyData", "Close("&$D$12&") when LocalYear("&$D$12&")="&$D$2&" and localMonth("&$D$12&") ="&$E$2&" and LocalDay("&$D$12&")="&$F$2&" and Barix("&$D$12&",reference:=StartOfDay)="&A90&"", "Bar", "", "Close","5","0","All",,,"False","T","EveryTick") -> 4361 | K90: 0.002298322225 | L90: =RTD("cqg.rtd",,"StudyData", "Close("&$D$12&") when LocalYear("&$D$12&")="&$D$3&" and localMonth("&$D$12&") ="&$E$3&" and LocalDay("&$D$12&")="&$F$3&" and Barix("&$D$12&",reference:=StartOfDay)="&A90&"", "Bar", "", "Close","5","0","All",,,"False","T","EveryTick") -> 4376 | M90: -0.001426207998 | N90: =RTD("cqg.rtd",,"StudyData", "Close("&$D$12&") when LocalYear("&$D$12&")="&$D$4&" and localMonth("&$D$12&") ="&$E$4&" and LocalDay("&$D$12&")="&$F$4&" and Barix("&$D$12&",reference:=StartOfDay)="&A90&"", "Bar", "", "Close","5","0","All",,,"False","T","EveryTick") -> 4399.25 | O90: 0.002107061503 | P90: =RTD("cqg.rtd",,"StudyData", "Close("&$D$12&") when LocalYear("&$D$12&")="&$D$5&" and localMonth("&$D$12&") ="&$E$5&" and LocalDay("&$D$12&")="&$F$5&" and Barix("&$D$12&",reference:=StartOfDay)="&A90&"", "Bar", "", "Close","5","0","All",,,"False","T","EveryTick") -> 4388.25 | Q90: 0.007866329812 | R90: =RTD("cqg.rtd",,"StudyData", "Close("&$D$12&") when LocalYear("&$D$12&")="&$D$6&" and localMonth("&$D$12&") ="&$E$6&" and LocalDay("&$D$12&")="&$F$6&" and Barix("&$D$12&",reference:=StartOfDay)="&A90&"", "Bar", "", "Close","5","0","All",,,"False","T","EveryTick") -> 4297 | S90: -0.008537148131 | T90: =RTD("cqg.rtd",,"StudyData", "Close("&$D$12&") when LocalYear("&$D$12&")="&$D$7&" and localMonth("&$D$12&") ="&$E$7&" and LocalDay("&$D$12&")="&$F$7&" and Barix("&$D$12&",reference:=StartOfDay)="&A90&"", "Bar", "", "Close","5","0","All",,,"False","T","EveryTick") -> 4307.25 | U90: 0.003728517332 | V90: =RTD("cqg.rtd",,"StudyData", "Close("&$D$12&") when LocalYear("&$D$12&")="&$D$8&" and localMonth("&$D$12&") ="&$E$8&" and LocalDay("&$D$12&")="&$F$8&" and Barix("&$D$12&",reference:=StartOfDay)="&A90&"", "Bar", "", "Close","5","0","All",,,"False","T","EveryTick") -> 4334.75 | W90: -0.002071942446 | X90: =RTD("cqg.rtd",,"StudyData", "Close("&$D$12&") when LocalYear("&$D$12&")="&$D$9&" and localMonth("&$D$12&") ="&$E$9&" and LocalDay("&$D$12&")="&$F$9&" and Barix("&$D$12&",reference:=StartOfDay)="&A90&"", "Bar", "", "Close","5","0","All",,,"False","T","EveryTick") -> 4315 | Y90: 0.004013728114 | Z90: =RTD("cqg.rtd",,"StudyData", "Close("&$D$12&") when LocalYear("&$D$12&")="&$D$10&" and localMonth("&$D$12&") ="&$E$10&" and LocalDay("&$D$12&")="&$F$10&" and Barix("&$D$12&",reference:=StartOfDay)="&A90&"", "Bar", "", "Close","5","0","All",,,"False","T","EveryTick") -> 4366 | AA90: 0.003735846888
A91: 186 | B91: 08:30:00 | H91: =RTD("cqg.rtd",,"StudyData", "Close("&$D$12&") when LocalYear("&$D$12&")="&$D$1&" and localMonth("&$D$12&") ="&$E$1&" and LocalDay("&$D$12&")="&$F$1&" and Barix("&$D$12&",reference:=StartOfDay)="&A91&"", "Bar", "", "Close","5","0","All",,,"False","T","EveryTick") -> 4351 | I91: 0.002361343086 | J91: =RTD("cqg.rtd",,"StudyData", "Close("&$D$12&") when LocalYear("&$D$12&")="&$D$2&" and localMonth("&$D$12&") ="&$E$2&" and LocalDay("&$D$12&")="&$F$2&" and Barix("&$D$12&",reference:=StartOfDay)="&A91&"", "Bar", "", "Close","5","0","All",,,"False","T","EveryTick") -> 4358.75 | K91: 0.001781199724 | L91: =RTD("cqg.rtd",,"StudyData", "Close("&$D$12&") when LocalYear("&$D$12&")="&$D$3&" and localMonth("&$D$12&") ="&$E$3&" and LocalDay("&$D$12&")="&$F$3&" and Barix("&$D$12&",reference:=StartOfDay)="&A91&"", "Bar", "", "Close","5","0","All",,,"False","T","EveryTick") -> 4377.75 | M91: -0.001026869759 | N91: =RTD("cqg.rtd",,"StudyData", "Close("&$D$12&") when LocalYear("&$D$12&")="&$D$4&" and localMonth("&$D$12&") ="&$E$4&" and LocalDay("&$D$12&")="&$F$4&" and Barix("&$D$12&",reference:=StartOfDay)="&A91&"", "Bar", "", "Close","5","0","All",,,"False","T","EveryTick") -> 4387.75 | O91: -0.0005125284738 | P91: =RTD("cqg.rtd",,"StudyData", "Close("&$D$12&") when LocalYear("&$D$12&")="&$D$5&" and localMonth("&$D$12&") ="&$E$5&" and LocalDay("&$D$12&")="&$F$5&" and Barix("&$D$12&",reference:=StartOfDay)="&A91&"", "Bar", "", "Close","5","0","All",,,"False","T","EveryTick") -> 4401.25 | Q91: 0.01085209003 | R91: =RTD("cqg.rtd",,"StudyData", "Close("&$D$12&") when LocalYear("&$D$12&")="&$D$6&" and localMonth("&$D$12&") ="&$E$6&" and LocalDay("&$D$12&")="&$F$6&" and Barix("&$D$12&",reference:=StartOfDay)="&A91&"", "Bar", "", "Close","5","0","All",,,"False","T","EveryTick") -> 4309.75 | S91: -0.005595293032 | T91: =RTD("cqg.rtd",,"StudyData", "Close("&$D$12&") when LocalYear("&$D$12&")="&$D$7&" and localMonth("&$D$12&") ="&$E$7&" and LocalDay("&$D$12&")="&$F$7&" and Barix("&$D$12&",reference:=StartOfDay)="&A91&"", "Bar", "", "Close","5","0","All",,,"False","T","EveryTick") -> 4308 | U91: 0.003903291582 | V91: =RTD("cqg.rtd",,"StudyData", "Close("&$D$12&") when LocalYear("&$D$12&")="&$D$8&" and localMonth("&$D$12&") ="&$E$8&" and LocalDay("&$D$12&")="&$F$8&" and Barix("&$D$12&",reference:=StartOfDay)="&A91&"", "Bar", "", "Close","5","0","All",,,"False","T","EveryTick") -> 4339 | W91: -0.00109352518 | X91: =RTD("cqg.rtd",,"StudyData", "Close("&$D$12&") when LocalYear("&$D$12&")="&$D$9&" and localMonth("&$D$12&") ="&$E$9&" and LocalDay("&$D$12&")="&$F$9&" and Barix("&$D$12&",reference:=StartOfDay)="&A91&"", "Bar", "", "Close","5","0","All",,,"False","T","EveryTick") -> 4307.75 | Y91: 0.002326798906 | Z91: =RTD("cqg.rtd",,"StudyData", "Close("&$D$12&") when LocalYear("&$D$12&")="&$D$10&" and localMonth("&$D$12&") ="&$E$10&" and LocalDay("&$D$12&")="&$F$10&" and Barix("&$D$12&",reference:=StartOfDay)="&A91&"", "Bar", "", "Close","5","0","All",,,"False","T","EveryTick") -> 4367.5 | AA91: 0.004080694293
A92: 187 | B92: 08:35:00 | H92: =RTD("cqg.rtd",,"StudyData", "Close("&$D$12&") when LocalYear("&$D$12&")="&$D$1&" and localMonth("&$D$12&") ="&$E$1&" and LocalDay("&$D$12&")="&$F$1&" and Barix("&$D$12&",reference:=StartOfDay)="&A92&"", "Bar", "", "Close","5","0","All",,,"False","T","EveryTick") -> 4356.25 | I92: 0.003570811496 | J92: =RTD("cqg.rtd",,"StudyData", "Close("&$D$12&") when LocalYear("&$D$12&")="&$D$2&" and localMonth("&$D$12&") ="&$E$2&" and LocalDay("&$D$12&")="&$F$2&" and Barix("&$D$12&",reference:=StartOfDay)="&A92&"", "Bar", "", "Close","5","0","All",,,"False","T","EveryTick") -> 4358 | K92: 0.001608825557 | L92: =RTD("cqg.rtd",,"StudyData", "Close("&$D$12&") when LocalYear("&$D$12&")="&$D$3&" and localMonth("&$D$12&") ="&$E$3&" and LocalDay("&$D$12&")="&$F$3&" and Barix("&$D$12&",reference:=StartOfDay)="&A92&"", "Bar", "", "Close","5","0","All",,,"False","T","EveryTick") -> 4379.75 | M92: -0.0005704831993 | N92: =RTD("cqg.rtd",,"StudyData", "Close("&$D$12&") when LocalYear("&$D$12&")="&$D$4&" and localMonth("&$D$12&") ="&$E$4&" and LocalDay("&$D$12&")="&$F$4&" and Barix("&$D$12&",reference:=StartOfDay)="&A92&"", "Bar", "", "Close","5","0","All",,,"False","T","EveryTick") -> 4392.75 | O92: 0.0006264236902 | P92: =RTD("cqg.rtd",,"StudyData", "Close("&$D$12&") when LocalYear("&$D$12&")="&$D$5&" and localMonth("&$D$12&") ="&$E$5&" and LocalDay("&$D$12&")="&$F$5&" and Barix("&$D$12&",reference:=StartOfDay)="&A92&"", "Bar", "", "Close","5","0","All",,,"False","T","EveryTick") -> 4402.75 | Q92: 0.01119660083 | R92: =RTD("cqg.rtd",,"StudyData", "Close("&$D$12&") when LocalYear("&$D$12&")="&$D$6&" and localMonth("&$D$12&") ="&$E$6&" and LocalDay("&$D$12&")="&$F$6&" and Barix("&$D$12&",reference:=StartOfDay)="&A92&"", "Bar", "", "Close","5","0","All",,,"False","T","EveryTick") -> 4313.25 | S92: -0.004787724965 | T92: =RTD("cqg.rtd",,"StudyData", "Close("&$D$12&") when LocalYear("&$D$12&")="&$D$7&" and localMonth("&$D$12&") ="&$E$7&" and LocalDay("&$D$12&")="&$F$7&" and Barix("&$D$12&",reference:=StartOfDay)="&A92&"", "Bar", "", "Close","5","0","All",,,"False","T","EveryTick") -> 4305 | U92: 0.003204194582 | V92: =RTD("cqg.rtd",,"StudyData", "Close("&$D$12&") when LocalYear("&$D$12&")="&$D$8&" and localMonth("&$D$12&") ="&$E$8&" and LocalDay("&$D$12&")="&$F$8&" and Barix("&$D$12&",reference:=StartOfDay)="&A92&"", "Bar", "", "Close","5","0","All",,,"False","T","EveryTick") -> 4336.75 | W92: -0.001611510791 | X92: =RTD("cqg.rtd",,"StudyData", "Close("&$D$12&") when LocalYear("&$D$12&")="&$D$9&" and localMonth("&$D$12&") ="&$E$9&" and LocalDay("&$D$12&")="&$F$9&" and Barix("&$D$12&",reference:=StartOfDay)="&A92&"", "Bar", "", "Close","5","0","All",,,"False","T","EveryTick") -> 4302.5 | Y92: 0.001105229481 | Z92: =RTD("cqg.rtd",,"StudyData", "Close("&$D$12&") when LocalYear("&$D$12&")="&$D$10&" and localMonth("&$D$12&") ="&$E$10&" and LocalDay("&$D$12&")="&$F$10&" and Barix("&$D$12&",reference:=StartOfDay)="&A92&"", "Bar", "", "Close","5","0","All",,,"False","T","EveryTick") -> 4361 | AA92: 0.002586355538
